Workbook

Sheet Start
A3: BUDGET IMPACT ANALYSE BIJ DOELMATIGHEIDSONDERZOEK
A4: START
B6: Deze tool is een hulpmiddel om een Budget Impact Analyse uit te voeren. Afhankelijk van het detailniveau waarop u de BIA wenst uit te voeren, kiest u een van de onderstaande opties: 1) Alleen cijfers per hoofdcomponent Kies deze variant als u zelf reeds berekend hebt wat de startende populatie en de bedragen per patiënt zijn. Deze variant biedt wel de mogelijkheid om ten aanzien van de populatie 3 scenario's te berekenen. 2) Gedetailleerde cijferopbouw per component Kies deze variant als u bottom-up de populatie en de uitgaven per patient wilt berekenen. Deze variant houdt ook rekening met verdeling van het zorggebruik over de follow-up periode, marktaandeel, et cetera. Home / Save / Close Op alle schermen heeft u de mogelijkheid om terug te keren naar dit scherm via de knop 'Home' linksbovenin de blauwe balk. Aan de rechterkant van deze balk zijn op alle schermen twee knoppen te vinden om de BIA op te slaan en af te sluiten.
A27: Deze tool is ontwikkeld door Berenschot B.V. in opdracht van ZonMw

Sheet BIA_Light
A4: BUDGET IMPACT ANALYSE BIJ DOELMATIGHEIDSONDERZOEK
A5: Alleen cijfers per hoofdcomponent
B6: Uitleg
B7: U heeft ervoor gekozen om een BIA op hoofdlijnen in te vullen. Specificeer in de geel gearceerde cellen de gevraagde gegevens. U kunt gemakkelijk over deze cellen gaan door de toets Tabte gebruiken. Gebruik Shift + Tab om naar de vorige cel te gaan. Door op het informatieteken te klikken, krijgt u extra informatie. Aan de rechterzijde van het scherm kunt u de 'onzekerheid' van uw invoer specificeren uit een keuzemenu. Klik daarvoor aan de rechterkant in het gearceerde vlak. Via het pennetje uiterst rechts of de knop 'Bronvermeldingen/Toelichting' komt u op een pagina waar u uw invoer en de 'mate van onzekerheid' kunt toelichten. Tenslotte kunt u onder aan de pagina kiezen om weer terug te gaan naar start of om dit scherm + toelichting te printen (in pdf).
B11: Project
B12: Titel | D12: Cognitive Remediation Therapy (CRT) bij eetstoornissen
B14: Nummer | D14: xxx
B16: Projectleider | D16: xxx
B18: Email | D18: xxx
B20: i | C20: Scenario-omschrijving
C21: Hoofdscenario | D21: Realistisch scenario: Vergelijking CRT (3%) icm TAU (alternatief) ten opzichte van SAT icm TAU (referent)
C22: Scenario 2 | D22: Conservatief scenario: Vergelijking CRT (2%) icm TAU (alternatief) ten opzichte van SAT icm TAU (referent) met 95% van de zorgkosten
C23: Scenario 3 | D23: Ruim scenario: Vergelijking CRT (4%) icm TAU (alternatief) ten opzichte van SAT icm TAU (referent) met 105% van de zorgkosten
B25: i | C25: Startjaar | F25: 2018 | G25: =IF(OFFSET($G$25,0,-1)="",2,OFFSET($G$25,0,-1)+1) -> 2019 | H25: =G25+1 -> 2020 | I25: =H25+1 -> 2021 | J25: =I25+1 -> 2022 | K25: Totaal | M25: i | O25: Onzekerheid
B26: i | C26: Startende populatie
D27: Hoofdscenario | F27: 516000 | G27: 518000 | H27: 520000 | I27: 522000 | J27: 524000 | K27: =SUM(F27:J27) -> 2600000 | N27: =IF(P27="Klein",1,IF(P27="Gemiddeld",0,IF(P27="Groot",-1,""))) -> -1 | O27: Groot | P27: =IF(OFFSET(P27,0,-1)="","",OFFSET(P27,0,-1)) -> Groot
D28: Scenario 2 | F28: 344000 | G28: 345000 | H28: 347000 | I28: 348000 | J28: 350000 | K28: =SUM(F28:J28) -> 1734000 | N28: =IF(P28="Klein",1,IF(P28="Gemiddeld",0,IF(P28="Groot",-1,""))) -> -1 | O28: Groot | P28: =IF(OFFSET(P28,0,-1)="","",OFFSET(P28,0,-1)) -> Groot
D29: Scenario 3 | F29: 688000 | G29: 691000 | H29: 694000 | I29: 696000 | J29: 699000 | K29: =SUM(F29:J29) -> 3468000 | N29: =IF(P29="Klein",1,IF(P29="Gemiddeld",0,IF(P29="Groot",-1,""))) -> -1 | O29: Groot | P29: =IF(OFFSET(P29,0,-1)="","",OFFSET(P29,0,-1)) -> Groot
B32: i | C32: Uitgaven per patiënt | F32: Alternatieve zorg | H32: Referentiezorg | J32: Verschil | M32: i | O32: Onzekerheid
D33: Hoofdscenario | F33: 14038 | H33: 21623 | J33: =OFFSET(J33,0,-4)-OFFSET(J33,0,-2) -> -7585 | N33: =IF(P33="Klein",1,IF(P33="Gemiddeld",0,IF(P33="Groot",-1,""))) -> 1 | O33: Klein | P33: =IF(OFFSET(P33,0,-1)="","",OFFSET(P33,0,-1)) -> Klein
D34: Scenario 2 | F34: 13336 | H34: 20542 | J34: =OFFSET(J34,0,-4)-OFFSET(J34,0,-2) -> -7206 | N34: =IF(P34="Klein",1,IF(P34="Gemiddeld",0,IF(P34="Groot",-1,""))) -> 0 | O34: Gemiddeld | P34: =IF(OFFSET(P34,0,-1)="","",OFFSET(P34,0,-1)) -> Gemiddeld
D35: Scenario 3 | F35: 14740 | H35: 22704 | J35: =OFFSET(J35,0,-4)-OFFSET(J35,0,-2) -> -7964 | N35: =IF(P35="Klein",1,IF(P35="Gemiddeld",0,IF(P35="Groot",-1,""))) -> 0 | O35: Gemiddeld | P35: =IF(OFFSET(P35,0,-1)="","",OFFSET(P35,0,-1)) -> Gemiddeld
B37: i | C37: Budget impact (x€1000) | F37: =F25 -> 2018 | G37: =G25 -> 2019 | H37: =H25 -> 2020 | I37: =I25 -> 2021 | J37: =J25 -> 2022 | K37: Totaal | M37: i | O37: Onzekerheid
D38: Hoofdscenario | F38: =IF(OFFSET(F$26,1,0)="","",$J33*OFFSET(F$26,1,0)/1000) -> -3913860 | G38: -3929030 | H38: -3944200 | I38: -3959370 | J38: -3974540 | K38: -19721000 | N38: =IF(P38="Klein",1,IF(P38="Gemiddeld",0,IF(P38="Groot",-1,""))) -> -1 | O38: Groot | P38: =IF(OFFSET(P38,0,-1)="","",OFFSET(P38,0,-1)) -> Groot
D39: Scenario 2 | F39: =IF(OFFSET(F$26,2,0)="","",$J34*OFFSET(F$26,2,0)/1000) -> -2478864 | G39: -2486070 | H39: -2500482 | I39: -2507688 | J39: -2522100 | K39: -12495204 | N39: =IF(P39="Klein",1,IF(P39="Gemiddeld",0,IF(P39="Groot",-1,""))) -> -1 | O39: Groot | P39: =IF(OFFSET(P39,0,-1)="","",OFFSET(P39,0,-1)) -> Groot
D40: Scenario 3 | F40: =IF(OFFSET(F$26,3,0)="","",$J35*OFFSET(F$26,3,0)/1000) -> -5479232 | G40: -5503124 | H40: -5527016 | I40: -5542944 | J40: -5566836 | K40: -27619152 | N40: =IF(P40="Klein",1,IF(P40="Gemiddeld",0,IF(P40="Groot",-1,""))) -> -1 | O40: Groot | P40: =IF(OFFSET(P40,0,-1)="","",OFFSET(P40,0,-1)) -> Groot

Sheet Toelichting_BIA_Light
A3: BUDGET IMPACT ANALYSE BIJ DOELMATIGHEIDSONDERZOEK
A4: Alleen cijfers per hoofdcomponent
B5: Uitleg
B6: Op deze pagina kunt u uw invoer van alleen de cijfers per hoofdcomponent toelichten. Vervolgens keert u via de knop 'terug' weer terug naar de pagina waarop de gegevens worden ingevoerd.
F10: Onzekerheid | H10: Toelichting | I10: Bron
C12: Startjaar
C14: Startende populatie
C15: Hoofdscenario | F15: =IF(G15="Klein",1,IF(G15="Gemiddeld",0,IF(G15="Groot",-1,""))) -> -1 | G15: =IF(BIA_Light!P27="","Onbekend!",BIA_Light!P27) -> Groot | H15: De hier geschatte populatie is gebasseerd op de totale prevalentie (3%) van eetstoornissen binnen de Nederlandse bevolking. De cijfers die hiervoor zijn gebruikt zijn 6 jaar oud en van wetenschappelijke kwaliteit. | I15: CBS data en Smink et al 2012 (prevalentie)
C16: Scenario 2 | F16: =IF(G16="Klein",1,IF(G16="Gemiddeld",0,IF(G16="Groot",-1,""))) -> -1 | G16: =IF(BIA_Light!P28="","Onbekend!",BIA_Light!P28) -> Groot | H16: Zie hoofdscenario. Hier is de conservatieve schatting gemaakt van de prevalentie (2%) op basis van de prevalentie schatting van Smink et al van 2-4%. | I16: CBS data en Smink et al 2012 (prevalentie)
C17: Scenario 3 | F17: =IF(G17="Klein",1,IF(G17="Gemiddeld",0,IF(G17="Groot",-1,""))) -> -1 | G17: =IF(BIA_Light!P29="","Onbekend!",BIA_Light!P29) -> Groot | H17: Zie hoofdscenario. Hier is een ruime schatting gemaakt van de prevalentie (4%) op basis van de prevalentie schatting van Smink et al van 2-4%. | I17: CBS data en Smink et al 2012 (prevalentie)
F18: =IF(BIA_Light!P30="","",BIA_Light!P30) -> 
C19: Uitgaven per patiënt
C20: Hoofdscenario | F20: =IF(G20="Klein",1,IF(G20="Gemiddeld",0,IF(G20="Groot",-1,""))) -> 1 | G20: =IF(BIA_Light!P33="","",BIA_Light!P33) -> Klein | H20: Met behulp van het Tic-P instrument zijn binnen de multicentre trial in de Nederlandse context de gemiddelde kosten per patiënt voor zowel de referentie als de alternatieve zorg berekend. | I20: Eigen onderzoek van het onderzoeksteam.
C21: Scenario 2 | F21: =IF(G21="Klein",1,IF(G21="Gemiddeld",0,IF(G21="Groot",-1,""))) -> 0 | G21: =IF(BIA_Light!P34="","",BIA_Light!P34) -> Gemiddeld | H21: Zie hoofdscenario. Hier is een conservatieve schatting gebruikt van de kosten (95%) die voortvloeiden uit het hoofdonderzoek. | I21: Aanname Berenschot, afgeleid uit onderzoek van het onderzoeksteam.
C22: Scenario 3 | F22: =IF(G22="Klein",1,IF(G22="Gemiddeld",0,IF(G22="Groot",-1,""))) -> 0 | G22: =IF(BIA_Light!P35="","",BIA_Light!P35) -> Gemiddeld | H22: Zie hoofdscenario. Hier is een ruime schatting gebruikt van de kosten (105%) die voortvloeiden uit het hoofdonderzoek. | I22: Aanname Berenschot, afgeleid uit onderzoek van het onderzoeksteam.
F23: =IF(BIA_Light!P36="","",BIA_Light!P36) -> 
C24: Budget impact (x€1000)
C25: Hoofdscenario | F25: =IF(G25="Klein",1,IF(G25="Gemiddeld",0,IF(G25="Groot",-1,""))) -> -1 | G25: =IF(BIA_Light!P38="","",BIA_Light!P38) -> Groot | H25: Onzekerheid is groot, gegeven de samenstelling van de te behandelen populatie (algehele prevalentie, niet nader gespecificeerd).
C26: Scenario 2 | F26: =IF(G26="Klein",1,IF(G26="Gemiddeld",0,IF(G26="Groot",-1,""))) -> -1 | G26: =IF(BIA_Light!P39="","",BIA_Light!P39) -> Groot | H26: Zie hierboven.
C27: Scenario 3 | F27: =IF(G27="Klein",1,IF(G27="Gemiddeld",0,IF(G27="Groot",-1,""))) -> -1 | G27: =IF(BIA_Light!P40="","",BIA_Light!P40) -> Groot | H27: Zie hierboven.

Sheet Toelichting
A3: BUDGET IMPACT ANALYSE BIJ DOELMATIGHEIDSONDERZOEK
A4: TOELICHTING
B6: U heeft ervoor gekozen om een gedetailleerde cijferopbouw per component in te vullen. Hier volgt een toelichting op het invullen van deze versie. Uitleg Vrijwel alle pagina's beginnen met een blok met algemene uitleg over de inhoud van die pagina, alsmede met specifieke instructies voor het invullen van dat scherm. Navigatie Na de uitleg volgt meestal een blok met navigatieknoppen. Deze knoppen zijn bedoeld om snel tussen schermen te kunnen wisselen maar hoeven in principe niet gebruikt te worden. Elke pagina heeft namelijk onderin een knop 'verder' om naar de volgende stap in het invulproces te gaan. In principe kunt u het hele proces doorlopen door alleen de 'verder' knoppen te gebruiken. Naast de 'verder' knop staat ook altijd een 'terug' knop om naar de vorige pagina te gaan. De knoppen onder navigatie kunnen handig zijn om bijvoorbeeld snel te wisselen tussen de 3 scenario's. Dit kan prettig zijn als u bijvoorbeeld eerst voor alle 3 de scenario's de populatie wilt specificeren en niet, zoals via de 'verder' knop eerst alle gegevens van 1 scenario (populatie en kosten) wilt invullen. Onderin het scherm ziet u in de bruine band een aantal knoppen waarmee u snel tussen de hoofdonderdelen van de BIA kunt navigeren. In principe geldt ook voor deze knoppen dat u ze niet nodig heeft wanneer u de 'verder' knoppen gebruikt. In te vullen cellen U hoeft alleen gegevens in te voeren als er geel gearceerde cellen op een pagina staan. U kunt gemakkelijk over deze cellen gaan door de toets Tab te gebruiken. en Shift + Tab om weer naar de vorige cel te gaan, Aanvullende informatie Door op het informatieteken i te klikken, krijgt u extra informatie. Noodzakelijke invoer Op een aantal plekken worden de geel gearceerde velden ingekleurd met een rood-gestippeld patroon. Dit is gedaan om u erop te attenderen dat er nog geen waarde is ingevuld, terwijl dat wel nodig is voor een complete BIA. Gegevensvalidatie Bij de velden waar een numerieke invoer gevraagd wordt, vindt gegevensvalidatie plaats. Dit betekent dat u alleen in een bepaalde vorm data kunt invoeren: bijvoorbeeld geen tekst waar bedragen of percentages verwacht worden. Indien uw invoer niet hieraan voldoet krijgt u een melding waarin omschreven is wat de gewenste invoer is. Specificatie mate van onzekerheid Op vrijwel alle schermen waar u gegevens dient in te voeren, heeft u aan de rechterkant van het scherm de mogelijkheid om een indicatie te geven m.b.t. de mate van onzekerheid van de invoer. Op pagina 22 en 23 van de leidraad vindt u de methodologie om hierin een keuze te maken. Bronvermelding en toelichting Waar relevant vindt u uiterst rechts een pennetje. Door hier op te klikken komt u op een aparte pagina waar u uw invoer kunt toelichten. Dit kan ook via de knop 'Bronvermelding en toelichting' onderin de schermen. Home / Save / Close Op alle schermen heeft u de mogelijkheid om terug te keren naar dit scherm via de knop 'Home' linksbovenin de blauwe balk. Aan de rechterkant van deze balk zijn op alle schermen twee knoppen te vinden om de BIA op te slaan en af te sluiten.
A39: Met onderstaande knoppen kunt u snel over de hoofdonderdelen van de BIA navigeren. De kleur matcht met de band bovenin het scherm. De knop 'Verder' hierboven volstaat echter om het hele proces te doorlopen.

Sheet Voorblad
A3: BUDGET IMPACT ANALYSE BIJ DOELMATIGHEIDSONDERZOEK
A4: VOORBLAD
B5: Uitleg
B6: Specificeer op dit blad in de geel gearceerde cellen de gevraagde algemene gegevens. U kunt gemakkelijk over deze cellen gaan door de toets Tabte gebruiken. Door op het informatieteken te klikken, krijgt u extra informatie. Onder aan de pagina kunt u vervolgens kiezen om verder te gaan naar het volgende onderdeel in de tool. In de bruine balk onderin de pagina kunt u snel over de hoofdonderdelen van de BIA navigeren. In principe heeft u genoeg aan de knop 'Verder' om het hele proces te doorlopen.
B10: Project
B11: Titel | D11: Cost-effectiveness of Early Surgery versus Conservative Treatment with Optional Delayed Meniscectomy for Patients over 50 years. A Randomized Controlled Trial.
B13: Nummer | D13: xxx
B15: Projectleider | D15: xxx
B17: Email | D17: xxx
B19: i | C19: Scenario-omschrijving
C20: Hoofdscenario | D20: Realistisch scenario: 50% van de in totaal 18.000 patiënten tussen de 45 en 70 jaar die per jaar worden behandeld aan een meniscuslaesie (referente zorg) kunnen middels fysiotherapie worden behandeld (alternatieve zorg) | O20: =IF(OFFSET(Voorblad!$O20,0,-11)="","Er is nog geen omschrijving gegeven op het voorblad",OFFSET(Voorblad!$O20,0,-12)&": "&OFFSET(Voorblad!$O20,0,-11)) -> Hoofdscenario: Realistisch scenario: 50% van de in totaal 18.000 patiënten tussen de 45 en 70 jaar die per jaar worden behandeld aan een meniscuslaesie (referente zorg) kunnen middels fysiotherapie worden behandeld (alternatieve zorg)
C21: Scenario 2 | D21: Niet nader omschreven | O21: =IF(OFFSET(Voorblad!$O21,0,-11)="","Er is nog geen omschrijving gegeven op het voorblad",OFFSET(Voorblad!$O21,0,-12)&": "&OFFSET(Voorblad!$O21,0,-11)) -> Scenario 2: Niet nader omschreven
C22: Scenario 3 | D22: Niet nader omschreven | O22: =IF(OFFSET(Voorblad!$O22,0,-11)="","Er is nog geen omschrijving gegeven op het voorblad",OFFSET(Voorblad!$O22,0,-12)&": "&OFFSET(Voorblad!$O22,0,-11)) -> Scenario 3: Niet nader omschreven
B24: i | C24: Startjaar | D24: 2019
D25: =IF(OFFSET(D25,-1,0)="","",OFFSET(D25,-1,0)) -> 2019
A29: Met onderstaande knoppen kunt u snel over de hoofdonderdelen van de BIA navigeren. De kleur matcht met de band bovenin het scherm. De knop 'Verder' hierboven volstaat echter om het hele proces te doorlopen.

Sheet Populatie1
A3: BUDGET IMPACT ANALYSE BIJ DOELMATIGHEIDSONDERZOEK
A4: POPULATIE
B6: STARTENDE PATIËNTEN De groep patiënten die start met de alternatieve zorg bestaat uit 2 subpopulaties: A) Incidentie = nieuwe patiënten die pas vanaf nu aangewezen zijn op de alternatieve zorg. B) Stuwmeer = de populatie patiënten die al in een eerder stadium op basis van hun aandoening is geïndiceerd voor de referentiezorg die onderdeel is van de BIA en die nu overstappen naar de alternatieve zorg. Aan de rechterzijde van het scherm kunt u de 'onzekerheid' van uw invoer specificeren uit een keuzemenu. Klik hiervoor in het rechter deel van het gearceerde vlak. Het is de bedoeling dat u dit zowel voor de losse onderdelen doet, als voor de totalen (blauwe velden). De labels van de totalen zullen worden overgenomen op het hoofdoverzicht en bij de weergave van de uiteindelijke budgetimpact. Ten aanzien van het specificeren van de onzerkerheid, vindt u de methodologie op pagina 22 en 23 van de leidraad. Via de pennetjes uiterst rechts of de knop 'Bronvermeldingen/Toelichting' komt u op een pagina waar u uw invoer en de 'mate van onzekerheid' kunt toelichten.
B13: i | C13: Navigatie
B16: i | C16: Omschrijving scenario
C17: =Voorblad!O20 -> Hoofdscenario: Realistisch scenario: 50% van de in totaal 18.000 patiënten tussen de 45 en 70 jaar die per jaar worden behandeld aan een meniscuslaesie (referente zorg) kunnen middels fysiotherapie worden behandeld (alternatieve zorg)
C19: Bij de navolgende scenario's kunt u de hier ingevulde waardes automatisch laten overnemen door middel van een knop op deze plaats
B21: A. INCIDENTIE | D21: =IF(Startjaar="",1,Startjaar) -> 2019 | E21: =D21+1 -> 2020 | F21: =E21+1 -> 2021 | G21: =F21+1 -> 2022 | H21: =G21+1 -> 2023 | J21: i | L21: Onzekerheid
B22: i | C22: Potentieel nieuw startende patienten | D22: 18000 | E22: 18000 | F22: 18000 | G22: 18000 | H22: 18000 | K22: =IF(L22="Klein",1,IF(L22="Gemiddeld",0,IF(L22="Groot",-1,""))) -> 1 | L22: Klein | M22: =IF(OFFSET(M22,0,-1)="","",OFFSET(M22,0,-1)) -> Klein
B23: i | C23: Fractie behandelbaar (percentage) | D23: 0.95 | E23: 0.95 | F23: 0.95 | G23: 0.95 | H23: 0.95 | K23: =IF(L23="Klein",1,IF(L23="Gemiddeld",0,IF(L23="Groot",-1,""))) -> -1 | L23: Groot | M23: =IF(OFFSET(M23,0,-1)="","",OFFSET(M23,0,-1)) -> Groot
C24: Patiënten behandelbaar | D24: =OFFSET(D24,-2,0)*OFFSET(D24,-1,0) -> 17100 | E24: =OFFSET(E24,-2,0)*OFFSET(E24,-1,0) -> 17100 | F24: =OFFSET(F24,-2,0)*OFFSET(F24,-1,0) -> 17100 | G24: =OFFSET(G24,-2,0)*OFFSET(G24,-1,0) -> 17100 | H24: =OFFSET(H24,-2,0)*OFFSET(H24,-1,0) -> 17100
B26: B. STUWMEER
B27: i | C27: Potentieel overstappende patienten | D27: 4000 | E27: 5000 | F27: 6000 | G27: 7000 | H27: 8000 | K27: =IF(M27="Klein",1,IF(M27="Gemiddeld",0,IF(M27="Groot",-1,""))) -> -1 | L27: Groot | M27: =IF(OFFSET(M27,0,-1)="","",OFFSET(M27,0,-1)) -> Groot
B28: i | C28: Percentage patiënten behandelbaar | D28: 0.95 | E28: 0.95 | F28: 0.95 | G28: 0.95 | H28: 0.95 | K28: =IF(M28="Klein",1,IF(M28="Gemiddeld",0,IF(M28="Groot",-1,""))) -> -1 | L28: Groot | M28: =IF(OFFSET(M28,0,-1)="","",OFFSET(M28,0,-1)) -> Groot
C29: Patiënten behandelbaar | D29: =OFFSET(D29,-2,0)*OFFSET(D29,-1,0) -> 3800 | E29: =OFFSET(E29,-2,0)*OFFSET(E29,-1,0) -> 4750 | F29: =OFFSET(F29,-2,0)*OFFSET(F29,-1,0) -> 5700 | G29: =OFFSET(G29,-2,0)*OFFSET(G29,-1,0) -> 6650 | H29: =OFFSET(H29,-2,0)*OFFSET(H29,-1,0) -> 7600
B31: TOTAAL
B32: i | C32: Potentieel startende patienten | D32: =SUM(D33:D34) -> 20900 | E32: =SUM(E33:E34) -> 22715 | F32: =SUM(F33:F34) -> 23485.75 | G32: =SUM(G33:G34) -> 24384.2875 | H32: =SUM(H33:H34) -> 25199.21437
C33: Patiënten behandelbaar | D33: =SUM(D24,D29) -> 20900 | E33: =SUM(E24,E29) -> 21850 | F33: =SUM(F24,F29) -> 22800 | G33: =SUM(G24,G29) -> 23750 | H33: =SUM(H24,H29) -> 24700
C34: Patiënten op wachtlijst | E34: =D38 -> 865 | F34: =E38 -> 685.75 | G34: =F38 -> 634.2875 | H34: =G38 -> 499.214375
B35: i | C35: Implementatiecapaciteit (aantal) | D35: 3600 | E35: 9000 | F35: 10800 | G35: 14400 | H35: 18000 | K35: =IF(M35="Klein",1,IF(M35="Gemiddeld",0,IF(M35="Groot",-1,""))) -> 0 | L35: Gemiddeld | M35: =IF(OFFSET(M35,0,-1)="","",OFFSET(M35,0,-1)) -> Gemiddeld
C36: Aantal niet-starters | D36: =IF(OFFSET(D36,-1,0)<=SUM(D33:D34),SUM(D33:D34)-OFFSET(D36,-1,0),0) -> 17300 | E36: =IF(OFFSET(E36,-1,0)<=SUM(E33:E34),SUM(E33:E34)-OFFSET(E36,-1,0),0) -> 13715 | F36: =IF(OFFSET(F36,-1,0)<=SUM(F33:F34),SUM(F33:F34)-OFFSET(F36,-1,0),0) -> 12685.75 | G36: =IF(OFFSET(G36,-1,0)<=SUM(G33:G34),SUM(G33:G34)-OFFSET(G36,-1,0),0) -> 9984.2875 | H36: =IF(OFFSET(H36,-1,0)<=SUM(H33:H34),SUM(H33:H34)-OFFSET(H36,-1,0),0) -> 7199.214375
B37: i | C37: Percentage naar wachtlijst | D37: 0.05 | E37: 0.05 | F37: 0.05 | G37: 0.05 | H37: 0.05 | K37: =IF(M37="Klein",1,IF(M37="Gemiddeld",0,IF(M37="Groot",-1,""))) -> -1 | L37: Groot | M37: =IF(OFFSET(M37,0,-1)="","",OFFSET(M37,0,-1)) -> Groot
B38: i | C38: Aantal naar wachtlijst | D38: =OFFSET(D38,-1,0)*D36 -> 865 | E38: =OFFSET(E38,-1,0)*E36 -> 685.75 | F38: =OFFSET(F38,-1,0)*F36 -> 634.2875 | G38: =OFFSET(G38,-1,0)*G36 -> 499.214375 | H38: =OFFSET(H38,-1,0)*H36 -> 359.9607188
B39: i | C39: Feitelijk startende patiënten | D39: =IF(OFFSET(D36,-1,0)<SUM(D33:D34),OFFSET(D36,-1,0),SUM(D33:D34)) -> 3600 | E39: =IF(OFFSET(E36,-1,0)<SUM(E33:E34),OFFSET(E36,-1,0),SUM(E33:E34)) -> 9000 | F39: =IF(OFFSET(F36,-1,0)<SUM(F33:F34),OFFSET(F36,-1,0),SUM(F33:F34)) -> 10800 | G39: =IF(OFFSET(G36,-1,0)<SUM(G33:G34),OFFSET(G36,-1,0),SUM(G33:G34)) -> 14400 | H39: =IF(OFFSET(H36,-1,0)<SUM(H33:H34),OFFSET(H36,-1,0),SUM(H33:H34)) -> 18000 | K39: =IF(M39="Klein",1,IF(M39="Gemiddeld",0,IF(M39="Groot",-1,""))) -> 0 | L39: Gemiddeld | M39: =IF(OFFSET(M39,0,-1)="","",OFFSET(M39,0,-1)) -> Gemiddeld
A45: Met onderstaande knoppen kunt u snel over de hoofdonderdelen van de BIA navigeren. De kleur matcht met de band bovenin het scherm. De knop 'Verder' hierboven volstaat echter om het hele proces te doorlopen.

Sheet Interventies_alt1
A3: BUDGET IMPACT ANALYSE BIJ DOELMATIGHEIDSONDERZOEK
A4: INTERVENTIEMIX ALTERNATIEVE ZORG
B6: Op deze pagina kunt u specificeren welke zorgprestaties beïnvloed worden binnen de alternatieve- en referentiezorg (u kunt hiertussen wisselen via de knoppen onder navigatie of de routing volgen via de knop 'verder' onder in het scherm). U kunt ook hier kiezen om te variëren binnen de 3 eerder omschreven scenario's, tevens heeft u de mogelijkheid om de gegevens van scenario 1 automatisch te kopiëren. U specificeert de interventiemix door de verschillende componenten per regel te omschrijven. Deze omschrijving kent de volgende onderdelen: 1) Typeer de kosten als non-healthcare of kies de sector van de interventiecomponent uit het keuzemenu. Op basis hiervan wordt automatisch de juiste wet gekoppeld, zodat hierop geaggregeerd kan worden. 2) Geef een omschrijving van de interventiecomponenten 3) Specificeer de typering van de kosten: incidenteel of structureel 4) Specificeer de verdeling van de uitgaven per patiënt over de follow-up jaren. De witte kolom erna geeft het totaal. 5) Geef voor het geheel van de onderdelen een specificatie van de mate van onzekerheid. Klik hiervoor aan de rechterzijde in het gearceerde vlak. De methodologie vindt u op pagina 22 en 23 van de leidraad. 6) Via de knop onderin het scherm komt u op een apart scherm waar u de specificatie en mate van onzekerheid kunt toelichten. U dient daar ook een eindoordeel te specificeren voor de mate van onzekerheid van de kosten van de interventiemix.
B12: i | C12: Navigatie
B16: i | C16: Omschrijving scenario
C17: =Populatie1!$C$17 -> Hoofdscenario: Realistisch scenario: 50% van de in totaal 18.000 patiënten tussen de 45 en 70 jaar die per jaar worden behandeld aan een meniscuslaesie (referente zorg) kunnen middels fysiotherapie worden behandeld (alternatieve zorg)
C19: Bij de navolgende scenario's kunt u de hier ingevulde waardes automatisch laten overnemen door middel van een knop op deze plaats
B21: INTERVENTIEMIX: SPECIFICEER PER PATIENT
C22: Kies zorgsector of non-healthcare | D22: Component | E22: Structureel / Incidenteel | F22: Uitgaven jaar 1 | G22: jaar 2 | H22: jaar 3 | I22: jaar 4 | J22: jaar 5 | K22: Uitgaven totaal | M22: i | O22: Onzekerheid
B23: 1 | C23: Paramedische zorg | D23: Fysiotherapie | E23: Incidenteel | F23: 838 | G23: 0 | H23: 0 | I23: 0 | J23: 0 | K23: =SUM(F23:J23) -> 838 | N23: =IF(P23="Klein",1,IF(P23="Gemiddeld",0,IF(P23="Groot",-1,""))) -> 1 | O23: Klein | P23: =IF(OFFSET(P23,0,-1)="","",OFFSET(P23,0,-1)) -> Klein
B24: 2 | K24: =SUM(F24:J24) -> 0 | P24: =IF(OFFSET(P24,0,-1)="","",OFFSET(P24,0,-1)) -> 
B25: 3 | K25: 0
B26: 4 | K26: 0
B27: 5 | K27: 0
B28: 6 | K28: 0
B29: 7 | K29: 0
B30: 8 | K30: 0
B31: 9 | K31: 0
B32: 10 | K32: 0
B33: 11 | K33: 0
B34: 12 | K34: 0
B35: 13 | K35: 0
B36: 14 | K36: 0
B37: 15 | K37: 0 | N37: 0 | O37: Gemiddeld | P37: Gemiddeld
A42: Met onderstaande knoppen kunt u snel over de hoofdonderdelen van de BIA navigeren. De kleur matcht met de band bovenin het scherm. De knop 'Verder' hierboven volstaat echter om het hele proces te doorlopen.

Sheet Interventies_ref1
A3: BUDGET IMPACT ANALYSE BIJ DOELMATIGHEIDSONDERZOEK
A4: INTERVENTIEMIX REFERENTIEZORG
B6: Op deze pagina kunt u specificeren welke zorgprestaties beïnvloed worden binnen de alternatieve- en referentiezorg (u kunt hiertussen wisselen via de knoppen onder navigatie of de routing volgen via de knop 'verder' onder in het scherm). U kunt ook hier kiezen om te variëren binnen de 3 eerder omschreven scenario's, tevens heeft u de mogelijkheid om de gegevens van scenario 1 automatisch te kopiëren. U specificeert de interventiemix door de verschillende componenten per regel te omschrijven. Deze omschrijving kent de volgende onderdelen: 1) Typeer de kosten als non-healthcare of kies de sector van de interventiecomponent uit het keuzemenu. Op basis hiervan wordt automatisch de juiste wet gekoppeld, zodat hierop geaggregeerd kan worden. 2) Geef een omschrijving van de interventiecomponenten 3) Specificeer de typering van de kosten: incidenteel of structureel 4) Specificeer de verdeling van de uitgaven per patiënt over de follow-up jaren. De witte kolom erna geeft het totaal. 5) Geef voor het geheel van de onderdelen een specificatie van de mate van onzekerheid. Klik hiervoor aan de rechterzijde in het gearceerde vlak. De methodologie vindt u op pagina 22 en 23 van de leidraad. 6) Via de knop onderin het scherm komt u op een apart scherm waar u de specificatie en mate van onzekerheid kunt toelichten. U dient daar ook een eindoordeel te specificeren voor de mate van onzekerheid van de kosten van de interventiemix.
B12: i | C12: Navigatie
B16: i | C16: Omschrijving scenario
C17: =Populatie1!$C$17 -> Hoofdscenario: Realistisch scenario: 50% van de in totaal 18.000 patiënten tussen de 45 en 70 jaar die per jaar worden behandeld aan een meniscuslaesie (referente zorg) kunnen middels fysiotherapie worden behandeld (alternatieve zorg)
C19: Bij de navolgende scenario's kunt u de hier ingevulde waardes automatisch laten overnemen door middel van een knop op deze plaats
B21: INTERVENTIEMIX: SPECIFICEER PER PATIENT
C22: Kies zorgsector of non-healthcare | D22: Component | E22: Structureel / Incidenteel | F22: Uitgaven jaar 1 | G22: jaar 2 | H22: jaar 3 | I22: jaar 4 | J22: jaar 5 | K22: Uitgaven totaal | M22: i | O22: Onzekerheid
B23: 1 | C23: Medisch-specialistische zorg | D23: Meniscusoperatie | E23: Incidenteel | F23: 3202 | K23: =SUM(F23:J23) -> 3202 | N23: =IF(P23="Klein",1,IF(P23="Gemiddeld",0,IF(P23="Groot",-1,""))) -> 1 | O23: Klein | P23: =IF(OFFSET(P23,0,-1)="","",OFFSET(P23,0,-1)) -> Klein
B24: 2 | K24: =SUM(F24:J24) -> 0 | P24: =IF(OFFSET(P24,0,-1)="","",OFFSET(P24,0,-1)) -> 
B25: 3 | K25: 0
B26: 4 | K26: 0
B27: 5 | K27: 0
B28: 6 | K28: 0
B29: 7 | K29: 0
B30: 8 | K30: 0
B31: 9 | K31: 0
B32: 10 | K32: 0
B33: 11 | K33: 0
B34: 12 | K34: 0
B35: 13 | K35: 0
B36: 14 | K36: 0
B37: 15 | K37: 0 | N37: -1 | O37: Groot | P37: Groot
A38: U heeft inmiddels alle schermen voor scenario 1 doorlopen. U kunt nu kiezen om verder te gaan, al dan niet met een ander scenario.
A43: Met onderstaande knoppen kunt u snel over de hoofdonderdelen van de BIA navigeren. De kleur matcht met de band bovenin het scherm. De knop 'Verder' hierboven volstaat echter om het hele proces te doorlopen.

Sheet Populatie2
A3: BUDGET IMPACT ANALYSE BIJ DOELMATIGHEIDSONDERZOEK
A4: POPULATIE
B6: STARTENDE PATIËNTEN De groep patiënten die start met de alternatieve zorg bestaat uit 2 subpopulaties: A) Incidentie = nieuwe patiënten die pas vanaf nu aangewezen zijn op de alternatieve zorg. B) Stuwmeer = de populatie patiënten die al in een eerder stadium op basis van hun aandoening is geïndiceerd voor de referentiezorg die onderdeel is van de BIA en die nu overstappen naar de alternatieve zorg. Aan de rechterzijde van het scherm kunt u de 'onzekerheid' van uw invoer specificeren uit een keuzemenu. Klik hiervoor in het rechter deel van het gearceerde vlak. Het is de bedoeling dat u dit zowel voor de losse onderdelen doet, als voor de totalen (blauwe velden). De labels van de totalen zullen worden overgenomen op het hoofdoverzicht en bij de weergave van de uiteindelijke budgetimpact. Ten aanzien van het specificeren van de onzerkerheid, vindt u de methodologie op pagina 22 en 23 van de leidraad. Via de pennetjes uiterst rechts of de knop 'Bronvermeldingen/Toelichting' komt u op een pagina waar u uw invoer en de 'mate van onzekerheid' kunt toelichten.
B13: i | C13: Navigatie
B16: i | C16: Omschrijving scenario
C17: =Voorblad!O21 -> Scenario 2: Niet nader omschreven
B19: i
B21: A. INCIDENTIE | D21: 2019 | E21: 2020 | F21: 2021 | G21: 2022 | H21: 2023 | J21: i | L21: Onzekerheid
B22: i | C22: Potentieel nieuw startende patienten | K22: =IF(M22="Klein",1,IF(M22="Gemiddeld",0,IF(M22="Groot",-1,""))) -> 0 | L22: Gemiddeld | M22: =IF(OFFSET(M22,0,-1)="","",OFFSET(M22,0,-1)) -> Gemiddeld
B23: i | C23: Fractie behandelbaar (percentage) | K23: =IF(M23="Klein",1,IF(M23="Gemiddeld",0,IF(M23="Groot",-1,""))) -> 1 | L23: Klein | M23: =IF(OFFSET(M23,0,-1)="","",OFFSET(M23,0,-1)) -> Klein
C24: Patiënten behandelbaar | D24: =OFFSET(D24,-2,0)*OFFSET(D24,-1,0) -> 0 | E24: =OFFSET(E24,-2,0)*OFFSET(E24,-1,0) -> 0 | F24: =OFFSET(F24,-2,0)*OFFSET(F24,-1,0) -> 0 | G24: =OFFSET(G24,-2,0)*OFFSET(G24,-1,0) -> 0 | H24: =OFFSET(H24,-2,0)*OFFSET(H24,-1,0) -> 0
B26: B. STUWMEER
B27: i | C27: Potentieel overstappende patienten | K27: =IF(M27="Klein",1,IF(M27="Gemiddeld",0,IF(M27="Groot",-1,""))) ->  | M27: =IF(OFFSET(M27,0,-1)="","",OFFSET(M27,0,-1)) -> 
B28: i | C28: Percentage patiënten behandelbaar | K28: =IF(M28="Klein",1,IF(M28="Gemiddeld",0,IF(M28="Groot",-1,""))) ->  | M28: =IF(OFFSET(M28,0,-1)="","",OFFSET(M28,0,-1)) -> 
C29: Patiënten behandelbaar | D29: =OFFSET(D29,-2,0)*OFFSET(D29,-1,0) -> 0 | E29: =OFFSET(E29,-2,0)*OFFSET(E29,-1,0) -> 0 | F29: =OFFSET(F29,-2,0)*OFFSET(F29,-1,0) -> 0 | G29: =OFFSET(G29,-2,0)*OFFSET(G29,-1,0) -> 0 | H29: =OFFSET(H29,-2,0)*OFFSET(H29,-1,0) -> 0
B31: TOTAAL
B32: i | C32: Potentieel startende patienten | D32: =SUM(D33:D34) -> 0 | E32: =SUM(E33:E34) -> 0 | F32: =SUM(F33:F34) -> 0 | G32: =SUM(G33:G34) -> 0 | H32: =SUM(H33:H34) -> 0
C33: Patiënten behandelbaar | D33: =SUM(D24,D29) -> 0 | E33: =SUM(E24,E29) -> 0 | F33: =SUM(F24,F29) -> 0 | G33: =SUM(G24,G29) -> 0 | H33: =SUM(H24,H29) -> 0
C34: Patiënten op wachtlijst | E34: =D38 -> 0 | F34: =E38 -> 0 | G34: 0 | H34: 0
B35: i | C35: Implementatiecapaciteit (aantal) | K35: =IF(M35="Klein",1,IF(M35="Gemiddeld",0,IF(M35="Groot",-1,""))) ->  | M35: =IF(OFFSET(M35,0,-1)="","",OFFSET(M35,0,-1)) -> 
C36: Aantal niet-starters | D36: =IF(OFFSET(D36,-1,0)<=SUM(D33:D34),SUM(D33:D34)-OFFSET(D36,-1,0),0) -> 0 | E36: =IF(OFFSET(E36,-1,0)<=SUM(E33:E34),SUM(E33:E34)-OFFSET(E36,-1,0),0) -> 0 | F36: 0 | G36: 0 | H36: 0
B37: i | C37: Percentage naar wachtlijst | K37: =IF(M37="Klein",1,IF(M37="Gemiddeld",0,IF(M37="Groot",-1,""))) ->  | M37: =IF(OFFSET(M37,0,-1)="","",OFFSET(M37,0,-1)) -> 
B38: i | C38: Aantal naar wachtlijst | D38: =OFFSET(D38,-1,0)*D36 -> 0 | E38: =OFFSET(E38,-1,0)*E36 -> 0 | F38: =OFFSET(F38,-1,0)*F36 -> 0 | G38: =OFFSET(G38,-1,0)*G36 -> 0 | H38: =OFFSET(H38,-1,0)*H36 -> 0
B39: i | C39: Feitelijk startende patiënten | D39: =IF(OFFSET(D36,-1,0)<SUM(D33:D34),OFFSET(D36,-1,0),SUM(D33:D34)) -> 0 | E39: =IF(OFFSET(E36,-1,0)<SUM(E33:E34),OFFSET(E36,-1,0),SUM(E33:E34)) -> 0 | F39: =IF(OFFSET(F36,-1,0)<SUM(F33:F34),OFFSET(F36,-1,0),SUM(F33:F34)) -> 0 | G39: =IF(OFFSET(G36,-1,0)<SUM(G33:G34),OFFSET(G36,-1,0),SUM(G33:G34)) -> 0 | H39: =IF(OFFSET(H36,-1,0)<SUM(H33:H34),OFFSET(H36,-1,0),SUM(H33:H34)) -> 0 | K39: =IF(M39="Klein",1,IF(M39="Gemiddeld",0,IF(M39="Groot",-1,""))) -> 0 | L39: Gemiddeld | M39: =IF(OFFSET(M39,0,-1)="","",OFFSET(M39,0,-1)) -> Gemiddeld
A45: Met onderstaande knoppen kunt u snel over de hoofdonderdelen van de BIA navigeren. De kleur matcht met de band bovenin het scherm. De knop 'Verder' hierboven volstaat echter om het hele proces te doorlopen.

Sheet Interventies_alt2
A3: BUDGET IMPACT ANALYSE BIJ DOELMATIGHEIDSONDERZOEK
A4: INTERVENTIEMIX ALTERNATIEVE ZORG
B6: Op deze pagina kunt u specificeren welke zorgprestaties beïnvloed worden binnen de alternatieve- en referentiezorg (u kunt hiertussen wisselen via de knoppen onder navigatie of de routing volgen via de knop 'verder' onder in het scherm). U kunt ook hier kiezen om te variëren binnen de 3 eerder omschreven scenario's, tevens heeft u de mogelijkheid om de gegevens van scenario 1 automatisch te kopiëren. U specificeert de interventiemix door de verschillende componenten per regel te omschrijven. Deze omschrijving kent de volgende onderdelen: 1) Typeer de kosten als non-healthcare of kies de sector van de interventiecomponent uit het keuzemenu. Op basis hiervan wordt automatisch de juiste wet gekoppeld, zodat hierop geaggregeerd kan worden. 2) Geef een omschrijving van de interventiecomponenten 3) Specificeer de typering van de kosten: incidenteel of structureel 4) Specificeer de verdeling van de uitgaven per patiënt over de follow-up jaren. De witte kolom erna geeft het totaal. 5) Geef voor het geheel van de onderdelen een specificatie van de mate van onzekerheid. Klik hiervoor aan de rechterzijde in het gearceerde vlak. De methodologie vindt u op pagina 22 en 23 van de leidraad. 6) Via de knop onderin het scherm komt u op een apart scherm waar u de specificatie en mate van onzekerheid kunt toelichten. U dient daar ook een eindoordeel te specificeren voor de mate van onzekerheid van de kosten van de interventiemix.
B12: i | C12: Navigatie
B16: i | C16: Omschrijving scenario
C17: =Populatie2!$C$17 -> Scenario 2: Niet nader omschreven
B19: i
B21: INTERVENTIEMIX: SPECIFICEER PER PATIENT
C22: Kies zorgsector of non-healthcare | D22: Component | E22: Structureel / Incidenteel | F22: Uitgaven jaar 1 | G22: jaar 2 | H22: jaar 3 | I22: jaar 4 | J22: jaar 5 | K22: Uitgaven totaal | M22: i | O22: Onzekerheid
B23: 1 | K23: =SUM(F23:J23) -> 0 | N23: =IF(P23="Klein",1,IF(P23="Gemiddeld",0,IF(P23="Groot",-1,""))) -> 1 | O23: Klein | P23: =IF(OFFSET(P23,0,-1)="","",OFFSET(P23,0,-1)) -> Klein
B24: 2 | K24: =SUM(F24:J24) -> 0 | P24: =IF(OFFSET(P24,0,-1)="","",OFFSET(P24,0,-1)) -> 
B25: 3 | K25: 0
B26: 4 | K26: 0
B27: 5 | K27: 0
B28: 6 | K28: 0
B29: 7 | K29: 0
B30: 8 | K30: 0
B31: 9 | K31: 0
B32: 10 | K32: 0
B33: 11 | K33: 0
B34: 12 | K34: 0
B35: 13 | K35: 0
B36: 14 | K36: 0
B37: 15 | K37: 0 | N37: 0 | O37: Gemiddeld | P37: Gemiddeld
A42: Met onderstaande knoppen kunt u snel over de hoofdonderdelen van de BIA navigeren. De kleur matcht met de band bovenin het scherm. De knop 'Verder' hierboven volstaat echter om het hele proces te doorlopen.

Sheet Interventies_ref2
A3: BUDGET IMPACT ANALYSE BIJ DOELMATIGHEIDSONDERZOEK
A4: INTERVENTIEMIX REFERENTIEZORG
B6: Op deze pagina kunt u specificeren welke zorgprestaties beïnvloed worden binnen de alternatieve- en referentiezorg (u kunt hiertussen wisselen via de knoppen onder navigatie of de routing volgen via de knop 'verder' onder in het scherm). U kunt ook hier kiezen om te variëren binnen de 3 eerder omschreven scenario's, tevens heeft u de mogelijkheid om de gegevens van scenario 1 automatisch te kopiëren. U specificeert de interventiemix door de verschillende componenten per regel te omschrijven. Deze omschrijving kent de volgende onderdelen: 1) Typeer de kosten als non-healthcare of kies de sector van de interventiecomponent uit het keuzemenu. Op basis hiervan wordt automatisch de juiste wet gekoppeld, zodat hierop geaggregeerd kan worden. 2) Geef een omschrijving van de interventiecomponenten 3) Specificeer de typering van de kosten: incidenteel of structureel 4) Specificeer de verdeling van de uitgaven per patiënt over de follow-up jaren. De witte kolom erna geeft het totaal. 5) Geef voor het geheel van de onderdelen een specificatie van de mate van onzekerheid. Klik hiervoor aan de rechterzijde in het gearceerde vlak. De methodologie vindt u op pagina 22 en 23 van de leidraad. 6) Via de knop onderin het scherm komt u op een apart scherm waar u de specificatie en mate van onzekerheid kunt toelichten. U dient daar ook een eindoordeel te specificeren voor de mate van onzekerheid van de kosten van de interventiemix.
B12: i | C12: Navigatie
B16: i | C16: Omschrijving scenario
C17: =Populatie2!$C$17 -> Scenario 2: Niet nader omschreven
B19: i
B21: INTERVENTIEMIX: SPECIFICEER PER PATIENT
C22: Kies zorgsector of non-healthcare | D22: Component | E22: Structureel / Incidenteel | F22: Uitgaven jaar 1 | G22: jaar 2 | H22: jaar 3 | I22: jaar 4 | J22: jaar 5 | K22: Uitgaven totaal | M22: i | O22: Onzekerheid
B23: 1 | C23: Medisch-specialistische zorg | K23: =SUM(F23:J23) -> 0 | N23: =IF(P23="Klein",1,IF(P23="Gemiddeld",0,IF(P23="Groot",-1,""))) -> 1 | O23: Klein | P23: =IF(OFFSET(P23,0,-1)="","",OFFSET(P23,0,-1)) -> Klein
B24: 2 | K24: =SUM(F24:J24) -> 0 | P24: =IF(OFFSET(P24,0,-1)="","",OFFSET(P24,0,-1)) -> 
B25: 3 | K25: 0
B26: 4 | K26: 0
B27: 5 | K27: 0
B28: 6 | K28: 0
B29: 7 | K29: 0
B30: 8 | K30: 0
B31: 9 | K31: 0
B32: 10 | K32: 0
B33: 11 | K33: 0
B34: 12 | K34: 0
B35: 13 | K35: 0
B36: 14 | K36: 0
B37: 15 | K37: 0 | N37: 1 | O37: Klein | P37: Klein
A38: U heeft inmiddels alle schermen voor scenario 2 doorlopen. U kunt nu kiezen om verder te gaan, al dan niet met een ander scenario.
A43: Met onderstaande knoppen kunt u snel over de hoofdonderdelen van de BIA navigeren. De kleur matcht met de band bovenin het scherm. De knop 'Verder' hierboven volstaat echter om het hele proces te doorlopen.

Sheet Populatie3
A3: BUDGET IMPACT ANALYSE BIJ DOELMATIGHEIDSONDERZOEK
A4: POPULATIE
B6: STARTENDE PATIËNTEN De groep patiënten die start met de alternatieve zorg bestaat uit 2 subpopulaties: A) Incidentie = nieuwe patiënten die pas vanaf nu aangewezen zijn op de alternatieve zorg. B) Stuwmeer = de populatie patiënten die al in een eerder stadium op basis van hun aandoening is geïndiceerd voor de referentiezorg die onderdeel is van de BIA en die nu overstappen naar de alternatieve zorg. Aan de rechterzijde van het scherm kunt u de 'onzekerheid' van uw invoer specificeren uit een keuzemenu. Klik hiervoor in het rechter deel van het gearceerde vlak. Het is de bedoeling dat u dit zowel voor de losse onderdelen doet, als voor de totalen (blauwe velden). De labels van de totalen zullen worden overgenomen op het hoofdoverzicht en bij de weergave van de uiteindelijke budgetimpact. Ten aanzien van het specificeren van de onzerkerheid, vindt u de methodologie op pagina 22 en 23 van de leidraad. Via de pennetjes uiterst rechts of de knop 'Bronvermeldingen/Toelichting' komt u op een pagina waar u uw invoer en de 'mate van onzekerheid' kunt toelichten.
B13: i | C13: Navigatie
B16: i | C16: Omschrijving scenario
C17: =Voorblad!O22 -> Scenario 3: Niet nader omschreven
B19: i
B21: A. INCIDENTIE | D21: =IF(Startjaar="",1,Startjaar) -> 2019 | E21: =D21+1 -> 2020 | F21: =E21+1 -> 2021 | G21: =F21+1 -> 2022 | H21: =G21+1 -> 2023 | J21: i | L21: Onzekerheid
B22: i | C22: Potentieel nieuw startende patienten | D22: 100 | E22: 110 | F22: 120 | G22: 130 | H22: 140 | K22: =IF(M22="Klein",1,IF(M22="Gemiddeld",0,IF(M22="Groot",-1,""))) -> 0 | L22: Gemiddeld | M22: =IF(OFFSET(M22,0,-1)="","",OFFSET(M22,0,-1)) -> Gemiddeld
B23: i | C23: Fractie behandelbaar (percentage) | D23: 0.9 | E23: 0.9 | F23: 0.9 | G23: 0.9 | H23: 0.9 | K23: =IF(M23="Klein",1,IF(M23="Gemiddeld",0,IF(M23="Groot",-1,""))) -> 1 | L23: Klein | M23: =IF(OFFSET(M23,0,-1)="","",OFFSET(M23,0,-1)) -> Klein
C24: Patiënten behandelbaar | D24: =OFFSET(D24,-2,0)*OFFSET(D24,-1,0) -> 90 | E24: =OFFSET(E24,-2,0)*OFFSET(E24,-1,0) -> 99 | F24: =OFFSET(F24,-2,0)*OFFSET(F24,-1,0) -> 108 | G24: =OFFSET(G24,-2,0)*OFFSET(G24,-1,0) -> 117 | H24: =OFFSET(H24,-2,0)*OFFSET(H24,-1,0) -> 126
B26: B. STUWMEER
B27: i | C27: Potentieel overstappende patienten | K27: =IF(M27="Klein",1,IF(M27="Gemiddeld",0,IF(M27="Groot",-1,""))) ->  | M27: =IF(OFFSET(M27,0,-1)="","",OFFSET(M27,0,-1)) -> 
B28: i | C28: Percentage patiënten behandelbaar | K28: =IF(M28="Klein",1,IF(M28="Gemiddeld",0,IF(M28="Groot",-1,""))) ->  | M28: =IF(OFFSET(M28,0,-1)="","",OFFSET(M28,0,-1)) -> 
C29: Patiënten behandelbaar | D29: =OFFSET(D29,-2,0)*OFFSET(D29,-1,0) -> 0 | E29: =OFFSET(E29,-2,0)*OFFSET(E29,-1,0) -> 0 | F29: =OFFSET(F29,-2,0)*OFFSET(F29,-1,0) -> 0 | G29: =OFFSET(G29,-2,0)*OFFSET(G29,-1,0) -> 0 | H29: =OFFSET(H29,-2,0)*OFFSET(H29,-1,0) -> 0
B31: TOTAAL
B32: i | C32: Potentieel startende patienten | D32: =SUM(D33:D34) -> 90 | E32: =SUM(E33:E34) -> 99 | F32: =SUM(F33:F34) -> 108 | G32: =SUM(G33:G34) -> 117 | H32: =SUM(H33:H34) -> 126
C33: Patiënten behandelbaar | D33: =SUM(D24,D29) -> 90 | E33: =SUM(E24,E29) -> 99 | F33: =SUM(F24,F29) -> 108 | G33: =SUM(G24,G29) -> 117 | H33: =SUM(H24,H29) -> 126
C34: Patiënten op wachtlijst | E34: =D38 -> 0 | F34: =E38 -> 0 | G34: =F38 -> 0 | H34: =G38 -> 0
B35: i | C35: Implementatiecapaciteit (aantal) | D35: 100 | E35: 100 | F35: 100 | G35: 100 | H35: 100 | K35: =IF(M35="Klein",1,IF(M35="Gemiddeld",0,IF(M35="Groot",-1,""))) ->  | M35: =IF(OFFSET(M35,0,-1)="","",OFFSET(M35,0,-1)) -> 
C36: Aantal niet-starters | D36: =IF(OFFSET(D36,-1,0)<=SUM(D33:D34),SUM(D33:D34)-OFFSET(D36,-1,0),0) -> 0 | E36: =IF(OFFSET(E36,-1,0)<=SUM(E33:E34),SUM(E33:E34)-OFFSET(E36,-1,0),0) -> 0 | F36: =IF(OFFSET(F36,-1,0)<=SUM(F33:F34),SUM(F33:F34)-OFFSET(F36,-1,0),0) -> 8 | G36: =IF(OFFSET(G36,-1,0)<=SUM(G33:G34),SUM(G33:G34)-OFFSET(G36,-1,0),0) -> 17 | H36: =IF(OFFSET(H36,-1,0)<=SUM(H33:H34),SUM(H33:H34)-OFFSET(H36,-1,0),0) -> 26
B37: i | C37: Percentage naar wachtlijst | K37: =IF(M37="Klein",1,IF(M37="Gemiddeld",0,IF(M37="Groot",-1,""))) ->  | M37: =IF(OFFSET(M37,0,-1)="","",OFFSET(M37,0,-1)) -> 
B38: i | C38: Aantal naar wachtlijst | D38: =OFFSET(D38,-1,0)*D36 -> 0 | E38: =OFFSET(E38,-1,0)*E36 -> 0 | F38: =OFFSET(F38,-1,0)*F36 -> 0 | G38: =OFFSET(G38,-1,0)*G36 -> 0 | H38: =OFFSET(H38,-1,0)*H36 -> 0
B39: i | C39: Feitelijk startende patiënten | D39: =IF(OFFSET(D36,-1,0)<SUM(D33:D34),OFFSET(D36,-1,0),SUM(D33:D34)) -> 90 | E39: =IF(OFFSET(E36,-1,0)<SUM(E33:E34),OFFSET(E36,-1,0),SUM(E33:E34)) -> 99 | F39: =IF(OFFSET(F36,-1,0)<SUM(F33:F34),OFFSET(F36,-1,0),SUM(F33:F34)) -> 100 | G39: =IF(OFFSET(G36,-1,0)<SUM(G33:G34),OFFSET(G36,-1,0),SUM(G33:G34)) -> 100 | H39: =IF(OFFSET(H36,-1,0)<SUM(H33:H34),OFFSET(H36,-1,0),SUM(H33:H34)) -> 100 | K39: =IF(M39="Klein",1,IF(M39="Gemiddeld",0,IF(M39="Groot",-1,""))) -> 0 | L39: Gemiddeld | M39: =IF(OFFSET(M39,0,-1)="","",OFFSET(M39,0,-1)) -> Gemiddeld
A45: Met onderstaande knoppen kunt u snel over de hoofdonderdelen van de BIA navigeren. De kleur matcht met de band bovenin het scherm. De knop 'Verder' hierboven volstaat echter om het hele proces te doorlopen.

Sheet Interventies_alt3
A3: BUDGET IMPACT ANALYSE BIJ DOELMATIGHEIDSONDERZOEK
A4: INTERVENTIEMIX ALTERNATIEVE ZORG
B6: Op deze pagina kunt u specificeren welke zorgprestaties beïnvloed worden binnen de alternatieve- en referentiezorg (u kunt hiertussen wisselen via de knoppen onder navigatie of de routing volgen via de knop 'verder' onder in het scherm). U kunt ook hier kiezen om te variëren binnen de 3 eerder omschreven scenario's, tevens heeft u de mogelijkheid om de gegevens van scenario 1 automatisch te kopiëren. U specificeert de interventiemix door de verschillende componenten per regel te omschrijven. Deze omschrijving kent de volgende onderdelen: 1) Typeer de kosten als non-healthcare of kies de sector van de interventiecomponent uit het keuzemenu. Op basis hiervan wordt automatisch de juiste wet gekoppeld, zodat hierop geaggregeerd kan worden. 2) Geef een omschrijving van de interventiecomponenten 3) Specificeer de typering van de kosten: incidenteel of structureel 4) Specificeer de verdeling van de uitgaven per patiënt over de follow-up jaren. De witte kolom erna geeft het totaal. 5) Geef voor het geheel van de onderdelen een specificatie van de mate van onzekerheid. Klik hiervoor aan de rechterzijde in het gearceerde vlak. De methodologie vindt u op pagina 22 en 23 van de leidraad. 6) Via de knop onderin het scherm komt u op een apart scherm waar u de specificatie en mate van onzekerheid kunt toelichten. U dient daar ook een eindoordeel te specificeren voor de mate van onzekerheid van de kosten van de interventiemix.
B12: i | C12: Navigatie
B16: i | C16: Omschrijving scenario
C17: =Populatie3!$C$17 -> Scenario 3: Niet nader omschreven
B19: i
B21: INTERVENTIEMIX: SPECIFICEER PER PATIENT
C22: Kies zorgsector of non-healthcare | D22: Component | E22: Structureel / Incidenteel | F22: Uitgaven jaar 1 | G22: jaar 2 | H22: jaar 3 | I22: jaar 4 | J22: jaar 5 | K22: Uitgaven totaal | M22: i | O22: Onzekerheid
B23: 1 | C23: Non-healthcare | D23: Testcomponent | E23: Structureel | F23: 1500 | G23: 100 | H23: 300 | K23: =SUM(F23:J23) -> 1900 | N23: =IF(P23="Klein",1,IF(P23="Gemiddeld",0,IF(P23="Groot",-1,""))) -> 1 | O23: Klein | P23: =IF(OFFSET(P23,0,-1)="","",OFFSET(P23,0,-1)) -> Klein
B24: 2 | C24: Huisartsenzorg | D24: Testcomponent | E24: Incidenteel | K24: =SUM(F24:J24) -> 0 | P24: =IF(OFFSET(P24,0,-1)="","",OFFSET(P24,0,-1)) -> 
B25: 3 | K25: 0
B26: 4 | K26: 0
B27: 5 | K27: 0
B28: 6 | K28: 0
B29: 7 | K29: 0
B30: 8 | K30: 0
B31: 9 | K31: 0
B32: 10 | K32: 0
B33: 11 | K33: 0
B34: 12 | K34: 0
B35: 13 | K35: 0
B36: 14 | K36: 0
B37: 15 | K37: 0 | N37: 0 | O37: Gemiddeld | P37: Gemiddeld
A42: Met onderstaande knoppen kunt u snel over de hoofdonderdelen van de BIA navigeren. De kleur matcht met de band bovenin het scherm. De knop 'Verder' hierboven volstaat echter om het hele proces te doorlopen.

Sheet Interventies_ref3
A3: BUDGET IMPACT ANALYSE BIJ DOELMATIGHEIDSONDERZOEK
A4: INTERVENTIEMIX REFERENTIEZORG
B6: Op deze pagina kunt u specificeren welke zorgprestaties beïnvloed worden binnen de alternatieve- en referentiezorg (u kunt hiertussen wisselen via de knoppen onder navigatie of de routing volgen via de knop 'verder' onder in het scherm). U kunt ook hier kiezen om te variëren binnen de 3 eerder omschreven scenario's, tevens heeft u de mogelijkheid om de gegevens van scenario 1 automatisch te kopiëren. U specificeert de interventiemix door de verschillende componenten per regel te omschrijven. Deze omschrijving kent de volgende onderdelen: 1) Typeer de kosten als non-healthcare of kies de sector van de interventiecomponent uit het keuzemenu. Op basis hiervan wordt automatisch de juiste wet gekoppeld, zodat hierop geaggregeerd kan worden. 2) Geef een omschrijving van de interventiecomponenten 3) Specificeer de typering van de kosten: incidenteel of structureel 4) Specificeer de verdeling van de uitgaven per patiënt over de follow-up jaren. De witte kolom erna geeft het totaal. 5) Geef voor het geheel van de onderdelen een specificatie van de mate van onzekerheid. Klik hiervoor aan de rechterzijde in het gearceerde vlak. De methodologie vindt u op pagina 22 en 23 van de leidraad. 6) Via de knop onderin het scherm komt u op een apart scherm waar u de specificatie en mate van onzekerheid kunt toelichten. U dient daar ook een eindoordeel te specificeren voor de mate van onzekerheid van de kosten van de interventiemix.
B12: i | C12: Navigatie
B16: i | C16: Omschrijving scenario
C17: =Populatie3!$C$17 -> Scenario 3: Niet nader omschreven
B19: i
B21: INTERVENTIEMIX: SPECIFICEER PER PATIENT
C22: Kies zorgsector of non-healthcare | D22: Component | E22: Structureel / Incidenteel | F22: Uitgaven jaar 1 | G22: jaar 2 | H22: jaar 3 | I22: jaar 4 | J22: jaar 5 | K22: Uitgaven totaal | M22: i | O22: Onzekerheid
B23: 1 | C23: Gehandicaptenzorg | D23: Iets | E23: Structureel | F23: 1500 | G23: 100 | H23: 300 | K23: =SUM(F23:J23) -> 1900 | N23: =IF(P23="Klein",1,IF(P23="Gemiddeld",0,IF(P23="Groot",-1,""))) -> 1 | O23: Klein | P23: =IF(OFFSET(P23,0,-1)="","",OFFSET(P23,0,-1)) -> Klein
B24: 2 | C24: Huisartsenzorg | D24: Iets | E24: Incidenteel | K24: =SUM(F24:J24) -> 0 | P24: =IF(OFFSET(P24,0,-1)="","",OFFSET(P24,0,-1)) -> 
B25: 3 | K25: 0
B26: 4 | K26: 0
B27: 5 | K27: 0
B28: 6 | K28: 0
B29: 7 | K29: 0
B30: 8 | K30: 0
B31: 9 | K31: 0
B32: 10 | K32: 0
B33: 11 | K33: 0
B34: 12 | K34: 0
B35: 13 | K35: 0
B36: 14 | K36: 0
B37: 15 | K37: 0 | N37: -1 | O37: Groot | P37: Groot
A38: U heeft inmiddels alle schermen voor scenario 3 doorlopen en daarmee alle scenario's gehad.
A43: Met onderstaande knoppen kunt u snel over de hoofdonderdelen van de BIA navigeren. De kleur matcht met de band bovenin het scherm. De knop 'Verder' hierboven volstaat echter om het hele proces te doorlopen.

Sheet Budgetimpact_Zorgaanbieder1
A3: BUDGET IMPACT ANALYSE BIJ DOELMATIGHEIDSONDERZOEK
A4: BUDGETIMPACT ZORGAANBIEDER
B6: i | C6: Navigatie
B10: =Populatie1!C17 -> Hoofdscenario: Realistisch scenario: 50% van de in totaal 18.000 patiënten tussen de 45 en 70 jaar die per jaar worden behandeld aan een meniscuslaesie (referente zorg) kunnen middels fysiotherapie worden behandeld (alternatieve zorg)
B12: Bij de navolgende scenario's kunt u de hier ingevulde waardes automatisch laten overnemen door middel van een knop op deze plaats
I13: ONZEKERHEID | K13: SENSITIVITEITSANALYSE i
B14: SPECIFICATIE MATE VAN ONZEKERHEID / SENSITIVITEITSANALYSE | K14: MIN | L14: MAX
B15: i | C15: Specificatie populatie | I15: =IF(Populatie1!M39="","Onbekend!",Populatie1!M39) -> Gemiddeld | J15: =IF(I15="Klein",1,IF(I15="Gemiddeld",0,IF(I15="Groot",-1,""))) -> 0 | K15: 0.9 | L15: 1.1
B16: i | C16: ALTERNATIEVE ZORG | Kosten interventiemix | I16: =IF(Toelichting_Interventies_alt1!E31="","Onbekend!",Toelichting_Interventies_alt1!E31) -> Klein | J16: =IF(I16="Klein",1,IF(I16="Gemiddeld",0,IF(I16="Groot",-1,""))) -> 1 | K16: 0.9 | L16: 1.3
B17: i | C17: REFERENTIE ZORG | Kosten interventiemix | I17: =IF(Toelichting_Interventies_ref1!E31="","Onbekend!",Toelichting_Interventies_ref1!E31) -> Klein | J17: =IF(I17="Klein",1,IF(I17="Gemiddeld",0,IF(I17="Groot",-1,""))) -> 1 | K17: 0.8 | L17: 1.2
B19: IMPACT | I19: Totaal | J19: =IF(Startjaar="",1,Startjaar) -> 2019 | K19: =J19+1 -> 2020 | L19: =K19+1 -> 2021 | M19: =L19+1 -> 2022 | N19: =M19+1 -> 2023
C20: Totaal nieuwe patiënten | J20: =Populatie1!D39 -> 3600 | K20: =Populatie1!E39 -> 9000 | L20: =Populatie1!F39 -> 10800 | M20: =Populatie1!G39 -> 14400 | N20: =Populatie1!H39 -> 18000
B21: i | C21: Marktaandeel | J21: 0.05 | K21: 0.05 | L21: 0.05 | M21: 0.05 | N21: 0.05
C22: Aantal startende zorggebruikers | J22: =J20*J21 -> 180 | K22: =K20*K21 -> 450 | L22: =L20*L21 -> 540 | M22: =M20*M21 -> 720 | N22: =N20*N21 -> 900
C23: Bruto verschil in STRUCTURELE HEALTHCARE UITGAVEN per patient | J23: =J24-J25 -> 0 | K23: =K24-K25 -> 0 | L23: =L24-L25 -> 0 | M23: =M24-M25 -> 0 | N23: =N24-N25 -> 0
B24: i | C24: Bruto uitgaven alternatieve zorg (per follow-up jaar!) | J24: =SUMIFS(J46:J60,$I$46:$I$60,"Structureel",$E$46:$E$60,"<>Non-healthcare") -> 0 | K24: =SUMIFS(K46:K60,$I$46:$I$60,"Structureel",$E$46:$E$60,"<>Non-healthcare") -> 0 | L24: =SUMIFS(L46:L60,$I$46:$I$60,"Structureel",$E$46:$E$60,"<>Non-healthcare") -> 0 | M24: =SUMIFS(M46:M60,$I$46:$I$60,"Structureel",$E$46:$E$60,"<>Non-healthcare") -> 0 | N24: =SUMIFS(N46:N60,$I$46:$I$60,"Structureel",$E$46:$E$60,"<>Non-healthcare") -> 0
C25: Bruto uitgaven referentiezorg | J25: =SUMIFS(J61:J75,$I$61:$I$75,"Structureel",$E$61:$E$75,"<>Non-healthcare") -> 0 | K25: =SUMIFS(K61:K75,$I$61:$I$75,"Structureel",$E$61:$E$75,"<>Non-healthcare") -> 0 | L25: =SUMIFS(L61:L75,$I$61:$I$75,"Structureel",$E$61:$E$75,"<>Non-healthcare") -> 0 | M25: =SUMIFS(M61:M75,$I$61:$I$75,"Structureel",$E$61:$E$75,"<>Non-healthcare") -> 0 | N25: =SUMIFS(N61:N75,$I$61:$I$75,"Structureel",$E$61:$E$75,"<>Non-healthcare") -> 0
C26: Bruto verschil in INCIDENTELE HEALTHCARE UITGAVEN per patient | J26: =J27-J28 -> -2364 | K26: =K27-K28 -> 0 | L26: =L27-L28 -> 0 | M26: =M27-M28 -> 0 | N26: =N27-N28 -> 0
C27: Bruto uitgaven alternatieve zorg (per follow-up jaar!) | J27: =SUMIFS(J$46:J$60,$I$46:$I$60,"Incidenteel",$E$46:$E$60,"<>Non-healthcare") -> 838 | K27: =SUMIFS(K$46:K$60,$I$46:$I$60,"Incidenteel",$E$46:$E$60,"<>Non-healthcare") -> 0 | L27: =SUMIFS(L$46:L$60,$I$46:$I$60,"Incidenteel",$E$46:$E$60,"<>Non-healthcare") -> 0 | M27: =SUMIFS(M$46:M$60,$I$46:$I$60,"Incidenteel",$E$46:$E$60,"<>Non-healthcare") -> 0 | N27: =SUMIFS(N$46:N$60,$I$46:$I$60,"Incidenteel",$E$46:$E$60,"<>Non-healthcare") -> 0
C28: Bruto uitgaven referentiezorg | J28: =SUMIFS(J$61:J$75,$I$61:$I$75,"Incidenteel",$E$61:$E$75,"<>Non-healthcare") -> 3202 | K28: =SUMIFS(K$61:K$75,$I$61:$I$75,"Incidenteel",$E$61:$E$75,"<>Non-healthcare") -> 0 | L28: =SUMIFS(L$61:L$75,$I$61:$I$75,"Incidenteel",$E$61:$E$75,"<>Non-healthcare") -> 0 | M28: =SUMIFS(M$61:M$75,$I$61:$I$75,"Incidenteel",$E$61:$E$75,"<>Non-healthcare") -> 0 | N28: =SUMIFS(N$61:N$75,$I$61:$I$75,"Incidenteel",$E$61:$E$75,"<>Non-healthcare") -> 0
C29: Totale budgetimpact STRUCTUREEL | I29: =SUM(J29:N29) -> 0 | J29: =SUM(J$22*J23)/1000 -> 0 | K29: =SUM(J$22*K23,K$22*J23)/1000 -> 0 | L29: =SUM(J$22*L23,K$22*K23,L$22*J23)/1000 -> 0 | M29: =SUM(J$22*M23,K$22*L23,L$22*K23,M$22*J23)/1000 -> 0 | N29: =SUM($J$22*N23,$K$22*M23,$L$22*L23,$M$22*K23,N22*J23)/1000 -> 0
C30: Totale budgetimpact INCIDENTEEL | I30: =SUM(J30:N30) -> -6595.56 | J30: =SUM(J$22*J26)/1000 -> -425.52 | K30: =SUM(J$22*K26,K$22*J26)/1000 -> -1063.8 | L30: =SUM(J$22*L26,K$22*K26,L$22*J26)/1000 -> -1276.56 | M30: =SUM(J$22*M26,K$22*L26,L$22*K26,M$22*J26)/1000 -> -1702.08 | N30: =SUM($J$22*N26,$K$22*M26,$L$22*L26,$M$22*K26,N22*J26)/1000 -> -2127.6
C31: Totaal impact HEALTHCARE (x€1.000) | I31: =SUM(J31:N31) -> -6595.56 | J31: =SUM(J29:J30) -> -425.52 | K31: =SUM(K29:K30) -> -1063.8 | L31: =SUM(L29:L30) -> -1276.56 | M31: =SUM(M29:M30) -> -1702.08 | N31: =SUM(N29:N30) -> -2127.6
B33: SENSITIVITEITSANALYSE
B34: i | C34: Populatie min-scenario | J34: =J$22*$K$15 -> 162 | K34: =K$22*$K$15 -> 405 | L34: =L$22*$K$15 -> 486 | M34: =M$22*$K$15 -> 648 | N34: =N$22*$K$15 -> 810
B35: i | C35: Populatie max-scenario | J35: =J$22*$L$15 -> 198 | K35: =K$22*$L$15 -> 495 | L35: =L$22*$L$15 -> 594 | M35: =M$22*$L$15 -> 792 | N35: =N$22*$L$15 -> 990
B36: IMPACT HEALTHCARE | E36: ="BANDBREEDTE: "&TEXT(MAX(I39:I42),"€0.0K")&" TOT "&TEXT(MIN(I39:I42),"€0.0K") -> BANDBREEDTE: -€3.697K TOT -€9.478K
B37: i | C37: Bruto verschil min-scenario: kosten referent minimaal, alternatief maximaal | J37: =SUM(J24*$L$16-J25*$K$17,J27*$L$16-J28*$K$17) -> -1472.2 | K37: =SUM(K24*$L$16-K25*$K$17,K27*$L$16-K28*$K$17) -> 0 | L37: =SUM(L24*$L$16-L25*$K$17,L27*$L$16-L28*$K$17) -> 0 | M37: =SUM(M24*$L$16-M25*$K$17,M27*$L$16-M28*$K$17) -> 0 | N37: =SUM(N24*$L$16-N25*$K$17,N27*$L$16-N28*$K$17) -> 0
B38: i | C38: Bruto verschil max-scenario: kosten referent maximaal, alternatief minimaal | J38: =SUM(J24*$K$16-J25*$L$17,J27*$K$16-J28*$L$17) -> -3088.2 | K38: =SUM(K24*$K$16-K25*$L$17,K27*$K$16-K28*$L$17) -> 0 | L38: =SUM(L24*$K$16-L25*$L$17,L27*$K$16-L28*$L$17) -> 0 | M38: =SUM(M24*$K$16-M25*$L$17,M27*$K$16-M28*$L$17) -> 0 | N38: =SUM(N24*$K$16-N25*$L$17,N27*$K$16-N28*$L$17) -> 0
C39: Sensitiviteitsanalyse min-scenario kosten, populatie min (x€1000) | I39: =SUM(J39:N39) -> -3696.6942 | J39: =SUM(J34*J37)/1000 -> -238.4964 | K39: =SUM(J34*K37,K34*J37)/1000 -> -596.241 | L39: =SUM(J34*L37,K34*K37,L34*J37)/1000 -> -715.4892 | M39: =SUM(J34*M37,K34*L37,L34*K37,M34*J37)/1000 -> -953.9856 | N39: =SUM(J34*N37,K34*M37,L34*L37,M34*K37,N34*J37)/1000 -> -1192.482
C40: Sensitiviteitsanalyse min-scenario kosten, populatie max (x€1000) | I40: =SUM(J40:N40) -> -4518.1818 | J40: =SUM(J35*J37)/1000 -> -291.4956 | K40: =SUM(J35*K37,K35*J37)/1000 -> -728.739 | L40: =SUM(J35*L37,K35*K37,L35*J37)/1000 -> -874.4868 | M40: =SUM(J35*M37,K35*L37,L35*K37,M35*J37)/1000 -> -1165.9824 | N40: =SUM(J35*N37,K35*M37,L35*L37,M35*K37,N35*J37)/1000 -> -1457.478
C41: Sensitiviteitsanalyse max-scenario kosten, populatie min (x€1000) | I41: =SUM(J41:N41) -> -7754.4702 | J41: =SUM(J34*J38)/1000 -> -500.2884 | K41: =SUM(J34*K38,K34*J38)/1000 -> -1250.721 | L41: =SUM(J34*L38,K34*K38,L34*J38)/1000 -> -1500.8652 | M41: =SUM(J34*M38,K34*L38,L34*K38,M34*J38)/1000 -> -2001.1536 | N41: =SUM(J34*N38,K34*M38,L34*L38,M34*K38,N34*J38)/1000 -> -2501.442
C42: Sensitiviteitsanalyse max-scenario kosten, populatie max (x€1000) | I42: =SUM(J42:N42) -> -9477.6858 | J42: =SUM(J35*J38)/1000 -> -611.4636 | K42: =SUM(J35*K38,K35*J38)/1000 -> -1528.659 | L42: =SUM(J35*L38,K35*K38,L35*J38)/1000 -> -1834.3908 | M42: =SUM(J35*M38,K35*L38,L35*K38,M35*J38)/1000 -> -2445.8544 | N42: =SUM(J35*N38,K35*M38,L35*L38,M35*K38,N35*J38)/1000 -> -3057.318
B44: SPECIFICATIE BRUTO UITGAVEN PER PATIENT PER FOLLOW-UP JAAR | J44: 5 | K44: 6 | L44: 7 | M44: 8 | N44: 9
C45: Wet | E45: Sector | H45: Component (eerste 2 regels..) | I45: Typering | J45: Jaar 1 | K45: Jaar 2 | L45: Jaar 3 | M45: Jaar 4 | N45: Jaar 5
A46: Alternatieve zorg | B46: 1 | C46: =IFERROR(INDEX(Sectoroverzicht!B3:B31,MATCH(E46,Sectoroverzicht!C3:C31,0),1),"") -> Zorgverzekeringswet | E46: =IF(OFFSET(Interventies_alt1!A23,0,2)="","",OFFSET(Interventies_alt1!A23,0,2)) -> Paramedische zorg | H46: =IF(OFFSET(Interventies_alt1!A23,0,3)="","",OFFSET(Interventies_alt1!A23,0,3)) -> Fysiotherapie | I46: =IF(OFFSET(Interventies_alt1!A23,0,4)="","",OFFSET(Interventies_alt1!A23,0,4)) -> Incidenteel | J46: =IF(C46="","",OFFSET(Interventies_alt1!A23,0,J$44)) -> 838 | K46: =IF(D46="","",OFFSET(Interventies_alt1!B23,0,K$44)) ->  | L46: =IF(E46="","",OFFSET(Interventies_alt1!C23,0,L$44)) -> 0 | M46: =IF(F46="","",OFFSET(Interventies_alt1!D23,0,M$44)) ->  | N46: =IF(G46="","",OFFSET(Interventies_alt1!E23,0,N$44)) -> 
B47: 2 | C47: =IFERROR(INDEX(Sectoroverzicht!B3:B31,MATCH(E47,Sectoroverzicht!C3:C31,0),1),"") ->  | E47: =IF(OFFSET(Interventies_alt1!A24,0,2)="","",OFFSET(Interventies_alt1!A24,0,2)) ->  | H47: =IF(OFFSET(Interventies_alt1!A24,0,3)="","",OFFSET(Interventies_alt1!A24,0,3)) ->  | I47: =IF(OFFSET(Interventies_alt1!A24,0,4)="","",OFFSET(Interventies_alt1!A24,0,4)) ->  | J47: =IF(C47="","",OFFSET(Interventies_alt1!A24,0,J$44)) ->  | K47: =IF(D47="","",OFFSET(Interventies_alt1!B24,0,K$44)) ->  | L47: =IF(E47="","",OFFSET(Interventies_alt1!C24,0,L$44)) ->  | M47: =IF(F47="","",OFFSET(Interventies_alt1!D24,0,M$44)) ->  | N47: =IF(G47="","",OFFSET(Interventies_alt1!E24,0,N$44)) -> 
B48: 3 | C48: =IFERROR(INDEX(Sectoroverzicht!B3:B31,MATCH(E48,Sectoroverzicht!C3:C31,0),1),"") ->  | E48: =IF(OFFSET(Interventies_alt1!A25,0,2)="","",OFFSET(Interventies_alt1!A25,0,2)) ->  | H48: =IF(OFFSET(Interventies_alt1!A25,0,3)="","",OFFSET(Interventies_alt1!A25,0,3)) ->  | I48: =IF(OFFSET(Interventies_alt1!A25,0,4)="","",OFFSET(Interventies_alt1!A25,0,4)) ->  | J48: =IF(C48="","",OFFSET(Interventies_alt1!A25,0,J$44)) ->  | K48: =IF(D48="","",OFFSET(Interventies_alt1!B25,0,K$44)) ->  | L48: =IF(E48="","",OFFSET(Interventies_alt1!C25,0,L$44)) ->  | M48: =IF(F48="","",OFFSET(Interventies_alt1!D25,0,M$44)) ->  | N48: =IF(G48="","",OFFSET(Interventies_alt1!E25,0,N$44)) -> 
B49: 4 | C49: =IFERROR(INDEX(Sectoroverzicht!B3:B31,MATCH(E49,Sectoroverzicht!C3:C31,0),1),"") ->  | E49: =IF(OFFSET(Interventies_alt1!A26,0,2)="","",OFFSET(Interventies_alt1!A26,0,2)) ->  | H49: =IF(OFFSET(Interventies_alt1!A26,0,3)="","",OFFSET(Interventies_alt1!A26,0,3)) ->  | I49: =IF(OFFSET(Interventies_alt1!A26,0,4)="","",OFFSET(Interventies_alt1!A26,0,4)) ->  | J49: =IF(C49="","",OFFSET(Interventies_alt1!A26,0,J$44)) ->  | K49: =IF(D49="","",OFFSET(Interventies_alt1!B26,0,K$44)) ->  | L49: =IF(E49="","",OFFSET(Interventies_alt1!C26,0,L$44)) ->  | M49: =IF(F49="","",OFFSET(Interventies_alt1!D26,0,M$44)) ->  | N49: =IF(G49="","",OFFSET(Interventies_alt1!E26,0,N$44)) -> 
B50: 5 | C50: =IFERROR(INDEX(Sectoroverzicht!B3:B31,MATCH(E50,Sectoroverzicht!C3:C31,0),1),"") ->  | E50: =IF(OFFSET(Interventies_alt1!A27,0,2)="","",OFFSET(Interventies_alt1!A27,0,2)) ->  | H50: =IF(OFFSET(Interventies_alt1!A27,0,3)="","",OFFSET(Interventies_alt1!A27,0,3)) ->  | I50: =IF(OFFSET(Interventies_alt1!A27,0,4)="","",OFFSET(Interventies_alt1!A27,0,4)) ->  | J50: =IF(C50="","",OFFSET(Interventies_alt1!A27,0,J$44)) ->  | K50: =IF(D50="","",OFFSET(Interventies_alt1!B27,0,K$44)) ->  | L50: =IF(E50="","",OFFSET(Interventies_alt1!C27,0,L$44)) ->  | M50: =IF(F50="","",OFFSET(Interventies_alt1!D27,0,M$44)) ->  | N50: =IF(G50="","",OFFSET(Interventies_alt1!E27,0,N$44)) -> 
B51: 6 | C51: =IFERROR(INDEX(Sectoroverzicht!B3:B31,MATCH(E51,Sectoroverzicht!C3:C31,0),1),"") ->  | E51: =IF(OFFSET(Interventies_alt1!A28,0,2)="","",OFFSET(Interventies_alt1!A28,0,2)) ->  | H51: =IF(OFFSET(Interventies_alt1!A28,0,3)="","",OFFSET(Interventies_alt1!A28,0,3)) ->  | I51: =IF(OFFSET(Interventies_alt1!A28,0,4)="","",OFFSET(Interventies_alt1!A28,0,4)) ->  | J51: =IF(C51="","",OFFSET(Interventies_alt1!A28,0,J$44)) ->  | K51: =IF(D51="","",OFFSET(Interventies_alt1!B28,0,K$44)) ->  | L51: =IF(E51="","",OFFSET(Interventies_alt1!C28,0,L$44)) ->  | M51: =IF(F51="","",OFFSET(Interventies_alt1!D28,0,M$44)) ->  | N51: =IF(G51="","",OFFSET(Interventies_alt1!E28,0,N$44)) -> 
B52: 7 | C52: =IFERROR(INDEX(Sectoroverzicht!B3:B31,MATCH(E52,Sectoroverzicht!C3:C31,0),1),"") ->  | E52: =IF(OFFSET(Interventies_alt1!A29,0,2)="","",OFFSET(Interventies_alt1!A29,0,2)) ->  | H52: =IF(OFFSET(Interventies_alt1!A29,0,3)="","",OFFSET(Interventies_alt1!A29,0,3)) ->  | I52: =IF(OFFSET(Interventies_alt1!A29,0,4)="","",OFFSET(Interventies_alt1!A29,0,4)) ->  | J52: =IF(C52="","",OFFSET(Interventies_alt1!A29,0,J$44)) ->  | K52: =IF(D52="","",OFFSET(Interventies_alt1!B29,0,K$44)) ->  | L52: =IF(E52="","",OFFSET(Interventies_alt1!C29,0,L$44)) ->  | M52: =IF(F52="","",OFFSET(Interventies_alt1!D29,0,M$44)) ->  | N52: =IF(G52="","",OFFSET(Interventies_alt1!E29,0,N$44)) -> 
B53: 8 | C53: =IFERROR(INDEX(Sectoroverzicht!B3:B31,MATCH(E53,Sectoroverzicht!C3:C31,0),1),"") ->  | E53: =IF(OFFSET(Interventies_alt1!A30,0,2)="","",OFFSET(Interventies_alt1!A30,0,2)) ->  | H53: =IF(OFFSET(Interventies_alt1!A30,0,3)="","",OFFSET(Interventies_alt1!A30,0,3)) ->  | I53: =IF(OFFSET(Interventies_alt1!A30,0,4)="","",OFFSET(Interventies_alt1!A30,0,4)) ->  | J53: =IF(C53="","",OFFSET(Interventies_alt1!A30,0,J$44)) ->  | K53: =IF(D53="","",OFFSET(Interventies_alt1!B30,0,K$44)) ->  | L53: =IF(E53="","",OFFSET(Interventies_alt1!C30,0,L$44)) ->  | M53: =IF(F53="","",OFFSET(Interventies_alt1!D30,0,M$44)) ->  | N53: =IF(G53="","",OFFSET(Interventies_alt1!E30,0,N$44)) -> 
B54: 9 | C54: =IFERROR(INDEX(Sectoroverzicht!B3:B31,MATCH(E54,Sectoroverzicht!C3:C31,0),1),"") ->  | E54: =IF(OFFSET(Interventies_alt1!A31,0,2)="","",OFFSET(Interventies_alt1!A31,0,2)) ->  | H54: =IF(OFFSET(Interventies_alt1!A31,0,3)="","",OFFSET(Interventies_alt1!A31,0,3)) ->  | I54: =IF(OFFSET(Interventies_alt1!A31,0,4)="","",OFFSET(Interventies_alt1!A31,0,4)) ->  | J54: =IF(C54="","",OFFSET(Interventies_alt1!A31,0,J$44)) ->  | K54: =IF(D54="","",OFFSET(Interventies_alt1!B31,0,K$44)) ->  | L54: =IF(E54="","",OFFSET(Interventies_alt1!C31,0,L$44)) ->  | M54: =IF(F54="","",OFFSET(Interventies_alt1!D31,0,M$44)) ->  | N54: =IF(G54="","",OFFSET(Interventies_alt1!E31,0,N$44)) -> 
B55: 10 | C55: =IFERROR(INDEX(Sectoroverzicht!B3:B31,MATCH(E55,Sectoroverzicht!C3:C31,0),1),"") ->  | E55: =IF(OFFSET(Interventies_alt1!A32,0,2)="","",OFFSET(Interventies_alt1!A32,0,2)) ->  | H55: =IF(OFFSET(Interventies_alt1!A32,0,3)="","",OFFSET(Interventies_alt1!A32,0,3)) ->  | I55: =IF(OFFSET(Interventies_alt1!A32,0,4)="","",OFFSET(Interventies_alt1!A32,0,4)) ->  | J55: =IF(C55="","",OFFSET(Interventies_alt1!A32,0,J$44)) ->  | K55: =IF(D55="","",OFFSET(Interventies_alt1!B32,0,K$44)) ->  | L55: =IF(E55="","",OFFSET(Interventies_alt1!C32,0,L$44)) ->  | M55: =IF(F55="","",OFFSET(Interventies_alt1!D32,0,M$44)) ->  | N55: =IF(G55="","",OFFSET(Interventies_alt1!E32,0,N$44)) -> 
B56: 11 | C56: =IFERROR(INDEX(Sectoroverzicht!B3:B31,MATCH(E56,Sectoroverzicht!C3:C31,0),1),"") ->  | E56: =IF(OFFSET(Interventies_alt1!A33,0,2)="","",OFFSET(Interventies_alt1!A33,0,2)) ->  | H56: =IF(OFFSET(Interventies_alt1!A33,0,3)="","",OFFSET(Interventies_alt1!A33,0,3)) ->  | I56: =IF(OFFSET(Interventies_alt1!A33,0,4)="","",OFFSET(Interventies_alt1!A33,0,4)) ->  | J56: =IF(C56="","",OFFSET(Interventies_alt1!A33,0,J$44)) ->  | K56: =IF(D56="","",OFFSET(Interventies_alt1!B33,0,K$44)) ->  | L56: =IF(E56="","",OFFSET(Interventies_alt1!C33,0,L$44)) ->  | M56: =IF(F56="","",OFFSET(Interventies_alt1!D33,0,M$44)) ->  | N56: =IF(G56="","",OFFSET(Interventies_alt1!E33,0,N$44)) -> 
B57: 12 | C57: =IFERROR(INDEX(Sectoroverzicht!B3:B31,MATCH(E57,Sectoroverzicht!C3:C31,0),1),"") ->  | E57: =IF(OFFSET(Interventies_alt1!A34,0,2)="","",OFFSET(Interventies_alt1!A34,0,2)) ->  | H57: =IF(OFFSET(Interventies_alt1!A34,0,3)="","",OFFSET(Interventies_alt1!A34,0,3)) ->  | I57: =IF(OFFSET(Interventies_alt1!A34,0,4)="","",OFFSET(Interventies_alt1!A34,0,4)) ->  | J57: =IF(C57="","",OFFSET(Interventies_alt1!A34,0,J$44)) ->  | K57: =IF(D57="","",OFFSET(Interventies_alt1!B34,0,K$44)) ->  | L57: =IF(E57="","",OFFSET(Interventies_alt1!C34,0,L$44)) ->  | M57: =IF(F57="","",OFFSET(Interventies_alt1!D34,0,M$44)) ->  | N57: =IF(G57="","",OFFSET(Interventies_alt1!E34,0,N$44)) -> 
B58: 13 | C58: =IFERROR(INDEX(Sectoroverzicht!B3:B31,MATCH(E58,Sectoroverzicht!C3:C31,0),1),"") ->  | E58: =IF(OFFSET(Interventies_alt1!A35,0,2)="","",OFFSET(Interventies_alt1!A35,0,2)) ->  | H58: =IF(OFFSET(Interventies_alt1!A35,0,3)="","",OFFSET(Interventies_alt1!A35,0,3)) ->  | I58: =IF(OFFSET(Interventies_alt1!A35,0,4)="","",OFFSET(Interventies_alt1!A35,0,4)) ->  | J58: =IF(C58="","",OFFSET(Interventies_alt1!A35,0,J$44)) ->  | K58: =IF(D58="","",OFFSET(Interventies_alt1!B35,0,K$44)) ->  | L58: =IF(E58="","",OFFSET(Interventies_alt1!C35,0,L$44)) ->  | M58: =IF(F58="","",OFFSET(Interventies_alt1!D35,0,M$44)) ->  | N58: =IF(G58="","",OFFSET(Interventies_alt1!E35,0,N$44)) -> 
B59: 14 | C59: =IFERROR(INDEX(Sectoroverzicht!B3:B31,MATCH(E59,Sectoroverzicht!C3:C31,0),1),"") ->  | E59: =IF(OFFSET(Interventies_alt1!A36,0,2)="","",OFFSET(Interventies_alt1!A36,0,2)) ->  | H59: =IF(OFFSET(Interventies_alt1!A36,0,3)="","",OFFSET(Interventies_alt1!A36,0,3)) ->  | I59: =IF(OFFSET(Interventies_alt1!A36,0,4)="","",OFFSET(Interventies_alt1!A36,0,4)) ->  | J59: =IF(C59="","",OFFSET(Interventies_alt1!A36,0,J$44)) ->  | K59: =IF(D59="","",OFFSET(Interventies_alt1!B36,0,K$44)) ->  | L59: =IF(E59="","",OFFSET(Interventies_alt1!C36,0,L$44)) ->  | M59: =IF(F59="","",OFFSET(Interventies_alt1!D36,0,M$44)) ->  | N59: =IF(G59="","",OFFSET(Interventies_alt1!E36,0,N$44)) -> 
B60: 15 | C60: =IFERROR(INDEX(Sectoroverzicht!B3:B31,MATCH(E60,Sectoroverzicht!C3:C31,0),1),"") ->  | E60: =IF(OFFSET(Interventies_alt1!A37,0,2)="","",OFFSET(Interventies_alt1!A37,0,2)) ->  | H60: =IF(OFFSET(Interventies_alt1!A37,0,3)="","",OFFSET(Interventies_alt1!A37,0,3)) ->  | I60: =IF(OFFSET(Interventies_alt1!A37,0,4)="","",OFFSET(Interventies_alt1!A37,0,4)) ->  | J60: =IF(C60="","",OFFSET(Interventies_alt1!A37,0,J$44)) ->  | K60: =IF(D60="","",OFFSET(Interventies_alt1!B37,0,K$44)) ->  | L60: =IF(E60="","",OFFSET(Interventies_alt1!C37,0,L$44)) ->  | M60: =IF(F60="","",OFFSET(Interventies_alt1!D37,0,M$44)) ->  | N60: =IF(G60="","",OFFSET(Interventies_alt1!E37,0,N$44)) -> 
A61: Referentie zorg | B61: 1 | C61: =IFERROR(INDEX(Sectoroverzicht!B3:B31,MATCH(E61,Sectoroverzicht!C3:C31,0),1),"") -> Zorgverzekeringswet | E61: =IF(OFFSET(Interventies_ref1!A23,0,2)="","",OFFSET(Interventies_ref1!A23,0,2)) -> Medisch-specialistische zorg | H61: =IF(OFFSET(Interventies_ref1!A23,0,3)="","",OFFSET(Interventies_ref1!A23,0,3)) -> Meniscusoperatie | I61: =IF(OFFSET(Interventies_ref1!A23,0,4)="","",OFFSET(Interventies_ref1!A23,0,4)) -> Incidenteel | J61: =IF(C61="","",OFFSET(Interventies_ref1!A23,0,J$44)) -> 3202 | K61: =IF(D61="","",OFFSET(Interventies_ref1!B23,0,K$44)) ->  | L61: =IF(E61="","",OFFSET(Interventies_ref1!C23,0,L$44)) -> 0 | M61: =IF(F61="","",OFFSET(Interventies_ref1!D23,0,M$44)) ->  | N61: =IF(G61="","",OFFSET(Interventies_ref1!E23,0,N$44)) -> 
B62: 2 | C62: =IFERROR(INDEX(Sectoroverzicht!B3:B31,MATCH(E62,Sectoroverzicht!C3:C31,0),1),"") ->  | E62: =IF(OFFSET(Interventies_ref1!A24,0,2)="","",OFFSET(Interventies_ref1!A24,0,2)) ->  | H62: =IF(OFFSET(Interventies_ref1!A24,0,3)="","",OFFSET(Interventies_ref1!A24,0,3)) ->  | I62: =IF(OFFSET(Interventies_ref1!A24,0,4)="","",OFFSET(Interventies_ref1!A24,0,4)) ->  | J62: =IF(C62="","",OFFSET(Interventies_ref1!A24,0,J$44)) ->  | K62: =IF(D62="","",OFFSET(Interventies_ref1!B24,0,K$44)) ->  | L62: =IF(E62="","",OFFSET(Interventies_ref1!C24,0,L$44)) ->  | M62: =IF(F62="","",OFFSET(Interventies_ref1!D24,0,M$44)) ->  | N62: =IF(G62="","",OFFSET(Interventies_ref1!E24,0,N$44)) -> 
B63: 3 | C63: =IFERROR(INDEX(Sectoroverzicht!B3:B31,MATCH(E63,Sectoroverzicht!C3:C31,0),1),"") ->  | E63: =IF(OFFSET(Interventies_ref1!A25,0,2)="","",OFFSET(Interventies_ref1!A25,0,2)) ->  | H63: =IF(OFFSET(Interventies_ref1!A25,0,3)="","",OFFSET(Interventies_ref1!A25,0,3)) ->  | I63: =IF(OFFSET(Interventies_ref1!A25,0,4)="","",OFFSET(Interventies_ref1!A25,0,4)) ->  | J63: =IF(C63="","",OFFSET(Interventies_ref1!A25,0,J$44)) ->  | K63: =IF(D63="","",OFFSET(Interventies_ref1!B25,0,K$44)) ->  | L63: =IF(E63="","",OFFSET(Interventies_ref1!C25,0,L$44)) ->  | M63: =IF(F63="","",OFFSET(Interventies_ref1!D25,0,M$44)) ->  | N63: =IF(G63="","",OFFSET(Interventies_ref1!E25,0,N$44)) -> 
B64: 4 | C64: =IFERROR(INDEX(Sectoroverzicht!B3:B31,MATCH(E64,Sectoroverzicht!C3:C31,0),1),"") ->  | E64: =IF(OFFSET(Interventies_ref1!A26,0,2)="","",OFFSET(Interventies_ref1!A26,0,2)) ->  | H64: =IF(OFFSET(Interventies_ref1!A26,0,3)="","",OFFSET(Interventies_ref1!A26,0,3)) ->  | I64: =IF(OFFSET(Interventies_ref1!A26,0,4)="","",OFFSET(Interventies_ref1!A26,0,4)) ->  | J64: =IF(C64="","",OFFSET(Interventies_ref1!A26,0,J$44)) ->  | K64: =IF(D64="","",OFFSET(Interventies_ref1!B26,0,K$44)) ->  | L64: =IF(E64="","",OFFSET(Interventies_ref1!C26,0,L$44)) ->  | M64: =IF(F64="","",OFFSET(Interventies_ref1!D26,0,M$44)) ->  | N64: =IF(G64="","",OFFSET(Interventies_ref1!E26,0,N$44)) -> 
B65: 5 | C65: =IFERROR(INDEX(Sectoroverzicht!B3:B31,MATCH(E65,Sectoroverzicht!C3:C31,0),1),"") ->  | E65: =IF(OFFSET(Interventies_ref1!A27,0,2)="","",OFFSET(Interventies_ref1!A27,0,2)) ->  | H65: =IF(OFFSET(Interventies_ref1!A27,0,3)="","",OFFSET(Interventies_ref1!A27,0,3)) ->  | I65: =IF(OFFSET(Interventies_ref1!A27,0,4)="","",OFFSET(Interventies_ref1!A27,0,4)) ->  | J65: =IF(C65="","",OFFSET(Interventies_ref1!A27,0,J$44)) ->  | K65: =IF(D65="","",OFFSET(Interventies_ref1!B27,0,K$44)) ->  | L65: =IF(E65="","",OFFSET(Interventies_ref1!C27,0,L$44)) ->  | M65: =IF(F65="","",OFFSET(Interventies_ref1!D27,0,M$44)) ->  | N65: =IF(G65="","",OFFSET(Interventies_ref1!E27,0,N$44)) -> 
B66: 6 | C66: =IFERROR(INDEX(Sectoroverzicht!B3:B31,MATCH(E66,Sectoroverzicht!C3:C31,0),1),"") ->  | E66: =IF(OFFSET(Interventies_ref1!A28,0,2)="","",OFFSET(Interventies_ref1!A28,0,2)) ->  | H66: =IF(OFFSET(Interventies_ref1!A28,0,3)="","",OFFSET(Interventies_ref1!A28,0,3)) ->  | I66: =IF(OFFSET(Interventies_ref1!A28,0,4)="","",OFFSET(Interventies_ref1!A28,0,4)) ->  | J66: =IF(C66="","",OFFSET(Interventies_ref1!A28,0,J$44)) ->  | K66: =IF(D66="","",OFFSET(Interventies_ref1!B28,0,K$44)) ->  | L66: =IF(E66="","",OFFSET(Interventies_ref1!C28,0,L$44)) ->  | M66: =IF(F66="","",OFFSET(Interventies_ref1!D28,0,M$44)) ->  | N66: =IF(G66="","",OFFSET(Interventies_ref1!E28,0,N$44)) -> 
B67: 7 | C67: =IFERROR(INDEX(Sectoroverzicht!B3:B31,MATCH(E67,Sectoroverzicht!C3:C31,0),1),"") ->  | E67: =IF(OFFSET(Interventies_ref1!A29,0,2)="","",OFFSET(Interventies_ref1!A29,0,2)) ->  | H67: =IF(OFFSET(Interventies_ref1!A29,0,3)="","",OFFSET(Interventies_ref1!A29,0,3)) ->  | I67: =IF(OFFSET(Interventies_ref1!A29,0,4)="","",OFFSET(Interventies_ref1!A29,0,4)) ->  | J67: =IF(C67="","",OFFSET(Interventies_ref1!A29,0,J$44)) ->  | K67: =IF(D67="","",OFFSET(Interventies_ref1!B29,0,K$44)) ->  | L67: =IF(E67="","",OFFSET(Interventies_ref1!C29,0,L$44)) ->  | M67: =IF(F67="","",OFFSET(Interventies_ref1!D29,0,M$44)) ->  | N67: =IF(G67="","",OFFSET(Interventies_ref1!E29,0,N$44)) -> 
B68: 8 | C68: =IFERROR(INDEX(Sectoroverzicht!B3:B31,MATCH(E68,Sectoroverzicht!C3:C31,0),1),"") ->  | E68: =IF(OFFSET(Interventies_ref1!A30,0,2)="","",OFFSET(Interventies_ref1!A30,0,2)) ->  | H68: =IF(OFFSET(Interventies_ref1!A30,0,3)="","",OFFSET(Interventies_ref1!A30,0,3)) ->  | I68: =IF(OFFSET(Interventies_ref1!A30,0,4)="","",OFFSET(Interventies_ref1!A30,0,4)) ->  | J68: =IF(C68="","",OFFSET(Interventies_ref1!A30,0,J$44)) ->  | K68: =IF(D68="","",OFFSET(Interventies_ref1!B30,0,K$44)) ->  | L68: =IF(E68="","",OFFSET(Interventies_ref1!C30,0,L$44)) ->  | M68: =IF(F68="","",OFFSET(Interventies_ref1!D30,0,M$44)) ->  | N68: =IF(G68="","",OFFSET(Interventies_ref1!E30,0,N$44)) -> 
B69: 9 | C69: =IFERROR(INDEX(Sectoroverzicht!B3:B31,MATCH(E69,Sectoroverzicht!C3:C31,0),1),"") ->  | E69: =IF(OFFSET(Interventies_ref1!A31,0,2)="","",OFFSET(Interventies_ref1!A31,0,2)) ->  | H69: =IF(OFFSET(Interventies_ref1!A31,0,3)="","",OFFSET(Interventies_ref1!A31,0,3)) ->  | I69: =IF(OFFSET(Interventies_ref1!A31,0,4)="","",OFFSET(Interventies_ref1!A31,0,4)) ->  | J69: =IF(C69="","",OFFSET(Interventies_ref1!A31,0,J$44)) ->  | K69: =IF(D69="","",OFFSET(Interventies_ref1!B31,0,K$44)) ->  | L69: =IF(E69="","",OFFSET(Interventies_ref1!C31,0,L$44)) ->  | M69: =IF(F69="","",OFFSET(Interventies_ref1!D31,0,M$44)) ->  | N69: =IF(G69="","",OFFSET(Interventies_ref1!E31,0,N$44)) -> 
B70: 10 | C70: =IFERROR(INDEX(Sectoroverzicht!B3:B31,MATCH(E70,Sectoroverzicht!C3:C31,0),1),"") ->  | E70: =IF(OFFSET(Interventies_ref1!A32,0,2)="","",OFFSET(Interventies_ref1!A32,0,2)) ->  | H70: =IF(OFFSET(Interventies_ref1!A32,0,3)="","",OFFSET(Interventies_ref1!A32,0,3)) ->  | I70: =IF(OFFSET(Interventies_ref1!A32,0,4)="","",OFFSET(Interventies_ref1!A32,0,4)) ->  | J70: =IF(C70="","",OFFSET(Interventies_ref1!A32,0,J$44)) ->  | K70: =IF(D70="","",OFFSET(Interventies_ref1!B32,0,K$44)) ->  | L70: =IF(E70="","",OFFSET(Interventies_ref1!C32,0,L$44)) ->  | M70: =IF(F70="","",OFFSET(Interventies_ref1!D32,0,M$44)) ->  | N70: =IF(G70="","",OFFSET(Interventies_ref1!E32,0,N$44)) -> 
B71: 11 | C71: =IFERROR(INDEX(Sectoroverzicht!B3:B31,MATCH(E71,Sectoroverzicht!C3:C31,0),1),"") ->  | E71: =IF(OFFSET(Interventies_ref1!A33,0,2)="","",OFFSET(Interventies_ref1!A33,0,2)) ->  | H71: =IF(OFFSET(Interventies_ref1!A33,0,3)="","",OFFSET(Interventies_ref1!A33,0,3)) ->  | I71: =IF(OFFSET(Interventies_ref1!A33,0,4)="","",OFFSET(Interventies_ref1!A33,0,4)) ->  | J71: =IF(C71="","",OFFSET(Interventies_ref1!A33,0,J$44)) ->  | K71: =IF(D71="","",OFFSET(Interventies_ref1!B33,0,K$44)) ->  | L71: =IF(E71="","",OFFSET(Interventies_ref1!C33,0,L$44)) ->  | M71: =IF(F71="","",OFFSET(Interventies_ref1!D33,0,M$44)) ->  | N71: =IF(G71="","",OFFSET(Interventies_ref1!E33,0,N$44)) -> 
B72: 12 | C72: =IFERROR(INDEX(Sectoroverzicht!B3:B31,MATCH(E72,Sectoroverzicht!C3:C31,0),1),"") ->  | E72: =IF(OFFSET(Interventies_ref1!A34,0,2)="","",OFFSET(Interventies_ref1!A34,0,2)) ->  | H72: =IF(OFFSET(Interventies_ref1!A34,0,3)="","",OFFSET(Interventies_ref1!A34,0,3)) ->  | I72: =IF(OFFSET(Interventies_ref1!A34,0,4)="","",OFFSET(Interventies_ref1!A34,0,4)) ->  | J72: =IF(C72="","",OFFSET(Interventies_ref1!A34,0,J$44)) ->  | K72: =IF(D72="","",OFFSET(Interventies_ref1!B34,0,K$44)) ->  | L72: =IF(E72="","",OFFSET(Interventies_ref1!C34,0,L$44)) ->  | M72: =IF(F72="","",OFFSET(Interventies_ref1!D34,0,M$44)) ->  | N72: =IF(G72="","",OFFSET(Interventies_ref1!E34,0,N$44)) -> 
B73: 13 | C73: =IFERROR(INDEX(Sectoroverzicht!B3:B31,MATCH(E73,Sectoroverzicht!C3:C31,0),1),"") ->  | E73: =IF(OFFSET(Interventies_ref1!A35,0,2)="","",OFFSET(Interventies_ref1!A35,0,2)) ->  | H73: =IF(OFFSET(Interventies_ref1!A35,0,3)="","",OFFSET(Interventies_ref1!A35,0,3)) ->  | I73: =IF(OFFSET(Interventies_ref1!A35,0,4)="","",OFFSET(Interventies_ref1!A35,0,4)) ->  | J73: =IF(C73="","",OFFSET(Interventies_ref1!A35,0,J$44)) ->  | K73: =IF(D73="","",OFFSET(Interventies_ref1!B35,0,K$44)) ->  | L73: =IF(E73="","",OFFSET(Interventies_ref1!C35,0,L$44)) ->  | M73: =IF(F73="","",OFFSET(Interventies_ref1!D35,0,M$44)) ->  | N73: =IF(G73="","",OFFSET(Interventies_ref1!E35,0,N$44)) -> 
B74: 14 | C74: =IFERROR(INDEX(Sectoroverzicht!B3:B31,MATCH(E74,Sectoroverzicht!C3:C31,0),1),"") ->  | E74: =IF(OFFSET(Interventies_ref1!A36,0,2)="","",OFFSET(Interventies_ref1!A36,0,2)) ->  | H74: =IF(OFFSET(Interventies_ref1!A36,0,3)="","",OFFSET(Interventies_ref1!A36,0,3)) ->  | I74: =IF(OFFSET(Interventies_ref1!A36,0,4)="","",OFFSET(Interventies_ref1!A36,0,4)) ->  | J74: =IF(C74="","",OFFSET(Interventies_ref1!A36,0,J$44)) ->  | K74: =IF(D74="","",OFFSET(Interventies_ref1!B36,0,K$44)) ->  | L74: =IF(E74="","",OFFSET(Interventies_ref1!C36,0,L$44)) ->  | M74: =IF(F74="","",OFFSET(Interventies_ref1!D36,0,M$44)) ->  | N74: =IF(G74="","",OFFSET(Interventies_ref1!E36,0,N$44)) -> 
B75: 15 | C75: =IFERROR(INDEX(Sectoroverzicht!B3:B31,MATCH(E75,Sectoroverzicht!C3:C31,0),1),"") ->  | E75: =IF(OFFSET(Interventies_ref1!A37,0,2)="","",OFFSET(Interventies_ref1!A37,0,2)) ->  | H75: =IF(OFFSET(Interventies_ref1!A37,0,3)="","",OFFSET(Interventies_ref1!A37,0,3)) ->  | I75: =IF(OFFSET(Interventies_ref1!A37,0,4)="","",OFFSET(Interventies_ref1!A37,0,4)) ->  | J75: =IF(C75="","",OFFSET(Interventies_ref1!A37,0,J$44)) ->  | K75: =IF(D75="","",OFFSET(Interventies_ref1!B37,0,K$44)) ->  | L75: =IF(E75="","",OFFSET(Interventies_ref1!C37,0,L$44)) ->  | M75: =IF(F75="","",OFFSET(Interventies_ref1!D37,0,M$44)) ->  | N75: =IF(G75="","",OFFSET(Interventies_ref1!E37,0,N$44)) -> 
A79: Met onderstaande knoppen kunt u snel over de hoofdonderdelen van de BIA navigeren. De kleur matcht met de band bovenin het scherm. De knop 'Verder' hierboven volstaat echter om het hele proces te doorlopen.

Sheet Budgetimpact_Zorgverzekeraar1
A3: BUDGET IMPACT ANALYSE BIJ DOELMATIGHEIDSONDERZOEK
A4: BUDGETIMPACT ZORGVERZEKERAAR
B6: i | C6: Navigatie
B10: =Populatie1!$C$17 -> Hoofdscenario: Realistisch scenario: 50% van de in totaal 18.000 patiënten tussen de 45 en 70 jaar die per jaar worden behandeld aan een meniscuslaesie (referente zorg) kunnen middels fysiotherapie worden behandeld (alternatieve zorg)
B12: Bij de navolgende scenario's kunt u de hier ingevulde waardes automatisch laten overnemen door middel van een knop op deze plaats
I13: ONZEKERHEID | K13: SENSITIVITEITSANALYSE i
B14: SPECIFICATIE MATE VAN ONZEKERHEID / SENSITIVITEITSANALYSE | K14: MIN | L14: MAX
B15: i | C15: Specificatie populatie | I15: =IF(Populatie1!$M$39="","Onbekend!",Populatie1!$M$39) -> Gemiddeld | J15: =IF(I15="Klein",1,IF(I15="Gemiddeld",0,IF(I15="Groot",-1,""))) -> 0 | K15: 0.7 | L15: 1.1
B16: i | C16: ALTERNATIEVE ZORG | Kosten interventiemix | I16: =IF(Toelichting_Interventies_alt1!$E$31="","Onbekend!",Toelichting_Interventies_alt1!$E$31) -> Klein | J16: =IF(I16="Klein",1,IF(I16="Gemiddeld",0,IF(I16="Groot",-1,""))) -> 1 | K16: 0.8 | L16: 1.2
B17: i | C17: REFERENTIE ZORG | Kosten interventiemix | I17: =IF(Toelichting_Interventies_ref1!$E$31="","Onbekend!",Toelichting_Interventies_ref1!$E$31) -> Klein | J17: =IF(I17="Klein",1,IF(I17="Gemiddeld",0,IF(I17="Groot",-1,""))) -> 1 | K17: 0.9 | L17: 1.3
B19: IMPACT | I19: Totaal | J19: =IF(Startjaar="",1,Startjaar) -> 2019 | K19: =J19+1 -> 2020 | L19: =K19+1 -> 2021 | M19: =L19+1 -> 2022 | N19: =M19+1 -> 2023
C20: Totaal nieuwe patiënten | J20: =Populatie1!D$39 -> 3600 | K20: =Populatie1!E$39 -> 9000 | L20: =Populatie1!F$39 -> 10800 | M20: =Populatie1!G$39 -> 14400 | N20: =Populatie1!H$39 -> 18000
B21: i | C21: Marktaandeel | J21: 0.35 | K21: 0.35 | L21: 0.35 | M21: 0.35 | N21: 0.35
C22: Aantal startende zorggebruikers | J22: =J20*J21 -> 1260 | K22: =K20*K21 -> 3150 | L22: =L20*L21 -> 3780 | M22: =M20*M21 -> 5040 | N22: =N20*N21 -> 6300
B23: i | C23: Bruto verschil in HEALTHCARE uitgaven per patient onder Zorgverzekeringswet | J23: =SUM(J24,J27) -> -2364 | K23: =SUM(K24,K27) -> 0 | L23: =SUM(L24,L27) -> 0 | M23: =SUM(M24,M27) -> 0 | N23: =SUM(N24,N27) -> 0
D24: Structurele kosten | J24: =J25-J26 -> 0 | K24: =K25-K26 -> 0 | L24: =L25-L26 -> 0 | M24: =M25-M26 -> 0 | N24: =N25-N26 -> 0
D25: Bruto uitgaven alternatieve zorg (per follow-up jaar!) | J25: =SUMIFS(J$54:J$68,$C$54:$C$68,"Zorgverzekeringswet",$I$54:$I$68,"Structureel") -> 0 | K25: =SUMIFS(K$54:K$68,$C$54:$C$68,"Zorgverzekeringswet",$I$54:$I$68,"Structureel") -> 0 | L25: =SUMIFS(L$54:L$68,$C$54:$C$68,"Zorgverzekeringswet",$I$54:$I$68,"Structureel") -> 0 | M25: =SUMIFS(M$54:M$68,$C$54:$C$68,"Zorgverzekeringswet",$I$54:$I$68,"Structureel") -> 0 | N25: =SUMIFS(N$54:N$68,$C$54:$C$68,"Zorgverzekeringswet",$I$54:$I$68,"Structureel") -> 0
D26: Bruto uitgaven referentiezorg | J26: =SUMIFS(J$69:J$83,$C$69:$C$83,"Zorgverzekeringswet",$I$69:$I$83,"Structureel") -> 0 | K26: =SUMIFS(K$69:K$83,$C$69:$C$83,"Zorgverzekeringswet",$I$69:$I$83,"Structureel") -> 0 | L26: =SUMIFS(L$69:L$83,$C$69:$C$83,"Zorgverzekeringswet",$I$69:$I$83,"Structureel") -> 0 | M26: =SUMIFS(M$69:M$83,$C$69:$C$83,"Zorgverzekeringswet",$I$69:$I$83,"Structureel") -> 0 | N26: =SUMIFS(N$69:N$83,$C$69:$C$83,"Zorgverzekeringswet",$I$69:$I$83,"Structureel") -> 0
D27: Incidentele kosten | J27: =J28-J29 -> -2364 | K27: =K28-K29 -> 0 | L27: =L28-L29 -> 0 | M27: =M28-M29 -> 0 | N27: =N28-N29 -> 0
D28: Bruto uitgaven alternatieve zorg (per follow-up jaar!) | J28: =SUMIFS(J$54:J$68,$C$54:$C$68,"Zorgverzekeringswet",$I$54:$I$68,"Incidenteel") -> 838 | K28: =SUMIFS(K$54:K$68,$C$54:$C$68,"Zorgverzekeringswet",$I$54:$I$68,"Incidenteel") -> 0 | L28: =SUMIFS(L$54:L$68,$C$54:$C$68,"Zorgverzekeringswet",$I$54:$I$68,"Incidenteel") -> 0 | M28: =SUMIFS(M$54:M$68,$C$54:$C$68,"Zorgverzekeringswet",$I$54:$I$68,"Incidenteel") -> 0 | N28: =SUMIFS(N$54:N$68,$C$54:$C$68,"Zorgverzekeringswet",$I$54:$I$68,"Incidenteel") -> 0
D29: Bruto uitgaven referentiezorg | J29: =SUMIFS(J$69:J$83,$C$69:$C$83,"Zorgverzekeringswet",$I$69:$I$83,"Incidenteel") -> 3202 | K29: =SUMIFS(K$69:K$83,$C$69:$C$83,"Zorgverzekeringswet",$I$69:$I$83,"Incidenteel") -> 0 | L29: =SUMIFS(L$69:L$83,$C$69:$C$83,"Zorgverzekeringswet",$I$69:$I$83,"Incidenteel") -> 0 | M29: =SUMIFS(M$69:M$83,$C$69:$C$83,"Zorgverzekeringswet",$I$69:$I$83,"Incidenteel") -> 0 | N29: =SUMIFS(N$69:N$83,$C$69:$C$83,"Zorgverzekeringswet",$I$69:$I$83,"Incidenteel") -> 0
C30: Bruto verschil in HEALTHCARE uitgaven per patient onder Wet Langdurige Zorg | J30: =SUM(J31,J34) -> 0 | K30: =SUM(K31,K34) -> 0 | L30: =SUM(L31,L34) -> 0 | M30: =SUM(M31,M34) -> 0 | N30: =SUM(N31,N34) -> 0
D31: Structurele kosten | J31: =J32-J33 -> 0 | K31: =K32-K33 -> 0 | L31: =L32-L33 -> 0 | M31: =M32-M33 -> 0 | N31: =N32-N33 -> 0
D32: Bruto uitgaven alternatieve zorg (per follow-up jaar!) | J32: =SUMIFS(J$54:J$68,$C$54:$C$68,"Wet Langdurige Zorg",$I$54:$I$68,"Structureel") -> 0 | K32: =SUMIFS(K$54:K$68,$C$54:$C$68,"Wet Langdurige Zorg",$I$54:$I$68,"Structureel") -> 0 | L32: =SUMIFS(L$54:L$68,$C$54:$C$68,"Wet Langdurige Zorg",$I$54:$I$68,"Structureel") -> 0 | M32: =SUMIFS(M$54:M$68,$C$54:$C$68,"Wet Langdurige Zorg",$I$54:$I$68,"Structureel") -> 0 | N32: =SUMIFS(N$54:N$68,$C$54:$C$68,"Wet Langdurige Zorg",$I$54:$I$68,"Structureel") -> 0
D33: Bruto uitgaven referentiezorg | J33: =SUMIFS(J$69:J$83,$C$69:$C$83,"Wet Langdurige Zorg",$I$69:$I$83,"Structureel") -> 0 | K33: =SUMIFS(K$69:K$83,$C$69:$C$83,"Wet Langdurige Zorg",$I$69:$I$83,"Structureel") -> 0 | L33: =SUMIFS(L$69:L$83,$C$69:$C$83,"Wet Langdurige Zorg",$I$69:$I$83,"Structureel") -> 0 | M33: =SUMIFS(M$69:M$83,$C$69:$C$83,"Wet Langdurige Zorg",$I$69:$I$83,"Structureel") -> 0 | N33: =SUMIFS(N$69:N$83,$C$69:$C$83,"Wet Langdurige Zorg",$I$69:$I$83,"Structureel") -> 0
D34: Incidentele kosten | J34: =J35-J36 -> 0 | K34: =K35-K36 -> 0 | L34: =L35-L36 -> 0 | M34: =M35-M36 -> 0 | N34: =N35-N36 -> 0
D35: Bruto uitgaven alternatieve zorg (per follow-up jaar!) | J35: =SUMIFS(J$54:J$68,$C$54:$C$68,"Wet Langdurige Zorg",$I$54:$I$68,"Incidenteel") -> 0 | K35: =SUMIFS(K$54:K$68,$C$54:$C$68,"Wet Langdurige Zorg",$I$54:$I$68,"Incidenteel") -> 0 | L35: =SUMIFS(L$54:L$68,$C$54:$C$68,"Wet Langdurige Zorg",$I$54:$I$68,"Incidenteel") -> 0 | M35: =SUMIFS(M$54:M$68,$C$54:$C$68,"Wet Langdurige Zorg",$I$54:$I$68,"Incidenteel") -> 0 | N35: =SUMIFS(N$54:N$68,$C$54:$C$68,"Wet Langdurige Zorg",$I$54:$I$68,"Incidenteel") -> 0
D36: Bruto uitgaven referentiezorg | J36: =SUMIFS(J$69:J$83,$C$69:$C$83,"Wet Langdurige Zorg",$I$69:$I$83,"Incidenteel") -> 0 | K36: =SUMIFS(K$69:K$83,$C$69:$C$83,"Wet Langdurige Zorg",$I$69:$I$83,"Incidenteel") -> 0 | L36: =SUMIFS(L$69:L$83,$C$69:$C$83,"Wet Langdurige Zorg",$I$69:$I$83,"Incidenteel") -> 0 | M36: =SUMIFS(M$69:M$83,$C$69:$C$83,"Wet Langdurige Zorg",$I$69:$I$83,"Incidenteel") -> 0 | N36: =SUMIFS(N$69:N$83,$C$69:$C$83,"Wet Langdurige Zorg",$I$69:$I$83,"Incidenteel") -> 0
C37: Totale budget-impact Zorgverzekeringswet | I37: =SUM(J37:N37) -> -46168.92 | J37: =SUM(J$22*J23)/1000 -> -2978.64 | K37: =SUM(J$22*K23,K$22*J23)/1000 -> -7446.6 | L37: =SUM(J$22*L23,K$22*K23,L$22*J23)/1000 -> -8935.92 | M37: =SUM(J$22*M23,K$22*L23,L$22*K23,M$22*J23)/1000 -> -11914.56 | N37: =SUM($J$22*N23,$K$22*M23,$L$22*L23,$M$22*K23,N22*J23)/1000 -> -14893.2
C38: Totale budget-impact Wet Langdurige Zorg | I38: =SUM(J38:N38) -> 0 | J38: =SUM(J$22*J30)/1000 -> 0 | K38: =SUM(J$22*K30,K$22*J30)/1000 -> 0 | L38: =SUM(J$22*L30,K$22*K30,L$22*J30)/1000 -> 0 | M38: =SUM(J$22*M30,K$22*L30,L$22*K30,M$22*J30)/1000 -> 0 | N38: =SUM($J$22*N30,$K$22*M30,$L$22*L30,$M$22*K30,N22*J30)/1000 -> 0
C39: Totaal impact HEALTHCARE (x€1.000) | I39: =SUM(J39:N39) -> -46168.92 | J39: =SUM(J37:J38) -> -2978.64 | K39: =SUM(K37:K38) -> -7446.6 | L39: =SUM(L37:L38) -> -8935.92 | M39: =SUM(M37:M38) -> -11914.56 | N39: =SUM(N37:N38) -> -14893.2
B41: SENSITIVITEITSANALYSE
B42: i | C42: Populatie min-scenario | J42: =J$22*$K$15 -> 882 | K42: =K$22*$K$15 -> 2205 | L42: =L$22*$K$15 -> 2646 | M42: =M$22*$K$15 -> 3528 | N42: =N$22*$K$15 -> 4410
B43: i | C43: Populatie max-scenario | J43: =J$22*$L$15 -> 1386 | K43: =K$22*$L$15 -> 3465 | L43: =L$22*$L$15 -> 4158 | M43: =M$22*$L$15 -> 5544 | N43: =N$22*$L$15 -> 6930
B44: IMPACT HEALTHCARE | E44: ="BANDBREEDTE: "&TEXT(MAX(I47:I50),"€0.0K")&" TOT "&TEXT(MIN(I47:I50),"€0.0K") -> BANDBREEDTE: -€25.650K TOT -€75.023K
B45: i | C45: Bruto verschil min-scenario: kosten referent minimaal, alternatief maximaal | J45: =SUM(J25*$L$16-J26*$K$17,J28*$L$16-J29*$K$17,J32*$L$16-J33*$K$17,J35*$L$16-J36*$K$17) -> -1876.2 | K45: =SUM(K25*$L$16-K26*$K$17,K28*$L$16-K29*$K$17,K32*$L$16-K33*$K$17,K35*$L$16-K36*$K$17) -> 0 | L45: =SUM(L25*$L$16-L26*$K$17,L28*$L$16-L29*$K$17,L32*$L$16-L33*$K$17,L35*$L$16-L36*$K$17) -> 0 | M45: =SUM(M25*$L$16-M26*$K$17,M28*$L$16-M29*$K$17,M32*$L$16-M33*$K$17,M35*$L$16-M36*$K$17) -> 0 | N45: =SUM(N25*$L$16-N26*$K$17,N28*$L$16-N29*$K$17,N32*$L$16-N33*$K$17,N35*$L$16-N36*$K$17) -> 0
B46: i | C46: Bruto verschil max-scenario: kosten referent maximaal, alternatief minimaal | J46: =SUM(J25*$K$16-J26*$L$17,J28*$K$16-J29*$L$17,J32*$K$16-J33*$L$17,J35*$K$16-J36*$L$17) -> -3492.2 | K46: =SUM(K25*$K$16-K26*$L$17,K28*$K$16-K29*$L$17,K32*$K$16-K33*$L$17,K35*$K$16-K36*$L$17) -> 0 | L46: =SUM(L25*$K$16-L26*$L$17,L28*$K$16-L29*$L$17,L32*$K$16-L33*$L$17,L35*$K$16-L36*$L$17) -> 0 | M46: =SUM(M25*$K$16-M26*$L$17,M28*$K$16-M29*$L$17,M32*$K$16-M33*$L$17,M35*$K$16-M36*$L$17) -> 0 | N46: =SUM(N25*$K$16-N26*$L$17,N28*$K$16-N29*$L$17,N32*$K$16-N33*$L$17,N35*$K$16-N36*$L$17) -> 0
C47: Sensitiviteitsanalyse min-scenario kosten, populatie min (x€1000) | I47: =SUM(J47:N47) -> -25649.5302 | J47: =SUM(J42*J45)/1000 -> -1654.8084 | K47: =SUM(J42*K45,K42*J45)/1000 -> -4137.021 | L47: =SUM(J42*L45,K42*K45,L42*J45)/1000 -> -4964.4252 | M47: =SUM(J42*M45,K42*L45,L42*K45,M42*J45)/1000 -> -6619.2336 | N47: =SUM(J42*N45,K42*M45,L42*L45,M42*K45,N42*J45)/1000 -> -8274.042
C48: Sensitiviteitsanalyse min-scenario kosten, populatie max (x€1000) | I48: =SUM(J48:N48) -> -40306.4046 | J48: =SUM(J43*J45)/1000 -> -2600.4132 | K48: =SUM(J43*K45,K43*J45)/1000 -> -6501.033 | L48: =SUM(J43*L45,K43*K45,L43*J45)/1000 -> -7801.2396 | M48: =SUM(J43*M45,K43*L45,L43*K45,M43*J45)/1000 -> -10401.6528 | N48: =SUM(J43*N45,K43*M45,L43*L45,M43*K45,N43*J45)/1000 -> -13002.066
C49: Sensitiviteitsanalyse max-scenario kosten, populatie min (x€1000) | I49: =SUM(J49:N49) -> -47741.8662 | J49: =SUM(J42*J46)/1000 -> -3080.1204 | K49: =SUM(J42*K46,K42*J46)/1000 -> -7700.301 | L49: =SUM(J42*L46,K42*K46,L42*J46)/1000 -> -9240.3612 | M49: =SUM(J42*M46,K42*L46,L42*K46,M42*J46)/1000 -> -12320.4816 | N49: =SUM(J42*N46,K42*M46,L42*L46,M42*K46,N42*J46)/1000 -> -15400.602
C50: Sensitiviteitsanalyse max-scenario kosten, populatie max (x€1000) | I50: =SUM(J50:N50) -> -75022.9326 | J50: =SUM(J43*J46)/1000 -> -4840.1892 | K50: =SUM(J43*K46,K43*J46)/1000 -> -12100.473 | L50: =SUM(J43*L46,K43*K46,L43*J46)/1000 -> -14520.5676 | M50: =SUM(J43*M46,K43*L46,L43*K46,M43*J46)/1000 -> -19360.7568 | N50: =SUM(J43*N46,K43*M46,L43*L46,M43*K46,N43*J46)/1000 -> -24200.946
B52: SPECIFICATIE BRUTO UITGAVEN PER PATIENT PER FOLLOW-UP JAAR | J52: 5 | K52: 6 | L52: 7 | M52: 8 | N52: 9
C53: Wet | E53: Sector | H53: Component (eerste 2 regels..) | I53: Typering | J53: Jaar 1 | K53: Jaar 2 | L53: Jaar 3 | M53: Jaar 4 | N53: Jaar 5
A54: Alternatieve zorg | B54: 1 | C54: =IFERROR(INDEX(Sectoroverzicht!$B$3:$B$31,MATCH(E54,Sectoroverzicht!$C$3:$C$31,0),1),"") -> Zorgverzekeringswet | E54: =IF(OFFSET(Interventies_alt1!$A23,0,2)="","",OFFSET(Interventies_alt1!$A23,0,2)) -> Paramedische zorg | H54: =IF(OFFSET(Interventies_alt1!$A23,0,3)="","",OFFSET(Interventies_alt1!$A23,0,3)) -> Fysiotherapie | I54: =IF(OFFSET(Interventies_alt1!$A23,0,4)="","",OFFSET(Interventies_alt1!$A23,0,4)) -> Incidenteel | J54: =IF($C54="","",OFFSET(Interventies_alt1!$A23,0,J$52)) -> 838 | K54: =IF($C54="","",OFFSET(Interventies_alt1!$A23,0,K$52)) -> 0 | L54: =IF($C54="","",OFFSET(Interventies_alt1!$A23,0,L$52)) -> 0 | M54: =IF($C54="","",OFFSET(Interventies_alt1!$A23,0,M$52)) -> 0 | N54: =IF($C54="","",OFFSET(Interventies_alt1!$A23,0,N$52)) -> 0
B55: 2 | C55: =IFERROR(INDEX(Sectoroverzicht!$B$3:$B$31,MATCH(E55,Sectoroverzicht!$C$3:$C$31,0),1),"") ->  | E55: =IF(OFFSET(Interventies_alt1!$A24,0,2)="","",OFFSET(Interventies_alt1!$A24,0,2)) ->  | H55: =IF(OFFSET(Interventies_alt1!$A24,0,3)="","",OFFSET(Interventies_alt1!$A24,0,3)) ->  | I55: =IF(OFFSET(Interventies_alt1!$A24,0,4)="","",OFFSET(Interventies_alt1!$A24,0,4)) ->  | J55: =IF($C55="","",OFFSET(Interventies_alt1!$A24,0,J$52)) ->  | K55: =IF($C55="","",OFFSET(Interventies_alt1!$A24,0,K$52)) ->  | L55: =IF($C55="","",OFFSET(Interventies_alt1!$A24,0,L$52)) ->  | M55: =IF($C55="","",OFFSET(Interventies_alt1!$A24,0,M$52)) ->  | N55: =IF($C55="","",OFFSET(Interventies_alt1!$A24,0,N$52)) -> 
B56: 3 | C56: =IFERROR(INDEX(Sectoroverzicht!$B$3:$B$31,MATCH(E56,Sectoroverzicht!$C$3:$C$31,0),1),"") ->  | E56: =IF(OFFSET(Interventies_alt1!$A25,0,2)="","",OFFSET(Interventies_alt1!$A25,0,2)) ->  | H56: =IF(OFFSET(Interventies_alt1!$A25,0,3)="","",OFFSET(Interventies_alt1!$A25,0,3)) ->  | I56: =IF(OFFSET(Interventies_alt1!$A25,0,4)="","",OFFSET(Interventies_alt1!$A25,0,4)) ->  | J56: =IF($C56="","",OFFSET(Interventies_alt1!$A25,0,J$52)) ->  | K56: =IF($C56="","",OFFSET(Interventies_alt1!$A25,0,K$52)) ->  | L56: =IF($C56="","",OFFSET(Interventies_alt1!$A25,0,L$52)) ->  | M56: =IF($C56="","",OFFSET(Interventies_alt1!$A25,0,M$52)) ->  | N56: =IF($C56="","",OFFSET(Interventies_alt1!$A25,0,N$52)) -> 
B57: 4 | C57: =IFERROR(INDEX(Sectoroverzicht!$B$3:$B$31,MATCH(E57,Sectoroverzicht!$C$3:$C$31,0),1),"") ->  | E57: =IF(OFFSET(Interventies_alt1!$A26,0,2)="","",OFFSET(Interventies_alt1!$A26,0,2)) ->  | H57: =IF(OFFSET(Interventies_alt1!$A26,0,3)="","",OFFSET(Interventies_alt1!$A26,0,3)) ->  | I57: =IF(OFFSET(Interventies_alt1!$A26,0,4)="","",OFFSET(Interventies_alt1!$A26,0,4)) ->  | J57: =IF($C57="","",OFFSET(Interventies_alt1!$A26,0,J$52)) ->  | K57: =IF($C57="","",OFFSET(Interventies_alt1!$A26,0,K$52)) ->  | L57: =IF($C57="","",OFFSET(Interventies_alt1!$A26,0,L$52)) ->  | M57: =IF($C57="","",OFFSET(Interventies_alt1!$A26,0,M$52)) ->  | N57: =IF($C57="","",OFFSET(Interventies_alt1!$A26,0,N$52)) -> 
B58: 5 | C58: =IFERROR(INDEX(Sectoroverzicht!$B$3:$B$31,MATCH(E58,Sectoroverzicht!$C$3:$C$31,0),1),"") ->  | E58: =IF(OFFSET(Interventies_alt1!$A27,0,2)="","",OFFSET(Interventies_alt1!$A27,0,2)) ->  | H58: =IF(OFFSET(Interventies_alt1!$A27,0,3)="","",OFFSET(Interventies_alt1!$A27,0,3)) ->  | I58: =IF(OFFSET(Interventies_alt1!$A27,0,4)="","",OFFSET(Interventies_alt1!$A27,0,4)) ->  | J58: =IF($C58="","",OFFSET(Interventies_alt1!$A27,0,J$52)) ->  | K58: =IF($C58="","",OFFSET(Interventies_alt1!$A27,0,K$52)) ->  | L58: =IF($C58="","",OFFSET(Interventies_alt1!$A27,0,L$52)) ->  | M58: =IF($C58="","",OFFSET(Interventies_alt1!$A27,0,M$52)) ->  | N58: =IF($C58="","",OFFSET(Interventies_alt1!$A27,0,N$52)) -> 
B59: 6 | C59: =IFERROR(INDEX(Sectoroverzicht!$B$3:$B$31,MATCH(E59,Sectoroverzicht!$C$3:$C$31,0),1),"") ->  | E59: =IF(OFFSET(Interventies_alt1!$A28,0,2)="","",OFFSET(Interventies_alt1!$A28,0,2)) ->  | H59: =IF(OFFSET(Interventies_alt1!$A28,0,3)="","",OFFSET(Interventies_alt1!$A28,0,3)) ->  | I59: =IF(OFFSET(Interventies_alt1!$A28,0,4)="","",OFFSET(Interventies_alt1!$A28,0,4)) ->  | J59: =IF($C59="","",OFFSET(Interventies_alt1!$A28,0,J$52)) ->  | K59: =IF($C59="","",OFFSET(Interventies_alt1!$A28,0,K$52)) ->  | L59: =IF($C59="","",OFFSET(Interventies_alt1!$A28,0,L$52)) ->  | M59: =IF($C59="","",OFFSET(Interventies_alt1!$A28,0,M$52)) ->  | N59: =IF($C59="","",OFFSET(Interventies_alt1!$A28,0,N$52)) -> 
B60: 7 | C60: =IFERROR(INDEX(Sectoroverzicht!$B$3:$B$31,MATCH(E60,Sectoroverzicht!$C$3:$C$31,0),1),"") ->  | E60: =IF(OFFSET(Interventies_alt1!$A29,0,2)="","",OFFSET(Interventies_alt1!$A29,0,2)) ->  | H60: =IF(OFFSET(Interventies_alt1!$A29,0,3)="","",OFFSET(Interventies_alt1!$A29,0,3)) ->  | I60: =IF(OFFSET(Interventies_alt1!$A29,0,4)="","",OFFSET(Interventies_alt1!$A29,0,4)) ->  | J60: =IF($C60="","",OFFSET(Interventies_alt1!$A29,0,J$52)) ->  | K60: =IF($C60="","",OFFSET(Interventies_alt1!$A29,0,K$52)) ->  | L60: =IF($C60="","",OFFSET(Interventies_alt1!$A29,0,L$52)) ->  | M60: =IF($C60="","",OFFSET(Interventies_alt1!$A29,0,M$52)) ->  | N60: =IF($C60="","",OFFSET(Interventies_alt1!$A29,0,N$52)) -> 
B61: 8 | C61: =IFERROR(INDEX(Sectoroverzicht!$B$3:$B$31,MATCH(E61,Sectoroverzicht!$C$3:$C$31,0),1),"") ->  | E61: =IF(OFFSET(Interventies_alt1!$A30,0,2)="","",OFFSET(Interventies_alt1!$A30,0,2)) ->  | H61: =IF(OFFSET(Interventies_alt1!$A30,0,3)="","",OFFSET(Interventies_alt1!$A30,0,3)) ->  | I61: =IF(OFFSET(Interventies_alt1!$A30,0,4)="","",OFFSET(Interventies_alt1!$A30,0,4)) ->  | J61: =IF($C61="","",OFFSET(Interventies_alt1!$A30,0,J$52)) ->  | K61: =IF($C61="","",OFFSET(Interventies_alt1!$A30,0,K$52)) ->  | L61: =IF($C61="","",OFFSET(Interventies_alt1!$A30,0,L$52)) ->  | M61: =IF($C61="","",OFFSET(Interventies_alt1!$A30,0,M$52)) ->  | N61: =IF($C61="","",OFFSET(Interventies_alt1!$A30,0,N$52)) -> 
B62: 9 | C62: =IFERROR(INDEX(Sectoroverzicht!$B$3:$B$31,MATCH(E62,Sectoroverzicht!$C$3:$C$31,0),1),"") ->  | E62: =IF(OFFSET(Interventies_alt1!$A31,0,2)="","",OFFSET(Interventies_alt1!$A31,0,2)) ->  | H62: =IF(OFFSET(Interventies_alt1!$A31,0,3)="","",OFFSET(Interventies_alt1!$A31,0,3)) ->  | I62: =IF(OFFSET(Interventies_alt1!$A31,0,4)="","",OFFSET(Interventies_alt1!$A31,0,4)) ->  | J62: =IF($C62="","",OFFSET(Interventies_alt1!$A31,0,J$52)) ->  | K62: =IF($C62="","",OFFSET(Interventies_alt1!$A31,0,K$52)) ->  | L62: =IF($C62="","",OFFSET(Interventies_alt1!$A31,0,L$52)) ->  | M62: =IF($C62="","",OFFSET(Interventies_alt1!$A31,0,M$52)) ->  | N62: =IF($C62="","",OFFSET(Interventies_alt1!$A31,0,N$52)) -> 
B63: 10 | C63: =IFERROR(INDEX(Sectoroverzicht!$B$3:$B$31,MATCH(E63,Sectoroverzicht!$C$3:$C$31,0),1),"") ->  | E63: =IF(OFFSET(Interventies_alt1!$A32,0,2)="","",OFFSET(Interventies_alt1!$A32,0,2)) ->  | H63: =IF(OFFSET(Interventies_alt1!$A32,0,3)="","",OFFSET(Interventies_alt1!$A32,0,3)) ->  | I63: =IF(OFFSET(Interventies_alt1!$A32,0,4)="","",OFFSET(Interventies_alt1!$A32,0,4)) ->  | J63: =IF($C63="","",OFFSET(Interventies_alt1!$A32,0,J$52)) ->  | K63: =IF($C63="","",OFFSET(Interventies_alt1!$A32,0,K$52)) ->  | L63: =IF($C63="","",OFFSET(Interventies_alt1!$A32,0,L$52)) ->  | M63: =IF($C63="","",OFFSET(Interventies_alt1!$A32,0,M$52)) ->  | N63: =IF($C63="","",OFFSET(Interventies_alt1!$A32,0,N$52)) -> 
B64: 11 | C64: =IFERROR(INDEX(Sectoroverzicht!$B$3:$B$31,MATCH(E64,Sectoroverzicht!$C$3:$C$31,0),1),"") ->  | E64: =IF(OFFSET(Interventies_alt1!$A33,0,2)="","",OFFSET(Interventies_alt1!$A33,0,2)) ->  | H64: =IF(OFFSET(Interventies_alt1!$A33,0,3)="","",OFFSET(Interventies_alt1!$A33,0,3)) ->  | I64: =IF(OFFSET(Interventies_alt1!$A33,0,4)="","",OFFSET(Interventies_alt1!$A33,0,4)) ->  | J64: =IF($C64="","",OFFSET(Interventies_alt1!$A33,0,J$52)) ->  | K64: =IF($C64="","",OFFSET(Interventies_alt1!$A33,0,K$52)) ->  | L64: =IF($C64="","",OFFSET(Interventies_alt1!$A33,0,L$52)) ->  | M64: =IF($C64="","",OFFSET(Interventies_alt1!$A33,0,M$52)) ->  | N64: =IF($C64="","",OFFSET(Interventies_alt1!$A33,0,N$52)) -> 
B65: 12 | C65: =IFERROR(INDEX(Sectoroverzicht!$B$3:$B$31,MATCH(E65,Sectoroverzicht!$C$3:$C$31,0),1),"") ->  | E65: =IF(OFFSET(Interventies_alt1!$A34,0,2)="","",OFFSET(Interventies_alt1!$A34,0,2)) ->  | H65: =IF(OFFSET(Interventies_alt1!$A34,0,3)="","",OFFSET(Interventies_alt1!$A34,0,3)) ->  | I65: =IF(OFFSET(Interventies_alt1!$A34,0,4)="","",OFFSET(Interventies_alt1!$A34,0,4)) ->  | J65: =IF($C65="","",OFFSET(Interventies_alt1!$A34,0,J$52)) ->  | K65: =IF($C65="","",OFFSET(Interventies_alt1!$A34,0,K$52)) ->  | L65: =IF($C65="","",OFFSET(Interventies_alt1!$A34,0,L$52)) ->  | M65: =IF($C65="","",OFFSET(Interventies_alt1!$A34,0,M$52)) ->  | N65: =IF($C65="","",OFFSET(Interventies_alt1!$A34,0,N$52)) -> 
B66: 13 | C66: =IFERROR(INDEX(Sectoroverzicht!$B$3:$B$31,MATCH(E66,Sectoroverzicht!$C$3:$C$31,0),1),"") ->  | E66: =IF(OFFSET(Interventies_alt1!$A35,0,2)="","",OFFSET(Interventies_alt1!$A35,0,2)) ->  | H66: =IF(OFFSET(Interventies_alt1!$A35,0,3)="","",OFFSET(Interventies_alt1!$A35,0,3)) ->  | I66: =IF(OFFSET(Interventies_alt1!$A35,0,4)="","",OFFSET(Interventies_alt1!$A35,0,4)) ->  | J66: =IF($C66="","",OFFSET(Interventies_alt1!$A35,0,J$52)) ->  | K66: =IF($C66="","",OFFSET(Interventies_alt1!$A35,0,K$52)) ->  | L66: =IF($C66="","",OFFSET(Interventies_alt1!$A35,0,L$52)) ->  | M66: =IF($C66="","",OFFSET(Interventies_alt1!$A35,0,M$52)) ->  | N66: =IF($C66="","",OFFSET(Interventies_alt1!$A35,0,N$52)) -> 
B67: 14 | C67: =IFERROR(INDEX(Sectoroverzicht!$B$3:$B$31,MATCH(E67,Sectoroverzicht!$C$3:$C$31,0),1),"") ->  | E67: =IF(OFFSET(Interventies_alt1!$A36,0,2)="","",OFFSET(Interventies_alt1!$A36,0,2)) ->  | H67: =IF(OFFSET(Interventies_alt1!$A36,0,3)="","",OFFSET(Interventies_alt1!$A36,0,3)) ->  | I67: =IF(OFFSET(Interventies_alt1!$A36,0,4)="","",OFFSET(Interventies_alt1!$A36,0,4)) ->  | J67: =IF($C67="","",OFFSET(Interventies_alt1!$A36,0,J$52)) ->  | K67: =IF($C67="","",OFFSET(Interventies_alt1!$A36,0,K$52)) ->  | L67: =IF($C67="","",OFFSET(Interventies_alt1!$A36,0,L$52)) ->  | M67: =IF($C67="","",OFFSET(Interventies_alt1!$A36,0,M$52)) ->  | N67: =IF($C67="","",OFFSET(Interventies_alt1!$A36,0,N$52)) -> 
B68: 15 | C68: =IFERROR(INDEX(Sectoroverzicht!$B$3:$B$31,MATCH(E68,Sectoroverzicht!$C$3:$C$31,0),1),"") ->  | E68: =IF(OFFSET(Interventies_alt1!$A37,0,2)="","",OFFSET(Interventies_alt1!$A37,0,2)) ->  | H68: =IF(OFFSET(Interventies_alt1!$A37,0,3)="","",OFFSET(Interventies_alt1!$A37,0,3)) ->  | I68: =IF(OFFSET(Interventies_alt1!$A37,0,4)="","",OFFSET(Interventies_alt1!$A37,0,4)) ->  | J68: =IF($C68="","",OFFSET(Interventies_alt1!$A37,0,J$52)) ->  | K68: =IF($C68="","",OFFSET(Interventies_alt1!$A37,0,K$52)) ->  | L68: =IF($C68="","",OFFSET(Interventies_alt1!$A37,0,L$52)) ->  | M68: =IF($C68="","",OFFSET(Interventies_alt1!$A37,0,M$52)) ->  | N68: =IF($C68="","",OFFSET(Interventies_alt1!$A37,0,N$52)) -> 
A69: Referentie zorg | B69: 1 | C69: =IFERROR(INDEX(Sectoroverzicht!$B$3:$B$31,MATCH(E69,Sectoroverzicht!$C$3:$C$31,0),1),"") -> Zorgverzekeringswet | E69: =IF(OFFSET(Interventies_ref1!$A23,0,2)="","",OFFSET(Interventies_ref1!$A23,0,2)) -> Medisch-specialistische zorg | H69: =IF(OFFSET(Interventies_ref1!$A23,0,3)="","",OFFSET(Interventies_ref1!$A23,0,3)) -> Meniscusoperatie | I69: =IF(OFFSET(Interventies_ref1!$A23,0,4)="","",OFFSET(Interventies_ref1!$A23,0,4)) -> Incidenteel | J69: =IF($C69="","",OFFSET(Interventies_ref1!$A23,0,J$52)) -> 3202 | K69: =IF($C69="","",OFFSET(Interventies_ref1!$A23,0,K$52)) -> 0 | L69: =IF($C69="","",OFFSET(Interventies_ref1!$A23,0,L$52)) -> 0 | M69: =IF($C69="","",OFFSET(Interventies_ref1!$A23,0,M$52)) -> 0 | N69: =IF($C69="","",OFFSET(Interventies_ref1!$A23,0,N$52)) -> 0
B70: 2 | C70: =IFERROR(INDEX(Sectoroverzicht!$B$3:$B$31,MATCH(E70,Sectoroverzicht!$C$3:$C$31,0),1),"") ->  | E70: =IF(OFFSET(Interventies_ref1!$A24,0,2)="","",OFFSET(Interventies_ref1!$A24,0,2)) ->  | H70: =IF(OFFSET(Interventies_ref1!$A24,0,3)="","",OFFSET(Interventies_ref1!$A24,0,3)) ->  | I70: =IF(OFFSET(Interventies_ref1!$A24,0,4)="","",OFFSET(Interventies_ref1!$A24,0,4)) ->  | J70: =IF($C70="","",OFFSET(Interventies_ref1!$A24,0,J$52)) ->  | K70: =IF($C70="","",OFFSET(Interventies_ref1!$A24,0,K$52)) ->  | L70: =IF($C70="","",OFFSET(Interventies_ref1!$A24,0,L$52)) ->  | M70: =IF($C70="","",OFFSET(Interventies_ref1!$A24,0,M$52)) ->  | N70: =IF($C70="","",OFFSET(Interventies_ref1!$A24,0,N$52)) -> 
B71: 3 | C71: =IFERROR(INDEX(Sectoroverzicht!$B$3:$B$31,MATCH(E71,Sectoroverzicht!$C$3:$C$31,0),1),"") ->  | E71: =IF(OFFSET(Interventies_ref1!$A25,0,2)="","",OFFSET(Interventies_ref1!$A25,0,2)) ->  | H71: =IF(OFFSET(Interventies_ref1!$A25,0,3)="","",OFFSET(Interventies_ref1!$A25,0,3)) ->  | I71: =IF(OFFSET(Interventies_ref1!$A25,0,4)="","",OFFSET(Interventies_ref1!$A25,0,4)) ->  | J71: =IF($C71="","",OFFSET(Interventies_ref1!$A25,0,J$52)) ->  | K71: =IF($C71="","",OFFSET(Interventies_ref1!$A25,0,K$52)) ->  | L71: =IF($C71="","",OFFSET(Interventies_ref1!$A25,0,L$52)) ->  | M71: =IF($C71="","",OFFSET(Interventies_ref1!$A25,0,M$52)) ->  | N71: =IF($C71="","",OFFSET(Interventies_ref1!$A25,0,N$52)) -> 
B72: 4 | C72: =IFERROR(INDEX(Sectoroverzicht!$B$3:$B$31,MATCH(E72,Sectoroverzicht!$C$3:$C$31,0),1),"") ->  | E72: =IF(OFFSET(Interventies_ref1!$A26,0,2)="","",OFFSET(Interventies_ref1!$A26,0,2)) ->  | H72: =IF(OFFSET(Interventies_ref1!$A26,0,3)="","",OFFSET(Interventies_ref1!$A26,0,3)) ->  | I72: =IF(OFFSET(Interventies_ref1!$A26,0,4)="","",OFFSET(Interventies_ref1!$A26,0,4)) ->  | J72: =IF($C72="","",OFFSET(Interventies_ref1!$A26,0,J$52)) ->  | K72: =IF($C72="","",OFFSET(Interventies_ref1!$A26,0,K$52)) ->  | L72: =IF($C72="","",OFFSET(Interventies_ref1!$A26,0,L$52)) ->  | M72: =IF($C72="","",OFFSET(Interventies_ref1!$A26,0,M$52)) ->  | N72: =IF($C72="","",OFFSET(Interventies_ref1!$A26,0,N$52)) -> 
B73: 5 | C73: =IFERROR(INDEX(Sectoroverzicht!$B$3:$B$31,MATCH(E73,Sectoroverzicht!$C$3:$C$31,0),1),"") ->  | E73: =IF(OFFSET(Interventies_ref1!$A27,0,2)="","",OFFSET(Interventies_ref1!$A27,0,2)) ->  | H73: =IF(OFFSET(Interventies_ref1!$A27,0,3)="","",OFFSET(Interventies_ref1!$A27,0,3)) ->  | I73: =IF(OFFSET(Interventies_ref1!$A27,0,4)="","",OFFSET(Interventies_ref1!$A27,0,4)) ->  | J73: =IF($C73="","",OFFSET(Interventies_ref1!$A27,0,J$52)) ->  | K73: =IF($C73="","",OFFSET(Interventies_ref1!$A27,0,K$52)) ->  | L73: =IF($C73="","",OFFSET(Interventies_ref1!$A27,0,L$52)) ->  | M73: =IF($C73="","",OFFSET(Interventies_ref1!$A27,0,M$52)) ->  | N73: =IF($C73="","",OFFSET(Interventies_ref1!$A27,0,N$52)) -> 
B74: 6 | C74: =IFERROR(INDEX(Sectoroverzicht!$B$3:$B$31,MATCH(E74,Sectoroverzicht!$C$3:$C$31,0),1),"") ->  | E74: =IF(OFFSET(Interventies_ref1!$A28,0,2)="","",OFFSET(Interventies_ref1!$A28,0,2)) ->  | H74: =IF(OFFSET(Interventies_ref1!$A28,0,3)="","",OFFSET(Interventies_ref1!$A28,0,3)) ->  | I74: =IF(OFFSET(Interventies_ref1!$A28,0,4)="","",OFFSET(Interventies_ref1!$A28,0,4)) ->  | J74: =IF($C74="","",OFFSET(Interventies_ref1!$A28,0,J$52)) ->  | K74: =IF($C74="","",OFFSET(Interventies_ref1!$A28,0,K$52)) ->  | L74: =IF($C74="","",OFFSET(Interventies_ref1!$A28,0,L$52)) ->  | M74: =IF($C74="","",OFFSET(Interventies_ref1!$A28,0,M$52)) ->  | N74: =IF($C74="","",OFFSET(Interventies_ref1!$A28,0,N$52)) -> 
B75: 7 | C75: =IFERROR(INDEX(Sectoroverzicht!$B$3:$B$31,MATCH(E75,Sectoroverzicht!$C$3:$C$31,0),1),"") ->  | E75: =IF(OFFSET(Interventies_ref1!$A29,0,2)="","",OFFSET(Interventies_ref1!$A29,0,2)) ->  | H75: =IF(OFFSET(Interventies_ref1!$A29,0,3)="","",OFFSET(Interventies_ref1!$A29,0,3)) ->  | I75: =IF(OFFSET(Interventies_ref1!$A29,0,4)="","",OFFSET(Interventies_ref1!$A29,0,4)) ->  | J75: =IF($C75="","",OFFSET(Interventies_ref1!$A29,0,J$52)) ->  | K75: =IF($C75="","",OFFSET(Interventies_ref1!$A29,0,K$52)) ->  | L75: =IF($C75="","",OFFSET(Interventies_ref1!$A29,0,L$52)) ->  | M75: =IF($C75="","",OFFSET(Interventies_ref1!$A29,0,M$52)) ->  | N75: =IF($C75="","",OFFSET(Interventies_ref1!$A29,0,N$52)) -> 
B76: 8 | C76: =IFERROR(INDEX(Sectoroverzicht!$B$3:$B$31,MATCH(E76,Sectoroverzicht!$C$3:$C$31,0),1),"") ->  | E76: =IF(OFFSET(Interventies_ref1!$A30,0,2)="","",OFFSET(Interventies_ref1!$A30,0,2)) ->  | H76: =IF(OFFSET(Interventies_ref1!$A30,0,3)="","",OFFSET(Interventies_ref1!$A30,0,3)) ->  | I76: =IF(OFFSET(Interventies_ref1!$A30,0,4)="","",OFFSET(Interventies_ref1!$A30,0,4)) ->  | J76: =IF($C76="","",OFFSET(Interventies_ref1!$A30,0,J$52)) ->  | K76: =IF($C76="","",OFFSET(Interventies_ref1!$A30,0,K$52)) ->  | L76: =IF($C76="","",OFFSET(Interventies_ref1!$A30,0,L$52)) ->  | M76: =IF($C76="","",OFFSET(Interventies_ref1!$A30,0,M$52)) ->  | N76: =IF($C76="","",OFFSET(Interventies_ref1!$A30,0,N$52)) -> 
B77: 9 | C77: =IFERROR(INDEX(Sectoroverzicht!$B$3:$B$31,MATCH(E77,Sectoroverzicht!$C$3:$C$31,0),1),"") ->  | E77: =IF(OFFSET(Interventies_ref1!$A31,0,2)="","",OFFSET(Interventies_ref1!$A31,0,2)) ->  | H77: =IF(OFFSET(Interventies_ref1!$A31,0,3)="","",OFFSET(Interventies_ref1!$A31,0,3)) ->  | I77: =IF(OFFSET(Interventies_ref1!$A31,0,4)="","",OFFSET(Interventies_ref1!$A31,0,4)) ->  | J77: =IF($C77="","",OFFSET(Interventies_ref1!$A31,0,J$52)) ->  | K77: =IF($C77="","",OFFSET(Interventies_ref1!$A31,0,K$52)) ->  | L77: =IF($C77="","",OFFSET(Interventies_ref1!$A31,0,L$52)) ->  | M77: =IF($C77="","",OFFSET(Interventies_ref1!$A31,0,M$52)) ->  | N77: =IF($C77="","",OFFSET(Interventies_ref1!$A31,0,N$52)) -> 
B78: 10 | C78: =IFERROR(INDEX(Sectoroverzicht!$B$3:$B$31,MATCH(E78,Sectoroverzicht!$C$3:$C$31,0),1),"") ->  | E78: =IF(OFFSET(Interventies_ref1!$A32,0,2)="","",OFFSET(Interventies_ref1!$A32,0,2)) ->  | H78: =IF(OFFSET(Interventies_ref1!$A32,0,3)="","",OFFSET(Interventies_ref1!$A32,0,3)) ->  | I78: =IF(OFFSET(Interventies_ref1!$A32,0,4)="","",OFFSET(Interventies_ref1!$A32,0,4)) ->  | J78: =IF($C78="","",OFFSET(Interventies_ref1!$A32,0,J$52)) ->  | K78: =IF($C78="","",OFFSET(Interventies_ref1!$A32,0,K$52)) ->  | L78: =IF($C78="","",OFFSET(Interventies_ref1!$A32,0,L$52)) ->  | M78: =IF($C78="","",OFFSET(Interventies_ref1!$A32,0,M$52)) ->  | N78: =IF($C78="","",OFFSET(Interventies_ref1!$A32,0,N$52)) -> 
B79: 11 | C79: =IFERROR(INDEX(Sectoroverzicht!$B$3:$B$31,MATCH(E79,Sectoroverzicht!$C$3:$C$31,0),1),"") ->  | E79: =IF(OFFSET(Interventies_ref1!$A33,0,2)="","",OFFSET(Interventies_ref1!$A33,0,2)) ->  | H79: =IF(OFFSET(Interventies_ref1!$A33,0,3)="","",OFFSET(Interventies_ref1!$A33,0,3)) ->  | I79: =IF(OFFSET(Interventies_ref1!$A33,0,4)="","",OFFSET(Interventies_ref1!$A33,0,4)) ->  | J79: =IF($C79="","",OFFSET(Interventies_ref1!$A33,0,J$52)) ->  | K79: =IF($C79="","",OFFSET(Interventies_ref1!$A33,0,K$52)) ->  | L79: =IF($C79="","",OFFSET(Interventies_ref1!$A33,0,L$52)) ->  | M79: =IF($C79="","",OFFSET(Interventies_ref1!$A33,0,M$52)) ->  | N79: =IF($C79="","",OFFSET(Interventies_ref1!$A33,0,N$52)) -> 
B80: 12 | C80: =IFERROR(INDEX(Sectoroverzicht!$B$3:$B$31,MATCH(E80,Sectoroverzicht!$C$3:$C$31,0),1),"") ->  | E80: =IF(OFFSET(Interventies_ref1!$A34,0,2)="","",OFFSET(Interventies_ref1!$A34,0,2)) ->  | H80: =IF(OFFSET(Interventies_ref1!$A34,0,3)="","",OFFSET(Interventies_ref1!$A34,0,3)) ->  | I80: =IF(OFFSET(Interventies_ref1!$A34,0,4)="","",OFFSET(Interventies_ref1!$A34,0,4)) ->  | J80: =IF($C80="","",OFFSET(Interventies_ref1!$A34,0,J$52)) ->  | K80: =IF($C80="","",OFFSET(Interventies_ref1!$A34,0,K$52)) ->  | L80: =IF($C80="","",OFFSET(Interventies_ref1!$A34,0,L$52)) ->  | M80: =IF($C80="","",OFFSET(Interventies_ref1!$A34,0,M$52)) ->  | N80: =IF($C80="","",OFFSET(Interventies_ref1!$A34,0,N$52)) -> 
B81: 13 | C81: =IFERROR(INDEX(Sectoroverzicht!$B$3:$B$31,MATCH(E81,Sectoroverzicht!$C$3:$C$31,0),1),"") ->  | E81: =IF(OFFSET(Interventies_ref1!$A35,0,2)="","",OFFSET(Interventies_ref1!$A35,0,2)) ->  | H81: =IF(OFFSET(Interventies_ref1!$A35,0,3)="","",OFFSET(Interventies_ref1!$A35,0,3)) ->  | I81: =IF(OFFSET(Interventies_ref1!$A35,0,4)="","",OFFSET(Interventies_ref1!$A35,0,4)) ->  | J81: =IF($C81="","",OFFSET(Interventies_ref1!$A35,0,J$52)) ->  | K81: =IF($C81="","",OFFSET(Interventies_ref1!$A35,0,K$52)) ->  | L81: =IF($C81="","",OFFSET(Interventies_ref1!$A35,0,L$52)) ->  | M81: =IF($C81="","",OFFSET(Interventies_ref1!$A35,0,M$52)) ->  | N81: =IF($C81="","",OFFSET(Interventies_ref1!$A35,0,N$52)) -> 
B82: 14 | C82: =IFERROR(INDEX(Sectoroverzicht!$B$3:$B$31,MATCH(E82,Sectoroverzicht!$C$3:$C$31,0),1),"") ->  | E82: =IF(OFFSET(Interventies_ref1!$A36,0,2)="","",OFFSET(Interventies_ref1!$A36,0,2)) ->  | H82: =IF(OFFSET(Interventies_ref1!$A36,0,3)="","",OFFSET(Interventies_ref1!$A36,0,3)) ->  | I82: =IF(OFFSET(Interventies_ref1!$A36,0,4)="","",OFFSET(Interventies_ref1!$A36,0,4)) ->  | J82: =IF($C82="","",OFFSET(Interventies_ref1!$A36,0,J$52)) ->  | K82: =IF($C82="","",OFFSET(Interventies_ref1!$A36,0,K$52)) ->  | L82: =IF($C82="","",OFFSET(Interventies_ref1!$A36,0,L$52)) ->  | M82: =IF($C82="","",OFFSET(Interventies_ref1!$A36,0,M$52)) ->  | N82: =IF($C82="","",OFFSET(Interventies_ref1!$A36,0,N$52)) -> 
B83: 15 | C83: =IFERROR(INDEX(Sectoroverzicht!$B$3:$B$31,MATCH(E83,Sectoroverzicht!$C$3:$C$31,0),1),"") ->  | E83: =IF(OFFSET(Interventies_ref1!$A37,0,2)="","",OFFSET(Interventies_ref1!$A37,0,2)) ->  | H83: =IF(OFFSET(Interventies_ref1!$A37,0,3)="","",OFFSET(Interventies_ref1!$A37,0,3)) ->  | I83: =IF(OFFSET(Interventies_ref1!$A37,0,4)="","",OFFSET(Interventies_ref1!$A37,0,4)) ->  | J83: =IF($C83="","",OFFSET(Interventies_ref1!$A37,0,J$52)) ->  | K83: =IF($C83="","",OFFSET(Interventies_ref1!$A37,0,K$52)) ->  | L83: =IF($C83="","",OFFSET(Interventies_ref1!$A37,0,L$52)) ->  | M83: =IF($C83="","",OFFSET(Interventies_ref1!$A37,0,M$52)) ->  | N83: =IF($C83="","",OFFSET(Interventies_ref1!$A37,0,N$52)) -> 
A87: Met onderstaande knoppen kunt u snel over de hoofdonderdelen van de BIA navigeren. De kleur matcht met de band bovenin het scherm. De knop 'Verder' hierboven volstaat echter om het hele proces te doorlopen.

Sheet Budgetimpact_Overheid1
A3: BUDGET IMPACT ANALYSE BIJ DOELMATIGHEIDSONDERZOEK
A4: BUDGETIMPACT OVERHEID
B6: i | C6: Navigatie
B10: =Populatie1!$C$17 -> Hoofdscenario: Realistisch scenario: 50% van de in totaal 18.000 patiënten tussen de 45 en 70 jaar die per jaar worden behandeld aan een meniscuslaesie (referente zorg) kunnen middels fysiotherapie worden behandeld (alternatieve zorg)
B12: Bij de navolgende scenario's kunt u de hier ingevulde waardes automatisch laten overnemen door middel van een knop op deze plaats
I13: ONZEKERHEID | K13: SENSITIVITEITSANALYSE i
B14: SPECIFICATIE MATE VAN ONZEKERHEID / SENSITIVITEITSANALYSE | K14: MIN | L14: MAX
B15: i | C15: Specificatie populatie | I15: =IF(Toelichting_Interventies_alt1!$E$31="","Onbekend!",Toelichting_Interventies_alt1!$E$31) -> Klein | J15: =IF(I15="Klein",1,IF(I15="Gemiddeld",0,IF(I15="Groot",-1,""))) -> 1 | K15: 0.7 | L15: 1.1
B16: i | C16: ALTERNATIEVE ZORG | Kosten interventiemix | I16: =IF(Toelichting_Interventies_alt1!$E$31="","Onbekend!",Toelichting_Interventies_alt1!$E$31) -> Klein | J16: =IF(I16="Klein",1,IF(I16="Gemiddeld",0,IF(I16="Groot",-1,""))) -> 1 | K16: 0.8 | L16: 1.2
B17: i | C17: REFERENTIE ZORG | Kosten interventiemix | I17: =IF(Toelichting_Interventies_ref1!$E$31="","Onbekend!",Toelichting_Interventies_ref1!$E$31) -> Klein | J17: =IF(I17="Klein",1,IF(I17="Gemiddeld",0,IF(I17="Groot",-1,""))) -> 1 | K17: 0.9 | L17: 1.3
B19: IMPACT | I19: Totaal | J19: =IF(Startjaar="",1,Startjaar) -> 2019 | K19: =J19+1 -> 2020 | L19: =K19+1 -> 2021 | M19: =L19+1 -> 2022 | N19: =M19+1 -> 2023
C20: Aantal startende zorggebruikers | J20: =Populatie1!D$39 -> 3600 | K20: =Populatie1!E$39 -> 9000 | L20: =Populatie1!F$39 -> 10800 | M20: =Populatie1!G$39 -> 14400 | N20: =Populatie1!H$39 -> 18000
B21: i | C21: Bruto verschil in HEALTHCARE uitgaven per patient onder Zorgverzekeringswet | J21: =SUM(J22,J25) -> -2364 | K21: =SUM(K22,K25) -> 0 | L21: =SUM(L22,L25) -> 0 | M21: =SUM(M22,M25) -> 0 | N21: =SUM(N22,N25) -> 0
D22: Structurele kosten | J22: =J23-J24 -> 0 | K22: =K23-K24 -> 0 | L22: =L23-L24 -> 0 | M22: =M23-M24 -> 0 | N22: =N23-N24 -> 0
D23: Bruto uitgaven alternatieve zorg (per follow-up jaar!) | J23: =SUMIFS(J$65:J$79,$C$65:$C$79,"Zorgverzekeringswet",$I$65:$I$79,"Structureel") -> 0 | K23: =SUMIFS(K$65:K$79,$C$65:$C$79,"Zorgverzekeringswet",$I$65:$I$79,"Structureel") -> 0 | L23: =SUMIFS(L$65:L$79,$C$65:$C$79,"Zorgverzekeringswet",$I$65:$I$79,"Structureel") -> 0 | M23: =SUMIFS(M$65:M$79,$C$65:$C$79,"Zorgverzekeringswet",$I$65:$I$79,"Structureel") -> 0 | N23: =SUMIFS(N$65:N$79,$C$65:$C$79,"Zorgverzekeringswet",$I$65:$I$79,"Structureel") -> 0
D24: Bruto uitgaven referentiezorg | J24: =SUMIFS(J$80:J$94,$C$80:$C$94,"Zorgverzekeringswet",$I$80:$I$94,"Structureel") -> 0 | K24: =SUMIFS(K$80:K$94,$C$80:$C$94,"Zorgverzekeringswet",$I$80:$I$94,"Structureel") -> 0 | L24: =SUMIFS(L$80:L$94,$C$80:$C$94,"Zorgverzekeringswet",$I$80:$I$94,"Structureel") -> 0 | M24: =SUMIFS(M$80:M$94,$C$80:$C$94,"Zorgverzekeringswet",$I$80:$I$94,"Structureel") -> 0 | N24: =SUMIFS(N$80:N$94,$C$80:$C$94,"Zorgverzekeringswet",$I$80:$I$94,"Structureel") -> 0
D25: Incidentele kosten | J25: =J26-J27 -> -2364 | K25: =K26-K27 -> 0 | L25: =L26-L27 -> 0 | M25: =M26-M27 -> 0 | N25: =N26-N27 -> 0
D26: Bruto uitgaven alternatieve zorg (per follow-up jaar!) | J26: =SUMIFS(J$65:J$79,$C$65:$C$79,"Zorgverzekeringswet",$I$65:$I$79,"Incidenteel") -> 838 | K26: =SUMIFS(K$65:K$79,$C$65:$C$79,"Zorgverzekeringswet",$I$65:$I$79,"Incidenteel") -> 0 | L26: =SUMIFS(L$65:L$79,$C$65:$C$79,"Zorgverzekeringswet",$I$65:$I$79,"Incidenteel") -> 0 | M26: =SUMIFS(M$65:M$79,$C$65:$C$79,"Zorgverzekeringswet",$I$65:$I$79,"Incidenteel") -> 0 | N26: =SUMIFS(N$65:N$79,$C$65:$C$79,"Zorgverzekeringswet",$I$65:$I$79,"Incidenteel") -> 0
D27: Bruto uitgaven referentiezorg | J27: =SUMIFS(J$80:J$94,$C$80:$C$94,"Zorgverzekeringswet",$I$80:$I$94,"Incidenteel") -> 3202 | K27: =SUMIFS(K$80:K$94,$C$80:$C$94,"Zorgverzekeringswet",$I$80:$I$94,"Incidenteel") -> 0 | L27: =SUMIFS(L$80:L$94,$C$80:$C$94,"Zorgverzekeringswet",$I$80:$I$94,"Incidenteel") -> 0 | M27: =SUMIFS(M$80:M$94,$C$80:$C$94,"Zorgverzekeringswet",$I$80:$I$94,"Incidenteel") -> 0 | N27: =SUMIFS(N$80:N$94,$C$80:$C$94,"Zorgverzekeringswet",$I$80:$I$94,"Incidenteel") -> 0
C28: Bruto verschil in HEALTHCARE uitgaven per patient onder Wet Langdurige Zorg | J28: =SUM(J29,J32) -> 0 | K28: =SUM(K29,K32) -> 0 | L28: =SUM(L29,L32) -> 0 | M28: =SUM(M29,M32) -> 0 | N28: =SUM(N29,N32) -> 0
D29: Structurele kosten | J29: =J30-J31 -> 0 | K29: =K30-K31 -> 0 | L29: =L30-L31 -> 0 | M29: =M30-M31 -> 0 | N29: =N30-N31 -> 0
D30: Bruto uitgaven alternatieve zorg (per follow-up jaar!) | J30: =SUMIFS(J$65:J$79,$C$65:$C$79,"Wet Langdurige Zorg",$I$65:$I$79,"Structureel") -> 0 | K30: =SUMIFS(K$65:K$79,$C$65:$C$79,"Wet Langdurige Zorg",$I$65:$I$79,"Structureel") -> 0 | L30: =SUMIFS(L$65:L$79,$C$65:$C$79,"Wet Langdurige Zorg",$I$65:$I$79,"Structureel") -> 0 | M30: =SUMIFS(M$65:M$79,$C$65:$C$79,"Wet Langdurige Zorg",$I$65:$I$79,"Structureel") -> 0 | N30: =SUMIFS(N$65:N$79,$C$65:$C$79,"Wet Langdurige Zorg",$I$65:$I$79,"Structureel") -> 0
D31: Bruto uitgaven referentiezorg | J31: =SUMIFS(J$80:J$94,$C$80:$C$94,"Wet Langdurige Zorg",$I$80:$I$94,"Structureel") -> 0 | K31: =SUMIFS(K$80:K$94,$C$80:$C$94,"Wet Langdurige Zorg",$I$80:$I$94,"Structureel") -> 0 | L31: =SUMIFS(L$80:L$94,$C$80:$C$94,"Wet Langdurige Zorg",$I$80:$I$94,"Structureel") -> 0 | M31: =SUMIFS(M$80:M$94,$C$80:$C$94,"Wet Langdurige Zorg",$I$80:$I$94,"Structureel") -> 0 | N31: =SUMIFS(N$80:N$94,$C$80:$C$94,"Wet Langdurige Zorg",$I$80:$I$94,"Structureel") -> 0
D32: Incidentele kosten | J32: =J33-J34 -> 0 | K32: =K33-K34 -> 0 | L32: =L33-L34 -> 0 | M32: =M33-M34 -> 0 | N32: =N33-N34 -> 0
D33: Bruto uitgaven alternatieve zorg (per follow-up jaar!) | J33: =SUMIFS(J$65:J$79,$C$65:$C$79,"Wet Langdurige Zorg",$I$65:$I$79,"Incidenteel") -> 0 | K33: =SUMIFS(K$65:K$79,$C$65:$C$79,"Wet Langdurige Zorg",$I$65:$I$79,"Incidenteel") -> 0 | L33: =SUMIFS(L$65:L$79,$C$65:$C$79,"Wet Langdurige Zorg",$I$65:$I$79,"Incidenteel") -> 0 | M33: =SUMIFS(M$65:M$79,$C$65:$C$79,"Wet Langdurige Zorg",$I$65:$I$79,"Incidenteel") -> 0 | N33: =SUMIFS(N$65:N$79,$C$65:$C$79,"Wet Langdurige Zorg",$I$65:$I$79,"Incidenteel") -> 0
D34: Bruto uitgaven referentiezorg | J34: =SUMIFS(J$80:J$94,$C$80:$C$94,"Wet Langdurige Zorg",$I$80:$I$94,"Incidenteel") -> 0 | K34: =SUMIFS(K$80:K$94,$C$80:$C$94,"Wet Langdurige Zorg",$I$80:$I$94,"Incidenteel") -> 0 | L34: =SUMIFS(L$80:L$94,$C$80:$C$94,"Wet Langdurige Zorg",$I$80:$I$94,"Incidenteel") -> 0 | M34: =SUMIFS(M$80:M$94,$C$80:$C$94,"Wet Langdurige Zorg",$I$80:$I$94,"Incidenteel") -> 0 | N34: =SUMIFS(N$80:N$94,$C$80:$C$94,"Wet Langdurige Zorg",$I$80:$I$94,"Incidenteel") -> 0
C35: Bruto verschil in NON-HEALTHCARE uitgaven per patient | J35: =J36-J37 -> 0 | K35: =K36-K37 -> 0 | L35: =L36-L37 -> 0 | M35: =M36-M37 -> 0 | N35: =N36-N37 -> 0
D36: Bruto uitgaven alternatieve zorg (per follow-up jaar!) | J36: =SUMIFS(J$65:J$79,$E$65:$E$79,"Non-Healthcare") -> 0 | K36: =SUMIFS(K$65:K$79,$E$65:$E$79,"Non-Healthcare") -> 0 | L36: =SUMIFS(L$65:L$79,$E$65:$E$79,"Non-Healthcare") -> 0 | M36: =SUMIFS(M$65:M$79,$E$65:$E$79,"Non-Healthcare") -> 0 | N36: =SUMIFS(N$65:N$79,$E$65:$E$79,"Non-Healthcare") -> 0
D37: Bruto uitgaven referentiezorg | J37: =SUMIFS(J$80:J$94,$E$80:$E$94,"Non-Healthcare") -> 0 | K37: =SUMIFS(K$80:K$94,$E$80:$E$94,"Non-Healthcare") -> 0 | L37: =SUMIFS(L$80:L$94,$E$80:$E$94,"Non-Healthcare") -> 0 | M37: =SUMIFS(M$80:M$94,$E$80:$E$94,"Non-Healthcare") -> 0 | N37: =SUMIFS(N$80:N$94,$E$80:$E$94,"Non-Healthcare") -> 0
C38: Totale budget-impact Zorgverzekeringswet | I38: =SUM(J38:N38) -> -131911.2 | J38: =SUM(J$20*J21)/1000 -> -8510.4 | K38: =SUM(J$20*K21,K$20*J21)/1000 -> -21276 | L38: =SUM(J$20*L21,K$20*K21,L$20*J21)/1000 -> -25531.2 | M38: =SUM(J$20*M21,K$20*L21,L$20*K21,M$20*J21)/1000 -> -34041.6 | N38: =SUM($J$20*N21,$K$20*M21,$L$20*L21,$M$20*K21,N20*J21)/1000 -> -42552
C39: Totale budget-impact Wet Langdurige Zorg | I39: =SUM(J39:N39) -> 0 | J39: =SUM(J$20*J28)/1000 -> 0 | K39: =SUM(J$20*K28,K$20*J28)/1000 -> 0 | L39: =SUM(J$20*L28,K$20*K28,L$20*J28)/1000 -> 0 | M39: =SUM(J$20*M28,K$20*L28,L$20*K28,M$20*J28)/1000 -> 0 | N39: =SUM($J$20*N28,$K$20*M28,$L$20*L28,$M$20*K28,N20*J28)/1000 -> 0
C40: Totaal impact HEALTHCARE (x€1.000) | I40: =SUM(J40:N40) -> -131911.2 | J40: =SUM(J38:J39) -> -8510.4 | K40: =SUM(K38:K39) -> -21276 | L40: =SUM(L38:L39) -> -25531.2 | M40: =SUM(M38:M39) -> -34041.6 | N40: =SUM(N38:N39) -> -42552
C41: Totaal impact NON-HEALTHCARE (x€1.000) | I41: =SUM(J41:N41) -> 0 | J41: =SUM(J$20*J35)/1000 -> 0 | K41: =SUM(J$20*K35,K$20*J35)/1000 -> 0 | L41: =SUM(J$20*L35,K$20*K35,L$20*J35)/1000 -> 0 | M41: =SUM(J$20*M35,K$20*L35,L$20*K35,M$20*J35)/1000 -> 0 | N41: =SUM($J$20*N35,$K$20*M35,$L$20*L35,$M$20*K35,N21*J35)/1000 -> 0
C42: Totaal impact (x€1.000) | I42: =SUM(I40:I41) -> -131911.2 | J42: -8510.4 | K42: -21276 | L42: -25531.2 | M42: -34041.6 | N42: -42552
B44: SENSITIVITEITSANALYSE
B45: i | C45: Populatie min-scenario | J45: =J$20*$K$15 -> 2520 | K45: =K$20*$K$15 -> 6300 | L45: =L$20*$K$15 -> 7560 | M45: =M$20*$K$15 -> 10080 | N45: =N$20*$K$15 -> 12600
B46: i | C46: Populatie max-scenario | J46: =J$20*$L$15 -> 3960 | K46: =K$20*$L$15 -> 9900 | L46: =L$20*$L$15 -> 11880 | M46: =M$20*$L$15 -> 15840 | N46: =N$20*$L$15 -> 19800
B47: IMPACT HEALTHCARE | E47: ="BANDBREEDTE: "&TEXT(MAX(I50:I53),"€0.0K")&" TOT "&TEXT(MIN(I50:I53),"€0.0K") -> BANDBREEDTE: -€73.284K TOT -€214.351K
B48: i | C48: Bruto verschil min-scenario: kosten referent minimaal, alternatief maximaal | J48: =SUM(J23*$L$16-J24*$K$17,J26*$L$16-J27*$K$17,J30*$L$16-J31*$K$17,J33*$L$16-J34*$K$17) -> -1876.2 | K48: =SUM(K23*$L$16-K24*$K$17,K26*$L$16-K27*$K$17,K30*$L$16-K31*$K$17,K33*$L$16-K34*$K$17) -> 0 | L48: =SUM(L23*$L$16-L24*$K$17,L26*$L$16-L27*$K$17,L30*$L$16-L31*$K$17,L33*$L$16-L34*$K$17) -> 0 | M48: =SUM(M23*$L$16-M24*$K$17,M26*$L$16-M27*$K$17,M30*$L$16-M31*$K$17,M33*$L$16-M34*$K$17) -> 0 | N48: =SUM(N23*$L$16-N24*$K$17,N26*$L$16-N27*$K$17,N30*$L$16-N31*$K$17,N33*$L$16-N34*$K$17) -> 0
B49: i | C49: Bruto verschil max-scenario: kosten referent maximaal, alternatief minimaal | J49: =SUM(J23*$K$16-J24*$L$17,J26*$K$16-J27*$L$17,J30*$K$16-J31*$L$17,J33*$K$16-J34*$L$17) -> -3492.2 | K49: =SUM(K23*$K$16-K24*$L$17,K26*$K$16-K27*$L$17,K30*$K$16-K31*$L$17,K33*$K$16-K34*$L$17) -> 0 | L49: =SUM(L23*$K$16-L24*$L$17,L26*$K$16-L27*$L$17,L30*$K$16-L31*$L$17,L33*$K$16-L34*$L$17) -> 0 | M49: =SUM(M23*$K$16-M24*$L$17,M26*$K$16-M27*$L$17,M30*$K$16-M31*$L$17,M33*$K$16-M34*$L$17) -> 0 | N49: =SUM(N23*$K$16-N24*$L$17,N26*$K$16-N27*$L$17,N30*$K$16-N31*$L$17,N33*$K$16-N34*$L$17) -> 0
C50: Sensitiviteitsanalyse min-scenario kosten, populatie min (x€1000) | I50: =SUM(J50:N50) -> -73284.372 | J50: =SUM(J45*J48)/1000 -> -4728.024 | K50: =SUM(J45*K48,K45*J48)/1000 -> -11820.06 | L50: =SUM(J45*L48,K45*K48,L45*J48)/1000 -> -14184.072 | M50: =SUM(J45*M48,K45*L48,L45*K48,M45*J48)/1000 -> -18912.096 | N50: =SUM(J45*N48,K45*M48,L45*L48,M45*K48,N45*J48)/1000 -> -23640.12
C51: Sensitiviteitsanalyse min-scenario kosten, populatie max (x€1000) | I51: =SUM(J51:N51) -> -115161.156 | J51: =SUM(J46*J48)/1000 -> -7429.752 | K51: =SUM(J46*K48,K46*J48)/1000 -> -18574.38 | L51: =SUM(J46*L48,K46*K48,L46*J48)/1000 -> -22289.256 | M51: =SUM(J46*M48,K46*L48,L46*K48,M46*J48)/1000 -> -29719.008 | N51: =SUM(J46*N48,K46*M48,L46*L48,M46*K48,N46*J48)/1000 -> -37148.76
C52: Sensitiviteitsanalyse max-scenario kosten, populatie min (x€1000) | I52: =SUM(J52:N52) -> -136405.332 | J52: =SUM(J45*J49)/1000 -> -8800.344 | K52: =SUM(J45*K49,K45*J49)/1000 -> -22000.86 | L52: =SUM(J45*L49,K45*K49,L45*J49)/1000 -> -26401.032 | M52: =SUM(J45*M49,K45*L49,L45*K49,M45*J49)/1000 -> -35201.376 | N52: =SUM(J45*N49,K45*M49,L45*L49,M45*K49,N45*J49)/1000 -> -44001.72
C53: Sensitiviteitsanalyse max-scenario kosten, populatie max (x€1000) | I53: =SUM(J53:N53) -> -214351.236 | J53: =SUM(J46*J49)/1000 -> -13829.112 | K53: =SUM(J46*K49,K46*J49)/1000 -> -34572.78 | L53: =SUM(J46*L49,K46*K49,L46*J49)/1000 -> -41487.336 | M53: =SUM(J46*M49,K46*L49,L46*K49,M46*J49)/1000 -> -55316.448 | N53: =SUM(J46*N49,K46*M49,L46*L49,M46*K49,N46*J49)/1000 -> -69145.56
B54: IMPACT NON-HEALTHCARE | E54: ="BANDBREEDTE: "&TEXT(MAX(I57:I60),"€0.0K")&" TOT "&TEXT(MIN(I57:I60),"€0.0K") -> BANDBREEDTE: €00K TOT €00K
B55: i | C55: Bruto verschil min-scenario: kosten referent minimaal, alternatief maximaal | J55: =SUM(J36*$L$16-J37*$K$17) -> 0 | K55: =SUM(K36*$L$16-K37*$K$17) -> 0 | L55: =SUM(L36*$L$16-L37*$K$17) -> 0 | M55: =SUM(M36*$L$16-M37*$K$17) -> 0 | N55: =SUM(N36*$L$16-N37*$K$17) -> 0
B56: i | C56: Bruto verschil max-scenario: kosten referent maximaal, alternatief minimaal | J56: =SUM(J36*$K$16-J37*$L$17) -> 0 | K56: =SUM(K36*$K$16-K37*$L$17) -> 0 | L56: =SUM(L36*$K$16-L37*$L$17) -> 0 | M56: =SUM(M36*$K$16-M37*$L$17) -> 0 | N56: =SUM(N36*$K$16-N37*$L$17) -> 0
C57: Sensitiviteitsanalyse min-scenario kosten, populatie min (x€1000) | I57: =SUM(J57:N57) -> 0 | J57: =SUM(J45*J55)/1000 -> 0 | K57: =SUM(J45*K55,K45*J55)/1000 -> 0 | L57: =SUM(J45*L55,K45*K55,L45*J55)/1000 -> 0 | M57: =SUM(J45*M55,K45*L55,L45*K55,M45*J55)/1000 -> 0 | N57: =SUM(J45*N55,K45*M55,L45*L55,M45*K55,N45*J55)/1000 -> 0
C58: Sensitiviteitsanalyse min-scenario kosten, populatie max (x€1000) | I58: =SUM(J58:N58) -> 0 | J58: =SUM(J46*J55)/1000 -> 0 | K58: =SUM(J46*K55,K46*J55)/1000 -> 0 | L58: =SUM(J46*L55,K46*K55,L46*J55)/1000 -> 0 | M58: =SUM(J46*M55,K46*L55,L46*K55,M46*J55)/1000 -> 0 | N58: =SUM(J46*N55,K46*M55,L46*L55,M46*K55,N46*J55)/1000 -> 0
C59: Sensitiviteitsanalyse max-scenario kosten, populatie min (x€1000) | I59: =SUM(J59:N59) -> 0 | J59: =SUM(J45*J56)/1000 -> 0 | K59: =SUM(J45*K56,K45*J56)/1000 -> 0 | L59: =SUM(J45*L56,K45*K56,L45*J56)/1000 -> 0 | M59: =SUM(J45*M56,K45*L56,L45*K56,M45*J56)/1000 -> 0 | N59: =SUM(J45*N56,K45*M56,L45*L56,M45*K56,N45*J56)/1000 -> 0
C60: Sensitiviteitsanalyse max-scenario kosten, populatie max (x€1000) | I60: =SUM(J60:N60) -> 0 | J60: =SUM(J46*J56)/1000 -> 0 | K60: =SUM(J46*K56,K46*J56)/1000 -> 0 | L60: =SUM(J46*L56,K46*K56,L46*J56)/1000 -> 0 | M60: =SUM(J46*M56,K46*L56,L46*K56,M46*J56)/1000 -> 0 | N60: =SUM(J46*N56,K46*M56,L46*L56,M46*K56,N46*J56)/1000 -> 0
B61: IMPACT TOTAAL | E61: ="BANDBREEDTE: "&TEXT(SUM(MAX(I57:I60),MAX(I50:I53)),"€0.0K")&" TOT "&TEXT(SUM(MIN(I57:I60),MIN(I50:I53)),"€0.0K") -> BANDBREEDTE: -€73.284K TOT -€214.351K
B63: SPECIFICATIE BRUTO UITGAVEN PER PATIENT PER FOLLOW-UP JAAR | J63: 5 | K63: 6 | L63: 7 | M63: 8 | N63: 9
C64: Wet | E64: Sector | H64: Component (eerste 2 regels..) | I64: Typering | J64: Jaar 1 | K64: Jaar 2 | L64: Jaar 3 | M64: Jaar 4 | N64: Jaar 5
A65: Alternatieve zorg | B65: 1 | C65: =IFERROR(INDEX(Sectoroverzicht!$B$3:$B$31,MATCH(E65,Sectoroverzicht!$C$3:$C$31,0),1),"") -> Zorgverzekeringswet | E65: =IF(OFFSET(Interventies_alt1!$A23,0,2)="","",OFFSET(Interventies_alt1!$A23,0,2)) -> Paramedische zorg | H65: =IF(OFFSET(Interventies_alt1!$A23,0,3)="","",OFFSET(Interventies_alt1!$A23,0,3)) -> Fysiotherapie | I65: =IF(OFFSET(Interventies_alt1!$A23,0,4)="","",OFFSET(Interventies_alt1!$A23,0,4)) -> Incidenteel | J65: =IF($C65="","",OFFSET(Interventies_alt1!$A23,0,J$63)) -> 838 | K65: =IF($C65="","",OFFSET(Interventies_alt1!$A23,0,K$63)) -> 0 | L65: =IF($C65="","",OFFSET(Interventies_alt1!$A23,0,L$63)) -> 0 | M65: =IF($C65="","",OFFSET(Interventies_alt1!$A23,0,M$63)) -> 0 | N65: =IF($C65="","",OFFSET(Interventies_alt1!$A23,0,N$63)) -> 0
B66: 2 | C66: =IFERROR(INDEX(Sectoroverzicht!$B$3:$B$31,MATCH(E66,Sectoroverzicht!$C$3:$C$31,0),1),"") ->  | E66: =IF(OFFSET(Interventies_alt1!$A24,0,2)="","",OFFSET(Interventies_alt1!$A24,0,2)) ->  | H66: =IF(OFFSET(Interventies_alt1!$A24,0,3)="","",OFFSET(Interventies_alt1!$A24,0,3)) ->  | I66: =IF(OFFSET(Interventies_alt1!$A24,0,4)="","",OFFSET(Interventies_alt1!$A24,0,4)) ->  | J66: =IF($C66="","",OFFSET(Interventies_alt1!$A24,0,J$63)) ->  | K66: =IF($C66="","",OFFSET(Interventies_alt1!$A24,0,K$63)) ->  | L66: =IF($C66="","",OFFSET(Interventies_alt1!$A24,0,L$63)) ->  | M66: =IF($C66="","",OFFSET(Interventies_alt1!$A24,0,M$63)) ->  | N66: =IF($C66="","",OFFSET(Interventies_alt1!$A24,0,N$63)) -> 
B67: 3 | C67: =IFERROR(INDEX(Sectoroverzicht!$B$3:$B$31,MATCH(E67,Sectoroverzicht!$C$3:$C$31,0),1),"") ->  | E67: =IF(OFFSET(Interventies_alt1!$A25,0,2)="","",OFFSET(Interventies_alt1!$A25,0,2)) ->  | H67: =IF(OFFSET(Interventies_alt1!$A25,0,3)="","",OFFSET(Interventies_alt1!$A25,0,3)) ->  | I67: =IF(OFFSET(Interventies_alt1!$A25,0,4)="","",OFFSET(Interventies_alt1!$A25,0,4)) ->  | J67: =IF($C67="","",OFFSET(Interventies_alt1!$A25,0,J$63)) ->  | K67: =IF($C67="","",OFFSET(Interventies_alt1!$A25,0,K$63)) ->  | L67: =IF($C67="","",OFFSET(Interventies_alt1!$A25,0,L$63)) ->  | M67: =IF($C67="","",OFFSET(Interventies_alt1!$A25,0,M$63)) ->  | N67: =IF($C67="","",OFFSET(Interventies_alt1!$A25,0,N$63)) -> 
B68: 4 | C68: =IFERROR(INDEX(Sectoroverzicht!$B$3:$B$31,MATCH(E68,Sectoroverzicht!$C$3:$C$31,0),1),"") ->  | E68: =IF(OFFSET(Interventies_alt1!$A26,0,2)="","",OFFSET(Interventies_alt1!$A26,0,2)) ->  | H68: =IF(OFFSET(Interventies_alt1!$A26,0,3)="","",OFFSET(Interventies_alt1!$A26,0,3)) ->  | I68: =IF(OFFSET(Interventies_alt1!$A26,0,4)="","",OFFSET(Interventies_alt1!$A26,0,4)) ->  | J68: =IF($C68="","",OFFSET(Interventies_alt1!$A26,0,J$63)) ->  | K68: =IF($C68="","",OFFSET(Interventies_alt1!$A26,0,K$63)) ->  | L68: =IF($C68="","",OFFSET(Interventies_alt1!$A26,0,L$63)) ->  | M68: =IF($C68="","",OFFSET(Interventies_alt1!$A26,0,M$63)) ->  | N68: =IF($C68="","",OFFSET(Interventies_alt1!$A26,0,N$63)) -> 
B69: 5 | C69: =IFERROR(INDEX(Sectoroverzicht!$B$3:$B$31,MATCH(E69,Sectoroverzicht!$C$3:$C$31,0),1),"") ->  | E69: =IF(OFFSET(Interventies_alt1!$A27,0,2)="","",OFFSET(Interventies_alt1!$A27,0,2)) ->  | H69: =IF(OFFSET(Interventies_alt1!$A27,0,3)="","",OFFSET(Interventies_alt1!$A27,0,3)) ->  | I69: =IF(OFFSET(Interventies_alt1!$A27,0,4)="","",OFFSET(Interventies_alt1!$A27,0,4)) ->  | J69: =IF($C69="","",OFFSET(Interventies_alt1!$A27,0,J$63)) ->  | K69: =IF($C69="","",OFFSET(Interventies_alt1!$A27,0,K$63)) ->  | L69: =IF($C69="","",OFFSET(Interventies_alt1!$A27,0,L$63)) ->  | M69: =IF($C69="","",OFFSET(Interventies_alt1!$A27,0,M$63)) ->  | N69: =IF($C69="","",OFFSET(Interventies_alt1!$A27,0,N$63)) -> 
B70: 6 | C70: =IFERROR(INDEX(Sectoroverzicht!$B$3:$B$31,MATCH(E70,Sectoroverzicht!$C$3:$C$31,0),1),"") ->  | E70: =IF(OFFSET(Interventies_alt1!$A28,0,2)="","",OFFSET(Interventies_alt1!$A28,0,2)) ->  | H70: =IF(OFFSET(Interventies_alt1!$A28,0,3)="","",OFFSET(Interventies_alt1!$A28,0,3)) ->  | I70: =IF(OFFSET(Interventies_alt1!$A28,0,4)="","",OFFSET(Interventies_alt1!$A28,0,4)) ->  | J70: =IF($C70="","",OFFSET(Interventies_alt1!$A28,0,J$63)) ->  | K70: =IF($C70="","",OFFSET(Interventies_alt1!$A28,0,K$63)) ->  | L70: =IF($C70="","",OFFSET(Interventies_alt1!$A28,0,L$63)) ->  | M70: =IF($C70="","",OFFSET(Interventies_alt1!$A28,0,M$63)) ->  | N70: =IF($C70="","",OFFSET(Interventies_alt1!$A28,0,N$63)) -> 
B71: 7 | C71: =IFERROR(INDEX(Sectoroverzicht!$B$3:$B$31,MATCH(E71,Sectoroverzicht!$C$3:$C$31,0),1),"") ->  | E71: =IF(OFFSET(Interventies_alt1!$A29,0,2)="","",OFFSET(Interventies_alt1!$A29,0,2)) ->  | H71: =IF(OFFSET(Interventies_alt1!$A29,0,3)="","",OFFSET(Interventies_alt1!$A29,0,3)) ->  | I71: =IF(OFFSET(Interventies_alt1!$A29,0,4)="","",OFFSET(Interventies_alt1!$A29,0,4)) ->  | J71: =IF($C71="","",OFFSET(Interventies_alt1!$A29,0,J$63)) ->  | K71: =IF($C71="","",OFFSET(Interventies_alt1!$A29,0,K$63)) ->  | L71: =IF($C71="","",OFFSET(Interventies_alt1!$A29,0,L$63)) ->  | M71: =IF($C71="","",OFFSET(Interventies_alt1!$A29,0,M$63)) ->  | N71: =IF($C71="","",OFFSET(Interventies_alt1!$A29,0,N$63)) -> 
B72: 8 | C72: =IFERROR(INDEX(Sectoroverzicht!$B$3:$B$31,MATCH(E72,Sectoroverzicht!$C$3:$C$31,0),1),"") ->  | E72: =IF(OFFSET(Interventies_alt1!$A30,0,2)="","",OFFSET(Interventies_alt1!$A30,0,2)) ->  | H72: =IF(OFFSET(Interventies_alt1!$A30,0,3)="","",OFFSET(Interventies_alt1!$A30,0,3)) ->  | I72: =IF(OFFSET(Interventies_alt1!$A30,0,4)="","",OFFSET(Interventies_alt1!$A30,0,4)) ->  | J72: =IF($C72="","",OFFSET(Interventies_alt1!$A30,0,J$63)) ->  | K72: =IF($C72="","",OFFSET(Interventies_alt1!$A30,0,K$63)) ->  | L72: =IF($C72="","",OFFSET(Interventies_alt1!$A30,0,L$63)) ->  | M72: =IF($C72="","",OFFSET(Interventies_alt1!$A30,0,M$63)) ->  | N72: =IF($C72="","",OFFSET(Interventies_alt1!$A30,0,N$63)) -> 
B73: 9 | C73: =IFERROR(INDEX(Sectoroverzicht!$B$3:$B$31,MATCH(E73,Sectoroverzicht!$C$3:$C$31,0),1),"") ->  | E73: =IF(OFFSET(Interventies_alt1!$A31,0,2)="","",OFFSET(Interventies_alt1!$A31,0,2)) ->  | H73: =IF(OFFSET(Interventies_alt1!$A31,0,3)="","",OFFSET(Interventies_alt1!$A31,0,3)) ->  | I73: =IF(OFFSET(Interventies_alt1!$A31,0,4)="","",OFFSET(Interventies_alt1!$A31,0,4)) ->  | J73: =IF($C73="","",OFFSET(Interventies_alt1!$A31,0,J$63)) ->  | K73: =IF($C73="","",OFFSET(Interventies_alt1!$A31,0,K$63)) ->  | L73: =IF($C73="","",OFFSET(Interventies_alt1!$A31,0,L$63)) ->  | M73: =IF($C73="","",OFFSET(Interventies_alt1!$A31,0,M$63)) ->  | N73: =IF($C73="","",OFFSET(Interventies_alt1!$A31,0,N$63)) -> 
B74: 10 | C74: =IFERROR(INDEX(Sectoroverzicht!$B$3:$B$31,MATCH(E74,Sectoroverzicht!$C$3:$C$31,0),1),"") ->  | E74: =IF(OFFSET(Interventies_alt1!$A32,0,2)="","",OFFSET(Interventies_alt1!$A32,0,2)) ->  | H74: =IF(OFFSET(Interventies_alt1!$A32,0,3)="","",OFFSET(Interventies_alt1!$A32,0,3)) ->  | I74: =IF(OFFSET(Interventies_alt1!$A32,0,4)="","",OFFSET(Interventies_alt1!$A32,0,4)) ->  | J74: =IF($C74="","",OFFSET(Interventies_alt1!$A32,0,J$63)) ->  | K74: =IF($C74="","",OFFSET(Interventies_alt1!$A32,0,K$63)) ->  | L74: =IF($C74="","",OFFSET(Interventies_alt1!$A32,0,L$63)) ->  | M74: =IF($C74="","",OFFSET(Interventies_alt1!$A32,0,M$63)) ->  | N74: =IF($C74="","",OFFSET(Interventies_alt1!$A32,0,N$63)) -> 
B75: 11 | C75: =IFERROR(INDEX(Sectoroverzicht!$B$3:$B$31,MATCH(E75,Sectoroverzicht!$C$3:$C$31,0),1),"") ->  | E75: =IF(OFFSET(Interventies_alt1!$A33,0,2)="","",OFFSET(Interventies_alt1!$A33,0,2)) ->  | H75: =IF(OFFSET(Interventies_alt1!$A33,0,3)="","",OFFSET(Interventies_alt1!$A33,0,3)) ->  | I75: =IF(OFFSET(Interventies_alt1!$A33,0,4)="","",OFFSET(Interventies_alt1!$A33,0,4)) ->  | J75: =IF($C75="","",OFFSET(Interventies_alt1!$A33,0,J$63)) ->  | K75: =IF($C75="","",OFFSET(Interventies_alt1!$A33,0,K$63)) ->  | L75: =IF($C75="","",OFFSET(Interventies_alt1!$A33,0,L$63)) ->  | M75: =IF($C75="","",OFFSET(Interventies_alt1!$A33,0,M$63)) ->  | N75: =IF($C75="","",OFFSET(Interventies_alt1!$A33,0,N$63)) -> 
B76: 12 | C76: =IFERROR(INDEX(Sectoroverzicht!$B$3:$B$31,MATCH(E76,Sectoroverzicht!$C$3:$C$31,0),1),"") ->  | E76: =IF(OFFSET(Interventies_alt1!$A34,0,2)="","",OFFSET(Interventies_alt1!$A34,0,2)) ->  | H76: =IF(OFFSET(Interventies_alt1!$A34,0,3)="","",OFFSET(Interventies_alt1!$A34,0,3)) ->  | I76: =IF(OFFSET(Interventies_alt1!$A34,0,4)="","",OFFSET(Interventies_alt1!$A34,0,4)) ->  | J76: =IF($C76="","",OFFSET(Interventies_alt1!$A34,0,J$63)) ->  | K76: =IF($C76="","",OFFSET(Interventies_alt1!$A34,0,K$63)) ->  | L76: =IF($C76="","",OFFSET(Interventies_alt1!$A34,0,L$63)) ->  | M76: =IF($C76="","",OFFSET(Interventies_alt1!$A34,0,M$63)) ->  | N76: =IF($C76="","",OFFSET(Interventies_alt1!$A34,0,N$63)) -> 
B77: 13 | C77: =IFERROR(INDEX(Sectoroverzicht!$B$3:$B$31,MATCH(E77,Sectoroverzicht!$C$3:$C$31,0),1),"") ->  | E77: =IF(OFFSET(Interventies_alt1!$A35,0,2)="","",OFFSET(Interventies_alt1!$A35,0,2)) ->  | H77: =IF(OFFSET(Interventies_alt1!$A35,0,3)="","",OFFSET(Interventies_alt1!$A35,0,3)) ->  | I77: =IF(OFFSET(Interventies_alt1!$A35,0,4)="","",OFFSET(Interventies_alt1!$A35,0,4)) ->  | J77: =IF($C77="","",OFFSET(Interventies_alt1!$A35,0,J$63)) ->  | K77: =IF($C77="","",OFFSET(Interventies_alt1!$A35,0,K$63)) ->  | L77: =IF($C77="","",OFFSET(Interventies_alt1!$A35,0,L$63)) ->  | M77: =IF($C77="","",OFFSET(Interventies_alt1!$A35,0,M$63)) ->  | N77: =IF($C77="","",OFFSET(Interventies_alt1!$A35,0,N$63)) -> 
B78: 14 | C78: =IFERROR(INDEX(Sectoroverzicht!$B$3:$B$31,MATCH(E78,Sectoroverzicht!$C$3:$C$31,0),1),"") ->  | E78: =IF(OFFSET(Interventies_alt1!$A36,0,2)="","",OFFSET(Interventies_alt1!$A36,0,2)) ->  | H78: =IF(OFFSET(Interventies_alt1!$A36,0,3)="","",OFFSET(Interventies_alt1!$A36,0,3)) ->  | I78: =IF(OFFSET(Interventies_alt1!$A36,0,4)="","",OFFSET(Interventies_alt1!$A36,0,4)) ->  | J78: =IF($C78="","",OFFSET(Interventies_alt1!$A36,0,J$63)) ->  | K78: =IF($C78="","",OFFSET(Interventies_alt1!$A36,0,K$63)) ->  | L78: =IF($C78="","",OFFSET(Interventies_alt1!$A36,0,L$63)) ->  | M78: =IF($C78="","",OFFSET(Interventies_alt1!$A36,0,M$63)) ->  | N78: =IF($C78="","",OFFSET(Interventies_alt1!$A36,0,N$63)) -> 
B79: 15 | C79: =IFERROR(INDEX(Sectoroverzicht!$B$3:$B$31,MATCH(E79,Sectoroverzicht!$C$3:$C$31,0),1),"") ->  | E79: =IF(OFFSET(Interventies_alt1!$A37,0,2)="","",OFFSET(Interventies_alt1!$A37,0,2)) ->  | H79: =IF(OFFSET(Interventies_alt1!$A37,0,3)="","",OFFSET(Interventies_alt1!$A37,0,3)) ->  | I79: =IF(OFFSET(Interventies_alt1!$A37,0,4)="","",OFFSET(Interventies_alt1!$A37,0,4)) ->  | J79: =IF($C79="","",OFFSET(Interventies_alt1!$A37,0,J$63)) ->  | K79: =IF($C79="","",OFFSET(Interventies_alt1!$A37,0,K$63)) ->  | L79: =IF($C79="","",OFFSET(Interventies_alt1!$A37,0,L$63)) ->  | M79: =IF($C79="","",OFFSET(Interventies_alt1!$A37,0,M$63)) ->  | N79: =IF($C79="","",OFFSET(Interventies_alt1!$A37,0,N$63)) -> 
A80: Referentie zorg | B80: 1 | C80: =IFERROR(INDEX(Sectoroverzicht!$B$3:$B$31,MATCH(E80,Sectoroverzicht!$C$3:$C$31,0),1),"") -> Zorgverzekeringswet | E80: =IF(OFFSET(Interventies_ref1!$A23,0,2)="","",OFFSET(Interventies_ref1!$A23,0,2)) -> Medisch-specialistische zorg | H80: =IF(OFFSET(Interventies_ref1!$A23,0,3)="","",OFFSET(Interventies_ref1!$A23,0,3)) -> Meniscusoperatie | I80: =IF(OFFSET(Interventies_ref1!$A23,0,4)="","",OFFSET(Interventies_ref1!$A23,0,4)) -> Incidenteel | J80: =IF($C80="","",OFFSET(Interventies_ref1!$A23,0,J$63)) -> 3202 | K80: =IF($C80="","",OFFSET(Interventies_ref1!$A23,0,K$63)) -> 0 | L80: =IF($C80="","",OFFSET(Interventies_ref1!$A23,0,L$63)) -> 0 | M80: =IF($C80="","",OFFSET(Interventies_ref1!$A23,0,M$63)) -> 0 | N80: =IF($C80="","",OFFSET(Interventies_ref1!$A23,0,N$63)) -> 0
B81: 2 | C81: =IFERROR(INDEX(Sectoroverzicht!$B$3:$B$31,MATCH(E81,Sectoroverzicht!$C$3:$C$31,0),1),"") ->  | E81: =IF(OFFSET(Interventies_ref1!$A24,0,2)="","",OFFSET(Interventies_ref1!$A24,0,2)) ->  | H81: =IF(OFFSET(Interventies_ref1!$A24,0,3)="","",OFFSET(Interventies_ref1!$A24,0,3)) ->  | I81: =IF(OFFSET(Interventies_ref1!$A24,0,4)="","",OFFSET(Interventies_ref1!$A24,0,4)) ->  | J81: =IF($C81="","",OFFSET(Interventies_ref1!$A24,0,J$63)) ->  | K81: =IF($C81="","",OFFSET(Interventies_ref1!$A24,0,K$63)) ->  | L81: =IF($C81="","",OFFSET(Interventies_ref1!$A24,0,L$63)) ->  | M81: =IF($C81="","",OFFSET(Interventies_ref1!$A24,0,M$63)) ->  | N81: =IF($C81="","",OFFSET(Interventies_ref1!$A24,0,N$63)) -> 
B82: 3 | C82: =IFERROR(INDEX(Sectoroverzicht!$B$3:$B$31,MATCH(E82,Sectoroverzicht!$C$3:$C$31,0),1),"") ->  | E82: =IF(OFFSET(Interventies_ref1!$A25,0,2)="","",OFFSET(Interventies_ref1!$A25,0,2)) ->  | H82: =IF(OFFSET(Interventies_ref1!$A25,0,3)="","",OFFSET(Interventies_ref1!$A25,0,3)) ->  | I82: =IF(OFFSET(Interventies_ref1!$A25,0,4)="","",OFFSET(Interventies_ref1!$A25,0,4)) ->  | J82: =IF($C82="","",OFFSET(Interventies_ref1!$A25,0,J$63)) ->  | K82: =IF($C82="","",OFFSET(Interventies_ref1!$A25,0,K$63)) ->  | L82: =IF($C82="","",OFFSET(Interventies_ref1!$A25,0,L$63)) ->  | M82: =IF($C82="","",OFFSET(Interventies_ref1!$A25,0,M$63)) ->  | N82: =IF($C82="","",OFFSET(Interventies_ref1!$A25,0,N$63)) -> 
B83: 4 | C83: =IFERROR(INDEX(Sectoroverzicht!$B$3:$B$31,MATCH(E83,Sectoroverzicht!$C$3:$C$31,0),1),"") ->  | E83: =IF(OFFSET(Interventies_ref1!$A26,0,2)="","",OFFSET(Interventies_ref1!$A26,0,2)) ->  | H83: =IF(OFFSET(Interventies_ref1!$A26,0,3)="","",OFFSET(Interventies_ref1!$A26,0,3)) ->  | I83: =IF(OFFSET(Interventies_ref1!$A26,0,4)="","",OFFSET(Interventies_ref1!$A26,0,4)) ->  | J83: =IF($C83="","",OFFSET(Interventies_ref1!$A26,0,J$63)) ->  | K83: =IF($C83="","",OFFSET(Interventies_ref1!$A26,0,K$63)) ->  | L83: =IF($C83="","",OFFSET(Interventies_ref1!$A26,0,L$63)) ->  | M83: =IF($C83="","",OFFSET(Interventies_ref1!$A26,0,M$63)) ->  | N83: =IF($C83="","",OFFSET(Interventies_ref1!$A26,0,N$63)) -> 
B84: 5 | C84: =IFERROR(INDEX(Sectoroverzicht!$B$3:$B$31,MATCH(E84,Sectoroverzicht!$C$3:$C$31,0),1),"") ->  | E84: =IF(OFFSET(Interventies_ref1!$A27,0,2)="","",OFFSET(Interventies_ref1!$A27,0,2)) ->  | H84: =IF(OFFSET(Interventies_ref1!$A27,0,3)="","",OFFSET(Interventies_ref1!$A27,0,3)) ->  | I84: =IF(OFFSET(Interventies_ref1!$A27,0,4)="","",OFFSET(Interventies_ref1!$A27,0,4)) ->  | J84: =IF($C84="","",OFFSET(Interventies_ref1!$A27,0,J$63)) ->  | K84: =IF($C84="","",OFFSET(Interventies_ref1!$A27,0,K$63)) ->  | L84: =IF($C84="","",OFFSET(Interventies_ref1!$A27,0,L$63)) ->  | M84: =IF($C84="","",OFFSET(Interventies_ref1!$A27,0,M$63)) ->  | N84: =IF($C84="","",OFFSET(Interventies_ref1!$A27,0,N$63)) -> 
B85: 6 | C85: =IFERROR(INDEX(Sectoroverzicht!$B$3:$B$31,MATCH(E85,Sectoroverzicht!$C$3:$C$31,0),1),"") ->  | E85: =IF(OFFSET(Interventies_ref1!$A28,0,2)="","",OFFSET(Interventies_ref1!$A28,0,2)) ->  | H85: =IF(OFFSET(Interventies_ref1!$A28,0,3)="","",OFFSET(Interventies_ref1!$A28,0,3)) ->  | I85: =IF(OFFSET(Interventies_ref1!$A28,0,4)="","",OFFSET(Interventies_ref1!$A28,0,4)) ->  | J85: =IF($C85="","",OFFSET(Interventies_ref1!$A28,0,J$63)) ->  | K85: =IF($C85="","",OFFSET(Interventies_ref1!$A28,0,K$63)) ->  | L85: =IF($C85="","",OFFSET(Interventies_ref1!$A28,0,L$63)) ->  | M85: =IF($C85="","",OFFSET(Interventies_ref1!$A28,0,M$63)) ->  | N85: =IF($C85="","",OFFSET(Interventies_ref1!$A28,0,N$63)) -> 
B86: 7 | C86: =IFERROR(INDEX(Sectoroverzicht!$B$3:$B$31,MATCH(E86,Sectoroverzicht!$C$3:$C$31,0),1),"") ->  | E86: =IF(OFFSET(Interventies_ref1!$A29,0,2)="","",OFFSET(Interventies_ref1!$A29,0,2)) ->  | H86: =IF(OFFSET(Interventies_ref1!$A29,0,3)="","",OFFSET(Interventies_ref1!$A29,0,3)) ->  | I86: =IF(OFFSET(Interventies_ref1!$A29,0,4)="","",OFFSET(Interventies_ref1!$A29,0,4)) ->  | J86: =IF($C86="","",OFFSET(Interventies_ref1!$A29,0,J$63)) ->  | K86: =IF($C86="","",OFFSET(Interventies_ref1!$A29,0,K$63)) ->  | L86: =IF($C86="","",OFFSET(Interventies_ref1!$A29,0,L$63)) ->  | M86: =IF($C86="","",OFFSET(Interventies_ref1!$A29,0,M$63)) ->  | N86: =IF($C86="","",OFFSET(Interventies_ref1!$A29,0,N$63)) -> 
B87: 8 | C87: =IFERROR(INDEX(Sectoroverzicht!$B$3:$B$31,MATCH(E87,Sectoroverzicht!$C$3:$C$31,0),1),"") ->  | E87: =IF(OFFSET(Interventies_ref1!$A30,0,2)="","",OFFSET(Interventies_ref1!$A30,0,2)) ->  | H87: =IF(OFFSET(Interventies_ref1!$A30,0,3)="","",OFFSET(Interventies_ref1!$A30,0,3)) ->  | I87: =IF(OFFSET(Interventies_ref1!$A30,0,4)="","",OFFSET(Interventies_ref1!$A30,0,4)) ->  | J87: =IF($C87="","",OFFSET(Interventies_ref1!$A30,0,J$63)) ->  | K87: =IF($C87="","",OFFSET(Interventies_ref1!$A30,0,K$63)) ->  | L87: =IF($C87="","",OFFSET(Interventies_ref1!$A30,0,L$63)) ->  | M87: =IF($C87="","",OFFSET(Interventies_ref1!$A30,0,M$63)) ->  | N87: =IF($C87="","",OFFSET(Interventies_ref1!$A30,0,N$63)) -> 
B88: 9 | C88: =IFERROR(INDEX(Sectoroverzicht!$B$3:$B$31,MATCH(E88,Sectoroverzicht!$C$3:$C$31,0),1),"") ->  | E88: =IF(OFFSET(Interventies_ref1!$A31,0,2)="","",OFFSET(Interventies_ref1!$A31,0,2)) ->  | H88: =IF(OFFSET(Interventies_ref1!$A31,0,3)="","",OFFSET(Interventies_ref1!$A31,0,3)) ->  | I88: =IF(OFFSET(Interventies_ref1!$A31,0,4)="","",OFFSET(Interventies_ref1!$A31,0,4)) ->  | J88: =IF($C88="","",OFFSET(Interventies_ref1!$A31,0,J$63)) ->  | K88: =IF($C88="","",OFFSET(Interventies_ref1!$A31,0,K$63)) ->  | L88: =IF($C88="","",OFFSET(Interventies_ref1!$A31,0,L$63)) ->  | M88: =IF($C88="","",OFFSET(Interventies_ref1!$A31,0,M$63)) ->  | N88: =IF($C88="","",OFFSET(Interventies_ref1!$A31,0,N$63)) -> 
B89: 10 | C89: =IFERROR(INDEX(Sectoroverzicht!$B$3:$B$31,MATCH(E89,Sectoroverzicht!$C$3:$C$31,0),1),"") ->  | E89: =IF(OFFSET(Interventies_ref1!$A32,0,2)="","",OFFSET(Interventies_ref1!$A32,0,2)) ->  | H89: =IF(OFFSET(Interventies_ref1!$A32,0,3)="","",OFFSET(Interventies_ref1!$A32,0,3)) ->  | I89: =IF(OFFSET(Interventies_ref1!$A32,0,4)="","",OFFSET(Interventies_ref1!$A32,0,4)) ->  | J89: =IF($C89="","",OFFSET(Interventies_ref1!$A32,0,J$63)) ->  | K89: =IF($C89="","",OFFSET(Interventies_ref1!$A32,0,K$63)) ->  | L89: =IF($C89="","",OFFSET(Interventies_ref1!$A32,0,L$63)) ->  | M89: =IF($C89="","",OFFSET(Interventies_ref1!$A32,0,M$63)) ->  | N89: =IF($C89="","",OFFSET(Interventies_ref1!$A32,0,N$63)) -> 
B90: 11 | C90: =IFERROR(INDEX(Sectoroverzicht!$B$3:$B$31,MATCH(E90,Sectoroverzicht!$C$3:$C$31,0),1),"") ->  | E90: =IF(OFFSET(Interventies_ref1!$A33,0,2)="","",OFFSET(Interventies_ref1!$A33,0,2)) ->  | H90: =IF(OFFSET(Interventies_ref1!$A33,0,3)="","",OFFSET(Interventies_ref1!$A33,0,3)) ->  | I90: =IF(OFFSET(Interventies_ref1!$A33,0,4)="","",OFFSET(Interventies_ref1!$A33,0,4)) ->  | J90: =IF($C90="","",OFFSET(Interventies_ref1!$A33,0,J$63)) ->  | K90: =IF($C90="","",OFFSET(Interventies_ref1!$A33,0,K$63)) ->  | L90: =IF($C90="","",OFFSET(Interventies_ref1!$A33,0,L$63)) ->  | M90: =IF($C90="","",OFFSET(Interventies_ref1!$A33,0,M$63)) ->  | N90: =IF($C90="","",OFFSET(Interventies_ref1!$A33,0,N$63)) -> 
B91: 12 | C91: =IFERROR(INDEX(Sectoroverzicht!$B$3:$B$31,MATCH(E91,Sectoroverzicht!$C$3:$C$31,0),1),"") ->  | E91: =IF(OFFSET(Interventies_ref1!$A34,0,2)="","",OFFSET(Interventies_ref1!$A34,0,2)) ->  | H91: =IF(OFFSET(Interventies_ref1!$A34,0,3)="","",OFFSET(Interventies_ref1!$A34,0,3)) ->  | I91: =IF(OFFSET(Interventies_ref1!$A34,0,4)="","",OFFSET(Interventies_ref1!$A34,0,4)) ->  | J91: =IF($C91="","",OFFSET(Interventies_ref1!$A34,0,J$63)) ->  | K91: =IF($C91="","",OFFSET(Interventies_ref1!$A34,0,K$63)) ->  | L91: =IF($C91="","",OFFSET(Interventies_ref1!$A34,0,L$63)) ->  | M91: =IF($C91="","",OFFSET(Interventies_ref1!$A34,0,M$63)) ->  | N91: =IF($C91="","",OFFSET(Interventies_ref1!$A34,0,N$63)) -> 
B92: 13 | C92: =IFERROR(INDEX(Sectoroverzicht!$B$3:$B$31,MATCH(E92,Sectoroverzicht!$C$3:$C$31,0),1),"") ->  | E92: =IF(OFFSET(Interventies_ref1!$A35,0,2)="","",OFFSET(Interventies_ref1!$A35,0,2)) ->  | H92: =IF(OFFSET(Interventies_ref1!$A35,0,3)="","",OFFSET(Interventies_ref1!$A35,0,3)) ->  | I92: =IF(OFFSET(Interventies_ref1!$A35,0,4)="","",OFFSET(Interventies_ref1!$A35,0,4)) ->  | J92: =IF($C92="","",OFFSET(Interventies_ref1!$A35,0,J$63)) ->  | K92: =IF($C92="","",OFFSET(Interventies_ref1!$A35,0,K$63)) ->  | L92: =IF($C92="","",OFFSET(Interventies_ref1!$A35,0,L$63)) ->  | M92: =IF($C92="","",OFFSET(Interventies_ref1!$A35,0,M$63)) ->  | N92: =IF($C92="","",OFFSET(Interventies_ref1!$A35,0,N$63)) -> 
B93: 14 | C93: =IFERROR(INDEX(Sectoroverzicht!$B$3:$B$31,MATCH(E93,Sectoroverzicht!$C$3:$C$31,0),1),"") ->  | E93: =IF(OFFSET(Interventies_ref1!$A36,0,2)="","",OFFSET(Interventies_ref1!$A36,0,2)) ->  | H93: =IF(OFFSET(Interventies_ref1!$A36,0,3)="","",OFFSET(Interventies_ref1!$A36,0,3)) ->  | I93: =IF(OFFSET(Interventies_ref1!$A36,0,4)="","",OFFSET(Interventies_ref1!$A36,0,4)) ->  | J93: =IF($C93="","",OFFSET(Interventies_ref1!$A36,0,J$63)) ->  | K93: =IF($C93="","",OFFSET(Interventies_ref1!$A36,0,K$63)) ->  | L93: =IF($C93="","",OFFSET(Interventies_ref1!$A36,0,L$63)) ->  | M93: =IF($C93="","",OFFSET(Interventies_ref1!$A36,0,M$63)) ->  | N93: =IF($C93="","",OFFSET(Interventies_ref1!$A36,0,N$63)) -> 
B94: 15 | C94: =IFERROR(INDEX(Sectoroverzicht!$B$3:$B$31,MATCH(E94,Sectoroverzicht!$C$3:$C$31,0),1),"") ->  | E94: =IF(OFFSET(Interventies_ref1!$A37,0,2)="","",OFFSET(Interventies_ref1!$A37,0,2)) ->  | H94: =IF(OFFSET(Interventies_ref1!$A37,0,3)="","",OFFSET(Interventies_ref1!$A37,0,3)) ->  | I94: =IF(OFFSET(Interventies_ref1!$A37,0,4)="","",OFFSET(Interventies_ref1!$A37,0,4)) ->  | J94: =IF($C94="","",OFFSET(Interventies_ref1!$A37,0,J$63)) ->  | K94: =IF($C94="","",OFFSET(Interventies_ref1!$A37,0,K$63)) ->  | L94: =IF($C94="","",OFFSET(Interventies_ref1!$A37,0,L$63)) ->  | M94: =IF($C94="","",OFFSET(Interventies_ref1!$A37,0,M$63)) ->  | N94: =IF($C94="","",OFFSET(Interventies_ref1!$A37,0,N$63)) -> 
A98: Met onderstaande knoppen kunt u snel over de hoofdonderdelen van de BIA navigeren. De kleur matcht met de band bovenin het scherm. De knop 'Verder' hierboven volstaat echter om het hele proces te doorlopen.

Sheet Budgetimpact_Zorgaanbieder2
A3: BUDGET IMPACT ANALYSE BIJ DOELMATIGHEIDSONDERZOEK
A4: BUDGETIMPACT ZORGAANBIEDER
B6: i | C6: Navigatie
B10: =Populatie2!$C$17 -> Scenario 2: Niet nader omschreven
B12: i
I13: ONZEKERHEID | K13: SENSITIVITEITSANALYSE i
B14: SPECIFICATIE MATE VAN ONZEKERHEID / SENSITIVITEITSANALYSE | K14: MIN | L14: MAX
B15: i | C15: Specificatie populatie | I15: =IF(Populatie2!$M$39="","Onbekend!",Populatie2!$M$39) -> Gemiddeld | J15: =IF(I15="Klein",1,IF(I15="Gemiddeld",0,IF(I15="Groot",-1,""))) -> 0 | K15: 0.7 | L15: 1.1
B16: i | C16: ALTERNATIEVE ZORG | Kosten interventiemix | I16: =IF(Toelichting_Interventies_alt2!$E$31="","Onbekend!",Toelichting_Interventies_alt2!$E$31) -> Groot | J16: =IF(I16="Klein",1,IF(I16="Gemiddeld",0,IF(I16="Groot",-1,""))) -> -1 | K16: 0.8 | L16: 1.2
B17: i | C17: REFERENTIE ZORG | Kosten interventiemix | I17: =IF(Toelichting_Interventies_ref2!$E$31="","Onbekend!",Toelichting_Interventies_ref2!$E$31) -> Klein | J17: =IF(I17="Klein",1,IF(I17="Gemiddeld",0,IF(I17="Groot",-1,""))) -> 1 | K17: 0.9 | L17: 1.3
B19: IMPACT | I19: Totaal | J19: =IF(Startjaar="",1,Startjaar) -> 2019 | K19: =J19+1 -> 2020 | L19: =K19+1 -> 2021 | M19: =L19+1 -> 2022 | N19: =M19+1 -> 2023
C20: Totaal nieuwe patiënten | J20: =Populatie2!D$39 -> 0 | K20: =Populatie2!E$39 -> 0 | L20: =Populatie2!F$39 -> 0 | M20: =Populatie2!G$39 -> 0 | N20: =Populatie2!H$39 -> 0
B21: i | C21: Marktaandeel | J21: 0.8 | K21: 0.8 | L21: 0.8 | M21: 0.8 | N21: 0.8
C22: Aantal startende zorggebruikers | J22: =J20*J21 -> 0 | K22: =K20*K21 -> 0 | L22: =L20*L21 -> 0 | M22: =M20*M21 -> 0 | N22: =N20*N21 -> 0
C23: Bruto verschil in STRUCTURELE HEALTHCARE UITGAVEN per patient | J23: =J24-J25 -> 0 | K23: =K24-K25 -> 0 | L23: =L24-L25 -> 0 | M23: =M24-M25 -> 0 | N23: =N24-N25 -> 0
B24: i | C24: Bruto uitgaven alternatieve zorg (per follow-up jaar!) | J24: =SUMIFS(J46:J60,$I$46:$I$60,"Structureel",$E$46:$E$60,"<>Non-healthcare") -> 0 | K24: =SUMIFS(K46:K60,$I$46:$I$60,"Structureel",$E$46:$E$60,"<>Non-healthcare") -> 0 | L24: =SUMIFS(L46:L60,$I$46:$I$60,"Structureel",$E$46:$E$60,"<>Non-healthcare") -> 0 | M24: =SUMIFS(M46:M60,$I$46:$I$60,"Structureel",$E$46:$E$60,"<>Non-healthcare") -> 0 | N24: =SUMIFS(N46:N60,$I$46:$I$60,"Structureel",$E$46:$E$60,"<>Non-healthcare") -> 0
C25: Bruto uitgaven referentiezorg | J25: =SUMIFS(J61:J75,$I$61:$I$75,"Structureel",$E$61:$E$75,"<>Non-healthcare") -> 0 | K25: =SUMIFS(K61:K75,$I$61:$I$75,"Structureel",$E$61:$E$75,"<>Non-healthcare") -> 0 | L25: =SUMIFS(L61:L75,$I$61:$I$75,"Structureel",$E$61:$E$75,"<>Non-healthcare") -> 0 | M25: =SUMIFS(M61:M75,$I$61:$I$75,"Structureel",$E$61:$E$75,"<>Non-healthcare") -> 0 | N25: =SUMIFS(N61:N75,$I$61:$I$75,"Structureel",$E$61:$E$75,"<>Non-healthcare") -> 0
C26: Bruto verschil in INCIDENTELE HEALTHCARE UITGAVEN per patient | J26: =J27-J28 -> 0 | K26: =K27-K28 -> 0 | L26: =L27-L28 -> 0 | M26: =M27-M28 -> 0 | N26: =N27-N28 -> 0
C27: Bruto uitgaven alternatieve zorg (per follow-up jaar!) | J27: =SUMIFS(J$46:J$60,$I$46:$I$60,"Incidenteel",$E$46:$E$60,"<>Non-healthcare") -> 0 | K27: =SUMIFS(K$46:K$60,$I$46:$I$60,"Incidenteel",$E$46:$E$60,"<>Non-healthcare") -> 0 | L27: =SUMIFS(L$46:L$60,$I$46:$I$60,"Incidenteel",$E$46:$E$60,"<>Non-healthcare") -> 0 | M27: =SUMIFS(M$46:M$60,$I$46:$I$60,"Incidenteel",$E$46:$E$60,"<>Non-healthcare") -> 0 | N27: =SUMIFS(N$46:N$60,$I$46:$I$60,"Incidenteel",$E$46:$E$60,"<>Non-healthcare") -> 0
C28: Bruto uitgaven referentiezorg | J28: =SUMIFS(J$61:J$75,$I$61:$I$75,"Incidenteel",$E$61:$E$75,"<>Non-healthcare") -> 0 | K28: =SUMIFS(K$61:K$75,$I$61:$I$75,"Incidenteel",$E$61:$E$75,"<>Non-healthcare") -> 0 | L28: =SUMIFS(L$61:L$75,$I$61:$I$75,"Incidenteel",$E$61:$E$75,"<>Non-healthcare") -> 0 | M28: =SUMIFS(M$61:M$75,$I$61:$I$75,"Incidenteel",$E$61:$E$75,"<>Non-healthcare") -> 0 | N28: =SUMIFS(N$61:N$75,$I$61:$I$75,"Incidenteel",$E$61:$E$75,"<>Non-healthcare") -> 0
C29: Totale budgetimpact STRUCTUREEL | I29: =SUM(J29:N29) -> 0 | J29: =SUM(J$22*J23)/1000 -> 0 | K29: =SUM(J$22*K23,K$22*J23)/1000 -> 0 | L29: =SUM(J$22*L23,K$22*K23,L$22*J23)/1000 -> 0 | M29: =SUM(J$22*M23,K$22*L23,L$22*K23,M$22*J23)/1000 -> 0 | N29: =SUM($J$22*N23,$K$22*M23,$L$22*L23,$M$22*K23,N22*J23)/1000 -> 0
C30: Totale budgetimpact INCIDENTEEL | I30: =SUM(J30:N30) -> 0 | J30: =SUM(J$22*J26)/1000 -> 0 | K30: =SUM(J$22*K26,K$22*J26)/1000 -> 0 | L30: =SUM(J$22*L26,K$22*K26,L$22*J26)/1000 -> 0 | M30: =SUM(J$22*M26,K$22*L26,L$22*K26,M$22*J26)/1000 -> 0 | N30: =SUM($J$22*N26,$K$22*M26,$L$22*L26,$M$22*K26,N22*J26)/1000 -> 0
C31: Totaal impact HEALTHCARE (x€1.000) | I31: =SUM(J31:N31) -> 0 | J31: =SUM(J29:J30) -> 0 | K31: =SUM(K29:K30) -> 0 | L31: =SUM(L29:L30) -> 0 | M31: =SUM(M29:M30) -> 0 | N31: =SUM(N29:N30) -> 0
B33: SENSITIVITEITSANALYSE
B34: i | C34: Populatie min-scenario | J34: =J$22*$K$15 -> 0 | K34: =K$22*$K$15 -> 0 | L34: =L$22*$K$15 -> 0 | M34: =M$22*$K$15 -> 0 | N34: =N$22*$K$15 -> 0
B35: i | C35: Populatie max-scenario | J35: =J$22*$L$15 -> 0 | K35: =K$22*$L$15 -> 0 | L35: =L$22*$L$15 -> 0 | M35: =M$22*$L$15 -> 0 | N35: =N$22*$L$15 -> 0
B36: IMPACT HEALTHCARE | E36: ="BANDBREEDTE: "&TEXT(MAX(I39:I42),"€0.0K")&" TOT "&TEXT(MIN(I39:I42),"€0.0K") -> BANDBREEDTE: €00K TOT €00K
B37: i | C37: Bruto verschil min-scenario: kosten referent minimaal, alternatief maximaal | J37: =SUM(J24*$L$16-J25*$K$17,J27*$L$16-J28*$K$17) -> 0 | K37: =SUM(K24*$L$16-K25*$K$17,K27*$L$16-K28*$K$17) -> 0 | L37: =SUM(L24*$L$16-L25*$K$17,L27*$L$16-L28*$K$17) -> 0 | M37: =SUM(M24*$L$16-M25*$K$17,M27*$L$16-M28*$K$17) -> 0 | N37: =SUM(N24*$L$16-N25*$K$17,N27*$L$16-N28*$K$17) -> 0
B38: i | C38: Bruto verschil max-scenario: kosten referent maximaal, alternatief minimaal | J38: =SUM(J24*$K$16-J25*$L$17,J27*$K$16-J28*$L$17) -> 0 | K38: =SUM(K24*$K$16-K25*$L$17,K27*$K$16-K28*$L$17) -> 0 | L38: =SUM(L24*$K$16-L25*$L$17,L27*$K$16-L28*$L$17) -> 0 | M38: =SUM(M24*$K$16-M25*$L$17,M27*$K$16-M28*$L$17) -> 0 | N38: =SUM(N24*$K$16-N25*$L$17,N27*$K$16-N28*$L$17) -> 0
C39: Sensitiviteitsanalyse min-scenario kosten, populatie min (x€1000) | I39: =SUM(J39:N39) -> 0 | J39: =SUM(J34*J37)/1000 -> 0 | K39: =SUM(J34*K37,K34*J37)/1000 -> 0 | L39: =SUM(J34*L37,K34*K37,L34*J37)/1000 -> 0 | M39: =SUM(J34*M37,K34*L37,L34*K37,M34*J37)/1000 -> 0 | N39: =SUM(J34*N37,K34*M37,L34*L37,M34*K37,N34*J37)/1000 -> 0
C40: Sensitiviteitsanalyse min-scenario kosten, populatie max (x€1000) | I40: =SUM(J40:N40) -> 0 | J40: =SUM(J35*J37)/1000 -> 0 | K40: =SUM(J35*K37,K35*J37)/1000 -> 0 | L40: =SUM(J35*L37,K35*K37,L35*J37)/1000 -> 0 | M40: =SUM(J35*M37,K35*L37,L35*K37,M35*J37)/1000 -> 0 | N40: =SUM(J35*N37,K35*M37,L35*L37,M35*K37,N35*J37)/1000 -> 0
C41: Sensitiviteitsanalyse max-scenario kosten, populatie min (x€1000) | I41: =SUM(J41:N41) -> 0 | J41: =SUM(J34*J38)/1000 -> 0 | K41: =SUM(J34*K38,K34*J38)/1000 -> 0 | L41: =SUM(J34*L38,K34*K38,L34*J38)/1000 -> 0 | M41: =SUM(J34*M38,K34*L38,L34*K38,M34*J38)/1000 -> 0 | N41: =SUM(J34*N38,K34*M38,L34*L38,M34*K38,N34*J38)/1000 -> 0
C42: Sensitiviteitsanalyse max-scenario kosten, populatie max (x€1000) | I42: =SUM(J42:N42) -> 0 | J42: =SUM(J35*J38)/1000 -> 0 | K42: =SUM(J35*K38,K35*J38)/1000 -> 0 | L42: =SUM(J35*L38,K35*K38,L35*J38)/1000 -> 0 | M42: =SUM(J35*M38,K35*L38,L35*K38,M35*J38)/1000 -> 0 | N42: =SUM(J35*N38,K35*M38,L35*L38,M35*K38,N35*J38)/1000 -> 0
B44: SPECIFICATIE BRUTO UITGAVEN PER PATIENT PER FOLLOW-UP JAAR | J44: 5 | K44: 6 | L44: 7 | M44: 8 | N44: 9
C45: Wet | E45: Sector | H45: Component (eerste 2 regels..) | I45: Typering | J45: Jaar 1 | K45: Jaar 2 | L45: Jaar 3 | M45: Jaar 4 | N45: Jaar 5
A46: Alternatieve zorg | B46: 1 | C46: =IFERROR(INDEX(Sectoroverzicht!$B$3:$B$31,MATCH(E46,Sectoroverzicht!$C$3:$C$31,0),1),"") ->  | E46: =IF(OFFSET(Interventies_alt2!$A23,0,2)="","",OFFSET(Interventies_alt2!$A23,0,2)) ->  | H46: =IF(OFFSET(Interventies_alt2!$A23,0,3)="","",OFFSET(Interventies_alt2!$A23,0,3)) ->  | I46: =IF(OFFSET(Interventies_alt2!$A23,0,4)="","",OFFSET(Interventies_alt2!$A23,0,4)) ->  | J46: =IF($C46="","",OFFSET(Interventies_alt2!$A23,0,J$44)) ->  | K46: =IF($C46="","",OFFSET(Interventies_alt2!$A23,0,K$44)) ->  | L46: =IF($C46="","",OFFSET(Interventies_alt2!$A23,0,L$44)) ->  | M46: =IF($C46="","",OFFSET(Interventies_alt2!$A23,0,M$44)) ->  | N46: =IF($C46="","",OFFSET(Interventies_alt2!$A23,0,N$44)) -> 
B47: 2 | C47: =IFERROR(INDEX(Sectoroverzicht!$B$3:$B$31,MATCH(E47,Sectoroverzicht!$C$3:$C$31,0),1),"") ->  | E47: =IF(OFFSET(Interventies_alt2!$A24,0,2)="","",OFFSET(Interventies_alt2!$A24,0,2)) ->  | H47: =IF(OFFSET(Interventies_alt2!$A24,0,3)="","",OFFSET(Interventies_alt2!$A24,0,3)) ->  | I47: =IF(OFFSET(Interventies_alt2!$A24,0,4)="","",OFFSET(Interventies_alt2!$A24,0,4)) ->  | J47: =IF($C47="","",OFFSET(Interventies_alt2!$A24,0,J$44)) ->  | K47: =IF($C47="","",OFFSET(Interventies_alt2!$A24,0,K$44)) ->  | L47: =IF($C47="","",OFFSET(Interventies_alt2!$A24,0,L$44)) ->  | M47: =IF($C47="","",OFFSET(Interventies_alt2!$A24,0,M$44)) ->  | N47: =IF($C47="","",OFFSET(Interventies_alt2!$A24,0,N$44)) -> 
B48: 3 | C48: =IFERROR(INDEX(Sectoroverzicht!$B$3:$B$31,MATCH(E48,Sectoroverzicht!$C$3:$C$31,0),1),"") ->  | E48: =IF(OFFSET(Interventies_alt2!$A25,0,2)="","",OFFSET(Interventies_alt2!$A25,0,2)) ->  | H48: =IF(OFFSET(Interventies_alt2!$A25,0,3)="","",OFFSET(Interventies_alt2!$A25,0,3)) ->  | I48: =IF(OFFSET(Interventies_alt2!$A25,0,4)="","",OFFSET(Interventies_alt2!$A25,0,4)) ->  | J48: =IF($C48="","",OFFSET(Interventies_alt2!$A25,0,J$44)) ->  | K48: =IF($C48="","",OFFSET(Interventies_alt2!$A25,0,K$44)) ->  | L48: =IF($C48="","",OFFSET(Interventies_alt2!$A25,0,L$44)) ->  | M48: =IF($C48="","",OFFSET(Interventies_alt2!$A25,0,M$44)) ->  | N48: =IF($C48="","",OFFSET(Interventies_alt2!$A25,0,N$44)) -> 
B49: 4 | C49: =IFERROR(INDEX(Sectoroverzicht!$B$3:$B$31,MATCH(E49,Sectoroverzicht!$C$3:$C$31,0),1),"") ->  | E49: =IF(OFFSET(Interventies_alt2!$A26,0,2)="","",OFFSET(Interventies_alt2!$A26,0,2)) ->  | H49: =IF(OFFSET(Interventies_alt2!$A26,0,3)="","",OFFSET(Interventies_alt2!$A26,0,3)) ->  | I49: =IF(OFFSET(Interventies_alt2!$A26,0,4)="","",OFFSET(Interventies_alt2!$A26,0,4)) ->  | J49: =IF($C49="","",OFFSET(Interventies_alt2!$A26,0,J$44)) ->  | K49: =IF($C49="","",OFFSET(Interventies_alt2!$A26,0,K$44)) ->  | L49: =IF($C49="","",OFFSET(Interventies_alt2!$A26,0,L$44)) ->  | M49: =IF($C49="","",OFFSET(Interventies_alt2!$A26,0,M$44)) ->  | N49: =IF($C49="","",OFFSET(Interventies_alt2!$A26,0,N$44)) -> 
B50: 5 | C50: =IFERROR(INDEX(Sectoroverzicht!$B$3:$B$31,MATCH(E50,Sectoroverzicht!$C$3:$C$31,0),1),"") ->  | E50: =IF(OFFSET(Interventies_alt2!$A27,0,2)="","",OFFSET(Interventies_alt2!$A27,0,2)) ->  | H50: =IF(OFFSET(Interventies_alt2!$A27,0,3)="","",OFFSET(Interventies_alt2!$A27,0,3)) ->  | I50: =IF(OFFSET(Interventies_alt2!$A27,0,4)="","",OFFSET(Interventies_alt2!$A27,0,4)) ->  | J50: =IF($C50="","",OFFSET(Interventies_alt2!$A27,0,J$44)) ->  | K50: =IF($C50="","",OFFSET(Interventies_alt2!$A27,0,K$44)) ->  | L50: =IF($C50="","",OFFSET(Interventies_alt2!$A27,0,L$44)) ->  | M50: =IF($C50="","",OFFSET(Interventies_alt2!$A27,0,M$44)) ->  | N50: =IF($C50="","",OFFSET(Interventies_alt2!$A27,0,N$44)) -> 
B51: 6 | C51: =IFERROR(INDEX(Sectoroverzicht!$B$3:$B$31,MATCH(E51,Sectoroverzicht!$C$3:$C$31,0),1),"") ->  | E51: =IF(OFFSET(Interventies_alt2!$A28,0,2)="","",OFFSET(Interventies_alt2!$A28,0,2)) ->  | H51: =IF(OFFSET(Interventies_alt2!$A28,0,3)="","",OFFSET(Interventies_alt2!$A28,0,3)) ->  | I51: =IF(OFFSET(Interventies_alt2!$A28,0,4)="","",OFFSET(Interventies_alt2!$A28,0,4)) ->  | J51: =IF($C51="","",OFFSET(Interventies_alt2!$A28,0,J$44)) ->  | K51: =IF($C51="","",OFFSET(Interventies_alt2!$A28,0,K$44)) ->  | L51: =IF($C51="","",OFFSET(Interventies_alt2!$A28,0,L$44)) ->  | M51: =IF($C51="","",OFFSET(Interventies_alt2!$A28,0,M$44)) ->  | N51: =IF($C51="","",OFFSET(Interventies_alt2!$A28,0,N$44)) -> 
B52: 7 | C52: =IFERROR(INDEX(Sectoroverzicht!$B$3:$B$31,MATCH(E52,Sectoroverzicht!$C$3:$C$31,0),1),"") ->  | E52: =IF(OFFSET(Interventies_alt2!$A29,0,2)="","",OFFSET(Interventies_alt2!$A29,0,2)) ->  | H52: =IF(OFFSET(Interventies_alt2!$A29,0,3)="","",OFFSET(Interventies_alt2!$A29,0,3)) ->  | I52: =IF(OFFSET(Interventies_alt2!$A29,0,4)="","",OFFSET(Interventies_alt2!$A29,0,4)) ->  | J52: =IF($C52="","",OFFSET(Interventies_alt2!$A29,0,J$44)) ->  | K52: =IF($C52="","",OFFSET(Interventies_alt2!$A29,0,K$44)) ->  | L52: =IF($C52="","",OFFSET(Interventies_alt2!$A29,0,L$44)) ->  | M52: =IF($C52="","",OFFSET(Interventies_alt2!$A29,0,M$44)) ->  | N52: =IF($C52="","",OFFSET(Interventies_alt2!$A29,0,N$44)) -> 
B53: 8 | C53: =IFERROR(INDEX(Sectoroverzicht!$B$3:$B$31,MATCH(E53,Sectoroverzicht!$C$3:$C$31,0),1),"") ->  | E53: =IF(OFFSET(Interventies_alt2!$A30,0,2)="","",OFFSET(Interventies_alt2!$A30,0,2)) ->  | H53: =IF(OFFSET(Interventies_alt2!$A30,0,3)="","",OFFSET(Interventies_alt2!$A30,0,3)) ->  | I53: =IF(OFFSET(Interventies_alt2!$A30,0,4)="","",OFFSET(Interventies_alt2!$A30,0,4)) ->  | J53: =IF($C53="","",OFFSET(Interventies_alt2!$A30,0,J$44)) ->  | K53: =IF($C53="","",OFFSET(Interventies_alt2!$A30,0,K$44)) ->  | L53: =IF($C53="","",OFFSET(Interventies_alt2!$A30,0,L$44)) ->  | M53: =IF($C53="","",OFFSET(Interventies_alt2!$A30,0,M$44)) ->  | N53: =IF($C53="","",OFFSET(Interventies_alt2!$A30,0,N$44)) -> 
B54: 9 | C54: =IFERROR(INDEX(Sectoroverzicht!$B$3:$B$31,MATCH(E54,Sectoroverzicht!$C$3:$C$31,0),1),"") ->  | E54: =IF(OFFSET(Interventies_alt2!$A31,0,2)="","",OFFSET(Interventies_alt2!$A31,0,2)) ->  | H54: =IF(OFFSET(Interventies_alt2!$A31,0,3)="","",OFFSET(Interventies_alt2!$A31,0,3)) ->  | I54: =IF(OFFSET(Interventies_alt2!$A31,0,4)="","",OFFSET(Interventies_alt2!$A31,0,4)) ->  | J54: =IF($C54="","",OFFSET(Interventies_alt2!$A31,0,J$44)) ->  | K54: =IF($C54="","",OFFSET(Interventies_alt2!$A31,0,K$44)) ->  | L54: =IF($C54="","",OFFSET(Interventies_alt2!$A31,0,L$44)) ->  | M54: =IF($C54="","",OFFSET(Interventies_alt2!$A31,0,M$44)) ->  | N54: =IF($C54="","",OFFSET(Interventies_alt2!$A31,0,N$44)) -> 
B55: 10 | C55: =IFERROR(INDEX(Sectoroverzicht!$B$3:$B$31,MATCH(E55,Sectoroverzicht!$C$3:$C$31,0),1),"") ->  | E55: =IF(OFFSET(Interventies_alt2!$A32,0,2)="","",OFFSET(Interventies_alt2!$A32,0,2)) ->  | H55: =IF(OFFSET(Interventies_alt2!$A32,0,3)="","",OFFSET(Interventies_alt2!$A32,0,3)) ->  | I55: =IF(OFFSET(Interventies_alt2!$A32,0,4)="","",OFFSET(Interventies_alt2!$A32,0,4)) ->  | J55: =IF($C55="","",OFFSET(Interventies_alt2!$A32,0,J$44)) ->  | K55: =IF($C55="","",OFFSET(Interventies_alt2!$A32,0,K$44)) ->  | L55: =IF($C55="","",OFFSET(Interventies_alt2!$A32,0,L$44)) ->  | M55: =IF($C55="","",OFFSET(Interventies_alt2!$A32,0,M$44)) ->  | N55: =IF($C55="","",OFFSET(Interventies_alt2!$A32,0,N$44)) -> 
B56: 11 | C56: =IFERROR(INDEX(Sectoroverzicht!$B$3:$B$31,MATCH(E56,Sectoroverzicht!$C$3:$C$31,0),1),"") ->  | E56: =IF(OFFSET(Interventies_alt2!$A33,0,2)="","",OFFSET(Interventies_alt2!$A33,0,2)) ->  | H56: =IF(OFFSET(Interventies_alt2!$A33,0,3)="","",OFFSET(Interventies_alt2!$A33,0,3)) ->  | I56: =IF(OFFSET(Interventies_alt2!$A33,0,4)="","",OFFSET(Interventies_alt2!$A33,0,4)) ->  | J56: =IF($C56="","",OFFSET(Interventies_alt2!$A33,0,J$44)) ->  | K56: =IF($C56="","",OFFSET(Interventies_alt2!$A33,0,K$44)) ->  | L56: =IF($C56="","",OFFSET(Interventies_alt2!$A33,0,L$44)) ->  | M56: =IF($C56="","",OFFSET(Interventies_alt2!$A33,0,M$44)) ->  | N56: =IF($C56="","",OFFSET(Interventies_alt2!$A33,0,N$44)) -> 
B57: 12 | C57: =IFERROR(INDEX(Sectoroverzicht!$B$3:$B$31,MATCH(E57,Sectoroverzicht!$C$3:$C$31,0),1),"") ->  | E57: =IF(OFFSET(Interventies_alt2!$A34,0,2)="","",OFFSET(Interventies_alt2!$A34,0,2)) ->  | H57: =IF(OFFSET(Interventies_alt2!$A34,0,3)="","",OFFSET(Interventies_alt2!$A34,0,3)) ->  | I57: =IF(OFFSET(Interventies_alt2!$A34,0,4)="","",OFFSET(Interventies_alt2!$A34,0,4)) ->  | J57: =IF($C57="","",OFFSET(Interventies_alt2!$A34,0,J$44)) ->  | K57: =IF($C57="","",OFFSET(Interventies_alt2!$A34,0,K$44)) ->  | L57: =IF($C57="","",OFFSET(Interventies_alt2!$A34,0,L$44)) ->  | M57: =IF($C57="","",OFFSET(Interventies_alt2!$A34,0,M$44)) ->  | N57: =IF($C57="","",OFFSET(Interventies_alt2!$A34,0,N$44)) -> 
B58: 13 | C58: =IFERROR(INDEX(Sectoroverzicht!$B$3:$B$31,MATCH(E58,Sectoroverzicht!$C$3:$C$31,0),1),"") ->  | E58: =IF(OFFSET(Interventies_alt2!$A35,0,2)="","",OFFSET(Interventies_alt2!$A35,0,2)) ->  | H58: =IF(OFFSET(Interventies_alt2!$A35,0,3)="","",OFFSET(Interventies_alt2!$A35,0,3)) ->  | I58: =IF(OFFSET(Interventies_alt2!$A35,0,4)="","",OFFSET(Interventies_alt2!$A35,0,4)) ->  | J58: =IF($C58="","",OFFSET(Interventies_alt2!$A35,0,J$44)) ->  | K58: =IF($C58="","",OFFSET(Interventies_alt2!$A35,0,K$44)) ->  | L58: =IF($C58="","",OFFSET(Interventies_alt2!$A35,0,L$44)) ->  | M58: =IF($C58="","",OFFSET(Interventies_alt2!$A35,0,M$44)) ->  | N58: =IF($C58="","",OFFSET(Interventies_alt2!$A35,0,N$44)) -> 
B59: 14 | C59: =IFERROR(INDEX(Sectoroverzicht!$B$3:$B$31,MATCH(E59,Sectoroverzicht!$C$3:$C$31,0),1),"") ->  | E59: =IF(OFFSET(Interventies_alt2!$A36,0,2)="","",OFFSET(Interventies_alt2!$A36,0,2)) ->  | H59: =IF(OFFSET(Interventies_alt2!$A36,0,3)="","",OFFSET(Interventies_alt2!$A36,0,3)) ->  | I59: =IF(OFFSET(Interventies_alt2!$A36,0,4)="","",OFFSET(Interventies_alt2!$A36,0,4)) ->  | J59: =IF($C59="","",OFFSET(Interventies_alt2!$A36,0,J$44)) ->  | K59: =IF($C59="","",OFFSET(Interventies_alt2!$A36,0,K$44)) ->  | L59: =IF($C59="","",OFFSET(Interventies_alt2!$A36,0,L$44)) ->  | M59: =IF($C59="","",OFFSET(Interventies_alt2!$A36,0,M$44)) ->  | N59: =IF($C59="","",OFFSET(Interventies_alt2!$A36,0,N$44)) -> 
B60: 15 | C60: =IFERROR(INDEX(Sectoroverzicht!$B$3:$B$31,MATCH(E60,Sectoroverzicht!$C$3:$C$31,0),1),"") ->  | E60: =IF(OFFSET(Interventies_alt2!$A37,0,2)="","",OFFSET(Interventies_alt2!$A37,0,2)) ->  | H60: =IF(OFFSET(Interventies_alt2!$A37,0,3)="","",OFFSET(Interventies_alt2!$A37,0,3)) ->  | I60: =IF(OFFSET(Interventies_alt2!$A37,0,4)="","",OFFSET(Interventies_alt2!$A37,0,4)) ->  | J60: =IF($C60="","",OFFSET(Interventies_alt2!$A37,0,J$44)) ->  | K60: =IF($C60="","",OFFSET(Interventies_alt2!$A37,0,K$44)) ->  | L60: =IF($C60="","",OFFSET(Interventies_alt2!$A37,0,L$44)) ->  | M60: =IF($C60="","",OFFSET(Interventies_alt2!$A37,0,M$44)) ->  | N60: =IF($C60="","",OFFSET(Interventies_alt2!$A37,0,N$44)) -> 
A61: Referentie zorg | B61: 1 | C61: =IFERROR(INDEX(Sectoroverzicht!$B$3:$B$31,MATCH(E61,Sectoroverzicht!$C$3:$C$31,0),1),"") -> Zorgverzekeringswet | E61: =IF(OFFSET(Interventies_ref2!$A23,0,2)="","",OFFSET(Interventies_ref2!$A23,0,2)) -> Medisch-specialistische zorg | H61: =IF(OFFSET(Interventies_ref2!$A23,0,3)="","",OFFSET(Interventies_ref2!$A23,0,3)) ->  | I61: =IF(OFFSET(Interventies_ref2!$A23,0,4)="","",OFFSET(Interventies_ref2!$A23,0,4)) ->  | J61: =IF($C61="","",OFFSET(Interventies_ref2!$A23,0,J$44)) -> 0 | K61: =IF($C61="","",OFFSET(Interventies_ref2!$A23,0,K$44)) -> 0 | L61: =IF($C61="","",OFFSET(Interventies_ref2!$A23,0,L$44)) -> 0 | M61: =IF($C61="","",OFFSET(Interventies_ref2!$A23,0,M$44)) -> 0 | N61: =IF($C61="","",OFFSET(Interventies_ref2!$A23,0,N$44)) -> 0
B62: 2 | C62: =IFERROR(INDEX(Sectoroverzicht!$B$3:$B$31,MATCH(E62,Sectoroverzicht!$C$3:$C$31,0),1),"") ->  | E62: =IF(OFFSET(Interventies_ref2!$A24,0,2)="","",OFFSET(Interventies_ref2!$A24,0,2)) ->  | H62: =IF(OFFSET(Interventies_ref2!$A24,0,3)="","",OFFSET(Interventies_ref2!$A24,0,3)) ->  | I62: =IF(OFFSET(Interventies_ref2!$A24,0,4)="","",OFFSET(Interventies_ref2!$A24,0,4)) ->  | J62: =IF($C62="","",OFFSET(Interventies_ref2!$A24,0,J$44)) ->  | K62: =IF($C62="","",OFFSET(Interventies_ref2!$A24,0,K$44)) ->  | L62: =IF($C62="","",OFFSET(Interventies_ref2!$A24,0,L$44)) ->  | M62: =IF($C62="","",OFFSET(Interventies_ref2!$A24,0,M$44)) ->  | N62: =IF($C62="","",OFFSET(Interventies_ref2!$A24,0,N$44)) -> 
B63: 3 | C63: =IFERROR(INDEX(Sectoroverzicht!$B$3:$B$31,MATCH(E63,Sectoroverzicht!$C$3:$C$31,0),1),"") ->  | E63: =IF(OFFSET(Interventies_ref2!$A25,0,2)="","",OFFSET(Interventies_ref2!$A25,0,2)) ->  | H63: =IF(OFFSET(Interventies_ref2!$A25,0,3)="","",OFFSET(Interventies_ref2!$A25,0,3)) ->  | I63: =IF(OFFSET(Interventies_ref2!$A25,0,4)="","",OFFSET(Interventies_ref2!$A25,0,4)) ->  | J63: =IF($C63="","",OFFSET(Interventies_ref2!$A25,0,J$44)) ->  | K63: =IF($C63="","",OFFSET(Interventies_ref2!$A25,0,K$44)) ->  | L63: =IF($C63="","",OFFSET(Interventies_ref2!$A25,0,L$44)) ->  | M63: =IF($C63="","",OFFSET(Interventies_ref2!$A25,0,M$44)) ->  | N63: =IF($C63="","",OFFSET(Interventies_ref2!$A25,0,N$44)) -> 
B64: 4 | C64: =IFERROR(INDEX(Sectoroverzicht!$B$3:$B$31,MATCH(E64,Sectoroverzicht!$C$3:$C$31,0),1),"") ->  | E64: =IF(OFFSET(Interventies_ref2!$A26,0,2)="","",OFFSET(Interventies_ref2!$A26,0,2)) ->  | H64: =IF(OFFSET(Interventies_ref2!$A26,0,3)="","",OFFSET(Interventies_ref2!$A26,0,3)) ->  | I64: =IF(OFFSET(Interventies_ref2!$A26,0,4)="","",OFFSET(Interventies_ref2!$A26,0,4)) ->  | J64: =IF($C64="","",OFFSET(Interventies_ref2!$A26,0,J$44)) ->  | K64: =IF($C64="","",OFFSET(Interventies_ref2!$A26,0,K$44)) ->  | L64: =IF($C64="","",OFFSET(Interventies_ref2!$A26,0,L$44)) ->  | M64: =IF($C64="","",OFFSET(Interventies_ref2!$A26,0,M$44)) ->  | N64: =IF($C64="","",OFFSET(Interventies_ref2!$A26,0,N$44)) -> 
B65: 5 | C65: =IFERROR(INDEX(Sectoroverzicht!$B$3:$B$31,MATCH(E65,Sectoroverzicht!$C$3:$C$31,0),1),"") ->  | E65: =IF(OFFSET(Interventies_ref2!$A27,0,2)="","",OFFSET(Interventies_ref2!$A27,0,2)) ->  | H65: =IF(OFFSET(Interventies_ref2!$A27,0,3)="","",OFFSET(Interventies_ref2!$A27,0,3)) ->  | I65: =IF(OFFSET(Interventies_ref2!$A27,0,4)="","",OFFSET(Interventies_ref2!$A27,0,4)) ->  | J65: =IF($C65="","",OFFSET(Interventies_ref2!$A27,0,J$44)) ->  | K65: =IF($C65="","",OFFSET(Interventies_ref2!$A27,0,K$44)) ->  | L65: =IF($C65="","",OFFSET(Interventies_ref2!$A27,0,L$44)) ->  | M65: =IF($C65="","",OFFSET(Interventies_ref2!$A27,0,M$44)) ->  | N65: =IF($C65="","",OFFSET(Interventies_ref2!$A27,0,N$44)) -> 
B66: 6 | C66: =IFERROR(INDEX(Sectoroverzicht!$B$3:$B$31,MATCH(E66,Sectoroverzicht!$C$3:$C$31,0),1),"") ->  | E66: =IF(OFFSET(Interventies_ref2!$A28,0,2)="","",OFFSET(Interventies_ref2!$A28,0,2)) ->  | H66: =IF(OFFSET(Interventies_ref2!$A28,0,3)="","",OFFSET(Interventies_ref2!$A28,0,3)) ->  | I66: =IF(OFFSET(Interventies_ref2!$A28,0,4)="","",OFFSET(Interventies_ref2!$A28,0,4)) ->  | J66: =IF($C66="","",OFFSET(Interventies_ref2!$A28,0,J$44)) ->  | K66: =IF($C66="","",OFFSET(Interventies_ref2!$A28,0,K$44)) ->  | L66: =IF($C66="","",OFFSET(Interventies_ref2!$A28,0,L$44)) ->  | M66: =IF($C66="","",OFFSET(Interventies_ref2!$A28,0,M$44)) ->  | N66: =IF($C66="","",OFFSET(Interventies_ref2!$A28,0,N$44)) -> 
B67: 7 | C67: =IFERROR(INDEX(Sectoroverzicht!$B$3:$B$31,MATCH(E67,Sectoroverzicht!$C$3:$C$31,0),1),"") ->  | E67: =IF(OFFSET(Interventies_ref2!$A29,0,2)="","",OFFSET(Interventies_ref2!$A29,0,2)) ->  | H67: =IF(OFFSET(Interventies_ref2!$A29,0,3)="","",OFFSET(Interventies_ref2!$A29,0,3)) ->  | I67: =IF(OFFSET(Interventies_ref2!$A29,0,4)="","",OFFSET(Interventies_ref2!$A29,0,4)) ->  | J67: =IF($C67="","",OFFSET(Interventies_ref2!$A29,0,J$44)) ->  | K67: =IF($C67="","",OFFSET(Interventies_ref2!$A29,0,K$44)) ->  | L67: =IF($C67="","",OFFSET(Interventies_ref2!$A29,0,L$44)) ->  | M67: =IF($C67="","",OFFSET(Interventies_ref2!$A29,0,M$44)) ->  | N67: =IF($C67="","",OFFSET(Interventies_ref2!$A29,0,N$44)) -> 
B68: 8 | C68: =IFERROR(INDEX(Sectoroverzicht!$B$3:$B$31,MATCH(E68,Sectoroverzicht!$C$3:$C$31,0),1),"") ->  | E68: =IF(OFFSET(Interventies_ref2!$A30,0,2)="","",OFFSET(Interventies_ref2!$A30,0,2)) ->  | H68: =IF(OFFSET(Interventies_ref2!$A30,0,3)="","",OFFSET(Interventies_ref2!$A30,0,3)) ->  | I68: =IF(OFFSET(Interventies_ref2!$A30,0,4)="","",OFFSET(Interventies_ref2!$A30,0,4)) ->  | J68: =IF($C68="","",OFFSET(Interventies_ref2!$A30,0,J$44)) ->  | K68: =IF($C68="","",OFFSET(Interventies_ref2!$A30,0,K$44)) ->  | L68: =IF($C68="","",OFFSET(Interventies_ref2!$A30,0,L$44)) ->  | M68: =IF($C68="","",OFFSET(Interventies_ref2!$A30,0,M$44)) ->  | N68: =IF($C68="","",OFFSET(Interventies_ref2!$A30,0,N$44)) -> 
B69: 9 | C69: =IFERROR(INDEX(Sectoroverzicht!$B$3:$B$31,MATCH(E69,Sectoroverzicht!$C$3:$C$31,0),1),"") ->  | E69: =IF(OFFSET(Interventies_ref2!$A31,0,2)="","",OFFSET(Interventies_ref2!$A31,0,2)) ->  | H69: =IF(OFFSET(Interventies_ref2!$A31,0,3)="","",OFFSET(Interventies_ref2!$A31,0,3)) ->  | I69: =IF(OFFSET(Interventies_ref2!$A31,0,4)="","",OFFSET(Interventies_ref2!$A31,0,4)) ->  | J69: =IF($C69="","",OFFSET(Interventies_ref2!$A31,0,J$44)) ->  | K69: =IF($C69="","",OFFSET(Interventies_ref2!$A31,0,K$44)) ->  | L69: =IF($C69="","",OFFSET(Interventies_ref2!$A31,0,L$44)) ->  | M69: =IF($C69="","",OFFSET(Interventies_ref2!$A31,0,M$44)) ->  | N69: =IF($C69="","",OFFSET(Interventies_ref2!$A31,0,N$44)) -> 
B70: 10 | C70: =IFERROR(INDEX(Sectoroverzicht!$B$3:$B$31,MATCH(E70,Sectoroverzicht!$C$3:$C$31,0),1),"") ->  | E70: =IF(OFFSET(Interventies_ref2!$A32,0,2)="","",OFFSET(Interventies_ref2!$A32,0,2)) ->  | H70: =IF(OFFSET(Interventies_ref2!$A32,0,3)="","",OFFSET(Interventies_ref2!$A32,0,3)) ->  | I70: =IF(OFFSET(Interventies_ref2!$A32,0,4)="","",OFFSET(Interventies_ref2!$A32,0,4)) ->  | J70: =IF($C70="","",OFFSET(Interventies_ref2!$A32,0,J$44)) ->  | K70: =IF($C70="","",OFFSET(Interventies_ref2!$A32,0,K$44)) ->  | L70: =IF($C70="","",OFFSET(Interventies_ref2!$A32,0,L$44)) ->  | M70: =IF($C70="","",OFFSET(Interventies_ref2!$A32,0,M$44)) ->  | N70: =IF($C70="","",OFFSET(Interventies_ref2!$A32,0,N$44)) -> 
B71: 11 | C71: =IFERROR(INDEX(Sectoroverzicht!$B$3:$B$31,MATCH(E71,Sectoroverzicht!$C$3:$C$31,0),1),"") ->  | E71: =IF(OFFSET(Interventies_ref2!$A33,0,2)="","",OFFSET(Interventies_ref2!$A33,0,2)) ->  | H71: =IF(OFFSET(Interventies_ref2!$A33,0,3)="","",OFFSET(Interventies_ref2!$A33,0,3)) ->  | I71: =IF(OFFSET(Interventies_ref2!$A33,0,4)="","",OFFSET(Interventies_ref2!$A33,0,4)) ->  | J71: =IF($C71="","",OFFSET(Interventies_ref2!$A33,0,J$44)) ->  | K71: =IF($C71="","",OFFSET(Interventies_ref2!$A33,0,K$44)) ->  | L71: =IF($C71="","",OFFSET(Interventies_ref2!$A33,0,L$44)) ->  | M71: =IF($C71="","",OFFSET(Interventies_ref2!$A33,0,M$44)) ->  | N71: =IF($C71="","",OFFSET(Interventies_ref2!$A33,0,N$44)) -> 
B72: 12 | C72: =IFERROR(INDEX(Sectoroverzicht!$B$3:$B$31,MATCH(E72,Sectoroverzicht!$C$3:$C$31,0),1),"") ->  | E72: =IF(OFFSET(Interventies_ref2!$A34,0,2)="","",OFFSET(Interventies_ref2!$A34,0,2)) ->  | H72: =IF(OFFSET(Interventies_ref2!$A34,0,3)="","",OFFSET(Interventies_ref2!$A34,0,3)) ->  | I72: =IF(OFFSET(Interventies_ref2!$A34,0,4)="","",OFFSET(Interventies_ref2!$A34,0,4)) ->  | J72: =IF($C72="","",OFFSET(Interventies_ref2!$A34,0,J$44)) ->  | K72: =IF($C72="","",OFFSET(Interventies_ref2!$A34,0,K$44)) ->  | L72: =IF($C72="","",OFFSET(Interventies_ref2!$A34,0,L$44)) ->  | M72: =IF($C72="","",OFFSET(Interventies_ref2!$A34,0,M$44)) ->  | N72: =IF($C72="","",OFFSET(Interventies_ref2!$A34,0,N$44)) -> 
B73: 13 | C73: =IFERROR(INDEX(Sectoroverzicht!$B$3:$B$31,MATCH(E73,Sectoroverzicht!$C$3:$C$31,0),1),"") ->  | E73: =IF(OFFSET(Interventies_ref2!$A35,0,2)="","",OFFSET(Interventies_ref2!$A35,0,2)) ->  | H73: =IF(OFFSET(Interventies_ref2!$A35,0,3)="","",OFFSET(Interventies_ref2!$A35,0,3)) ->  | I73: =IF(OFFSET(Interventies_ref2!$A35,0,4)="","",OFFSET(Interventies_ref2!$A35,0,4)) ->  | J73: =IF($C73="","",OFFSET(Interventies_ref2!$A35,0,J$44)) ->  | K73: =IF($C73="","",OFFSET(Interventies_ref2!$A35,0,K$44)) ->  | L73: =IF($C73="","",OFFSET(Interventies_ref2!$A35,0,L$44)) ->  | M73: =IF($C73="","",OFFSET(Interventies_ref2!$A35,0,M$44)) ->  | N73: =IF($C73="","",OFFSET(Interventies_ref2!$A35,0,N$44)) -> 
B74: 14 | C74: =IFERROR(INDEX(Sectoroverzicht!$B$3:$B$31,MATCH(E74,Sectoroverzicht!$C$3:$C$31,0),1),"") ->  | E74: =IF(OFFSET(Interventies_ref2!$A36,0,2)="","",OFFSET(Interventies_ref2!$A36,0,2)) ->  | H74: =IF(OFFSET(Interventies_ref2!$A36,0,3)="","",OFFSET(Interventies_ref2!$A36,0,3)) ->  | I74: =IF(OFFSET(Interventies_ref2!$A36,0,4)="","",OFFSET(Interventies_ref2!$A36,0,4)) ->  | J74: =IF($C74="","",OFFSET(Interventies_ref2!$A36,0,J$44)) ->  | K74: =IF($C74="","",OFFSET(Interventies_ref2!$A36,0,K$44)) ->  | L74: =IF($C74="","",OFFSET(Interventies_ref2!$A36,0,L$44)) ->  | M74: =IF($C74="","",OFFSET(Interventies_ref2!$A36,0,M$44)) ->  | N74: =IF($C74="","",OFFSET(Interventies_ref2!$A36,0,N$44)) -> 
B75: 15 | C75: =IFERROR(INDEX(Sectoroverzicht!$B$3:$B$31,MATCH(E75,Sectoroverzicht!$C$3:$C$31,0),1),"") ->  | E75: =IF(OFFSET(Interventies_ref2!$A37,0,2)="","",OFFSET(Interventies_ref2!$A37,0,2)) ->  | H75: =IF(OFFSET(Interventies_ref2!$A37,0,3)="","",OFFSET(Interventies_ref2!$A37,0,3)) ->  | I75: =IF(OFFSET(Interventies_ref2!$A37,0,4)="","",OFFSET(Interventies_ref2!$A37,0,4)) ->  | J75: =IF($C75="","",OFFSET(Interventies_ref2!$A37,0,J$44)) ->  | K75: =IF($C75="","",OFFSET(Interventies_ref2!$A37,0,K$44)) ->  | L75: =IF($C75="","",OFFSET(Interventies_ref2!$A37,0,L$44)) ->  | M75: =IF($C75="","",OFFSET(Interventies_ref2!$A37,0,M$44)) ->  | N75: =IF($C75="","",OFFSET(Interventies_ref2!$A37,0,N$44)) -> 
A79: Met onderstaande knoppen kunt u snel over de hoofdonderdelen van de BIA navigeren. De kleur matcht met de band bovenin het scherm. De knop 'Verder' hierboven volstaat echter om het hele proces te doorlopen.

Sheet Budgetimpact_Zorgverzekeraar2
A3: BUDGET IMPACT ANALYSE BIJ DOELMATIGHEIDSONDERZOEK
A4: BUDGETIMPACT ZORGVERZEKERAAR
B6: i | C6: Navigatie
B10: =Populatie2!$C$17 -> Scenario 2: Niet nader omschreven
B12: i
I13: ONZEKERHEID | K13: SENSITIVITEITSANALYSE i
B14: SPECIFICATIE MATE VAN ONZEKERHEID / SENSITIVITEITSANALYSE | K14: MIN | L14: MAX
B15: i | C15: Specificatie populatie | I15: =IF(Populatie2!$M$39="","Onbekend!",Populatie2!$M$39) -> Gemiddeld | J15: =IF(I15="Klein",1,IF(I15="Gemiddeld",0,IF(I15="Groot",-1,""))) -> 0 | K15: 0.7 | L15: 1.1
B16: i | C16: ALTERNATIEVE ZORG | Kosten interventiemix | I16: =IF(Toelichting_Interventies_alt2!$E$31="","Onbekend!",Toelichting_Interventies_alt2!$E$31) -> Groot | J16: =IF(I16="Klein",1,IF(I16="Gemiddeld",0,IF(I16="Groot",-1,""))) -> -1 | K16: 0.8 | L16: 1.2
B17: i | C17: REFERENTIE ZORG | Kosten interventiemix | I17: =IF(Toelichting_Interventies_ref2!$E$31="","Onbekend!",Toelichting_Interventies_ref2!$E$31) -> Klein | J17: =IF(I17="Klein",1,IF(I17="Gemiddeld",0,IF(I17="Groot",-1,""))) -> 1 | K17: 0.9 | L17: 1.3
B19: IMPACT | I19: Totaal | J19: =IF(Startjaar="",1,Startjaar) -> 2019 | K19: =J19+1 -> 2020 | L19: =K19+1 -> 2021 | M19: =L19+1 -> 2022 | N19: =M19+1 -> 2023
C20: Totaal nieuwe patiënten | J20: =Populatie2!D$39 -> 0 | K20: =Populatie2!E$39 -> 0 | L20: =Populatie2!F$39 -> 0 | M20: =Populatie2!G$39 -> 0 | N20: =Populatie2!H$39 -> 0
B21: i | C21: Marktaandeel | J21: 0.8 | K21: 0.8 | L21: 0.8 | M21: 0.8 | N21: 0.8
C22: Aantal startende zorggebruikers | J22: =J20*J21 -> 0 | K22: =K20*K21 -> 0 | L22: =L20*L21 -> 0 | M22: =M20*M21 -> 0 | N22: =N20*N21 -> 0
B23: i | C23: Bruto verschil in HEALTHCARE uitgaven per patient onder Zorgverzekeringswet | J23: =SUM(J24,J27) -> 0 | K23: =SUM(K24,K27) -> 0 | L23: =SUM(L24,L27) -> 0 | M23: =SUM(M24,M27) -> 0 | N23: =SUM(N24,N27) -> 0
D24: Structurele kosten | J24: =J25-J26 -> 0 | K24: =K25-K26 -> 0 | L24: =L25-L26 -> 0 | M24: =M25-M26 -> 0 | N24: =N25-N26 -> 0
D25: Bruto uitgaven alternatieve zorg (per follow-up jaar!) | J25: =SUMIFS(J$54:J$68,$C$54:$C$68,"Zorgverzekeringswet",$I$54:$I$68,"Structureel") -> 0 | K25: =SUMIFS(K$54:K$68,$C$54:$C$68,"Zorgverzekeringswet",$I$54:$I$68,"Structureel") -> 0 | L25: =SUMIFS(L$54:L$68,$C$54:$C$68,"Zorgverzekeringswet",$I$54:$I$68,"Structureel") -> 0 | M25: =SUMIFS(M$54:M$68,$C$54:$C$68,"Zorgverzekeringswet",$I$54:$I$68,"Structureel") -> 0 | N25: =SUMIFS(N$54:N$68,$C$54:$C$68,"Zorgverzekeringswet",$I$54:$I$68,"Structureel") -> 0
D26: Bruto uitgaven referentiezorg | J26: =SUMIFS(J$69:J$83,$C$69:$C$83,"Zorgverzekeringswet",$I$69:$I$83,"Structureel") -> 0 | K26: =SUMIFS(K$69:K$83,$C$69:$C$83,"Zorgverzekeringswet",$I$69:$I$83,"Structureel") -> 0 | L26: =SUMIFS(L$69:L$83,$C$69:$C$83,"Zorgverzekeringswet",$I$69:$I$83,"Structureel") -> 0 | M26: =SUMIFS(M$69:M$83,$C$69:$C$83,"Zorgverzekeringswet",$I$69:$I$83,"Structureel") -> 0 | N26: =SUMIFS(N$69:N$83,$C$69:$C$83,"Zorgverzekeringswet",$I$69:$I$83,"Structureel") -> 0
D27: Incidentele kosten | J27: =J28-J29 -> 0 | K27: =K28-K29 -> 0 | L27: =L28-L29 -> 0 | M27: =M28-M29 -> 0 | N27: =N28-N29 -> 0
D28: Bruto uitgaven alternatieve zorg (per follow-up jaar!) | J28: =SUMIFS(J$54:J$68,$C$54:$C$68,"Zorgverzekeringswet",$I$54:$I$68,"Incidenteel") -> 0 | K28: =SUMIFS(K$54:K$68,$C$54:$C$68,"Zorgverzekeringswet",$I$54:$I$68,"Incidenteel") -> 0 | L28: =SUMIFS(L$54:L$68,$C$54:$C$68,"Zorgverzekeringswet",$I$54:$I$68,"Incidenteel") -> 0 | M28: =SUMIFS(M$54:M$68,$C$54:$C$68,"Zorgverzekeringswet",$I$54:$I$68,"Incidenteel") -> 0 | N28: =SUMIFS(N$54:N$68,$C$54:$C$68,"Zorgverzekeringswet",$I$54:$I$68,"Incidenteel") -> 0
D29: Bruto uitgaven referentiezorg | J29: =SUMIFS(J$69:J$83,$C$69:$C$83,"Zorgverzekeringswet",$I$69:$I$83,"Incidenteel") -> 0 | K29: =SUMIFS(K$69:K$83,$C$69:$C$83,"Zorgverzekeringswet",$I$69:$I$83,"Incidenteel") -> 0 | L29: =SUMIFS(L$69:L$83,$C$69:$C$83,"Zorgverzekeringswet",$I$69:$I$83,"Incidenteel") -> 0 | M29: =SUMIFS(M$69:M$83,$C$69:$C$83,"Zorgverzekeringswet",$I$69:$I$83,"Incidenteel") -> 0 | N29: =SUMIFS(N$69:N$83,$C$69:$C$83,"Zorgverzekeringswet",$I$69:$I$83,"Incidenteel") -> 0
C30: Bruto verschil in HEALTHCARE uitgaven per patient onder Wet Langdurige Zorg | J30: =SUM(J31,J34) -> 0 | K30: =SUM(K31,K34) -> 0 | L30: =SUM(L31,L34) -> 0 | M30: =SUM(M31,M34) -> 0 | N30: =SUM(N31,N34) -> 0
D31: Structurele kosten | J31: =J32-J33 -> 0 | K31: =K32-K33 -> 0 | L31: =L32-L33 -> 0 | M31: =M32-M33 -> 0 | N31: =N32-N33 -> 0
D32: Bruto uitgaven alternatieve zorg (per follow-up jaar!) | J32: =SUMIFS(J$54:J$68,$C$54:$C$68,"Wet Langdurige Zorg",$I$54:$I$68,"Structureel") -> 0 | K32: =SUMIFS(K$54:K$68,$C$54:$C$68,"Wet Langdurige Zorg",$I$54:$I$68,"Structureel") -> 0 | L32: =SUMIFS(L$54:L$68,$C$54:$C$68,"Wet Langdurige Zorg",$I$54:$I$68,"Structureel") -> 0 | M32: =SUMIFS(M$54:M$68,$C$54:$C$68,"Wet Langdurige Zorg",$I$54:$I$68,"Structureel") -> 0 | N32: =SUMIFS(N$54:N$68,$C$54:$C$68,"Wet Langdurige Zorg",$I$54:$I$68,"Structureel") -> 0
D33: Bruto uitgaven referentiezorg | J33: =SUMIFS(J$69:J$83,$C$69:$C$83,"Wet Langdurige Zorg",$I$69:$I$83,"Structureel") -> 0 | K33: =SUMIFS(K$69:K$83,$C$69:$C$83,"Wet Langdurige Zorg",$I$69:$I$83,"Structureel") -> 0 | L33: =SUMIFS(L$69:L$83,$C$69:$C$83,"Wet Langdurige Zorg",$I$69:$I$83,"Structureel") -> 0 | M33: =SUMIFS(M$69:M$83,$C$69:$C$83,"Wet Langdurige Zorg",$I$69:$I$83,"Structureel") -> 0 | N33: =SUMIFS(N$69:N$83,$C$69:$C$83,"Wet Langdurige Zorg",$I$69:$I$83,"Structureel") -> 0
D34: Incidentele kosten | J34: =J35-J36 -> 0 | K34: =K35-K36 -> 0 | L34: =L35-L36 -> 0 | M34: =M35-M36 -> 0 | N34: =N35-N36 -> 0
D35: Bruto uitgaven alternatieve zorg (per follow-up jaar!) | J35: =SUMIFS(J$54:J$68,$C$54:$C$68,"Wet Langdurige Zorg",$I$54:$I$68,"Incidenteel") -> 0 | K35: =SUMIFS(K$54:K$68,$C$54:$C$68,"Wet Langdurige Zorg",$I$54:$I$68,"Incidenteel") -> 0 | L35: =SUMIFS(L$54:L$68,$C$54:$C$68,"Wet Langdurige Zorg",$I$54:$I$68,"Incidenteel") -> 0 | M35: =SUMIFS(M$54:M$68,$C$54:$C$68,"Wet Langdurige Zorg",$I$54:$I$68,"Incidenteel") -> 0 | N35: =SUMIFS(N$54:N$68,$C$54:$C$68,"Wet Langdurige Zorg",$I$54:$I$68,"Incidenteel") -> 0
D36: Bruto uitgaven referentiezorg | J36: =SUMIFS(J$69:J$83,$C$69:$C$83,"Wet Langdurige Zorg",$I$69:$I$83,"Incidenteel") -> 0 | K36: =SUMIFS(K$69:K$83,$C$69:$C$83,"Wet Langdurige Zorg",$I$69:$I$83,"Incidenteel") -> 0 | L36: =SUMIFS(L$69:L$83,$C$69:$C$83,"Wet Langdurige Zorg",$I$69:$I$83,"Incidenteel") -> 0 | M36: =SUMIFS(M$69:M$83,$C$69:$C$83,"Wet Langdurige Zorg",$I$69:$I$83,"Incidenteel") -> 0 | N36: =SUMIFS(N$69:N$83,$C$69:$C$83,"Wet Langdurige Zorg",$I$69:$I$83,"Incidenteel") -> 0
C37: Totale budget-impact Zorgverzekeringswet | I37: =SUM(J37:N37) -> 0 | J37: =SUM(J$22*J23)/1000 -> 0 | K37: =SUM(J$22*K23,K$22*J23)/1000 -> 0 | L37: =SUM(J$22*L23,K$22*K23,L$22*J23)/1000 -> 0 | M37: =SUM(J$22*M23,K$22*L23,L$22*K23,M$22*J23)/1000 -> 0 | N37: =SUM($J$22*N23,$K$22*M23,$L$22*L23,$M$22*K23,N22*J23)/1000 -> 0
C38: Totale budget-impact Wet Langdurige Zorg | I38: =SUM(J38:N38) -> 0 | J38: =SUM(J$22*J30)/1000 -> 0 | K38: =SUM(J$22*K30,K$22*J30)/1000 -> 0 | L38: =SUM(J$22*L30,K$22*K30,L$22*J30)/1000 -> 0 | M38: =SUM(J$22*M30,K$22*L30,L$22*K30,M$22*J30)/1000 -> 0 | N38: =SUM($J$22*N30,$K$22*M30,$L$22*L30,$M$22*K30,N22*J30)/1000 -> 0
C39: Totaal impact HEALTHCARE (x€1.000) | I39: =SUM(J39:N39) -> 0 | J39: =SUM(J37:J38) -> 0 | K39: =SUM(K37:K38) -> 0 | L39: =SUM(L37:L38) -> 0 | M39: =SUM(M37:M38) -> 0 | N39: =SUM(N37:N38) -> 0
B41: SENSITIVITEITSANALYSE
B42: i | C42: Populatie min-scenario | J42: =J$22*$K$15 -> 0 | K42: =K$22*$K$15 -> 0 | L42: =L$22*$K$15 -> 0 | M42: =M$22*$K$15 -> 0 | N42: =N$22*$K$15 -> 0
B43: i | C43: Populatie max-scenario | J43: =J$22*$L$15 -> 0 | K43: =K$22*$L$15 -> 0 | L43: =L$22*$L$15 -> 0 | M43: =M$22*$L$15 -> 0 | N43: =N$22*$L$15 -> 0
B44: IMPACT HEALTHCARE | E44: ="BANDBREEDTE: "&TEXT(MAX(I47:I50),"€0.0K")&" TOT "&TEXT(MIN(I47:I50),"€0.0K") -> BANDBREEDTE: €00K TOT €00K
B45: i | C45: Bruto verschil min-scenario: kosten referent minimaal, alternatief maximaal | J45: =SUM(J25*$L$16-J26*$K$17,J28*$L$16-J29*$K$17,J32*$L$16-J33*$K$17,J35*$L$16-J36*$K$17) -> 0 | K45: =SUM(K25*$L$16-K26*$K$17,K28*$L$16-K29*$K$17,K32*$L$16-K33*$K$17,K35*$L$16-K36*$K$17) -> 0 | L45: =SUM(L25*$L$16-L26*$K$17,L28*$L$16-L29*$K$17,L32*$L$16-L33*$K$17,L35*$L$16-L36*$K$17) -> 0 | M45: =SUM(M25*$L$16-M26*$K$17,M28*$L$16-M29*$K$17,M32*$L$16-M33*$K$17,M35*$L$16-M36*$K$17) -> 0 | N45: =SUM(N25*$L$16-N26*$K$17,N28*$L$16-N29*$K$17,N32*$L$16-N33*$K$17,N35*$L$16-N36*$K$17) -> 0
B46: i | C46: Bruto verschil max-scenario: kosten referent maximaal, alternatief minimaal | J46: =SUM(J25*$K$16-J26*$L$17,J28*$K$16-J29*$L$17,J32*$K$16-J33*$L$17,J35*$K$16-J36*$L$17) -> 0 | K46: =SUM(K25*$K$16-K26*$L$17,K28*$K$16-K29*$L$17,K32*$K$16-K33*$L$17,K35*$K$16-K36*$L$17) -> 0 | L46: =SUM(L25*$K$16-L26*$L$17,L28*$K$16-L29*$L$17,L32*$K$16-L33*$L$17,L35*$K$16-L36*$L$17) -> 0 | M46: =SUM(M25*$K$16-M26*$L$17,M28*$K$16-M29*$L$17,M32*$K$16-M33*$L$17,M35*$K$16-M36*$L$17) -> 0 | N46: =SUM(N25*$K$16-N26*$L$17,N28*$K$16-N29*$L$17,N32*$K$16-N33*$L$17,N35*$K$16-N36*$L$17) -> 0
C47: Sensitiviteitsanalyse min-scenario kosten, populatie min (x€1000) | I47: =SUM(J47:N47) -> 0 | J47: =SUM(J42*J45)/1000 -> 0 | K47: =SUM(J42*K45,K42*J45)/1000 -> 0 | L47: =SUM(J42*L45,K42*K45,L42*J45)/1000 -> 0 | M47: =SUM(J42*M45,K42*L45,L42*K45,M42*J45)/1000 -> 0 | N47: =SUM(J42*N45,K42*M45,L42*L45,M42*K45,N42*J45)/1000 -> 0
C48: Sensitiviteitsanalyse min-scenario kosten, populatie max (x€1000) | I48: =SUM(J48:N48) -> 0 | J48: =SUM(J43*J45)/1000 -> 0 | K48: =SUM(J43*K45,K43*J45)/1000 -> 0 | L48: =SUM(J43*L45,K43*K45,L43*J45)/1000 -> 0 | M48: =SUM(J43*M45,K43*L45,L43*K45,M43*J45)/1000 -> 0 | N48: =SUM(J43*N45,K43*M45,L43*L45,M43*K45,N43*J45)/1000 -> 0
C49: Sensitiviteitsanalyse max-scenario kosten, populatie min (x€1000) | I49: =SUM(J49:N49) -> 0 | J49: =SUM(J42*J46)/1000 -> 0 | K49: =SUM(J42*K46,K42*J46)/1000 -> 0 | L49: =SUM(J42*L46,K42*K46,L42*J46)/1000 -> 0 | M49: =SUM(J42*M46,K42*L46,L42*K46,M42*J46)/1000 -> 0 | N49: =SUM(J42*N46,K42*M46,L42*L46,M42*K46,N42*J46)/1000 -> 0
C50: Sensitiviteitsanalyse max-scenario kosten, populatie max (x€1000) | I50: =SUM(J50:N50) -> 0 | J50: =SUM(J43*J46)/1000 -> 0 | K50: =SUM(J43*K46,K43*J46)/1000 -> 0 | L50: =SUM(J43*L46,K43*K46,L43*J46)/1000 -> 0 | M50: =SUM(J43*M46,K43*L46,L43*K46,M43*J46)/1000 -> 0 | N50: =SUM(J43*N46,K43*M46,L43*L46,M43*K46,N43*J46)/1000 -> 0
B52: SPECIFICATIE BRUTO UITGAVEN PER PATIENT PER FOLLOW-UP JAAR | J52: 5 | K52: 6 | L52: 7 | M52: 8 | N52: 9
C53: Wet | E53: Sector | H53: Component (eerste 2 regels..) | I53: Typering | J53: Jaar 1 | K53: Jaar 2 | L53: Jaar 3 | M53: Jaar 4 | N53: Jaar 5
A54: Alternatieve zorg | B54: 1 | C54: =IFERROR(INDEX(Sectoroverzicht!$B$3:$B$31,MATCH(E54,Sectoroverzicht!$C$3:$C$31,0),1),"") ->  | E54: =IF(OFFSET(Interventies_alt2!$A23,0,2)="","",OFFSET(Interventies_alt2!$A23,0,2)) ->  | H54: =IF(OFFSET(Interventies_alt2!$A23,0,3)="","",OFFSET(Interventies_alt2!$A23,0,3)) ->  | I54: =IF(OFFSET(Interventies_alt2!$A23,0,4)="","",OFFSET(Interventies_alt2!$A23,0,4)) ->  | J54: =IF($C54="","",OFFSET(Interventies_alt2!$A23,0,J$52)) ->  | K54: =IF($C54="","",OFFSET(Interventies_alt2!$A23,0,K$52)) ->  | L54: =IF($C54="","",OFFSET(Interventies_alt2!$A23,0,L$52)) ->  | M54: =IF($C54="","",OFFSET(Interventies_alt2!$A23,0,M$52)) ->  | N54: =IF($C54="","",OFFSET(Interventies_alt2!$A23,0,N$52)) -> 
B55: 2 | C55: =IFERROR(INDEX(Sectoroverzicht!$B$3:$B$31,MATCH(E55,Sectoroverzicht!$C$3:$C$31,0),1),"") ->  | E55: =IF(OFFSET(Interventies_alt2!$A24,0,2)="","",OFFSET(Interventies_alt2!$A24,0,2)) ->  | H55: =IF(OFFSET(Interventies_alt2!$A24,0,3)="","",OFFSET(Interventies_alt2!$A24,0,3)) ->  | I55: =IF(OFFSET(Interventies_alt2!$A24,0,4)="","",OFFSET(Interventies_alt2!$A24,0,4)) ->  | J55: =IF($C55="","",OFFSET(Interventies_alt2!$A24,0,J$52)) ->  | K55: =IF($C55="","",OFFSET(Interventies_alt2!$A24,0,K$52)) ->  | L55: =IF($C55="","",OFFSET(Interventies_alt2!$A24,0,L$52)) ->  | M55: =IF($C55="","",OFFSET(Interventies_alt2!$A24,0,M$52)) ->  | N55: =IF($C55="","",OFFSET(Interventies_alt2!$A24,0,N$52)) -> 
B56: 3 | C56: =IFERROR(INDEX(Sectoroverzicht!$B$3:$B$31,MATCH(E56,Sectoroverzicht!$C$3:$C$31,0),1),"") ->  | E56: =IF(OFFSET(Interventies_alt2!$A25,0,2)="","",OFFSET(Interventies_alt2!$A25,0,2)) ->  | H56: =IF(OFFSET(Interventies_alt2!$A25,0,3)="","",OFFSET(Interventies_alt2!$A25,0,3)) ->  | I56: =IF(OFFSET(Interventies_alt2!$A25,0,4)="","",OFFSET(Interventies_alt2!$A25,0,4)) ->  | J56: =IF($C56="","",OFFSET(Interventies_alt2!$A25,0,J$52)) ->  | K56: =IF($C56="","",OFFSET(Interventies_alt2!$A25,0,K$52)) ->  | L56: =IF($C56="","",OFFSET(Interventies_alt2!$A25,0,L$52)) ->  | M56: =IF($C56="","",OFFSET(Interventies_alt2!$A25,0,M$52)) ->  | N56: =IF($C56="","",OFFSET(Interventies_alt2!$A25,0,N$52)) -> 
B57: 4 | C57: =IFERROR(INDEX(Sectoroverzicht!$B$3:$B$31,MATCH(E57,Sectoroverzicht!$C$3:$C$31,0),1),"") ->  | E57: =IF(OFFSET(Interventies_alt2!$A26,0,2)="","",OFFSET(Interventies_alt2!$A26,0,2)) ->  | H57: =IF(OFFSET(Interventies_alt2!$A26,0,3)="","",OFFSET(Interventies_alt2!$A26,0,3)) ->  | I57: =IF(OFFSET(Interventies_alt2!$A26,0,4)="","",OFFSET(Interventies_alt2!$A26,0,4)) ->  | J57: =IF($C57="","",OFFSET(Interventies_alt2!$A26,0,J$52)) ->  | K57: =IF($C57="","",OFFSET(Interventies_alt2!$A26,0,K$52)) ->  | L57: =IF($C57="","",OFFSET(Interventies_alt2!$A26,0,L$52)) ->  | M57: =IF($C57="","",OFFSET(Interventies_alt2!$A26,0,M$52)) ->  | N57: =IF($C57="","",OFFSET(Interventies_alt2!$A26,0,N$52)) -> 
B58: 5 | C58: =IFERROR(INDEX(Sectoroverzicht!$B$3:$B$31,MATCH(E58,Sectoroverzicht!$C$3:$C$31,0),1),"") ->  | E58: =IF(OFFSET(Interventies_alt2!$A27,0,2)="","",OFFSET(Interventies_alt2!$A27,0,2)) ->  | H58: =IF(OFFSET(Interventies_alt2!$A27,0,3)="","",OFFSET(Interventies_alt2!$A27,0,3)) ->  | I58: =IF(OFFSET(Interventies_alt2!$A27,0,4)="","",OFFSET(Interventies_alt2!$A27,0,4)) ->  | J58: =IF($C58="","",OFFSET(Interventies_alt2!$A27,0,J$52)) ->  | K58: =IF($C58="","",OFFSET(Interventies_alt2!$A27,0,K$52)) ->  | L58: =IF($C58="","",OFFSET(Interventies_alt2!$A27,0,L$52)) ->  | M58: =IF($C58="","",OFFSET(Interventies_alt2!$A27,0,M$52)) ->  | N58: =IF($C58="","",OFFSET(Interventies_alt2!$A27,0,N$52)) -> 
B59: 6 | C59: =IFERROR(INDEX(Sectoroverzicht!$B$3:$B$31,MATCH(E59,Sectoroverzicht!$C$3:$C$31,0),1),"") ->  | E59: =IF(OFFSET(Interventies_alt2!$A28,0,2)="","",OFFSET(Interventies_alt2!$A28,0,2)) ->  | H59: =IF(OFFSET(Interventies_alt2!$A28,0,3)="","",OFFSET(Interventies_alt2!$A28,0,3)) ->  | I59: =IF(OFFSET(Interventies_alt2!$A28,0,4)="","",OFFSET(Interventies_alt2!$A28,0,4)) ->  | J59: =IF($C59="","",OFFSET(Interventies_alt2!$A28,0,J$52)) ->  | K59: =IF($C59="","",OFFSET(Interventies_alt2!$A28,0,K$52)) ->  | L59: =IF($C59="","",OFFSET(Interventies_alt2!$A28,0,L$52)) ->  | M59: =IF($C59="","",OFFSET(Interventies_alt2!$A28,0,M$52)) ->  | N59: =IF($C59="","",OFFSET(Interventies_alt2!$A28,0,N$52)) -> 
B60: 7 | C60: =IFERROR(INDEX(Sectoroverzicht!$B$3:$B$31,MATCH(E60,Sectoroverzicht!$C$3:$C$31,0),1),"") ->  | E60: =IF(OFFSET(Interventies_alt2!$A29,0,2)="","",OFFSET(Interventies_alt2!$A29,0,2)) ->  | H60: =IF(OFFSET(Interventies_alt2!$A29,0,3)="","",OFFSET(Interventies_alt2!$A29,0,3)) ->  | I60: =IF(OFFSET(Interventies_alt2!$A29,0,4)="","",OFFSET(Interventies_alt2!$A29,0,4)) ->  | J60: =IF($C60="","",OFFSET(Interventies_alt2!$A29,0,J$52)) ->  | K60: =IF($C60="","",OFFSET(Interventies_alt2!$A29,0,K$52)) ->  | L60: =IF($C60="","",OFFSET(Interventies_alt2!$A29,0,L$52)) ->  | M60: =IF($C60="","",OFFSET(Interventies_alt2!$A29,0,M$52)) ->  | N60: =IF($C60="","",OFFSET(Interventies_alt2!$A29,0,N$52)) -> 
B61: 8 | C61: =IFERROR(INDEX(Sectoroverzicht!$B$3:$B$31,MATCH(E61,Sectoroverzicht!$C$3:$C$31,0),1),"") ->  | E61: =IF(OFFSET(Interventies_alt2!$A30,0,2)="","",OFFSET(Interventies_alt2!$A30,0,2)) ->  | H61: =IF(OFFSET(Interventies_alt2!$A30,0,3)="","",OFFSET(Interventies_alt2!$A30,0,3)) ->  | I61: =IF(OFFSET(Interventies_alt2!$A30,0,4)="","",OFFSET(Interventies_alt2!$A30,0,4)) ->  | J61: =IF($C61="","",OFFSET(Interventies_alt2!$A30,0,J$52)) ->  | K61: =IF($C61="","",OFFSET(Interventies_alt2!$A30,0,K$52)) ->  | L61: =IF($C61="","",OFFSET(Interventies_alt2!$A30,0,L$52)) ->  | M61: =IF($C61="","",OFFSET(Interventies_alt2!$A30,0,M$52)) ->  | N61: =IF($C61="","",OFFSET(Interventies_alt2!$A30,0,N$52)) -> 
B62: 9 | C62: =IFERROR(INDEX(Sectoroverzicht!$B$3:$B$31,MATCH(E62,Sectoroverzicht!$C$3:$C$31,0),1),"") ->  | E62: =IF(OFFSET(Interventies_alt2!$A31,0,2)="","",OFFSET(Interventies_alt2!$A31,0,2)) ->  | H62: =IF(OFFSET(Interventies_alt2!$A31,0,3)="","",OFFSET(Interventies_alt2!$A31,0,3)) ->  | I62: =IF(OFFSET(Interventies_alt2!$A31,0,4)="","",OFFSET(Interventies_alt2!$A31,0,4)) ->  | J62: =IF($C62="","",OFFSET(Interventies_alt2!$A31,0,J$52)) ->  | K62: =IF($C62="","",OFFSET(Interventies_alt2!$A31,0,K$52)) ->  | L62: =IF($C62="","",OFFSET(Interventies_alt2!$A31,0,L$52)) ->  | M62: =IF($C62="","",OFFSET(Interventies_alt2!$A31,0,M$52)) ->  | N62: =IF($C62="","",OFFSET(Interventies_alt2!$A31,0,N$52)) -> 
B63: 10 | C63: =IFERROR(INDEX(Sectoroverzicht!$B$3:$B$31,MATCH(E63,Sectoroverzicht!$C$3:$C$31,0),1),"") ->  | E63: =IF(OFFSET(Interventies_alt2!$A32,0,2)="","",OFFSET(Interventies_alt2!$A32,0,2)) ->  | H63: =IF(OFFSET(Interventies_alt2!$A32,0,3)="","",OFFSET(Interventies_alt2!$A32,0,3)) ->  | I63: =IF(OFFSET(Interventies_alt2!$A32,0,4)="","",OFFSET(Interventies_alt2!$A32,0,4)) ->  | J63: =IF($C63="","",OFFSET(Interventies_alt2!$A32,0,J$52)) ->  | K63: =IF($C63="","",OFFSET(Interventies_alt2!$A32,0,K$52)) ->  | L63: =IF($C63="","",OFFSET(Interventies_alt2!$A32,0,L$52)) ->  | M63: =IF($C63="","",OFFSET(Interventies_alt2!$A32,0,M$52)) ->  | N63: =IF($C63="","",OFFSET(Interventies_alt2!$A32,0,N$52)) -> 
B64: 11 | C64: =IFERROR(INDEX(Sectoroverzicht!$B$3:$B$31,MATCH(E64,Sectoroverzicht!$C$3:$C$31,0),1),"") ->  | E64: =IF(OFFSET(Interventies_alt2!$A33,0,2)="","",OFFSET(Interventies_alt2!$A33,0,2)) ->  | H64: =IF(OFFSET(Interventies_alt2!$A33,0,3)="","",OFFSET(Interventies_alt2!$A33,0,3)) ->  | I64: =IF(OFFSET(Interventies_alt2!$A33,0,4)="","",OFFSET(Interventies_alt2!$A33,0,4)) ->  | J64: =IF($C64="","",OFFSET(Interventies_alt2!$A33,0,J$52)) ->  | K64: =IF($C64="","",OFFSET(Interventies_alt2!$A33,0,K$52)) ->  | L64: =IF($C64="","",OFFSET(Interventies_alt2!$A33,0,L$52)) ->  | M64: =IF($C64="","",OFFSET(Interventies_alt2!$A33,0,M$52)) ->  | N64: =IF($C64="","",OFFSET(Interventies_alt2!$A33,0,N$52)) -> 
B65: 12 | C65: =IFERROR(INDEX(Sectoroverzicht!$B$3:$B$31,MATCH(E65,Sectoroverzicht!$C$3:$C$31,0),1),"") ->  | E65: =IF(OFFSET(Interventies_alt2!$A34,0,2)="","",OFFSET(Interventies_alt2!$A34,0,2)) ->  | H65: =IF(OFFSET(Interventies_alt2!$A34,0,3)="","",OFFSET(Interventies_alt2!$A34,0,3)) ->  | I65: =IF(OFFSET(Interventies_alt2!$A34,0,4)="","",OFFSET(Interventies_alt2!$A34,0,4)) ->  | J65: =IF($C65="","",OFFSET(Interventies_alt2!$A34,0,J$52)) ->  | K65: =IF($C65="","",OFFSET(Interventies_alt2!$A34,0,K$52)) ->  | L65: =IF($C65="","",OFFSET(Interventies_alt2!$A34,0,L$52)) ->  | M65: =IF($C65="","",OFFSET(Interventies_alt2!$A34,0,M$52)) ->  | N65: =IF($C65="","",OFFSET(Interventies_alt2!$A34,0,N$52)) -> 
B66: 13 | C66: =IFERROR(INDEX(Sectoroverzicht!$B$3:$B$31,MATCH(E66,Sectoroverzicht!$C$3:$C$31,0),1),"") ->  | E66: =IF(OFFSET(Interventies_alt2!$A35,0,2)="","",OFFSET(Interventies_alt2!$A35,0,2)) ->  | H66: =IF(OFFSET(Interventies_alt2!$A35,0,3)="","",OFFSET(Interventies_alt2!$A35,0,3)) ->  | I66: =IF(OFFSET(Interventies_alt2!$A35,0,4)="","",OFFSET(Interventies_alt2!$A35,0,4)) ->  | J66: =IF($C66="","",OFFSET(Interventies_alt2!$A35,0,J$52)) ->  | K66: =IF($C66="","",OFFSET(Interventies_alt2!$A35,0,K$52)) ->  | L66: =IF($C66="","",OFFSET(Interventies_alt2!$A35,0,L$52)) ->  | M66: =IF($C66="","",OFFSET(Interventies_alt2!$A35,0,M$52)) ->  | N66: =IF($C66="","",OFFSET(Interventies_alt2!$A35,0,N$52)) -> 
B67: 14 | C67: =IFERROR(INDEX(Sectoroverzicht!$B$3:$B$31,MATCH(E67,Sectoroverzicht!$C$3:$C$31,0),1),"") ->  | E67: =IF(OFFSET(Interventies_alt2!$A36,0,2)="","",OFFSET(Interventies_alt2!$A36,0,2)) ->  | H67: =IF(OFFSET(Interventies_alt2!$A36,0,3)="","",OFFSET(Interventies_alt2!$A36,0,3)) ->  | I67: =IF(OFFSET(Interventies_alt2!$A36,0,4)="","",OFFSET(Interventies_alt2!$A36,0,4)) ->  | J67: =IF($C67="","",OFFSET(Interventies_alt2!$A36,0,J$52)) ->  | K67: =IF($C67="","",OFFSET(Interventies_alt2!$A36,0,K$52)) ->  | L67: =IF($C67="","",OFFSET(Interventies_alt2!$A36,0,L$52)) ->  | M67: =IF($C67="","",OFFSET(Interventies_alt2!$A36,0,M$52)) ->  | N67: =IF($C67="","",OFFSET(Interventies_alt2!$A36,0,N$52)) -> 
B68: 15 | C68: =IFERROR(INDEX(Sectoroverzicht!$B$3:$B$31,MATCH(E68,Sectoroverzicht!$C$3:$C$31,0),1),"") ->  | E68: =IF(OFFSET(Interventies_alt2!$A37,0,2)="","",OFFSET(Interventies_alt2!$A37,0,2)) ->  | H68: =IF(OFFSET(Interventies_alt2!$A37,0,3)="","",OFFSET(Interventies_alt2!$A37,0,3)) ->  | I68: =IF(OFFSET(Interventies_alt2!$A37,0,4)="","",OFFSET(Interventies_alt2!$A37,0,4)) ->  | J68: =IF($C68="","",OFFSET(Interventies_alt2!$A37,0,J$52)) ->  | K68: =IF($C68="","",OFFSET(Interventies_alt2!$A37,0,K$52)) ->  | L68: =IF($C68="","",OFFSET(Interventies_alt2!$A37,0,L$52)) ->  | M68: =IF($C68="","",OFFSET(Interventies_alt2!$A37,0,M$52)) ->  | N68: =IF($C68="","",OFFSET(Interventies_alt2!$A37,0,N$52)) -> 
A69: Referentie zorg | B69: 1 | C69: =IFERROR(INDEX(Sectoroverzicht!$B$3:$B$31,MATCH(E69,Sectoroverzicht!$C$3:$C$31,0),1),"") -> Zorgverzekeringswet | E69: =IF(OFFSET(Interventies_ref2!$A23,0,2)="","",OFFSET(Interventies_ref2!$A23,0,2)) -> Medisch-specialistische zorg | H69: =IF(OFFSET(Interventies_ref2!$A23,0,3)="","",OFFSET(Interventies_ref2!$A23,0,3)) ->  | I69: =IF(OFFSET(Interventies_ref2!$A23,0,4)="","",OFFSET(Interventies_ref2!$A23,0,4)) ->  | J69: =IF($C69="","",OFFSET(Interventies_ref2!$A23,0,J$52)) -> 0 | K69: =IF($C69="","",OFFSET(Interventies_ref2!$A23,0,K$52)) -> 0 | L69: =IF($C69="","",OFFSET(Interventies_ref2!$A23,0,L$52)) -> 0 | M69: =IF($C69="","",OFFSET(Interventies_ref2!$A23,0,M$52)) -> 0 | N69: =IF($C69="","",OFFSET(Interventies_ref2!$A23,0,N$52)) -> 0
B70: 2 | C70: =IFERROR(INDEX(Sectoroverzicht!$B$3:$B$31,MATCH(E70,Sectoroverzicht!$C$3:$C$31,0),1),"") ->  | E70: =IF(OFFSET(Interventies_ref2!$A24,0,2)="","",OFFSET(Interventies_ref2!$A24,0,2)) ->  | H70: =IF(OFFSET(Interventies_ref2!$A24,0,3)="","",OFFSET(Interventies_ref2!$A24,0,3)) ->  | I70: =IF(OFFSET(Interventies_ref2!$A24,0,4)="","",OFFSET(Interventies_ref2!$A24,0,4)) ->  | J70: =IF($C70="","",OFFSET(Interventies_ref2!$A24,0,J$52)) ->  | K70: =IF($C70="","",OFFSET(Interventies_ref2!$A24,0,K$52)) ->  | L70: =IF($C70="","",OFFSET(Interventies_ref2!$A24,0,L$52)) ->  | M70: =IF($C70="","",OFFSET(Interventies_ref2!$A24,0,M$52)) ->  | N70: =IF($C70="","",OFFSET(Interventies_ref2!$A24,0,N$52)) -> 
B71: 3 | C71: =IFERROR(INDEX(Sectoroverzicht!$B$3:$B$31,MATCH(E71,Sectoroverzicht!$C$3:$C$31,0),1),"") ->  | E71: =IF(OFFSET(Interventies_ref2!$A25,0,2)="","",OFFSET(Interventies_ref2!$A25,0,2)) ->  | H71: =IF(OFFSET(Interventies_ref2!$A25,0,3)="","",OFFSET(Interventies_ref2!$A25,0,3)) ->  | I71: =IF(OFFSET(Interventies_ref2!$A25,0,4)="","",OFFSET(Interventies_ref2!$A25,0,4)) ->  | J71: =IF($C71="","",OFFSET(Interventies_ref2!$A25,0,J$52)) ->  | K71: =IF($C71="","",OFFSET(Interventies_ref2!$A25,0,K$52)) ->  | L71: =IF($C71="","",OFFSET(Interventies_ref2!$A25,0,L$52)) ->  | M71: =IF($C71="","",OFFSET(Interventies_ref2!$A25,0,M$52)) ->  | N71: =IF($C71="","",OFFSET(Interventies_ref2!$A25,0,N$52)) -> 
B72: 4 | C72: =IFERROR(INDEX(Sectoroverzicht!$B$3:$B$31,MATCH(E72,Sectoroverzicht!$C$3:$C$31,0),1),"") ->  | E72: =IF(OFFSET(Interventies_ref2!$A26,0,2)="","",OFFSET(Interventies_ref2!$A26,0,2)) ->  | H72: =IF(OFFSET(Interventies_ref2!$A26,0,3)="","",OFFSET(Interventies_ref2!$A26,0,3)) ->  | I72: =IF(OFFSET(Interventies_ref2!$A26,0,4)="","",OFFSET(Interventies_ref2!$A26,0,4)) ->  | J72: =IF($C72="","",OFFSET(Interventies_ref2!$A26,0,J$52)) ->  | K72: =IF($C72="","",OFFSET(Interventies_ref2!$A26,0,K$52)) ->  | L72: =IF($C72="","",OFFSET(Interventies_ref2!$A26,0,L$52)) ->  | M72: =IF($C72="","",OFFSET(Interventies_ref2!$A26,0,M$52)) ->  | N72: =IF($C72="","",OFFSET(Interventies_ref2!$A26,0,N$52)) -> 
B73: 5 | C73: =IFERROR(INDEX(Sectoroverzicht!$B$3:$B$31,MATCH(E73,Sectoroverzicht!$C$3:$C$31,0),1),"") ->  | E73: =IF(OFFSET(Interventies_ref2!$A27,0,2)="","",OFFSET(Interventies_ref2!$A27,0,2)) ->  | H73: =IF(OFFSET(Interventies_ref2!$A27,0,3)="","",OFFSET(Interventies_ref2!$A27,0,3)) ->  | I73: =IF(OFFSET(Interventies_ref2!$A27,0,4)="","",OFFSET(Interventies_ref2!$A27,0,4)) ->  | J73: =IF($C73="","",OFFSET(Interventies_ref2!$A27,0,J$52)) ->  | K73: =IF($C73="","",OFFSET(Interventies_ref2!$A27,0,K$52)) ->  | L73: =IF($C73="","",OFFSET(Interventies_ref2!$A27,0,L$52)) ->  | M73: =IF($C73="","",OFFSET(Interventies_ref2!$A27,0,M$52)) ->  | N73: =IF($C73="","",OFFSET(Interventies_ref2!$A27,0,N$52)) -> 
B74: 6 | C74: =IFERROR(INDEX(Sectoroverzicht!$B$3:$B$31,MATCH(E74,Sectoroverzicht!$C$3:$C$31,0),1),"") ->  | E74: =IF(OFFSET(Interventies_ref2!$A28,0,2)="","",OFFSET(Interventies_ref2!$A28,0,2)) ->  | H74: =IF(OFFSET(Interventies_ref2!$A28,0,3)="","",OFFSET(Interventies_ref2!$A28,0,3)) ->  | I74: =IF(OFFSET(Interventies_ref2!$A28,0,4)="","",OFFSET(Interventies_ref2!$A28,0,4)) ->  | J74: =IF($C74="","",OFFSET(Interventies_ref2!$A28,0,J$52)) ->  | K74: =IF($C74="","",OFFSET(Interventies_ref2!$A28,0,K$52)) ->  | L74: =IF($C74="","",OFFSET(Interventies_ref2!$A28,0,L$52)) ->  | M74: =IF($C74="","",OFFSET(Interventies_ref2!$A28,0,M$52)) ->  | N74: =IF($C74="","",OFFSET(Interventies_ref2!$A28,0,N$52)) -> 
B75: 7 | C75: =IFERROR(INDEX(Sectoroverzicht!$B$3:$B$31,MATCH(E75,Sectoroverzicht!$C$3:$C$31,0),1),"") ->  | E75: =IF(OFFSET(Interventies_ref2!$A29,0,2)="","",OFFSET(Interventies_ref2!$A29,0,2)) ->  | H75: =IF(OFFSET(Interventies_ref2!$A29,0,3)="","",OFFSET(Interventies_ref2!$A29,0,3)) ->  | I75: =IF(OFFSET(Interventies_ref2!$A29,0,4)="","",OFFSET(Interventies_ref2!$A29,0,4)) ->  | J75: =IF($C75="","",OFFSET(Interventies_ref2!$A29,0,J$52)) ->  | K75: =IF($C75="","",OFFSET(Interventies_ref2!$A29,0,K$52)) ->  | L75: =IF($C75="","",OFFSET(Interventies_ref2!$A29,0,L$52)) ->  | M75: =IF($C75="","",OFFSET(Interventies_ref2!$A29,0,M$52)) ->  | N75: =IF($C75="","",OFFSET(Interventies_ref2!$A29,0,N$52)) -> 
B76: 8 | C76: =IFERROR(INDEX(Sectoroverzicht!$B$3:$B$31,MATCH(E76,Sectoroverzicht!$C$3:$C$31,0),1),"") ->  | E76: =IF(OFFSET(Interventies_ref2!$A30,0,2)="","",OFFSET(Interventies_ref2!$A30,0,2)) ->  | H76: =IF(OFFSET(Interventies_ref2!$A30,0,3)="","",OFFSET(Interventies_ref2!$A30,0,3)) ->  | I76: =IF(OFFSET(Interventies_ref2!$A30,0,4)="","",OFFSET(Interventies_ref2!$A30,0,4)) ->  | J76: =IF($C76="","",OFFSET(Interventies_ref2!$A30,0,J$52)) ->  | K76: =IF($C76="","",OFFSET(Interventies_ref2!$A30,0,K$52)) ->  | L76: =IF($C76="","",OFFSET(Interventies_ref2!$A30,0,L$52)) ->  | M76: =IF($C76="","",OFFSET(Interventies_ref2!$A30,0,M$52)) ->  | N76: =IF($C76="","",OFFSET(Interventies_ref2!$A30,0,N$52)) -> 
B77: 9 | C77: =IFERROR(INDEX(Sectoroverzicht!$B$3:$B$31,MATCH(E77,Sectoroverzicht!$C$3:$C$31,0),1),"") ->  | E77: =IF(OFFSET(Interventies_ref2!$A31,0,2)="","",OFFSET(Interventies_ref2!$A31,0,2)) ->  | H77: =IF(OFFSET(Interventies_ref2!$A31,0,3)="","",OFFSET(Interventies_ref2!$A31,0,3)) ->  | I77: =IF(OFFSET(Interventies_ref2!$A31,0,4)="","",OFFSET(Interventies_ref2!$A31,0,4)) ->  | J77: =IF($C77="","",OFFSET(Interventies_ref2!$A31,0,J$52)) ->  | K77: =IF($C77="","",OFFSET(Interventies_ref2!$A31,0,K$52)) ->  | L77: =IF($C77="","",OFFSET(Interventies_ref2!$A31,0,L$52)) ->  | M77: =IF($C77="","",OFFSET(Interventies_ref2!$A31,0,M$52)) ->  | N77: =IF($C77="","",OFFSET(Interventies_ref2!$A31,0,N$52)) -> 
B78: 10 | C78: =IFERROR(INDEX(Sectoroverzicht!$B$3:$B$31,MATCH(E78,Sectoroverzicht!$C$3:$C$31,0),1),"") ->  | E78: =IF(OFFSET(Interventies_ref2!$A32,0,2)="","",OFFSET(Interventies_ref2!$A32,0,2)) ->  | H78: =IF(OFFSET(Interventies_ref2!$A32,0,3)="","",OFFSET(Interventies_ref2!$A32,0,3)) ->  | I78: =IF(OFFSET(Interventies_ref2!$A32,0,4)="","",OFFSET(Interventies_ref2!$A32,0,4)) ->  | J78: =IF($C78="","",OFFSET(Interventies_ref2!$A32,0,J$52)) ->  | K78: =IF($C78="","",OFFSET(Interventies_ref2!$A32,0,K$52)) ->  | L78: =IF($C78="","",OFFSET(Interventies_ref2!$A32,0,L$52)) ->  | M78: =IF($C78="","",OFFSET(Interventies_ref2!$A32,0,M$52)) ->  | N78: =IF($C78="","",OFFSET(Interventies_ref2!$A32,0,N$52)) -> 
B79: 11 | C79: =IFERROR(INDEX(Sectoroverzicht!$B$3:$B$31,MATCH(E79,Sectoroverzicht!$C$3:$C$31,0),1),"") ->  | E79: =IF(OFFSET(Interventies_ref2!$A33,0,2)="","",OFFSET(Interventies_ref2!$A33,0,2)) ->  | H79: =IF(OFFSET(Interventies_ref2!$A33,0,3)="","",OFFSET(Interventies_ref2!$A33,0,3)) ->  | I79: =IF(OFFSET(Interventies_ref2!$A33,0,4)="","",OFFSET(Interventies_ref2!$A33,0,4)) ->  | J79: =IF($C79="","",OFFSET(Interventies_ref2!$A33,0,J$52)) ->  | K79: =IF($C79="","",OFFSET(Interventies_ref2!$A33,0,K$52)) ->  | L79: =IF($C79="","",OFFSET(Interventies_ref2!$A33,0,L$52)) ->  | M79: =IF($C79="","",OFFSET(Interventies_ref2!$A33,0,M$52)) ->  | N79: =IF($C79="","",OFFSET(Interventies_ref2!$A33,0,N$52)) -> 
B80: 12 | C80: =IFERROR(INDEX(Sectoroverzicht!$B$3:$B$31,MATCH(E80,Sectoroverzicht!$C$3:$C$31,0),1),"") ->  | E80: =IF(OFFSET(Interventies_ref2!$A34,0,2)="","",OFFSET(Interventies_ref2!$A34,0,2)) ->  | H80: =IF(OFFSET(Interventies_ref2!$A34,0,3)="","",OFFSET(Interventies_ref2!$A34,0,3)) ->  | I80: =IF(OFFSET(Interventies_ref2!$A34,0,4)="","",OFFSET(Interventies_ref2!$A34,0,4)) ->  | J80: =IF($C80="","",OFFSET(Interventies_ref2!$A34,0,J$52)) ->  | K80: =IF($C80="","",OFFSET(Interventies_ref2!$A34,0,K$52)) ->  | L80: =IF($C80="","",OFFSET(Interventies_ref2!$A34,0,L$52)) ->  | M80: =IF($C80="","",OFFSET(Interventies_ref2!$A34,0,M$52)) ->  | N80: =IF($C80="","",OFFSET(Interventies_ref2!$A34,0,N$52)) -> 
B81: 13 | C81: =IFERROR(INDEX(Sectoroverzicht!$B$3:$B$31,MATCH(E81,Sectoroverzicht!$C$3:$C$31,0),1),"") ->  | E81: =IF(OFFSET(Interventies_ref2!$A35,0,2)="","",OFFSET(Interventies_ref2!$A35,0,2)) ->  | H81: =IF(OFFSET(Interventies_ref2!$A35,0,3)="","",OFFSET(Interventies_ref2!$A35,0,3)) ->  | I81: =IF(OFFSET(Interventies_ref2!$A35,0,4)="","",OFFSET(Interventies_ref2!$A35,0,4)) ->  | J81: =IF($C81="","",OFFSET(Interventies_ref2!$A35,0,J$52)) ->  | K81: =IF($C81="","",OFFSET(Interventies_ref2!$A35,0,K$52)) ->  | L81: =IF($C81="","",OFFSET(Interventies_ref2!$A35,0,L$52)) ->  | M81: =IF($C81="","",OFFSET(Interventies_ref2!$A35,0,M$52)) ->  | N81: =IF($C81="","",OFFSET(Interventies_ref2!$A35,0,N$52)) -> 
B82: 14 | C82: =IFERROR(INDEX(Sectoroverzicht!$B$3:$B$31,MATCH(E82,Sectoroverzicht!$C$3:$C$31,0),1),"") ->  | E82: =IF(OFFSET(Interventies_ref2!$A36,0,2)="","",OFFSET(Interventies_ref2!$A36,0,2)) ->  | H82: =IF(OFFSET(Interventies_ref2!$A36,0,3)="","",OFFSET(Interventies_ref2!$A36,0,3)) ->  | I82: =IF(OFFSET(Interventies_ref2!$A36,0,4)="","",OFFSET(Interventies_ref2!$A36,0,4)) ->  | J82: =IF($C82="","",OFFSET(Interventies_ref2!$A36,0,J$52)) ->  | K82: =IF($C82="","",OFFSET(Interventies_ref2!$A36,0,K$52)) ->  | L82: =IF($C82="","",OFFSET(Interventies_ref2!$A36,0,L$52)) ->  | M82: =IF($C82="","",OFFSET(Interventies_ref2!$A36,0,M$52)) ->  | N82: =IF($C82="","",OFFSET(Interventies_ref2!$A36,0,N$52)) -> 
B83: 15 | C83: =IFERROR(INDEX(Sectoroverzicht!$B$3:$B$31,MATCH(E83,Sectoroverzicht!$C$3:$C$31,0),1),"") ->  | E83: =IF(OFFSET(Interventies_ref2!$A37,0,2)="","",OFFSET(Interventies_ref2!$A37,0,2)) ->  | H83: =IF(OFFSET(Interventies_ref2!$A37,0,3)="","",OFFSET(Interventies_ref2!$A37,0,3)) ->  | I83: =IF(OFFSET(Interventies_ref2!$A37,0,4)="","",OFFSET(Interventies_ref2!$A37,0,4)) ->  | J83: =IF($C83="","",OFFSET(Interventies_ref2!$A37,0,J$52)) ->  | K83: =IF($C83="","",OFFSET(Interventies_ref2!$A37,0,K$52)) ->  | L83: =IF($C83="","",OFFSET(Interventies_ref2!$A37,0,L$52)) ->  | M83: =IF($C83="","",OFFSET(Interventies_ref2!$A37,0,M$52)) ->  | N83: =IF($C83="","",OFFSET(Interventies_ref2!$A37,0,N$52)) -> 
A87: Met onderstaande knoppen kunt u snel over de hoofdonderdelen van de BIA navigeren. De kleur matcht met de band bovenin het scherm. De knop 'Verder' hierboven volstaat echter om het hele proces te doorlopen.

Sheet Budgetimpact_Overheid2
A3: BUDGET IMPACT ANALYSE BIJ DOELMATIGHEIDSONDERZOEK
A4: BUDGETIMPACT OVERHEID
B6: i | C6: Navigatie
B10: =Populatie2!$C$17 -> Scenario 2: Niet nader omschreven
B12: i
I13: ONZEKERHEID | K13: SENSITIVITEITSANALYSE i
B14: SPECIFICATIE MATE VAN ONZEKERHEID / SENSITIVITEITSANALYSE | K14: MIN | L14: MAX
B15: i | C15: Specificatie populatie | I15: =IF(Toelichting_Interventies_alt2!$E$31="","Onbekend!",Toelichting_Interventies_alt2!$E$31) -> Groot | J15: =IF(I15="Klein",1,IF(I15="Gemiddeld",0,IF(I15="Groot",-1,""))) -> -1 | K15: 0.7 | L15: 1.1
B16: i | C16: ALTERNATIEVE ZORG | Kosten interventiemix | I16: =IF(Toelichting_Interventies_alt2!$E$31="","Onbekend!",Toelichting_Interventies_alt2!$E$31) -> Groot | J16: =IF(I16="Klein",1,IF(I16="Gemiddeld",0,IF(I16="Groot",-1,""))) -> -1 | K16: 0.8 | L16: 1.2
B17: i | C17: REFERENTIE ZORG | Kosten interventiemix | I17: =IF(Toelichting_Interventies_ref2!$E$31="","Onbekend!",Toelichting_Interventies_ref2!$E$31) -> Klein | J17: =IF(I17="Klein",1,IF(I17="Gemiddeld",0,IF(I17="Groot",-1,""))) -> 1 | K17: 0.9 | L17: 1.3
B19: IMPACT | I19: Totaal | J19: =IF(Startjaar="",1,Startjaar) -> 2019 | K19: =J19+1 -> 2020 | L19: =K19+1 -> 2021 | M19: =L19+1 -> 2022 | N19: =M19+1 -> 2023
C20: Aantal startende zorggebruikers | J20: =Populatie2!D$39 -> 0 | K20: =Populatie2!E$39 -> 0 | L20: =Populatie2!F$39 -> 0 | M20: =Populatie2!G$39 -> 0 | N20: =Populatie2!H$39 -> 0
B21: i | C21: Bruto verschil in HEALTHCARE uitgaven per patient onder Zorgverzekeringswet | J21: =SUM(J22,J25) -> 0 | K21: =SUM(K22,K25) -> 0 | L21: =SUM(L22,L25) -> 0 | M21: =SUM(M22,M25) -> 0 | N21: =SUM(N22,N25) -> 0
D22: Structurele kosten | J22: =J23-J24 -> 0 | K22: =K23-K24 -> 0 | L22: =L23-L24 -> 0 | M22: =M23-M24 -> 0 | N22: =N23-N24 -> 0
D23: Bruto uitgaven alternatieve zorg (per follow-up jaar!) | J23: =SUMIFS(J$65:J$79,$C$65:$C$79,"Zorgverzekeringswet",$I$65:$I$79,"Structureel") -> 0 | K23: =SUMIFS(K$65:K$79,$C$65:$C$79,"Zorgverzekeringswet",$I$65:$I$79,"Structureel") -> 0 | L23: =SUMIFS(L$65:L$79,$C$65:$C$79,"Zorgverzekeringswet",$I$65:$I$79,"Structureel") -> 0 | M23: =SUMIFS(M$65:M$79,$C$65:$C$79,"Zorgverzekeringswet",$I$65:$I$79,"Structureel") -> 0 | N23: =SUMIFS(N$65:N$79,$C$65:$C$79,"Zorgverzekeringswet",$I$65:$I$79,"Structureel") -> 0
D24: Bruto uitgaven referentiezorg | J24: =SUMIFS(J$80:J$94,$C$80:$C$94,"Zorgverzekeringswet",$I$80:$I$94,"Structureel") -> 0 | K24: =SUMIFS(K$80:K$94,$C$80:$C$94,"Zorgverzekeringswet",$I$80:$I$94,"Structureel") -> 0 | L24: =SUMIFS(L$80:L$94,$C$80:$C$94,"Zorgverzekeringswet",$I$80:$I$94,"Structureel") -> 0 | M24: =SUMIFS(M$80:M$94,$C$80:$C$94,"Zorgverzekeringswet",$I$80:$I$94,"Structureel") -> 0 | N24: =SUMIFS(N$80:N$94,$C$80:$C$94,"Zorgverzekeringswet",$I$80:$I$94,"Structureel") -> 0
D25: Incidentele kosten | J25: =J26-J27 -> 0 | K25: =K26-K27 -> 0 | L25: =L26-L27 -> 0 | M25: =M26-M27 -> 0 | N25: =N26-N27 -> 0
D26: Bruto uitgaven alternatieve zorg (per follow-up jaar!) | J26: =SUMIFS(J$65:J$79,$C$65:$C$79,"Zorgverzekeringswet",$I$65:$I$79,"Incidenteel") -> 0 | K26: =SUMIFS(K$65:K$79,$C$65:$C$79,"Zorgverzekeringswet",$I$65:$I$79,"Incidenteel") -> 0 | L26: =SUMIFS(L$65:L$79,$C$65:$C$79,"Zorgverzekeringswet",$I$65:$I$79,"Incidenteel") -> 0 | M26: =SUMIFS(M$65:M$79,$C$65:$C$79,"Zorgverzekeringswet",$I$65:$I$79,"Incidenteel") -> 0 | N26: =SUMIFS(N$65:N$79,$C$65:$C$79,"Zorgverzekeringswet",$I$65:$I$79,"Incidenteel") -> 0
D27: Bruto uitgaven referentiezorg | J27: =SUMIFS(J$80:J$94,$C$80:$C$94,"Zorgverzekeringswet",$I$80:$I$94,"Incidenteel") -> 0 | K27: =SUMIFS(K$80:K$94,$C$80:$C$94,"Zorgverzekeringswet",$I$80:$I$94,"Incidenteel") -> 0 | L27: =SUMIFS(L$80:L$94,$C$80:$C$94,"Zorgverzekeringswet",$I$80:$I$94,"Incidenteel") -> 0 | M27: =SUMIFS(M$80:M$94,$C$80:$C$94,"Zorgverzekeringswet",$I$80:$I$94,"Incidenteel") -> 0 | N27: =SUMIFS(N$80:N$94,$C$80:$C$94,"Zorgverzekeringswet",$I$80:$I$94,"Incidenteel") -> 0
C28: Bruto verschil in HEALTHCARE uitgaven per patient onder Wet Langdurige Zorg | J28: =SUM(J29,J32) -> 0 | K28: =SUM(K29,K32) -> 0 | L28: =SUM(L29,L32) -> 0 | M28: =SUM(M29,M32) -> 0 | N28: =SUM(N29,N32) -> 0
D29: Structurele kosten | J29: =J30-J31 -> 0 | K29: =K30-K31 -> 0 | L29: =L30-L31 -> 0 | M29: =M30-M31 -> 0 | N29: =N30-N31 -> 0
D30: Bruto uitgaven alternatieve zorg (per follow-up jaar!) | J30: =SUMIFS(J$65:J$79,$C$65:$C$79,"Wet Langdurige Zorg",$I$65:$I$79,"Structureel") -> 0 | K30: =SUMIFS(K$65:K$79,$C$65:$C$79,"Wet Langdurige Zorg",$I$65:$I$79,"Structureel") -> 0 | L30: =SUMIFS(L$65:L$79,$C$65:$C$79,"Wet Langdurige Zorg",$I$65:$I$79,"Structureel") -> 0 | M30: =SUMIFS(M$65:M$79,$C$65:$C$79,"Wet Langdurige Zorg",$I$65:$I$79,"Structureel") -> 0 | N30: =SUMIFS(N$65:N$79,$C$65:$C$79,"Wet Langdurige Zorg",$I$65:$I$79,"Structureel") -> 0
D31: Bruto uitgaven referentiezorg | J31: =SUMIFS(J$80:J$94,$C$80:$C$94,"Wet Langdurige Zorg",$I$80:$I$94,"Structureel") -> 0 | K31: =SUMIFS(K$80:K$94,$C$80:$C$94,"Wet Langdurige Zorg",$I$80:$I$94,"Structureel") -> 0 | L31: =SUMIFS(L$80:L$94,$C$80:$C$94,"Wet Langdurige Zorg",$I$80:$I$94,"Structureel") -> 0 | M31: =SUMIFS(M$80:M$94,$C$80:$C$94,"Wet Langdurige Zorg",$I$80:$I$94,"Structureel") -> 0 | N31: =SUMIFS(N$80:N$94,$C$80:$C$94,"Wet Langdurige Zorg",$I$80:$I$94,"Structureel") -> 0
D32: Incidentele kosten | J32: =J33-J34 -> 0 | K32: =K33-K34 -> 0 | L32: =L33-L34 -> 0 | M32: =M33-M34 -> 0 | N32: =N33-N34 -> 0
D33: Bruto uitgaven alternatieve zorg (per follow-up jaar!) | J33: =SUMIFS(J$65:J$79,$C$65:$C$79,"Wet Langdurige Zorg",$I$65:$I$79,"Incidenteel") -> 0 | K33: =SUMIFS(K$65:K$79,$C$65:$C$79,"Wet Langdurige Zorg",$I$65:$I$79,"Incidenteel") -> 0 | L33: =SUMIFS(L$65:L$79,$C$65:$C$79,"Wet Langdurige Zorg",$I$65:$I$79,"Incidenteel") -> 0 | M33: =SUMIFS(M$65:M$79,$C$65:$C$79,"Wet Langdurige Zorg",$I$65:$I$79,"Incidenteel") -> 0 | N33: =SUMIFS(N$65:N$79,$C$65:$C$79,"Wet Langdurige Zorg",$I$65:$I$79,"Incidenteel") -> 0
D34: Bruto uitgaven referentiezorg | J34: =SUMIFS(J$80:J$94,$C$80:$C$94,"Wet Langdurige Zorg",$I$80:$I$94,"Incidenteel") -> 0 | K34: =SUMIFS(K$80:K$94,$C$80:$C$94,"Wet Langdurige Zorg",$I$80:$I$94,"Incidenteel") -> 0 | L34: =SUMIFS(L$80:L$94,$C$80:$C$94,"Wet Langdurige Zorg",$I$80:$I$94,"Incidenteel") -> 0 | M34: =SUMIFS(M$80:M$94,$C$80:$C$94,"Wet Langdurige Zorg",$I$80:$I$94,"Incidenteel") -> 0 | N34: =SUMIFS(N$80:N$94,$C$80:$C$94,"Wet Langdurige Zorg",$I$80:$I$94,"Incidenteel") -> 0
C35: Bruto verschil in NON-HEALTHCARE uitgaven per patient | J35: =J36-J37 -> 0 | K35: =K36-K37 -> 0 | L35: =L36-L37 -> 0 | M35: =M36-M37 -> 0 | N35: =N36-N37 -> 0
D36: Bruto uitgaven alternatieve zorg (per follow-up jaar!) | J36: =SUMIFS(J$65:J$79,$E$65:$E$79,"Non-Healthcare") -> 0 | K36: =SUMIFS(K$65:K$79,$E$65:$E$79,"Non-Healthcare") -> 0 | L36: =SUMIFS(L$65:L$79,$E$65:$E$79,"Non-Healthcare") -> 0 | M36: =SUMIFS(M$65:M$79,$E$65:$E$79,"Non-Healthcare") -> 0 | N36: =SUMIFS(N$65:N$79,$E$65:$E$79,"Non-Healthcare") -> 0
D37: Bruto uitgaven referentiezorg | J37: =SUMIFS(J$80:J$94,$E$80:$E$94,"Non-Healthcare") -> 0 | K37: =SUMIFS(K$80:K$94,$E$80:$E$94,"Non-Healthcare") -> 0 | L37: =SUMIFS(L$80:L$94,$E$80:$E$94,"Non-Healthcare") -> 0 | M37: =SUMIFS(M$80:M$94,$E$80:$E$94,"Non-Healthcare") -> 0 | N37: =SUMIFS(N$80:N$94,$E$80:$E$94,"Non-Healthcare") -> 0
C38: Totale budget-impact Zorgverzekeringswet | I38: =SUM(J38:N38) -> 0 | J38: =SUM(J$20*J21)/1000 -> 0 | K38: =SUM(J$20*K21,K$20*J21)/1000 -> 0 | L38: =SUM(J$20*L21,K$20*K21,L$20*J21)/1000 -> 0 | M38: =SUM(J$20*M21,K$20*L21,L$20*K21,M$20*J21)/1000 -> 0 | N38: =SUM($J$20*N21,$K$20*M21,$L$20*L21,$M$20*K21,N20*J21)/1000 -> 0
C39: Totale budget-impact Wet Langdurige Zorg | I39: =SUM(J39:N39) -> 0 | J39: =SUM(J$20*J28)/1000 -> 0 | K39: =SUM(J$20*K28,K$20*J28)/1000 -> 0 | L39: =SUM(J$20*L28,K$20*K28,L$20*J28)/1000 -> 0 | M39: =SUM(J$20*M28,K$20*L28,L$20*K28,M$20*J28)/1000 -> 0 | N39: =SUM($J$20*N28,$K$20*M28,$L$20*L28,$M$20*K28,N20*J28)/1000 -> 0
C40: Totaal impact HEALTHCARE (x€1.000) | I40: =SUM(J40:N40) -> 0 | J40: =SUM(J38:J39) -> 0 | K40: =SUM(K38:K39) -> 0 | L40: =SUM(L38:L39) -> 0 | M40: =SUM(M38:M39) -> 0 | N40: =SUM(N38:N39) -> 0
C41: Totaal impact NON-HEALTHCARE (x€1.000) | I41: =SUM(J41:N41) -> 0 | J41: =SUM(J$20*J35)/1000 -> 0 | K41: =SUM(J$20*K35,K$20*J35)/1000 -> 0 | L41: =SUM(J$20*L35,K$20*K35,L$20*J35)/1000 -> 0 | M41: =SUM(J$20*M35,K$20*L35,L$20*K35,M$20*J35)/1000 -> 0 | N41: =SUM($J$20*N35,$K$20*M35,$L$20*L35,$M$20*K35,N21*J35)/1000 -> 0
C42: Totaal impact (x€1.000) | I42: =SUM(I40:I41) -> 0 | J42: 0 | K42: 0 | L42: 0 | M42: 0 | N42: 0
B44: SENSITIVITEITSANALYSE
B45: i | C45: Populatie min-scenario | J45: =J$20*$K$15 -> 0 | K45: =K$20*$K$15 -> 0 | L45: =L$20*$K$15 -> 0 | M45: =M$20*$K$15 -> 0 | N45: =N$20*$K$15 -> 0
B46: i | C46: Populatie max-scenario | J46: =J$20*$L$15 -> 0 | K46: =K$20*$L$15 -> 0 | L46: =L$20*$L$15 -> 0 | M46: =M$20*$L$15 -> 0 | N46: =N$20*$L$15 -> 0
B47: IMPACT HEALTHCARE | E47: ="BANDBREEDTE: "&TEXT(MAX(I50:I53),"€0.0K")&" TOT "&TEXT(MIN(I50:I53),"€0.0K") -> BANDBREEDTE: €00K TOT €00K
B48: i | C48: Bruto verschil min-scenario: kosten referent minimaal, alternatief maximaal | J48: =SUM(J23*$L$16-J24*$K$17,J26*$L$16-J27*$K$17,J30*$L$16-J31*$K$17,J33*$L$16-J34*$K$17) -> 0 | K48: =SUM(K23*$L$16-K24*$K$17,K26*$L$16-K27*$K$17,K30*$L$16-K31*$K$17,K33*$L$16-K34*$K$17) -> 0 | L48: =SUM(L23*$L$16-L24*$K$17,L26*$L$16-L27*$K$17,L30*$L$16-L31*$K$17,L33*$L$16-L34*$K$17) -> 0 | M48: =SUM(M23*$L$16-M24*$K$17,M26*$L$16-M27*$K$17,M30*$L$16-M31*$K$17,M33*$L$16-M34*$K$17) -> 0 | N48: =SUM(N23*$L$16-N24*$K$17,N26*$L$16-N27*$K$17,N30*$L$16-N31*$K$17,N33*$L$16-N34*$K$17) -> 0
B49: i | C49: Bruto verschil max-scenario: kosten referent maximaal, alternatief minimaal | J49: =SUM(J23*$K$16-J24*$L$17,J26*$K$16-J27*$L$17,J30*$K$16-J31*$L$17,J33*$K$16-J34*$L$17) -> 0 | K49: =SUM(K23*$K$16-K24*$L$17,K26*$K$16-K27*$L$17,K30*$K$16-K31*$L$17,K33*$K$16-K34*$L$17) -> 0 | L49: =SUM(L23*$K$16-L24*$L$17,L26*$K$16-L27*$L$17,L30*$K$16-L31*$L$17,L33*$K$16-L34*$L$17) -> 0 | M49: =SUM(M23*$K$16-M24*$L$17,M26*$K$16-M27*$L$17,M30*$K$16-M31*$L$17,M33*$K$16-M34*$L$17) -> 0 | N49: =SUM(N23*$K$16-N24*$L$17,N26*$K$16-N27*$L$17,N30*$K$16-N31*$L$17,N33*$K$16-N34*$L$17) -> 0
C50: Sensitiviteitsanalyse min-scenario kosten, populatie min (x€1000) | I50: =SUM(J50:N50) -> 0 | J50: =SUM(J45*J48)/1000 -> 0 | K50: =SUM(J45*K48,K45*J48)/1000 -> 0 | L50: =SUM(J45*L48,K45*K48,L45*J48)/1000 -> 0 | M50: =SUM(J45*M48,K45*L48,L45*K48,M45*J48)/1000 -> 0 | N50: =SUM(J45*N48,K45*M48,L45*L48,M45*K48,N45*J48)/1000 -> 0
C51: Sensitiviteitsanalyse min-scenario kosten, populatie max (x€1000) | I51: =SUM(J51:N51) -> 0 | J51: =SUM(J46*J48)/1000 -> 0 | K51: =SUM(J46*K48,K46*J48)/1000 -> 0 | L51: =SUM(J46*L48,K46*K48,L46*J48)/1000 -> 0 | M51: =SUM(J46*M48,K46*L48,L46*K48,M46*J48)/1000 -> 0 | N51: =SUM(J46*N48,K46*M48,L46*L48,M46*K48,N46*J48)/1000 -> 0
C52: Sensitiviteitsanalyse max-scenario kosten, populatie min (x€1000) | I52: =SUM(J52:N52) -> 0 | J52: =SUM(J45*J49)/1000 -> 0 | K52: =SUM(J45*K49,K45*J49)/1000 -> 0 | L52: =SUM(J45*L49,K45*K49,L45*J49)/1000 -> 0 | M52: =SUM(J45*M49,K45*L49,L45*K49,M45*J49)/1000 -> 0 | N52: =SUM(J45*N49,K45*M49,L45*L49,M45*K49,N45*J49)/1000 -> 0
C53: Sensitiviteitsanalyse max-scenario kosten, populatie max (x€1000) | I53: =SUM(J53:N53) -> 0 | J53: =SUM(J46*J49)/1000 -> 0 | K53: =SUM(J46*K49,K46*J49)/1000 -> 0 | L53: =SUM(J46*L49,K46*K49,L46*J49)/1000 -> 0 | M53: =SUM(J46*M49,K46*L49,L46*K49,M46*J49)/1000 -> 0 | N53: =SUM(J46*N49,K46*M49,L46*L49,M46*K49,N46*J49)/1000 -> 0
B54: IMPACT NON-HEALTHCARE | E54: ="BANDBREEDTE: "&TEXT(MAX(I57:I60),"€0.0K")&" TOT "&TEXT(MIN(I57:I60),"€0.0K") -> BANDBREEDTE: €00K TOT €00K
B55: i | C55: Bruto verschil min-scenario: kosten referent minimaal, alternatief maximaal | J55: =SUM(J36*$L$16-J37*$K$17) -> 0 | K55: =SUM(K36*$L$16-K37*$K$17) -> 0 | L55: =SUM(L36*$L$16-L37*$K$17) -> 0 | M55: =SUM(M36*$L$16-M37*$K$17) -> 0 | N55: =SUM(N36*$L$16-N37*$K$17) -> 0
B56: i | C56: Bruto verschil max-scenario: kosten referent maximaal, alternatief minimaal | J56: =SUM(J36*$K$16-J37*$L$17) -> 0 | K56: =SUM(K36*$K$16-K37*$L$17) -> 0 | L56: =SUM(L36*$K$16-L37*$L$17) -> 0 | M56: =SUM(M36*$K$16-M37*$L$17) -> 0 | N56: =SUM(N36*$K$16-N37*$L$17) -> 0
C57: Sensitiviteitsanalyse min-scenario kosten, populatie min (x€1000) | I57: =SUM(J57:N57) -> 0 | J57: =SUM(J45*J55)/1000 -> 0 | K57: =SUM(J45*K55,K45*J55)/1000 -> 0 | L57: =SUM(J45*L55,K45*K55,L45*J55)/1000 -> 0 | M57: =SUM(J45*M55,K45*L55,L45*K55,M45*J55)/1000 -> 0 | N57: =SUM(J45*N55,K45*M55,L45*L55,M45*K55,N45*J55)/1000 -> 0
C58: Sensitiviteitsanalyse min-scenario kosten, populatie max (x€1000) | I58: =SUM(J58:N58) -> 0 | J58: =SUM(J46*J55)/1000 -> 0 | K58: =SUM(J46*K55,K46*J55)/1000 -> 0 | L58: =SUM(J46*L55,K46*K55,L46*J55)/1000 -> 0 | M58: =SUM(J46*M55,K46*L55,L46*K55,M46*J55)/1000 -> 0 | N58: =SUM(J46*N55,K46*M55,L46*L55,M46*K55,N46*J55)/1000 -> 0
C59: Sensitiviteitsanalyse max-scenario kosten, populatie min (x€1000) | I59: =SUM(J59:N59) -> 0 | J59: =SUM(J45*J56)/1000 -> 0 | K59: =SUM(J45*K56,K45*J56)/1000 -> 0 | L59: =SUM(J45*L56,K45*K56,L45*J56)/1000 -> 0 | M59: =SUM(J45*M56,K45*L56,L45*K56,M45*J56)/1000 -> 0 | N59: =SUM(J45*N56,K45*M56,L45*L56,M45*K56,N45*J56)/1000 -> 0
C60: Sensitiviteitsanalyse max-scenario kosten, populatie max (x€1000) | I60: =SUM(J60:N60) -> 0 | J60: =SUM(J46*J56)/1000 -> 0 | K60: =SUM(J46*K56,K46*J56)/1000 -> 0 | L60: =SUM(J46*L56,K46*K56,L46*J56)/1000 -> 0 | M60: =SUM(J46*M56,K46*L56,L46*K56,M46*J56)/1000 -> 0 | N60: =SUM(J46*N56,K46*M56,L46*L56,M46*K56,N46*J56)/1000 -> 0
B61: IMPACT TOTAAL | E61: ="BANDBREEDTE: "&TEXT(SUM(MAX(I57:I60),MAX(I50:I53)),"€0.0K")&" TOT "&TEXT(SUM(MIN(I57:I60),MIN(I50:I53)),"€0.0K") -> BANDBREEDTE: €00K TOT €00K
B63: SPECIFICATIE BRUTO UITGAVEN PER PATIENT PER FOLLOW-UP JAAR | J63: 5 | K63: 6 | L63: 7 | M63: 8 | N63: 9
C64: Wet | E64: Sector | H64: Component (eerste 2 regels..) | I64: Typering | J64: Jaar 1 | K64: Jaar 2 | L64: Jaar 3 | M64: Jaar 4 | N64: Jaar 5
A65: Alternatieve zorg | B65: 1 | C65: =IFERROR(INDEX(Sectoroverzicht!$B$3:$B$31,MATCH(E65,Sectoroverzicht!$C$3:$C$31,0),1),"") ->  | E65: =IF(OFFSET(Interventies_alt2!$A23,0,2)="","",OFFSET(Interventies_alt2!$A23,0,2)) ->  | H65: =IF(OFFSET(Interventies_alt2!$A23,0,3)="","",OFFSET(Interventies_alt2!$A23,0,3)) ->  | I65: =IF(OFFSET(Interventies_alt2!$A23,0,4)="","",OFFSET(Interventies_alt2!$A23,0,4)) ->  | J65: =IF($C65="","",OFFSET(Interventies_alt2!$A23,0,J$63)) ->  | K65: =IF($C65="","",OFFSET(Interventies_alt2!$A23,0,K$63)) ->  | L65: =IF($C65="","",OFFSET(Interventies_alt2!$A23,0,L$63)) ->  | M65: =IF($C65="","",OFFSET(Interventies_alt2!$A23,0,M$63)) ->  | N65: =IF($C65="","",OFFSET(Interventies_alt2!$A23,0,N$63)) -> 
B66: 2 | C66: =IFERROR(INDEX(Sectoroverzicht!$B$3:$B$31,MATCH(E66,Sectoroverzicht!$C$3:$C$31,0),1),"") ->  | E66: =IF(OFFSET(Interventies_alt2!$A24,0,2)="","",OFFSET(Interventies_alt2!$A24,0,2)) ->  | H66: =IF(OFFSET(Interventies_alt2!$A24,0,3)="","",OFFSET(Interventies_alt2!$A24,0,3)) ->  | I66: =IF(OFFSET(Interventies_alt2!$A24,0,4)="","",OFFSET(Interventies_alt2!$A24,0,4)) ->  | J66: =IF($C66="","",OFFSET(Interventies_alt2!$A24,0,J$63)) ->  | K66: =IF($C66="","",OFFSET(Interventies_alt2!$A24,0,K$63)) ->  | L66: =IF($C66="","",OFFSET(Interventies_alt2!$A24,0,L$63)) ->  | M66: =IF($C66="","",OFFSET(Interventies_alt2!$A24,0,M$63)) ->  | N66: =IF($C66="","",OFFSET(Interventies_alt2!$A24,0,N$63)) -> 
B67: 3 | C67: =IFERROR(INDEX(Sectoroverzicht!$B$3:$B$31,MATCH(E67,Sectoroverzicht!$C$3:$C$31,0),1),"") ->  | E67: =IF(OFFSET(Interventies_alt2!$A25,0,2)="","",OFFSET(Interventies_alt2!$A25,0,2)) ->  | H67: =IF(OFFSET(Interventies_alt2!$A25,0,3)="","",OFFSET(Interventies_alt2!$A25,0,3)) ->  | I67: =IF(OFFSET(Interventies_alt2!$A25,0,4)="","",OFFSET(Interventies_alt2!$A25,0,4)) ->  | J67: =IF($C67="","",OFFSET(Interventies_alt2!$A25,0,J$63)) ->  | K67: =IF($C67="","",OFFSET(Interventies_alt2!$A25,0,K$63)) ->  | L67: =IF($C67="","",OFFSET(Interventies_alt2!$A25,0,L$63)) ->  | M67: =IF($C67="","",OFFSET(Interventies_alt2!$A25,0,M$63)) ->  | N67: =IF($C67="","",OFFSET(Interventies_alt2!$A25,0,N$63)) -> 
B68: 4 | C68: =IFERROR(INDEX(Sectoroverzicht!$B$3:$B$31,MATCH(E68,Sectoroverzicht!$C$3:$C$31,0),1),"") ->  | E68: =IF(OFFSET(Interventies_alt2!$A26,0,2)="","",OFFSET(Interventies_alt2!$A26,0,2)) ->  | H68: =IF(OFFSET(Interventies_alt2!$A26,0,3)="","",OFFSET(Interventies_alt2!$A26,0,3)) ->  | I68: =IF(OFFSET(Interventies_alt2!$A26,0,4)="","",OFFSET(Interventies_alt2!$A26,0,4)) ->  | J68: =IF($C68="","",OFFSET(Interventies_alt2!$A26,0,J$63)) ->  | K68: =IF($C68="","",OFFSET(Interventies_alt2!$A26,0,K$63)) ->  | L68: =IF($C68="","",OFFSET(Interventies_alt2!$A26,0,L$63)) ->  | M68: =IF($C68="","",OFFSET(Interventies_alt2!$A26,0,M$63)) ->  | N68: =IF($C68="","",OFFSET(Interventies_alt2!$A26,0,N$63)) -> 
B69: 5 | C69: =IFERROR(INDEX(Sectoroverzicht!$B$3:$B$31,MATCH(E69,Sectoroverzicht!$C$3:$C$31,0),1),"") ->  | E69: =IF(OFFSET(Interventies_alt2!$A27,0,2)="","",OFFSET(Interventies_alt2!$A27,0,2)) ->  | H69: =IF(OFFSET(Interventies_alt2!$A27,0,3)="","",OFFSET(Interventies_alt2!$A27,0,3)) ->  | I69: =IF(OFFSET(Interventies_alt2!$A27,0,4)="","",OFFSET(Interventies_alt2!$A27,0,4)) ->  | J69: =IF($C69="","",OFFSET(Interventies_alt2!$A27,0,J$63)) ->  | K69: =IF($C69="","",OFFSET(Interventies_alt2!$A27,0,K$63)) ->  | L69: =IF($C69="","",OFFSET(Interventies_alt2!$A27,0,L$63)) ->  | M69: =IF($C69="","",OFFSET(Interventies_alt2!$A27,0,M$63)) ->  | N69: =IF($C69="","",OFFSET(Interventies_alt2!$A27,0,N$63)) -> 
B70: 6 | C70: =IFERROR(INDEX(Sectoroverzicht!$B$3:$B$31,MATCH(E70,Sectoroverzicht!$C$3:$C$31,0),1),"") ->  | E70: =IF(OFFSET(Interventies_alt2!$A28,0,2)="","",OFFSET(Interventies_alt2!$A28,0,2)) ->  | H70: =IF(OFFSET(Interventies_alt2!$A28,0,3)="","",OFFSET(Interventies_alt2!$A28,0,3)) ->  | I70: =IF(OFFSET(Interventies_alt2!$A28,0,4)="","",OFFSET(Interventies_alt2!$A28,0,4)) ->  | J70: =IF($C70="","",OFFSET(Interventies_alt2!$A28,0,J$63)) ->  | K70: =IF($C70="","",OFFSET(Interventies_alt2!$A28,0,K$63)) ->  | L70: =IF($C70="","",OFFSET(Interventies_alt2!$A28,0,L$63)) ->  | M70: =IF($C70="","",OFFSET(Interventies_alt2!$A28,0,M$63)) ->  | N70: =IF($C70="","",OFFSET(Interventies_alt2!$A28,0,N$63)) -> 
B71: 7 | C71: =IFERROR(INDEX(Sectoroverzicht!$B$3:$B$31,MATCH(E71,Sectoroverzicht!$C$3:$C$31,0),1),"") ->  | E71: =IF(OFFSET(Interventies_alt2!$A29,0,2)="","",OFFSET(Interventies_alt2!$A29,0,2)) ->  | H71: =IF(OFFSET(Interventies_alt2!$A29,0,3)="","",OFFSET(Interventies_alt2!$A29,0,3)) ->  | I71: =IF(OFFSET(Interventies_alt2!$A29,0,4)="","",OFFSET(Interventies_alt2!$A29,0,4)) ->  | J71: =IF($C71="","",OFFSET(Interventies_alt2!$A29,0,J$63)) ->  | K71: =IF($C71="","",OFFSET(Interventies_alt2!$A29,0,K$63)) ->  | L71: =IF($C71="","",OFFSET(Interventies_alt2!$A29,0,L$63)) ->  | M71: =IF($C71="","",OFFSET(Interventies_alt2!$A29,0,M$63)) ->  | N71: =IF($C71="","",OFFSET(Interventies_alt2!$A29,0,N$63)) -> 
B72: 8 | C72: =IFERROR(INDEX(Sectoroverzicht!$B$3:$B$31,MATCH(E72,Sectoroverzicht!$C$3:$C$31,0),1),"") ->  | E72: =IF(OFFSET(Interventies_alt2!$A30,0,2)="","",OFFSET(Interventies_alt2!$A30,0,2)) ->  | H72: =IF(OFFSET(Interventies_alt2!$A30,0,3)="","",OFFSET(Interventies_alt2!$A30,0,3)) ->  | I72: =IF(OFFSET(Interventies_alt2!$A30,0,4)="","",OFFSET(Interventies_alt2!$A30,0,4)) ->  | J72: =IF($C72="","",OFFSET(Interventies_alt2!$A30,0,J$63)) ->  | K72: =IF($C72="","",OFFSET(Interventies_alt2!$A30,0,K$63)) ->  | L72: =IF($C72="","",OFFSET(Interventies_alt2!$A30,0,L$63)) ->  | M72: =IF($C72="","",OFFSET(Interventies_alt2!$A30,0,M$63)) ->  | N72: =IF($C72="","",OFFSET(Interventies_alt2!$A30,0,N$63)) -> 
B73: 9 | C73: =IFERROR(INDEX(Sectoroverzicht!$B$3:$B$31,MATCH(E73,Sectoroverzicht!$C$3:$C$31,0),1),"") ->  | E73: =IF(OFFSET(Interventies_alt2!$A31,0,2)="","",OFFSET(Interventies_alt2!$A31,0,2)) ->  | H73: =IF(OFFSET(Interventies_alt2!$A31,0,3)="","",OFFSET(Interventies_alt2!$A31,0,3)) ->  | I73: =IF(OFFSET(Interventies_alt2!$A31,0,4)="","",OFFSET(Interventies_alt2!$A31,0,4)) ->  | J73: =IF($C73="","",OFFSET(Interventies_alt2!$A31,0,J$63)) ->  | K73: =IF($C73="","",OFFSET(Interventies_alt2!$A31,0,K$63)) ->  | L73: =IF($C73="","",OFFSET(Interventies_alt2!$A31,0,L$63)) ->  | M73: =IF($C73="","",OFFSET(Interventies_alt2!$A31,0,M$63)) ->  | N73: =IF($C73="","",OFFSET(Interventies_alt2!$A31,0,N$63)) -> 
B74: 10 | C74: =IFERROR(INDEX(Sectoroverzicht!$B$3:$B$31,MATCH(E74,Sectoroverzicht!$C$3:$C$31,0),1),"") ->  | E74: =IF(OFFSET(Interventies_alt2!$A32,0,2)="","",OFFSET(Interventies_alt2!$A32,0,2)) ->  | H74: =IF(OFFSET(Interventies_alt2!$A32,0,3)="","",OFFSET(Interventies_alt2!$A32,0,3)) ->  | I74: =IF(OFFSET(Interventies_alt2!$A32,0,4)="","",OFFSET(Interventies_alt2!$A32,0,4)) ->  | J74: =IF($C74="","",OFFSET(Interventies_alt2!$A32,0,J$63)) ->  | K74: =IF($C74="","",OFFSET(Interventies_alt2!$A32,0,K$63)) ->  | L74: =IF($C74="","",OFFSET(Interventies_alt2!$A32,0,L$63)) ->  | M74: =IF($C74="","",OFFSET(Interventies_alt2!$A32,0,M$63)) ->  | N74: =IF($C74="","",OFFSET(Interventies_alt2!$A32,0,N$63)) -> 
B75: 11 | C75: =IFERROR(INDEX(Sectoroverzicht!$B$3:$B$31,MATCH(E75,Sectoroverzicht!$C$3:$C$31,0),1),"") ->  | E75: =IF(OFFSET(Interventies_alt2!$A33,0,2)="","",OFFSET(Interventies_alt2!$A33,0,2)) ->  | H75: =IF(OFFSET(Interventies_alt2!$A33,0,3)="","",OFFSET(Interventies_alt2!$A33,0,3)) ->  | I75: =IF(OFFSET(Interventies_alt2!$A33,0,4)="","",OFFSET(Interventies_alt2!$A33,0,4)) ->  | J75: =IF($C75="","",OFFSET(Interventies_alt2!$A33,0,J$63)) ->  | K75: =IF($C75="","",OFFSET(Interventies_alt2!$A33,0,K$63)) ->  | L75: =IF($C75="","",OFFSET(Interventies_alt2!$A33,0,L$63)) ->  | M75: =IF($C75="","",OFFSET(Interventies_alt2!$A33,0,M$63)) ->  | N75: =IF($C75="","",OFFSET(Interventies_alt2!$A33,0,N$63)) -> 
B76: 12 | C76: =IFERROR(INDEX(Sectoroverzicht!$B$3:$B$31,MATCH(E76,Sectoroverzicht!$C$3:$C$31,0),1),"") ->  | E76: =IF(OFFSET(Interventies_alt2!$A34,0,2)="","",OFFSET(Interventies_alt2!$A34,0,2)) ->  | H76: =IF(OFFSET(Interventies_alt2!$A34,0,3)="","",OFFSET(Interventies_alt2!$A34,0,3)) ->  | I76: =IF(OFFSET(Interventies_alt2!$A34,0,4)="","",OFFSET(Interventies_alt2!$A34,0,4)) ->  | J76: =IF($C76="","",OFFSET(Interventies_alt2!$A34,0,J$63)) ->  | K76: =IF($C76="","",OFFSET(Interventies_alt2!$A34,0,K$63)) ->  | L76: =IF($C76="","",OFFSET(Interventies_alt2!$A34,0,L$63)) ->  | M76: =IF($C76="","",OFFSET(Interventies_alt2!$A34,0,M$63)) ->  | N76: =IF($C76="","",OFFSET(Interventies_alt2!$A34,0,N$63)) -> 
B77: 13 | C77: =IFERROR(INDEX(Sectoroverzicht!$B$3:$B$31,MATCH(E77,Sectoroverzicht!$C$3:$C$31,0),1),"") ->  | E77: =IF(OFFSET(Interventies_alt2!$A35,0,2)="","",OFFSET(Interventies_alt2!$A35,0,2)) ->  | H77: =IF(OFFSET(Interventies_alt2!$A35,0,3)="","",OFFSET(Interventies_alt2!$A35,0,3)) ->  | I77: =IF(OFFSET(Interventies_alt2!$A35,0,4)="","",OFFSET(Interventies_alt2!$A35,0,4)) ->  | J77: =IF($C77="","",OFFSET(Interventies_alt2!$A35,0,J$63)) ->  | K77: =IF($C77="","",OFFSET(Interventies_alt2!$A35,0,K$63)) ->  | L77: =IF($C77="","",OFFSET(Interventies_alt2!$A35,0,L$63)) ->  | M77: =IF($C77="","",OFFSET(Interventies_alt2!$A35,0,M$63)) ->  | N77: =IF($C77="","",OFFSET(Interventies_alt2!$A35,0,N$63)) -> 
B78: 14 | C78: =IFERROR(INDEX(Sectoroverzicht!$B$3:$B$31,MATCH(E78,Sectoroverzicht!$C$3:$C$31,0),1),"") ->  | E78: =IF(OFFSET(Interventies_alt2!$A36,0,2)="","",OFFSET(Interventies_alt2!$A36,0,2)) ->  | H78: =IF(OFFSET(Interventies_alt2!$A36,0,3)="","",OFFSET(Interventies_alt2!$A36,0,3)) ->  | I78: =IF(OFFSET(Interventies_alt2!$A36,0,4)="","",OFFSET(Interventies_alt2!$A36,0,4)) ->  | J78: =IF($C78="","",OFFSET(Interventies_alt2!$A36,0,J$63)) ->  | K78: =IF($C78="","",OFFSET(Interventies_alt2!$A36,0,K$63)) ->  | L78: =IF($C78="","",OFFSET(Interventies_alt2!$A36,0,L$63)) ->  | M78: =IF($C78="","",OFFSET(Interventies_alt2!$A36,0,M$63)) ->  | N78: =IF($C78="","",OFFSET(Interventies_alt2!$A36,0,N$63)) -> 
B79: 15 | C79: =IFERROR(INDEX(Sectoroverzicht!$B$3:$B$31,MATCH(E79,Sectoroverzicht!$C$3:$C$31,0),1),"") ->  | E79: =IF(OFFSET(Interventies_alt2!$A37,0,2)="","",OFFSET(Interventies_alt2!$A37,0,2)) ->  | H79: =IF(OFFSET(Interventies_alt2!$A37,0,3)="","",OFFSET(Interventies_alt2!$A37,0,3)) ->  | I79: =IF(OFFSET(Interventies_alt2!$A37,0,4)="","",OFFSET(Interventies_alt2!$A37,0,4)) ->  | J79: =IF($C79="","",OFFSET(Interventies_alt2!$A37,0,J$63)) ->  | K79: =IF($C79="","",OFFSET(Interventies_alt2!$A37,0,K$63)) ->  | L79: =IF($C79="","",OFFSET(Interventies_alt2!$A37,0,L$63)) ->  | M79: =IF($C79="","",OFFSET(Interventies_alt2!$A37,0,M$63)) ->  | N79: =IF($C79="","",OFFSET(Interventies_alt2!$A37,0,N$63)) -> 
A80: Referentie zorg | B80: 1 | C80: =IFERROR(INDEX(Sectoroverzicht!$B$3:$B$31,MATCH(E80,Sectoroverzicht!$C$3:$C$31,0),1),"") -> Zorgverzekeringswet | E80: =IF(OFFSET(Interventies_ref2!$A23,0,2)="","",OFFSET(Interventies_ref2!$A23,0,2)) -> Medisch-specialistische zorg | H80: =IF(OFFSET(Interventies_ref2!$A23,0,3)="","",OFFSET(Interventies_ref2!$A23,0,3)) ->  | I80: =IF(OFFSET(Interventies_ref2!$A23,0,4)="","",OFFSET(Interventies_ref2!$A23,0,4)) ->  | J80: =IF($C80="","",OFFSET(Interventies_ref2!$A23,0,J$63)) -> 0 | K80: =IF($C80="","",OFFSET(Interventies_ref2!$A23,0,K$63)) -> 0 | L80: =IF($C80="","",OFFSET(Interventies_ref2!$A23,0,L$63)) -> 0 | M80: =IF($C80="","",OFFSET(Interventies_ref2!$A23,0,M$63)) -> 0 | N80: =IF($C80="","",OFFSET(Interventies_ref2!$A23,0,N$63)) -> 0
B81: 2 | C81: =IFERROR(INDEX(Sectoroverzicht!$B$3:$B$31,MATCH(E81,Sectoroverzicht!$C$3:$C$31,0),1),"") ->  | E81: =IF(OFFSET(Interventies_ref2!$A24,0,2)="","",OFFSET(Interventies_ref2!$A24,0,2)) ->  | H81: =IF(OFFSET(Interventies_ref2!$A24,0,3)="","",OFFSET(Interventies_ref2!$A24,0,3)) ->  | I81: =IF(OFFSET(Interventies_ref2!$A24,0,4)="","",OFFSET(Interventies_ref2!$A24,0,4)) ->  | J81: =IF($C81="","",OFFSET(Interventies_ref2!$A24,0,J$63)) ->  | K81: =IF($C81="","",OFFSET(Interventies_ref2!$A24,0,K$63)) ->  | L81: =IF($C81="","",OFFSET(Interventies_ref2!$A24,0,L$63)) ->  | M81: =IF($C81="","",OFFSET(Interventies_ref2!$A24,0,M$63)) ->  | N81: =IF($C81="","",OFFSET(Interventies_ref2!$A24,0,N$63)) -> 
B82: 3 | C82: =IFERROR(INDEX(Sectoroverzicht!$B$3:$B$31,MATCH(E82,Sectoroverzicht!$C$3:$C$31,0),1),"") ->  | E82: =IF(OFFSET(Interventies_ref2!$A25,0,2)="","",OFFSET(Interventies_ref2!$A25,0,2)) ->  | H82: =IF(OFFSET(Interventies_ref2!$A25,0,3)="","",OFFSET(Interventies_ref2!$A25,0,3)) ->  | I82: =IF(OFFSET(Interventies_ref2!$A25,0,4)="","",OFFSET(Interventies_ref2!$A25,0,4)) ->  | J82: =IF($C82="","",OFFSET(Interventies_ref2!$A25,0,J$63)) ->  | K82: =IF($C82="","",OFFSET(Interventies_ref2!$A25,0,K$63)) ->  | L82: =IF($C82="","",OFFSET(Interventies_ref2!$A25,0,L$63)) ->  | M82: =IF($C82="","",OFFSET(Interventies_ref2!$A25,0,M$63)) ->  | N82: =IF($C82="","",OFFSET(Interventies_ref2!$A25,0,N$63)) -> 
B83: 4 | C83: =IFERROR(INDEX(Sectoroverzicht!$B$3:$B$31,MATCH(E83,Sectoroverzicht!$C$3:$C$31,0),1),"") ->  | E83: =IF(OFFSET(Interventies_ref2!$A26,0,2)="","",OFFSET(Interventies_ref2!$A26,0,2)) ->  | H83: =IF(OFFSET(Interventies_ref2!$A26,0,3)="","",OFFSET(Interventies_ref2!$A26,0,3)) ->  | I83: =IF(OFFSET(Interventies_ref2!$A26,0,4)="","",OFFSET(Interventies_ref2!$A26,0,4)) ->  | J83: =IF($C83="","",OFFSET(Interventies_ref2!$A26,0,J$63)) ->  | K83: =IF($C83="","",OFFSET(Interventies_ref2!$A26,0,K$63)) ->  | L83: =IF($C83="","",OFFSET(Interventies_ref2!$A26,0,L$63)) ->  | M83: =IF($C83="","",OFFSET(Interventies_ref2!$A26,0,M$63)) ->  | N83: =IF($C83="","",OFFSET(Interventies_ref2!$A26,0,N$63)) -> 
B84: 5 | C84: =IFERROR(INDEX(Sectoroverzicht!$B$3:$B$31,MATCH(E84,Sectoroverzicht!$C$3:$C$31,0),1),"") ->  | E84: =IF(OFFSET(Interventies_ref2!$A27,0,2)="","",OFFSET(Interventies_ref2!$A27,0,2)) ->  | H84: =IF(OFFSET(Interventies_ref2!$A27,0,3)="","",OFFSET(Interventies_ref2!$A27,0,3)) ->  | I84: =IF(OFFSET(Interventies_ref2!$A27,0,4)="","",OFFSET(Interventies_ref2!$A27,0,4)) ->  | J84: =IF($C84="","",OFFSET(Interventies_ref2!$A27,0,J$63)) ->  | K84: =IF($C84="","",OFFSET(Interventies_ref2!$A27,0,K$63)) ->  | L84: =IF($C84="","",OFFSET(Interventies_ref2!$A27,0,L$63)) ->  | M84: =IF($C84="","",OFFSET(Interventies_ref2!$A27,0,M$63)) ->  | N84: =IF($C84="","",OFFSET(Interventies_ref2!$A27,0,N$63)) -> 
B85: 6 | C85: =IFERROR(INDEX(Sectoroverzicht!$B$3:$B$31,MATCH(E85,Sectoroverzicht!$C$3:$C$31,0),1),"") ->  | E85: =IF(OFFSET(Interventies_ref2!$A28,0,2)="","",OFFSET(Interventies_ref2!$A28,0,2)) ->  | H85: =IF(OFFSET(Interventies_ref2!$A28,0,3)="","",OFFSET(Interventies_ref2!$A28,0,3)) ->  | I85: =IF(OFFSET(Interventies_ref2!$A28,0,4)="","",OFFSET(Interventies_ref2!$A28,0,4)) ->  | J85: =IF($C85="","",OFFSET(Interventies_ref2!$A28,0,J$63)) ->  | K85: =IF($C85="","",OFFSET(Interventies_ref2!$A28,0,K$63)) ->  | L85: =IF($C85="","",OFFSET(Interventies_ref2!$A28,0,L$63)) ->  | M85: =IF($C85="","",OFFSET(Interventies_ref2!$A28,0,M$63)) ->  | N85: =IF($C85="","",OFFSET(Interventies_ref2!$A28,0,N$63)) -> 
B86: 7 | C86: =IFERROR(INDEX(Sectoroverzicht!$B$3:$B$31,MATCH(E86,Sectoroverzicht!$C$3:$C$31,0),1),"") ->  | E86: =IF(OFFSET(Interventies_ref2!$A29,0,2)="","",OFFSET(Interventies_ref2!$A29,0,2)) ->  | H86: =IF(OFFSET(Interventies_ref2!$A29,0,3)="","",OFFSET(Interventies_ref2!$A29,0,3)) ->  | I86: =IF(OFFSET(Interventies_ref2!$A29,0,4)="","",OFFSET(Interventies_ref2!$A29,0,4)) ->  | J86: =IF($C86="","",OFFSET(Interventies_ref2!$A29,0,J$63)) ->  | K86: =IF($C86="","",OFFSET(Interventies_ref2!$A29,0,K$63)) ->  | L86: =IF($C86="","",OFFSET(Interventies_ref2!$A29,0,L$63)) ->  | M86: =IF($C86="","",OFFSET(Interventies_ref2!$A29,0,M$63)) ->  | N86: =IF($C86="","",OFFSET(Interventies_ref2!$A29,0,N$63)) -> 
B87: 8 | C87: =IFERROR(INDEX(Sectoroverzicht!$B$3:$B$31,MATCH(E87,Sectoroverzicht!$C$3:$C$31,0),1),"") ->  | E87: =IF(OFFSET(Interventies_ref2!$A30,0,2)="","",OFFSET(Interventies_ref2!$A30,0,2)) ->  | H87: =IF(OFFSET(Interventies_ref2!$A30,0,3)="","",OFFSET(Interventies_ref2!$A30,0,3)) ->  | I87: =IF(OFFSET(Interventies_ref2!$A30,0,4)="","",OFFSET(Interventies_ref2!$A30,0,4)) ->  | J87: =IF($C87="","",OFFSET(Interventies_ref2!$A30,0,J$63)) ->  | K87: =IF($C87="","",OFFSET(Interventies_ref2!$A30,0,K$63)) ->  | L87: =IF($C87="","",OFFSET(Interventies_ref2!$A30,0,L$63)) ->  | M87: =IF($C87="","",OFFSET(Interventies_ref2!$A30,0,M$63)) ->  | N87: =IF($C87="","",OFFSET(Interventies_ref2!$A30,0,N$63)) -> 
B88: 9 | C88: =IFERROR(INDEX(Sectoroverzicht!$B$3:$B$31,MATCH(E88,Sectoroverzicht!$C$3:$C$31,0),1),"") ->  | E88: =IF(OFFSET(Interventies_ref2!$A31,0,2)="","",OFFSET(Interventies_ref2!$A31,0,2)) ->  | H88: =IF(OFFSET(Interventies_ref2!$A31,0,3)="","",OFFSET(Interventies_ref2!$A31,0,3)) ->  | I88: =IF(OFFSET(Interventies_ref2!$A31,0,4)="","",OFFSET(Interventies_ref2!$A31,0,4)) ->  | J88: =IF($C88="","",OFFSET(Interventies_ref2!$A31,0,J$63)) ->  | K88: =IF($C88="","",OFFSET(Interventies_ref2!$A31,0,K$63)) ->  | L88: =IF($C88="","",OFFSET(Interventies_ref2!$A31,0,L$63)) ->  | M88: =IF($C88="","",OFFSET(Interventies_ref2!$A31,0,M$63)) ->  | N88: =IF($C88="","",OFFSET(Interventies_ref2!$A31,0,N$63)) -> 
B89: 10 | C89: =IFERROR(INDEX(Sectoroverzicht!$B$3:$B$31,MATCH(E89,Sectoroverzicht!$C$3:$C$31,0),1),"") ->  | E89: =IF(OFFSET(Interventies_ref2!$A32,0,2)="","",OFFSET(Interventies_ref2!$A32,0,2)) ->  | H89: =IF(OFFSET(Interventies_ref2!$A32,0,3)="","",OFFSET(Interventies_ref2!$A32,0,3)) ->  | I89: =IF(OFFSET(Interventies_ref2!$A32,0,4)="","",OFFSET(Interventies_ref2!$A32,0,4)) ->  | J89: =IF($C89="","",OFFSET(Interventies_ref2!$A32,0,J$63)) ->  | K89: =IF($C89="","",OFFSET(Interventies_ref2!$A32,0,K$63)) ->  | L89: =IF($C89="","",OFFSET(Interventies_ref2!$A32,0,L$63)) ->  | M89: =IF($C89="","",OFFSET(Interventies_ref2!$A32,0,M$63)) ->  | N89: =IF($C89="","",OFFSET(Interventies_ref2!$A32,0,N$63)) -> 
B90: 11 | C90: =IFERROR(INDEX(Sectoroverzicht!$B$3:$B$31,MATCH(E90,Sectoroverzicht!$C$3:$C$31,0),1),"") ->  | E90: =IF(OFFSET(Interventies_ref2!$A33,0,2)="","",OFFSET(Interventies_ref2!$A33,0,2)) ->  | H90: =IF(OFFSET(Interventies_ref2!$A33,0,3)="","",OFFSET(Interventies_ref2!$A33,0,3)) ->  | I90: =IF(OFFSET(Interventies_ref2!$A33,0,4)="","",OFFSET(Interventies_ref2!$A33,0,4)) ->  | J90: =IF($C90="","",OFFSET(Interventies_ref2!$A33,0,J$63)) ->  | K90: =IF($C90="","",OFFSET(Interventies_ref2!$A33,0,K$63)) ->  | L90: =IF($C90="","",OFFSET(Interventies_ref2!$A33,0,L$63)) ->  | M90: =IF($C90="","",OFFSET(Interventies_ref2!$A33,0,M$63)) ->  | N90: =IF($C90="","",OFFSET(Interventies_ref2!$A33,0,N$63)) -> 
B91: 12 | C91: =IFERROR(INDEX(Sectoroverzicht!$B$3:$B$31,MATCH(E91,Sectoroverzicht!$C$3:$C$31,0),1),"") ->  | E91: =IF(OFFSET(Interventies_ref2!$A34,0,2)="","",OFFSET(Interventies_ref2!$A34,0,2)) ->  | H91: =IF(OFFSET(Interventies_ref2!$A34,0,3)="","",OFFSET(Interventies_ref2!$A34,0,3)) ->  | I91: =IF(OFFSET(Interventies_ref2!$A34,0,4)="","",OFFSET(Interventies_ref2!$A34,0,4)) ->  | J91: =IF($C91="","",OFFSET(Interventies_ref2!$A34,0,J$63)) ->  | K91: =IF($C91="","",OFFSET(Interventies_ref2!$A34,0,K$63)) ->  | L91: =IF($C91="","",OFFSET(Interventies_ref2!$A34,0,L$63)) ->  | M91: =IF($C91="","",OFFSET(Interventies_ref2!$A34,0,M$63)) ->  | N91: =IF($C91="","",OFFSET(Interventies_ref2!$A34,0,N$63)) -> 
B92: 13 | C92: =IFERROR(INDEX(Sectoroverzicht!$B$3:$B$31,MATCH(E92,Sectoroverzicht!$C$3:$C$31,0),1),"") ->  | E92: =IF(OFFSET(Interventies_ref2!$A35,0,2)="","",OFFSET(Interventies_ref2!$A35,0,2)) ->  | H92: =IF(OFFSET(Interventies_ref2!$A35,0,3)="","",OFFSET(Interventies_ref2!$A35,0,3)) ->  | I92: =IF(OFFSET(Interventies_ref2!$A35,0,4)="","",OFFSET(Interventies_ref2!$A35,0,4)) ->  | J92: =IF($C92="","",OFFSET(Interventies_ref2!$A35,0,J$63)) ->  | K92: =IF($C92="","",OFFSET(Interventies_ref2!$A35,0,K$63)) ->  | L92: =IF($C92="","",OFFSET(Interventies_ref2!$A35,0,L$63)) ->  | M92: =IF($C92="","",OFFSET(Interventies_ref2!$A35,0,M$63)) ->  | N92: =IF($C92="","",OFFSET(Interventies_ref2!$A35,0,N$63)) -> 
B93: 14 | C93: =IFERROR(INDEX(Sectoroverzicht!$B$3:$B$31,MATCH(E93,Sectoroverzicht!$C$3:$C$31,0),1),"") ->  | E93: =IF(OFFSET(Interventies_ref2!$A36,0,2)="","",OFFSET(Interventies_ref2!$A36,0,2)) ->  | H93: =IF(OFFSET(Interventies_ref2!$A36,0,3)="","",OFFSET(Interventies_ref2!$A36,0,3)) ->  | I93: =IF(OFFSET(Interventies_ref2!$A36,0,4)="","",OFFSET(Interventies_ref2!$A36,0,4)) ->  | J93: =IF($C93="","",OFFSET(Interventies_ref2!$A36,0,J$63)) ->  | K93: =IF($C93="","",OFFSET(Interventies_ref2!$A36,0,K$63)) ->  | L93: =IF($C93="","",OFFSET(Interventies_ref2!$A36,0,L$63)) ->  | M93: =IF($C93="","",OFFSET(Interventies_ref2!$A36,0,M$63)) ->  | N93: =IF($C93="","",OFFSET(Interventies_ref2!$A36,0,N$63)) -> 
B94: 15 | C94: =IFERROR(INDEX(Sectoroverzicht!$B$3:$B$31,MATCH(E94,Sectoroverzicht!$C$3:$C$31,0),1),"") ->  | E94: =IF(OFFSET(Interventies_ref2!$A37,0,2)="","",OFFSET(Interventies_ref2!$A37,0,2)) ->  | H94: =IF(OFFSET(Interventies_ref2!$A37,0,3)="","",OFFSET(Interventies_ref2!$A37,0,3)) ->  | I94: =IF(OFFSET(Interventies_ref2!$A37,0,4)="","",OFFSET(Interventies_ref2!$A37,0,4)) ->  | J94: =IF($C94="","",OFFSET(Interventies_ref2!$A37,0,J$63)) ->  | K94: =IF($C94="","",OFFSET(Interventies_ref2!$A37,0,K$63)) ->  | L94: =IF($C94="","",OFFSET(Interventies_ref2!$A37,0,L$63)) ->  | M94: =IF($C94="","",OFFSET(Interventies_ref2!$A37,0,M$63)) ->  | N94: =IF($C94="","",OFFSET(Interventies_ref2!$A37,0,N$63)) -> 
A98: Met onderstaande knoppen kunt u snel over de hoofdonderdelen van de BIA navigeren. De kleur matcht met de band bovenin het scherm. De knop 'Verder' hierboven volstaat echter om het hele proces te doorlopen.

Sheet Budgetimpact_Zorgaanbieder3
A3: BUDGET IMPACT ANALYSE BIJ DOELMATIGHEIDSONDERZOEK
A4: BUDGETIMPACT ZORGAANBIEDER
B6: i | C6: Navigatie
B10: =Populatie3!$C$17 -> Scenario 3: Niet nader omschreven
B12: i
I13: ONZEKERHEID | K13: SENSITIVITEITSANALYSE i
B14: SPECIFICATIE MATE VAN ONZEKERHEID / SENSITIVITEITSANALYSE | K14: MIN | L14: MAX
B15: i | C15: Specificatie populatie | I15: =IF(Populatie3!$M$39="","Onbekend!",Populatie3!$M$39) -> Gemiddeld | J15: =IF(I15="Klein",1,IF(I15="Gemiddeld",0,IF(I15="Groot",-1,""))) -> 0 | K15: 0.7 | L15: 1.1
B16: i | C16: ALTERNATIEVE ZORG | Kosten interventiemix | I16: =IF(Toelichting_Interventies_alt3!$E$31="","Onbekend!",Toelichting_Interventies_alt3!$E$31) -> Groot | J16: =IF(I16="Klein",1,IF(I16="Gemiddeld",0,IF(I16="Groot",-1,""))) -> -1 | K16: 0.8 | L16: 1.2
B17: i | C17: REFERENTIE ZORG | Kosten interventiemix | I17: =IF(Toelichting_Interventies_ref3!$E$31="","Onbekend!",Toelichting_Interventies_ref3!$E$31) -> Klein | J17: =IF(I17="Klein",1,IF(I17="Gemiddeld",0,IF(I17="Groot",-1,""))) -> 1 | K17: 0.9 | L17: 1.3
B19: IMPACT | I19: Totaal | J19: =IF(Startjaar="",1,Startjaar) -> 2019 | K19: =J19+1 -> 2020 | L19: =K19+1 -> 2021 | M19: =L19+1 -> 2022 | N19: =M19+1 -> 2023
C20: Totaal nieuwe patiënten | J20: =Populatie3!D$39 -> 90 | K20: =Populatie3!E$39 -> 99 | L20: =Populatie3!F$39 -> 100 | M20: =Populatie3!G$39 -> 100 | N20: =Populatie3!H$39 -> 100
B21: i | C21: Marktaandeel | J21: 0.8 | K21: 0.8 | L21: 0.8 | M21: 0.8 | N21: 0.8
C22: Aantal startende zorggebruikers | J22: =J20*J21 -> 72 | K22: =K20*K21 -> 79.2 | L22: =L20*L21 -> 80 | M22: =M20*M21 -> 80 | N22: =N20*N21 -> 80
C23: Bruto verschil in STRUCTURELE HEALTHCARE UITGAVEN per patient | J23: =J24-J25 -> -1500 | K23: =K24-K25 -> -100 | L23: =L24-L25 -> -300 | M23: =M24-M25 -> 0 | N23: =N24-N25 -> 0
B24: i | C24: Bruto uitgaven alternatieve zorg (per follow-up jaar!) | J24: =SUMIFS(J46:J60,$I$46:$I$60,"Structureel",$E$46:$E$60,"<>Non-healthcare") -> 0 | K24: =SUMIFS(K46:K60,$I$46:$I$60,"Structureel",$E$46:$E$60,"<>Non-healthcare") -> 0 | L24: =SUMIFS(L46:L60,$I$46:$I$60,"Structureel",$E$46:$E$60,"<>Non-healthcare") -> 0 | M24: =SUMIFS(M46:M60,$I$46:$I$60,"Structureel",$E$46:$E$60,"<>Non-healthcare") -> 0 | N24: =SUMIFS(N46:N60,$I$46:$I$60,"Structureel",$E$46:$E$60,"<>Non-healthcare") -> 0
C25: Bruto uitgaven referentiezorg | J25: =SUMIFS(J61:J75,$I$61:$I$75,"Structureel",$E$61:$E$75,"<>Non-healthcare") -> 1500 | K25: =SUMIFS(K61:K75,$I$61:$I$75,"Structureel",$E$61:$E$75,"<>Non-healthcare") -> 100 | L25: =SUMIFS(L61:L75,$I$61:$I$75,"Structureel",$E$61:$E$75,"<>Non-healthcare") -> 300 | M25: =SUMIFS(M61:M75,$I$61:$I$75,"Structureel",$E$61:$E$75,"<>Non-healthcare") -> 0 | N25: =SUMIFS(N61:N75,$I$61:$I$75,"Structureel",$E$61:$E$75,"<>Non-healthcare") -> 0
C26: Bruto verschil in INCIDENTELE HEALTHCARE UITGAVEN per patient | J26: =J27-J28 -> 0 | K26: =K27-K28 -> 0 | L26: =L27-L28 -> 0 | M26: =M27-M28 -> 0 | N26: =N27-N28 -> 0
C27: Bruto uitgaven alternatieve zorg (per follow-up jaar!) | J27: =SUMIFS(J$46:J$60,$I$46:$I$60,"Incidenteel",$E$46:$E$60,"<>Non-healthcare") -> 0 | K27: =SUMIFS(K$46:K$60,$I$46:$I$60,"Incidenteel",$E$46:$E$60,"<>Non-healthcare") -> 0 | L27: =SUMIFS(L$46:L$60,$I$46:$I$60,"Incidenteel",$E$46:$E$60,"<>Non-healthcare") -> 0 | M27: =SUMIFS(M$46:M$60,$I$46:$I$60,"Incidenteel",$E$46:$E$60,"<>Non-healthcare") -> 0 | N27: =SUMIFS(N$46:N$60,$I$46:$I$60,"Incidenteel",$E$46:$E$60,"<>Non-healthcare") -> 0
C28: Bruto uitgaven referentiezorg | J28: =SUMIFS(J$61:J$75,$I$61:$I$75,"Incidenteel",$E$61:$E$75,"<>Non-healthcare") -> 0 | K28: =SUMIFS(K$61:K$75,$I$61:$I$75,"Incidenteel",$E$61:$E$75,"<>Non-healthcare") -> 0 | L28: =SUMIFS(L$61:L$75,$I$61:$I$75,"Incidenteel",$E$61:$E$75,"<>Non-healthcare") -> 0 | M28: =SUMIFS(M$61:M$75,$I$61:$I$75,"Incidenteel",$E$61:$E$75,"<>Non-healthcare") -> 0 | N28: =SUMIFS(N$61:N$75,$I$61:$I$75,"Incidenteel",$E$61:$E$75,"<>Non-healthcare") -> 0
C29: Totale budgetimpact STRUCTUREEL | I29: =SUM(J29:N29) -> -687.28 | J29: =SUM(J$22*J23)/1000 -> -108 | K29: =SUM(J$22*K23,K$22*J23)/1000 -> -126 | L29: =SUM(J$22*L23,K$22*K23,L$22*J23)/1000 -> -149.52 | M29: =SUM(J$22*M23,K$22*L23,L$22*K23,M$22*J23)/1000 -> -151.76 | N29: =SUM($J$22*N23,$K$22*M23,$L$22*L23,$M$22*K23,N22*J23)/1000 -> -152
C30: Totale budgetimpact INCIDENTEEL | I30: =SUM(J30:N30) -> 0 | J30: =SUM(J$22*J26)/1000 -> 0 | K30: =SUM(J$22*K26,K$22*J26)/1000 -> 0 | L30: =SUM(J$22*L26,K$22*K26,L$22*J26)/1000 -> 0 | M30: =SUM(J$22*M26,K$22*L26,L$22*K26,M$22*J26)/1000 -> 0 | N30: =SUM($J$22*N26,$K$22*M26,$L$22*L26,$M$22*K26,N22*J26)/1000 -> 0
C31: Totaal impact HEALTHCARE (x€1.000) | I31: =SUM(J31:N31) -> -687.28 | J31: =SUM(J29:J30) -> -108 | K31: =SUM(K29:K30) -> -126 | L31: =SUM(L29:L30) -> -149.52 | M31: =SUM(M29:M30) -> -151.76 | N31: =SUM(N29:N30) -> -152
B33: SENSITIVITEITSANALYSE
B34: i | C34: Populatie min-scenario | J34: =J$22*$K$15 -> 50.4 | K34: =K$22*$K$15 -> 55.44 | L34: =L$22*$K$15 -> 56 | M34: =M$22*$K$15 -> 56 | N34: =N$22*$K$15 -> 56
B35: i | C35: Populatie max-scenario | J35: =J$22*$L$15 -> 79.2 | K35: =K$22*$L$15 -> 87.12 | L35: =L$22*$L$15 -> 88 | M35: =M$22*$L$15 -> 88 | N35: =N$22*$L$15 -> 88
B36: IMPACT HEALTHCARE | E36: ="BANDBREEDTE: "&TEXT(MAX(I39:I42),"€0.0K")&" TOT "&TEXT(MIN(I39:I42),"€0.0K") -> BANDBREEDTE: -€433K TOT -€983K
B37: i | C37: Bruto verschil min-scenario: kosten referent minimaal, alternatief maximaal | J37: =SUM(J24*$L$16-J25*$K$17,J27*$L$16-J28*$K$17) -> -1350 | K37: =SUM(K24*$L$16-K25*$K$17,K27*$L$16-K28*$K$17) -> -90 | L37: =SUM(L24*$L$16-L25*$K$17,L27*$L$16-L28*$K$17) -> -270 | M37: =SUM(M24*$L$16-M25*$K$17,M27*$L$16-M28*$K$17) -> 0 | N37: =SUM(N24*$L$16-N25*$K$17,N27*$L$16-N28*$K$17) -> 0
B38: i | C38: Bruto verschil max-scenario: kosten referent maximaal, alternatief minimaal | J38: =SUM(J24*$K$16-J25*$L$17,J27*$K$16-J28*$L$17) -> -1950 | K38: =SUM(K24*$K$16-K25*$L$17,K27*$K$16-K28*$L$17) -> -130 | L38: =SUM(L24*$K$16-L25*$L$17,L27*$K$16-L28*$L$17) -> -390 | M38: =SUM(M24*$K$16-M25*$L$17,M27*$K$16-M28*$L$17) -> 0 | N38: =SUM(N24*$K$16-N25*$L$17,N27*$K$16-N28*$L$17) -> 0
C39: Sensitiviteitsanalyse min-scenario kosten, populatie min (x€1000) | I39: =SUM(J39:N39) -> -432.9864 | J39: =SUM(J34*J37)/1000 -> -68.04 | K39: =SUM(J34*K37,K34*J37)/1000 -> -79.38 | L39: =SUM(J34*L37,K34*K37,L34*J37)/1000 -> -94.1976 | M39: =SUM(J34*M37,K34*L37,L34*K37,M34*J37)/1000 -> -95.6088 | N39: =SUM(J34*N37,K34*M37,L34*L37,M34*K37,N34*J37)/1000 -> -95.76
C40: Sensitiviteitsanalyse min-scenario kosten, populatie max (x€1000) | I40: =SUM(J40:N40) -> -680.4072 | J40: =SUM(J35*J37)/1000 -> -106.92 | K40: =SUM(J35*K37,K35*J37)/1000 -> -124.74 | L40: =SUM(J35*L37,K35*K37,L35*J37)/1000 -> -148.0248 | M40: =SUM(J35*M37,K35*L37,L35*K37,M35*J37)/1000 -> -150.2424 | N40: =SUM(J35*N37,K35*M37,L35*L37,M35*K37,N35*J37)/1000 -> -150.48
C41: Sensitiviteitsanalyse max-scenario kosten, populatie min (x€1000) | I41: =SUM(J41:N41) -> -625.4248 | J41: =SUM(J34*J38)/1000 -> -98.28 | K41: =SUM(J34*K38,K34*J38)/1000 -> -114.66 | L41: =SUM(J34*L38,K34*K38,L34*J38)/1000 -> -136.0632 | M41: =SUM(J34*M38,K34*L38,L34*K38,M34*J38)/1000 -> -138.1016 | N41: =SUM(J34*N38,K34*M38,L34*L38,M34*K38,N34*J38)/1000 -> -138.32
C42: Sensitiviteitsanalyse max-scenario kosten, populatie max (x€1000) | I42: =SUM(J42:N42) -> -982.8104 | J42: =SUM(J35*J38)/1000 -> -154.44 | K42: =SUM(J35*K38,K35*J38)/1000 -> -180.18 | L42: =SUM(J35*L38,K35*K38,L35*J38)/1000 -> -213.8136 | M42: =SUM(J35*M38,K35*L38,L35*K38,M35*J38)/1000 -> -217.0168 | N42: =SUM(J35*N38,K35*M38,L35*L38,M35*K38,N35*J38)/1000 -> -217.36
B44: SPECIFICATIE BRUTO UITGAVEN PER PATIENT PER FOLLOW-UP JAAR | J44: 5 | K44: 6 | L44: 7 | M44: 8 | N44: 9
C45: Wet | E45: Sector | H45: Component (eerste 2 regels..) | I45: Typering | J45: Jaar 1 | K45: Jaar 2 | L45: Jaar 3 | M45: Jaar 4 | N45: Jaar 5
A46: Alternatieve zorg | B46: 1 | C46: =IFERROR(INDEX(Sectoroverzicht!$B$3:$B$31,MATCH(E46,Sectoroverzicht!$C$3:$C$31,0),1),"") -> Niet van toepassing | E46: =IF(OFFSET(Interventies_alt3!$A23,0,2)="","",OFFSET(Interventies_alt3!$A23,0,2)) -> Non-healthcare | H46: =IF(OFFSET(Interventies_alt3!$A23,0,3)="","",OFFSET(Interventies_alt3!$A23,0,3)) -> Testcomponent | I46: =IF(OFFSET(Interventies_alt3!$A23,0,4)="","",OFFSET(Interventies_alt3!$A23,0,4)) -> Structureel | J46: =IF($C46="","",OFFSET(Interventies_alt3!$A23,0,J$44)) -> 1500 | K46: =IF($C46="","",OFFSET(Interventies_alt3!$A23,0,K$44)) -> 100 | L46: =IF($C46="","",OFFSET(Interventies_alt3!$A23,0,L$44)) -> 300 | M46: =IF($C46="","",OFFSET(Interventies_alt3!$A23,0,M$44)) -> 0 | N46: =IF($C46="","",OFFSET(Interventies_alt3!$A23,0,N$44)) -> 0
B47: 2 | C47: =IFERROR(INDEX(Sectoroverzicht!$B$3:$B$31,MATCH(E47,Sectoroverzicht!$C$3:$C$31,0),1),"") -> Zorgverzekeringswet | E47: =IF(OFFSET(Interventies_alt3!$A24,0,2)="","",OFFSET(Interventies_alt3!$A24,0,2)) -> Huisartsenzorg | H47: =IF(OFFSET(Interventies_alt3!$A24,0,3)="","",OFFSET(Interventies_alt3!$A24,0,3)) -> Testcomponent | I47: =IF(OFFSET(Interventies_alt3!$A24,0,4)="","",OFFSET(Interventies_alt3!$A24,0,4)) -> Incidenteel | J47: =IF($C47="","",OFFSET(Interventies_alt3!$A24,0,J$44)) -> 0 | K47: =IF($C47="","",OFFSET(Interventies_alt3!$A24,0,K$44)) -> 0 | L47: =IF($C47="","",OFFSET(Interventies_alt3!$A24,0,L$44)) -> 0 | M47: =IF($C47="","",OFFSET(Interventies_alt3!$A24,0,M$44)) -> 0 | N47: =IF($C47="","",OFFSET(Interventies_alt3!$A24,0,N$44)) -> 0
B48: 3 | C48: =IFERROR(INDEX(Sectoroverzicht!$B$3:$B$31,MATCH(E48,Sectoroverzicht!$C$3:$C$31,0),1),"") ->  | E48: =IF(OFFSET(Interventies_alt3!$A25,0,2)="","",OFFSET(Interventies_alt3!$A25,0,2)) ->  | H48: =IF(OFFSET(Interventies_alt3!$A25,0,3)="","",OFFSET(Interventies_alt3!$A25,0,3)) ->  | I48: =IF(OFFSET(Interventies_alt3!$A25,0,4)="","",OFFSET(Interventies_alt3!$A25,0,4)) ->  | J48: =IF($C48="","",OFFSET(Interventies_alt3!$A25,0,J$44)) ->  | K48: =IF($C48="","",OFFSET(Interventies_alt3!$A25,0,K$44)) ->  | L48: =IF($C48="","",OFFSET(Interventies_alt3!$A25,0,L$44)) ->  | M48: =IF($C48="","",OFFSET(Interventies_alt3!$A25,0,M$44)) ->  | N48: =IF($C48="","",OFFSET(Interventies_alt3!$A25,0,N$44)) -> 
B49: 4 | C49: =IFERROR(INDEX(Sectoroverzicht!$B$3:$B$31,MATCH(E49,Sectoroverzicht!$C$3:$C$31,0),1),"") ->  | E49: =IF(OFFSET(Interventies_alt3!$A26,0,2)="","",OFFSET(Interventies_alt3!$A26,0,2)) ->  | H49: =IF(OFFSET(Interventies_alt3!$A26,0,3)="","",OFFSET(Interventies_alt3!$A26,0,3)) ->  | I49: =IF(OFFSET(Interventies_alt3!$A26,0,4)="","",OFFSET(Interventies_alt3!$A26,0,4)) ->  | J49: =IF($C49="","",OFFSET(Interventies_alt3!$A26,0,J$44)) ->  | K49: =IF($C49="","",OFFSET(Interventies_alt3!$A26,0,K$44)) ->  | L49: =IF($C49="","",OFFSET(Interventies_alt3!$A26,0,L$44)) ->  | M49: =IF($C49="","",OFFSET(Interventies_alt3!$A26,0,M$44)) ->  | N49: =IF($C49="","",OFFSET(Interventies_alt3!$A26,0,N$44)) -> 
B50: 5 | C50: =IFERROR(INDEX(Sectoroverzicht!$B$3:$B$31,MATCH(E50,Sectoroverzicht!$C$3:$C$31,0),1),"") ->  | E50: =IF(OFFSET(Interventies_alt3!$A27,0,2)="","",OFFSET(Interventies_alt3!$A27,0,2)) ->  | H50: =IF(OFFSET(Interventies_alt3!$A27,0,3)="","",OFFSET(Interventies_alt3!$A27,0,3)) ->  | I50: =IF(OFFSET(Interventies_alt3!$A27,0,4)="","",OFFSET(Interventies_alt3!$A27,0,4)) ->  | J50: =IF($C50="","",OFFSET(Interventies_alt3!$A27,0,J$44)) ->  | K50: =IF($C50="","",OFFSET(Interventies_alt3!$A27,0,K$44)) ->  | L50: =IF($C50="","",OFFSET(Interventies_alt3!$A27,0,L$44)) ->  | M50: =IF($C50="","",OFFSET(Interventies_alt3!$A27,0,M$44)) ->  | N50: =IF($C50="","",OFFSET(Interventies_alt3!$A27,0,N$44)) -> 
B51: 6 | C51: =IFERROR(INDEX(Sectoroverzicht!$B$3:$B$31,MATCH(E51,Sectoroverzicht!$C$3:$C$31,0),1),"") ->  | E51: =IF(OFFSET(Interventies_alt3!$A28,0,2)="","",OFFSET(Interventies_alt3!$A28,0,2)) ->  | H51: =IF(OFFSET(Interventies_alt3!$A28,0,3)="","",OFFSET(Interventies_alt3!$A28,0,3)) ->  | I51: =IF(OFFSET(Interventies_alt3!$A28,0,4)="","",OFFSET(Interventies_alt3!$A28,0,4)) ->  | J51: =IF($C51="","",OFFSET(Interventies_alt3!$A28,0,J$44)) ->  | K51: =IF($C51="","",OFFSET(Interventies_alt3!$A28,0,K$44)) ->  | L51: =IF($C51="","",OFFSET(Interventies_alt3!$A28,0,L$44)) ->  | M51: =IF($C51="","",OFFSET(Interventies_alt3!$A28,0,M$44)) ->  | N51: =IF($C51="","",OFFSET(Interventies_alt3!$A28,0,N$44)) -> 
B52: 7 | C52: =IFERROR(INDEX(Sectoroverzicht!$B$3:$B$31,MATCH(E52,Sectoroverzicht!$C$3:$C$31,0),1),"") ->  | E52: =IF(OFFSET(Interventies_alt3!$A29,0,2)="","",OFFSET(Interventies_alt3!$A29,0,2)) ->  | H52: =IF(OFFSET(Interventies_alt3!$A29,0,3)="","",OFFSET(Interventies_alt3!$A29,0,3)) ->  | I52: =IF(OFFSET(Interventies_alt3!$A29,0,4)="","",OFFSET(Interventies_alt3!$A29,0,4)) ->  | J52: =IF($C52="","",OFFSET(Interventies_alt3!$A29,0,J$44)) ->  | K52: =IF($C52="","",OFFSET(Interventies_alt3!$A29,0,K$44)) ->  | L52: =IF($C52="","",OFFSET(Interventies_alt3!$A29,0,L$44)) ->  | M52: =IF($C52="","",OFFSET(Interventies_alt3!$A29,0,M$44)) ->  | N52: =IF($C52="","",OFFSET(Interventies_alt3!$A29,0,N$44)) -> 
B53: 8 | C53: =IFERROR(INDEX(Sectoroverzicht!$B$3:$B$31,MATCH(E53,Sectoroverzicht!$C$3:$C$31,0),1),"") ->  | E53: =IF(OFFSET(Interventies_alt3!$A30,0,2)="","",OFFSET(Interventies_alt3!$A30,0,2)) ->  | H53: =IF(OFFSET(Interventies_alt3!$A30,0,3)="","",OFFSET(Interventies_alt3!$A30,0,3)) ->  | I53: =IF(OFFSET(Interventies_alt3!$A30,0,4)="","",OFFSET(Interventies_alt3!$A30,0,4)) ->  | J53: =IF($C53="","",OFFSET(Interventies_alt3!$A30,0,J$44)) ->  | K53: =IF($C53="","",OFFSET(Interventies_alt3!$A30,0,K$44)) ->  | L53: =IF($C53="","",OFFSET(Interventies_alt3!$A30,0,L$44)) ->  | M53: =IF($C53="","",OFFSET(Interventies_alt3!$A30,0,M$44)) ->  | N53: =IF($C53="","",OFFSET(Interventies_alt3!$A30,0,N$44)) -> 
B54: 9 | C54: =IFERROR(INDEX(Sectoroverzicht!$B$3:$B$31,MATCH(E54,Sectoroverzicht!$C$3:$C$31,0),1),"") ->  | E54: =IF(OFFSET(Interventies_alt3!$A31,0,2)="","",OFFSET(Interventies_alt3!$A31,0,2)) ->  | H54: =IF(OFFSET(Interventies_alt3!$A31,0,3)="","",OFFSET(Interventies_alt3!$A31,0,3)) ->  | I54: =IF(OFFSET(Interventies_alt3!$A31,0,4)="","",OFFSET(Interventies_alt3!$A31,0,4)) ->  | J54: =IF($C54="","",OFFSET(Interventies_alt3!$A31,0,J$44)) ->  | K54: =IF($C54="","",OFFSET(Interventies_alt3!$A31,0,K$44)) ->  | L54: =IF($C54="","",OFFSET(Interventies_alt3!$A31,0,L$44)) ->  | M54: =IF($C54="","",OFFSET(Interventies_alt3!$A31,0,M$44)) ->  | N54: =IF($C54="","",OFFSET(Interventies_alt3!$A31,0,N$44)) -> 
B55: 10 | C55: =IFERROR(INDEX(Sectoroverzicht!$B$3:$B$31,MATCH(E55,Sectoroverzicht!$C$3:$C$31,0),1),"") ->  | E55: =IF(OFFSET(Interventies_alt3!$A32,0,2)="","",OFFSET(Interventies_alt3!$A32,0,2)) ->  | H55: =IF(OFFSET(Interventies_alt3!$A32,0,3)="","",OFFSET(Interventies_alt3!$A32,0,3)) ->  | I55: =IF(OFFSET(Interventies_alt3!$A32,0,4)="","",OFFSET(Interventies_alt3!$A32,0,4)) ->  | J55: =IF($C55="","",OFFSET(Interventies_alt3!$A32,0,J$44)) ->  | K55: =IF($C55="","",OFFSET(Interventies_alt3!$A32,0,K$44)) ->  | L55: =IF($C55="","",OFFSET(Interventies_alt3!$A32,0,L$44)) ->  | M55: =IF($C55="","",OFFSET(Interventies_alt3!$A32,0,M$44)) ->  | N55: =IF($C55="","",OFFSET(Interventies_alt3!$A32,0,N$44)) -> 
B56: 11 | C56: =IFERROR(INDEX(Sectoroverzicht!$B$3:$B$31,MATCH(E56,Sectoroverzicht!$C$3:$C$31,0),1),"") ->  | E56: =IF(OFFSET(Interventies_alt3!$A33,0,2)="","",OFFSET(Interventies_alt3!$A33,0,2)) ->  | H56: =IF(OFFSET(Interventies_alt3!$A33,0,3)="","",OFFSET(Interventies_alt3!$A33,0,3)) ->  | I56: =IF(OFFSET(Interventies_alt3!$A33,0,4)="","",OFFSET(Interventies_alt3!$A33,0,4)) ->  | J56: =IF($C56="","",OFFSET(Interventies_alt3!$A33,0,J$44)) ->  | K56: =IF($C56="","",OFFSET(Interventies_alt3!$A33,0,K$44)) ->  | L56: =IF($C56="","",OFFSET(Interventies_alt3!$A33,0,L$44)) ->  | M56: =IF($C56="","",OFFSET(Interventies_alt3!$A33,0,M$44)) ->  | N56: =IF($C56="","",OFFSET(Interventies_alt3!$A33,0,N$44)) -> 
B57: 12 | C57: =IFERROR(INDEX(Sectoroverzicht!$B$3:$B$31,MATCH(E57,Sectoroverzicht!$C$3:$C$31,0),1),"") ->  | E57: =IF(OFFSET(Interventies_alt3!$A34,0,2)="","",OFFSET(Interventies_alt3!$A34,0,2)) ->  | H57: =IF(OFFSET(Interventies_alt3!$A34,0,3)="","",OFFSET(Interventies_alt3!$A34,0,3)) ->  | I57: =IF(OFFSET(Interventies_alt3!$A34,0,4)="","",OFFSET(Interventies_alt3!$A34,0,4)) ->  | J57: =IF($C57="","",OFFSET(Interventies_alt3!$A34,0,J$44)) ->  | K57: =IF($C57="","",OFFSET(Interventies_alt3!$A34,0,K$44)) ->  | L57: =IF($C57="","",OFFSET(Interventies_alt3!$A34,0,L$44)) ->  | M57: =IF($C57="","",OFFSET(Interventies_alt3!$A34,0,M$44)) ->  | N57: =IF($C57="","",OFFSET(Interventies_alt3!$A34,0,N$44)) -> 
B58: 13 | C58: =IFERROR(INDEX(Sectoroverzicht!$B$3:$B$31,MATCH(E58,Sectoroverzicht!$C$3:$C$31,0),1),"") ->  | E58: =IF(OFFSET(Interventies_alt3!$A35,0,2)="","",OFFSET(Interventies_alt3!$A35,0,2)) ->  | H58: =IF(OFFSET(Interventies_alt3!$A35,0,3)="","",OFFSET(Interventies_alt3!$A35,0,3)) ->  | I58: =IF(OFFSET(Interventies_alt3!$A35,0,4)="","",OFFSET(Interventies_alt3!$A35,0,4)) ->  | J58: =IF($C58="","",OFFSET(Interventies_alt3!$A35,0,J$44)) ->  | K58: =IF($C58="","",OFFSET(Interventies_alt3!$A35,0,K$44)) ->  | L58: =IF($C58="","",OFFSET(Interventies_alt3!$A35,0,L$44)) ->  | M58: =IF($C58="","",OFFSET(Interventies_alt3!$A35,0,M$44)) ->  | N58: =IF($C58="","",OFFSET(Interventies_alt3!$A35,0,N$44)) -> 
B59: 14 | C59: =IFERROR(INDEX(Sectoroverzicht!$B$3:$B$31,MATCH(E59,Sectoroverzicht!$C$3:$C$31,0),1),"") ->  | E59: =IF(OFFSET(Interventies_alt3!$A36,0,2)="","",OFFSET(Interventies_alt3!$A36,0,2)) ->  | H59: =IF(OFFSET(Interventies_alt3!$A36,0,3)="","",OFFSET(Interventies_alt3!$A36,0,3)) ->  | I59: =IF(OFFSET(Interventies_alt3!$A36,0,4)="","",OFFSET(Interventies_alt3!$A36,0,4)) ->  | J59: =IF($C59="","",OFFSET(Interventies_alt3!$A36,0,J$44)) ->  | K59: =IF($C59="","",OFFSET(Interventies_alt3!$A36,0,K$44)) ->  | L59: =IF($C59="","",OFFSET(Interventies_alt3!$A36,0,L$44)) ->  | M59: =IF($C59="","",OFFSET(Interventies_alt3!$A36,0,M$44)) ->  | N59: =IF($C59="","",OFFSET(Interventies_alt3!$A36,0,N$44)) -> 
B60: 15 | C60: =IFERROR(INDEX(Sectoroverzicht!$B$3:$B$31,MATCH(E60,Sectoroverzicht!$C$3:$C$31,0),1),"") ->  | E60: =IF(OFFSET(Interventies_alt3!$A37,0,2)="","",OFFSET(Interventies_alt3!$A37,0,2)) ->  | H60: =IF(OFFSET(Interventies_alt3!$A37,0,3)="","",OFFSET(Interventies_alt3!$A37,0,3)) ->  | I60: =IF(OFFSET(Interventies_alt3!$A37,0,4)="","",OFFSET(Interventies_alt3!$A37,0,4)) ->  | J60: =IF($C60="","",OFFSET(Interventies_alt3!$A37,0,J$44)) ->  | K60: =IF($C60="","",OFFSET(Interventies_alt3!$A37,0,K$44)) ->  | L60: =IF($C60="","",OFFSET(Interventies_alt3!$A37,0,L$44)) ->  | M60: =IF($C60="","",OFFSET(Interventies_alt3!$A37,0,M$44)) ->  | N60: =IF($C60="","",OFFSET(Interventies_alt3!$A37,0,N$44)) -> 
A61: Referentie zorg | B61: 1 | C61: =IFERROR(INDEX(Sectoroverzicht!$B$3:$B$31,MATCH(E61,Sectoroverzicht!$C$3:$C$31,0),1),"") -> Wet langdurige zorg | E61: =IF(OFFSET(Interventies_ref3!$A23,0,2)="","",OFFSET(Interventies_ref3!$A23,0,2)) -> Gehandicaptenzorg | H61: =IF(OFFSET(Interventies_ref3!$A23,0,3)="","",OFFSET(Interventies_ref3!$A23,0,3)) -> Iets | I61: =IF(OFFSET(Interventies_ref3!$A23,0,4)="","",OFFSET(Interventies_ref3!$A23,0,4)) -> Structureel | J61: =IF($C61="","",OFFSET(Interventies_ref3!$A23,0,J$44)) -> 1500 | K61: =IF($C61="","",OFFSET(Interventies_ref3!$A23,0,K$44)) -> 100 | L61: =IF($C61="","",OFFSET(Interventies_ref3!$A23,0,L$44)) -> 300 | M61: =IF($C61="","",OFFSET(Interventies_ref3!$A23,0,M$44)) -> 0 | N61: =IF($C61="","",OFFSET(Interventies_ref3!$A23,0,N$44)) -> 0
B62: 2 | C62: =IFERROR(INDEX(Sectoroverzicht!$B$3:$B$31,MATCH(E62,Sectoroverzicht!$C$3:$C$31,0),1),"") -> Zorgverzekeringswet | E62: =IF(OFFSET(Interventies_ref3!$A24,0,2)="","",OFFSET(Interventies_ref3!$A24,0,2)) -> Huisartsenzorg | H62: =IF(OFFSET(Interventies_ref3!$A24,0,3)="","",OFFSET(Interventies_ref3!$A24,0,3)) -> Iets | I62: =IF(OFFSET(Interventies_ref3!$A24,0,4)="","",OFFSET(Interventies_ref3!$A24,0,4)) -> Incidenteel | J62: =IF($C62="","",OFFSET(Interventies_ref3!$A24,0,J$44)) -> 0 | K62: =IF($C62="","",OFFSET(Interventies_ref3!$A24,0,K$44)) -> 0 | L62: =IF($C62="","",OFFSET(Interventies_ref3!$A24,0,L$44)) -> 0 | M62: =IF($C62="","",OFFSET(Interventies_ref3!$A24,0,M$44)) -> 0 | N62: =IF($C62="","",OFFSET(Interventies_ref3!$A24,0,N$44)) -> 0
B63: 3 | C63: =IFERROR(INDEX(Sectoroverzicht!$B$3:$B$31,MATCH(E63,Sectoroverzicht!$C$3:$C$31,0),1),"") ->  | E63: =IF(OFFSET(Interventies_ref3!$A25,0,2)="","",OFFSET(Interventies_ref3!$A25,0,2)) ->  | H63: =IF(OFFSET(Interventies_ref3!$A25,0,3)="","",OFFSET(Interventies_ref3!$A25,0,3)) ->  | I63: =IF(OFFSET(Interventies_ref3!$A25,0,4)="","",OFFSET(Interventies_ref3!$A25,0,4)) ->  | J63: =IF($C63="","",OFFSET(Interventies_ref3!$A25,0,J$44)) ->  | K63: =IF($C63="","",OFFSET(Interventies_ref3!$A25,0,K$44)) ->  | L63: =IF($C63="","",OFFSET(Interventies_ref3!$A25,0,L$44)) ->  | M63: =IF($C63="","",OFFSET(Interventies_ref3!$A25,0,M$44)) ->  | N63: =IF($C63="","",OFFSET(Interventies_ref3!$A25,0,N$44)) -> 
B64: 4 | C64: =IFERROR(INDEX(Sectoroverzicht!$B$3:$B$31,MATCH(E64,Sectoroverzicht!$C$3:$C$31,0),1),"") ->  | E64: =IF(OFFSET(Interventies_ref3!$A26,0,2)="","",OFFSET(Interventies_ref3!$A26,0,2)) ->  | H64: =IF(OFFSET(Interventies_ref3!$A26,0,3)="","",OFFSET(Interventies_ref3!$A26,0,3)) ->  | I64: =IF(OFFSET(Interventies_ref3!$A26,0,4)="","",OFFSET(Interventies_ref3!$A26,0,4)) ->  | J64: =IF($C64="","",OFFSET(Interventies_ref3!$A26,0,J$44)) ->  | K64: =IF($C64="","",OFFSET(Interventies_ref3!$A26,0,K$44)) ->  | L64: =IF($C64="","",OFFSET(Interventies_ref3!$A26,0,L$44)) ->  | M64: =IF($C64="","",OFFSET(Interventies_ref3!$A26,0,M$44)) ->  | N64: =IF($C64="","",OFFSET(Interventies_ref3!$A26,0,N$44)) -> 
B65: 5 | C65: =IFERROR(INDEX(Sectoroverzicht!$B$3:$B$31,MATCH(E65,Sectoroverzicht!$C$3:$C$31,0),1),"") ->  | E65: =IF(OFFSET(Interventies_ref3!$A27,0,2)="","",OFFSET(Interventies_ref3!$A27,0,2)) ->  | H65: =IF(OFFSET(Interventies_ref3!$A27,0,3)="","",OFFSET(Interventies_ref3!$A27,0,3)) ->  | I65: =IF(OFFSET(Interventies_ref3!$A27,0,4)="","",OFFSET(Interventies_ref3!$A27,0,4)) ->  | J65: =IF($C65="","",OFFSET(Interventies_ref3!$A27,0,J$44)) ->  | K65: =IF($C65="","",OFFSET(Interventies_ref3!$A27,0,K$44)) ->  | L65: =IF($C65="","",OFFSET(Interventies_ref3!$A27,0,L$44)) ->  | M65: =IF($C65="","",OFFSET(Interventies_ref3!$A27,0,M$44)) ->  | N65: =IF($C65="","",OFFSET(Interventies_ref3!$A27,0,N$44)) -> 
B66: 6 | C66: =IFERROR(INDEX(Sectoroverzicht!$B$3:$B$31,MATCH(E66,Sectoroverzicht!$C$3:$C$31,0),1),"") ->  | E66: =IF(OFFSET(Interventies_ref3!$A28,0,2)="","",OFFSET(Interventies_ref3!$A28,0,2)) ->  | H66: =IF(OFFSET(Interventies_ref3!$A28,0,3)="","",OFFSET(Interventies_ref3!$A28,0,3)) ->  | I66: =IF(OFFSET(Interventies_ref3!$A28,0,4)="","",OFFSET(Interventies_ref3!$A28,0,4)) ->  | J66: =IF($C66="","",OFFSET(Interventies_ref3!$A28,0,J$44)) ->  | K66: =IF($C66="","",OFFSET(Interventies_ref3!$A28,0,K$44)) ->  | L66: =IF($C66="","",OFFSET(Interventies_ref3!$A28,0,L$44)) ->  | M66: =IF($C66="","",OFFSET(Interventies_ref3!$A28,0,M$44)) ->  | N66: =IF($C66="","",OFFSET(Interventies_ref3!$A28,0,N$44)) -> 
B67: 7 | C67: =IFERROR(INDEX(Sectoroverzicht!$B$3:$B$31,MATCH(E67,Sectoroverzicht!$C$3:$C$31,0),1),"") ->  | E67: =IF(OFFSET(Interventies_ref3!$A29,0,2)="","",OFFSET(Interventies_ref3!$A29,0,2)) ->  | H67: =IF(OFFSET(Interventies_ref3!$A29,0,3)="","",OFFSET(Interventies_ref3!$A29,0,3)) ->  | I67: =IF(OFFSET(Interventies_ref3!$A29,0,4)="","",OFFSET(Interventies_ref3!$A29,0,4)) ->  | J67: =IF($C67="","",OFFSET(Interventies_ref3!$A29,0,J$44)) ->  | K67: =IF($C67="","",OFFSET(Interventies_ref3!$A29,0,K$44)) ->  | L67: =IF($C67="","",OFFSET(Interventies_ref3!$A29,0,L$44)) ->  | M67: =IF($C67="","",OFFSET(Interventies_ref3!$A29,0,M$44)) ->  | N67: =IF($C67="","",OFFSET(Interventies_ref3!$A29,0,N$44)) -> 
B68: 8 | C68: =IFERROR(INDEX(Sectoroverzicht!$B$3:$B$31,MATCH(E68,Sectoroverzicht!$C$3:$C$31,0),1),"") ->  | E68: =IF(OFFSET(Interventies_ref3!$A30,0,2)="","",OFFSET(Interventies_ref3!$A30,0,2)) ->  | H68: =IF(OFFSET(Interventies_ref3!$A30,0,3)="","",OFFSET(Interventies_ref3!$A30,0,3)) ->  | I68: =IF(OFFSET(Interventies_ref3!$A30,0,4)="","",OFFSET(Interventies_ref3!$A30,0,4)) ->  | J68: =IF($C68="","",OFFSET(Interventies_ref3!$A30,0,J$44)) ->  | K68: =IF($C68="","",OFFSET(Interventies_ref3!$A30,0,K$44)) ->  | L68: =IF($C68="","",OFFSET(Interventies_ref3!$A30,0,L$44)) ->  | M68: =IF($C68="","",OFFSET(Interventies_ref3!$A30,0,M$44)) ->  | N68: =IF($C68="","",OFFSET(Interventies_ref3!$A30,0,N$44)) -> 
B69: 9 | C69: =IFERROR(INDEX(Sectoroverzicht!$B$3:$B$31,MATCH(E69,Sectoroverzicht!$C$3:$C$31,0),1),"") ->  | E69: =IF(OFFSET(Interventies_ref3!$A31,0,2)="","",OFFSET(Interventies_ref3!$A31,0,2)) ->  | H69: =IF(OFFSET(Interventies_ref3!$A31,0,3)="","",OFFSET(Interventies_ref3!$A31,0,3)) ->  | I69: =IF(OFFSET(Interventies_ref3!$A31,0,4)="","",OFFSET(Interventies_ref3!$A31,0,4)) ->  | J69: =IF($C69="","",OFFSET(Interventies_ref3!$A31,0,J$44)) ->  | K69: =IF($C69="","",OFFSET(Interventies_ref3!$A31,0,K$44)) ->  | L69: =IF($C69="","",OFFSET(Interventies_ref3!$A31,0,L$44)) ->  | M69: =IF($C69="","",OFFSET(Interventies_ref3!$A31,0,M$44)) ->  | N69: =IF($C69="","",OFFSET(Interventies_ref3!$A31,0,N$44)) -> 
B70: 10 | C70: =IFERROR(INDEX(Sectoroverzicht!$B$3:$B$31,MATCH(E70,Sectoroverzicht!$C$3:$C$31,0),1),"") ->  | E70: =IF(OFFSET(Interventies_ref3!$A32,0,2)="","",OFFSET(Interventies_ref3!$A32,0,2)) ->  | H70: =IF(OFFSET(Interventies_ref3!$A32,0,3)="","",OFFSET(Interventies_ref3!$A32,0,3)) ->  | I70: =IF(OFFSET(Interventies_ref3!$A32,0,4)="","",OFFSET(Interventies_ref3!$A32,0,4)) ->  | J70: =IF($C70="","",OFFSET(Interventies_ref3!$A32,0,J$44)) ->  | K70: =IF($C70="","",OFFSET(Interventies_ref3!$A32,0,K$44)) ->  | L70: =IF($C70="","",OFFSET(Interventies_ref3!$A32,0,L$44)) ->  | M70: =IF($C70="","",OFFSET(Interventies_ref3!$A32,0,M$44)) ->  | N70: =IF($C70="","",OFFSET(Interventies_ref3!$A32,0,N$44)) -> 
B71: 11 | C71: =IFERROR(INDEX(Sectoroverzicht!$B$3:$B$31,MATCH(E71,Sectoroverzicht!$C$3:$C$31,0),1),"") ->  | E71: =IF(OFFSET(Interventies_ref3!$A33,0,2)="","",OFFSET(Interventies_ref3!$A33,0,2)) ->  | H71: =IF(OFFSET(Interventies_ref3!$A33,0,3)="","",OFFSET(Interventies_ref3!$A33,0,3)) ->  | I71: =IF(OFFSET(Interventies_ref3!$A33,0,4)="","",OFFSET(Interventies_ref3!$A33,0,4)) ->  | J71: =IF($C71="","",OFFSET(Interventies_ref3!$A33,0,J$44)) ->  | K71: =IF($C71="","",OFFSET(Interventies_ref3!$A33,0,K$44)) ->  | L71: =IF($C71="","",OFFSET(Interventies_ref3!$A33,0,L$44)) ->  | M71: =IF($C71="","",OFFSET(Interventies_ref3!$A33,0,M$44)) ->  | N71: =IF($C71="","",OFFSET(Interventies_ref3!$A33,0,N$44)) -> 
B72: 12 | C72: =IFERROR(INDEX(Sectoroverzicht!$B$3:$B$31,MATCH(E72,Sectoroverzicht!$C$3:$C$31,0),1),"") ->  | E72: =IF(OFFSET(Interventies_ref3!$A34,0,2)="","",OFFSET(Interventies_ref3!$A34,0,2)) ->  | H72: =IF(OFFSET(Interventies_ref3!$A34,0,3)="","",OFFSET(Interventies_ref3!$A34,0,3)) ->  | I72: =IF(OFFSET(Interventies_ref3!$A34,0,4)="","",OFFSET(Interventies_ref3!$A34,0,4)) ->  | J72: =IF($C72="","",OFFSET(Interventies_ref3!$A34,0,J$44)) ->  | K72: =IF($C72="","",OFFSET(Interventies_ref3!$A34,0,K$44)) ->  | L72: =IF($C72="","",OFFSET(Interventies_ref3!$A34,0,L$44)) ->  | M72: =IF($C72="","",OFFSET(Interventies_ref3!$A34,0,M$44)) ->  | N72: =IF($C72="","",OFFSET(Interventies_ref3!$A34,0,N$44)) -> 
B73: 13 | C73: =IFERROR(INDEX(Sectoroverzicht!$B$3:$B$31,MATCH(E73,Sectoroverzicht!$C$3:$C$31,0),1),"") ->  | E73: =IF(OFFSET(Interventies_ref3!$A35,0,2)="","",OFFSET(Interventies_ref3!$A35,0,2)) ->  | H73: =IF(OFFSET(Interventies_ref3!$A35,0,3)="","",OFFSET(Interventies_ref3!$A35,0,3)) ->  | I73: =IF(OFFSET(Interventies_ref3!$A35,0,4)="","",OFFSET(Interventies_ref3!$A35,0,4)) ->  | J73: =IF($C73="","",OFFSET(Interventies_ref3!$A35,0,J$44)) ->  | K73: =IF($C73="","",OFFSET(Interventies_ref3!$A35,0,K$44)) ->  | L73: =IF($C73="","",OFFSET(Interventies_ref3!$A35,0,L$44)) ->  | M73: =IF($C73="","",OFFSET(Interventies_ref3!$A35,0,M$44)) ->  | N73: =IF($C73="","",OFFSET(Interventies_ref3!$A35,0,N$44)) -> 
B74: 14 | C74: =IFERROR(INDEX(Sectoroverzicht!$B$3:$B$31,MATCH(E74,Sectoroverzicht!$C$3:$C$31,0),1),"") ->  | E74: =IF(OFFSET(Interventies_ref3!$A36,0,2)="","",OFFSET(Interventies_ref3!$A36,0,2)) ->  | H74: =IF(OFFSET(Interventies_ref3!$A36,0,3)="","",OFFSET(Interventies_ref3!$A36,0,3)) ->  | I74: =IF(OFFSET(Interventies_ref3!$A36,0,4)="","",OFFSET(Interventies_ref3!$A36,0,4)) ->  | J74: =IF($C74="","",OFFSET(Interventies_ref3!$A36,0,J$44)) ->  | K74: =IF($C74="","",OFFSET(Interventies_ref3!$A36,0,K$44)) ->  | L74: =IF($C74="","",OFFSET(Interventies_ref3!$A36,0,L$44)) ->  | M74: =IF($C74="","",OFFSET(Interventies_ref3!$A36,0,M$44)) ->  | N74: =IF($C74="","",OFFSET(Interventies_ref3!$A36,0,N$44)) -> 
B75: 15 | C75: =IFERROR(INDEX(Sectoroverzicht!$B$3:$B$31,MATCH(E75,Sectoroverzicht!$C$3:$C$31,0),1),"") ->  | E75: =IF(OFFSET(Interventies_ref3!$A37,0,2)="","",OFFSET(Interventies_ref3!$A37,0,2)) ->  | H75: =IF(OFFSET(Interventies_ref3!$A37,0,3)="","",OFFSET(Interventies_ref3!$A37,0,3)) ->  | I75: =IF(OFFSET(Interventies_ref3!$A37,0,4)="","",OFFSET(Interventies_ref3!$A37,0,4)) ->  | J75: =IF($C75="","",OFFSET(Interventies_ref3!$A37,0,J$44)) ->  | K75: =IF($C75="","",OFFSET(Interventies_ref3!$A37,0,K$44)) ->  | L75: =IF($C75="","",OFFSET(Interventies_ref3!$A37,0,L$44)) ->  | M75: =IF($C75="","",OFFSET(Interventies_ref3!$A37,0,M$44)) ->  | N75: =IF($C75="","",OFFSET(Interventies_ref3!$A37,0,N$44)) -> 
A79: Met onderstaande knoppen kunt u snel over de hoofdonderdelen van de BIA navigeren. De kleur matcht met de band bovenin het scherm. De knop 'Verder' hierboven volstaat echter om het hele proces te doorlopen.

Sheet Budgetimpact_Zorgverzekeraar3
A3: BUDGET IMPACT ANALYSE BIJ DOELMATIGHEIDSONDERZOEK
A4: BUDGETIMPACT ZORGVERZEKERAAR
B6: i | C6: Navigatie
B10: =Populatie3!$C$17 -> Scenario 3: Niet nader omschreven
B12: i
I13: ONZEKERHEID | K13: SENSITIVITEITSANALYSE i
B14: SPECIFICATIE MATE VAN ONZEKERHEID / SENSITIVITEITSANALYSE | K14: MIN | L14: MAX
B15: i | C15: Specificatie populatie | I15: =IF(Populatie3!$M$39="","Onbekend!",Populatie3!$M$39) -> Gemiddeld | J15: =IF(I15="Klein",1,IF(I15="Gemiddeld",0,IF(I15="Groot",-1,""))) -> 0 | K15: 0.7 | L15: 1.1
B16: i | C16: ALTERNATIEVE ZORG | Kosten interventiemix | I16: =IF(Toelichting_Interventies_alt3!$E$31="","Onbekend!",Toelichting_Interventies_alt3!$E$31) -> Groot | J16: =IF(I16="Klein",1,IF(I16="Gemiddeld",0,IF(I16="Groot",-1,""))) -> -1 | K16: 0.8 | L16: 1.2
B17: i | C17: REFERENTIE ZORG | Kosten interventiemix | I17: =IF(Toelichting_Interventies_ref3!$E$31="","Onbekend!",Toelichting_Interventies_ref3!$E$31) -> Klein | J17: =IF(I17="Klein",1,IF(I17="Gemiddeld",0,IF(I17="Groot",-1,""))) -> 1 | K17: 0.9 | L17: 1.3
B19: IMPACT | I19: Totaal | J19: =IF(Startjaar="",1,Startjaar) -> 2019 | K19: =J19+1 -> 2020 | L19: =K19+1 -> 2021 | M19: =L19+1 -> 2022 | N19: =M19+1 -> 2023
C20: Totaal nieuwe patiënten | J20: =Populatie3!D$39 -> 90 | K20: =Populatie3!E$39 -> 99 | L20: =Populatie3!F$39 -> 100 | M20: =Populatie3!G$39 -> 100 | N20: =Populatie3!H$39 -> 100
B21: i | C21: Marktaandeel | J21: 0.8 | K21: 0.8 | L21: 0.8 | M21: 0.8 | N21: 0.8
C22: Aantal startende zorggebruikers | J22: =J20*J21 -> 72 | K22: =K20*K21 -> 79.2 | L22: =L20*L21 -> 80 | M22: =M20*M21 -> 80 | N22: =N20*N21 -> 80
B23: i | C23: Bruto verschil in HEALTHCARE uitgaven per patient onder Zorgverzekeringswet | J23: =SUM(J24,J27) -> 0 | K23: =SUM(K24,K27) -> 0 | L23: =SUM(L24,L27) -> 0 | M23: =SUM(M24,M27) -> 0 | N23: =SUM(N24,N27) -> 0
D24: Structurele kosten | J24: =J25-J26 -> 0 | K24: =K25-K26 -> 0 | L24: =L25-L26 -> 0 | M24: =M25-M26 -> 0 | N24: =N25-N26 -> 0
D25: Bruto uitgaven alternatieve zorg (per follow-up jaar!) | J25: =SUMIFS(J$54:J$68,$C$54:$C$68,"Zorgverzekeringswet",$I$54:$I$68,"Structureel") -> 0 | K25: =SUMIFS(K$54:K$68,$C$54:$C$68,"Zorgverzekeringswet",$I$54:$I$68,"Structureel") -> 0 | L25: =SUMIFS(L$54:L$68,$C$54:$C$68,"Zorgverzekeringswet",$I$54:$I$68,"Structureel") -> 0 | M25: =SUMIFS(M$54:M$68,$C$54:$C$68,"Zorgverzekeringswet",$I$54:$I$68,"Structureel") -> 0 | N25: =SUMIFS(N$54:N$68,$C$54:$C$68,"Zorgverzekeringswet",$I$54:$I$68,"Structureel") -> 0
D26: Bruto uitgaven referentiezorg | J26: =SUMIFS(J$69:J$83,$C$69:$C$83,"Zorgverzekeringswet",$I$69:$I$83,"Structureel") -> 0 | K26: =SUMIFS(K$69:K$83,$C$69:$C$83,"Zorgverzekeringswet",$I$69:$I$83,"Structureel") -> 0 | L26: =SUMIFS(L$69:L$83,$C$69:$C$83,"Zorgverzekeringswet",$I$69:$I$83,"Structureel") -> 0 | M26: =SUMIFS(M$69:M$83,$C$69:$C$83,"Zorgverzekeringswet",$I$69:$I$83,"Structureel") -> 0 | N26: =SUMIFS(N$69:N$83,$C$69:$C$83,"Zorgverzekeringswet",$I$69:$I$83,"Structureel") -> 0
D27: Incidentele kosten | J27: =J28-J29 -> 0 | K27: =K28-K29 -> 0 | L27: =L28-L29 -> 0 | M27: =M28-M29 -> 0 | N27: =N28-N29 -> 0
D28: Bruto uitgaven alternatieve zorg (per follow-up jaar!) | J28: =SUMIFS(J$54:J$68,$C$54:$C$68,"Zorgverzekeringswet",$I$54:$I$68,"Incidenteel") -> 0 | K28: =SUMIFS(K$54:K$68,$C$54:$C$68,"Zorgverzekeringswet",$I$54:$I$68,"Incidenteel") -> 0 | L28: =SUMIFS(L$54:L$68,$C$54:$C$68,"Zorgverzekeringswet",$I$54:$I$68,"Incidenteel") -> 0 | M28: =SUMIFS(M$54:M$68,$C$54:$C$68,"Zorgverzekeringswet",$I$54:$I$68,"Incidenteel") -> 0 | N28: =SUMIFS(N$54:N$68,$C$54:$C$68,"Zorgverzekeringswet",$I$54:$I$68,"Incidenteel") -> 0
D29: Bruto uitgaven referentiezorg | J29: =SUMIFS(J$69:J$83,$C$69:$C$83,"Zorgverzekeringswet",$I$69:$I$83,"Incidenteel") -> 0 | K29: =SUMIFS(K$69:K$83,$C$69:$C$83,"Zorgverzekeringswet",$I$69:$I$83,"Incidenteel") -> 0 | L29: =SUMIFS(L$69:L$83,$C$69:$C$83,"Zorgverzekeringswet",$I$69:$I$83,"Incidenteel") -> 0 | M29: =SUMIFS(M$69:M$83,$C$69:$C$83,"Zorgverzekeringswet",$I$69:$I$83,"Incidenteel") -> 0 | N29: =SUMIFS(N$69:N$83,$C$69:$C$83,"Zorgverzekeringswet",$I$69:$I$83,"Incidenteel") -> 0
C30: Bruto verschil in HEALTHCARE uitgaven per patient onder Wet Langdurige Zorg | J30: =SUM(J31,J34) -> -1500 | K30: =SUM(K31,K34) -> -100 | L30: =SUM(L31,L34) -> -300 | M30: =SUM(M31,M34) -> 0 | N30: =SUM(N31,N34) -> 0
D31: Structurele kosten | J31: =J32-J33 -> -1500 | K31: =K32-K33 -> -100 | L31: =L32-L33 -> -300 | M31: =M32-M33 -> 0 | N31: =N32-N33 -> 0
D32: Bruto uitgaven alternatieve zorg (per follow-up jaar!) | J32: =SUMIFS(J$54:J$68,$C$54:$C$68,"Wet Langdurige Zorg",$I$54:$I$68,"Structureel") -> 0 | K32: =SUMIFS(K$54:K$68,$C$54:$C$68,"Wet Langdurige Zorg",$I$54:$I$68,"Structureel") -> 0 | L32: =SUMIFS(L$54:L$68,$C$54:$C$68,"Wet Langdurige Zorg",$I$54:$I$68,"Structureel") -> 0 | M32: =SUMIFS(M$54:M$68,$C$54:$C$68,"Wet Langdurige Zorg",$I$54:$I$68,"Structureel") -> 0 | N32: =SUMIFS(N$54:N$68,$C$54:$C$68,"Wet Langdurige Zorg",$I$54:$I$68,"Structureel") -> 0
D33: Bruto uitgaven referentiezorg | J33: =SUMIFS(J$69:J$83,$C$69:$C$83,"Wet Langdurige Zorg",$I$69:$I$83,"Structureel") -> 1500 | K33: =SUMIFS(K$69:K$83,$C$69:$C$83,"Wet Langdurige Zorg",$I$69:$I$83,"Structureel") -> 100 | L33: =SUMIFS(L$69:L$83,$C$69:$C$83,"Wet Langdurige Zorg",$I$69:$I$83,"Structureel") -> 300 | M33: =SUMIFS(M$69:M$83,$C$69:$C$83,"Wet Langdurige Zorg",$I$69:$I$83,"Structureel") -> 0 | N33: =SUMIFS(N$69:N$83,$C$69:$C$83,"Wet Langdurige Zorg",$I$69:$I$83,"Structureel") -> 0
D34: Incidentele kosten | J34: =J35-J36 -> 0 | K34: =K35-K36 -> 0 | L34: =L35-L36 -> 0 | M34: =M35-M36 -> 0 | N34: =N35-N36 -> 0
D35: Bruto uitgaven alternatieve zorg (per follow-up jaar!) | J35: =SUMIFS(J$54:J$68,$C$54:$C$68,"Wet Langdurige Zorg",$I$54:$I$68,"Incidenteel") -> 0 | K35: =SUMIFS(K$54:K$68,$C$54:$C$68,"Wet Langdurige Zorg",$I$54:$I$68,"Incidenteel") -> 0 | L35: =SUMIFS(L$54:L$68,$C$54:$C$68,"Wet Langdurige Zorg",$I$54:$I$68,"Incidenteel") -> 0 | M35: =SUMIFS(M$54:M$68,$C$54:$C$68,"Wet Langdurige Zorg",$I$54:$I$68,"Incidenteel") -> 0 | N35: =SUMIFS(N$54:N$68,$C$54:$C$68,"Wet Langdurige Zorg",$I$54:$I$68,"Incidenteel") -> 0
D36: Bruto uitgaven referentiezorg | J36: =SUMIFS(J$69:J$83,$C$69:$C$83,"Wet Langdurige Zorg",$I$69:$I$83,"Incidenteel") -> 0 | K36: =SUMIFS(K$69:K$83,$C$69:$C$83,"Wet Langdurige Zorg",$I$69:$I$83,"Incidenteel") -> 0 | L36: =SUMIFS(L$69:L$83,$C$69:$C$83,"Wet Langdurige Zorg",$I$69:$I$83,"Incidenteel") -> 0 | M36: =SUMIFS(M$69:M$83,$C$69:$C$83,"Wet Langdurige Zorg",$I$69:$I$83,"Incidenteel") -> 0 | N36: =SUMIFS(N$69:N$83,$C$69:$C$83,"Wet Langdurige Zorg",$I$69:$I$83,"Incidenteel") -> 0
C37: Totale budget-impact Zorgverzekeringswet | I37: =SUM(J37:N37) -> 0 | J37: =SUM(J$22*J23)/1000 -> 0 | K37: =SUM(J$22*K23,K$22*J23)/1000 -> 0 | L37: =SUM(J$22*L23,K$22*K23,L$22*J23)/1000 -> 0 | M37: =SUM(J$22*M23,K$22*L23,L$22*K23,M$22*J23)/1000 -> 0 | N37: =SUM($J$22*N23,$K$22*M23,$L$22*L23,$M$22*K23,N22*J23)/1000 -> 0
C38: Totale budget-impact Wet Langdurige Zorg | I38: =SUM(J38:N38) -> -687.28 | J38: =SUM(J$22*J30)/1000 -> -108 | K38: =SUM(J$22*K30,K$22*J30)/1000 -> -126 | L38: =SUM(J$22*L30,K$22*K30,L$22*J30)/1000 -> -149.52 | M38: =SUM(J$22*M30,K$22*L30,L$22*K30,M$22*J30)/1000 -> -151.76 | N38: =SUM($J$22*N30,$K$22*M30,$L$22*L30,$M$22*K30,N22*J30)/1000 -> -152
C39: Totaal impact HEALTHCARE (x€1.000) | I39: =SUM(J39:N39) -> -687.28 | J39: =SUM(J37:J38) -> -108 | K39: =SUM(K37:K38) -> -126 | L39: =SUM(L37:L38) -> -149.52 | M39: =SUM(M37:M38) -> -151.76 | N39: =SUM(N37:N38) -> -152
B41: SENSITIVITEITSANALYSE
B42: i | C42: Populatie min-scenario | J42: =J$22*$K$15 -> 50.4 | K42: =K$22*$K$15 -> 55.44 | L42: =L$22*$K$15 -> 56 | M42: =M$22*$K$15 -> 56 | N42: =N$22*$K$15 -> 56
B43: i | C43: Populatie max-scenario | J43: =J$22*$L$15 -> 79.2 | K43: =K$22*$L$15 -> 87.12 | L43: =L$22*$L$15 -> 88 | M43: =M$22*$L$15 -> 88 | N43: =N$22*$L$15 -> 88
B44: IMPACT HEALTHCARE | E44: ="BANDBREEDTE: "&TEXT(MAX(I47:I50),"€0.0K")&" TOT "&TEXT(MIN(I47:I50),"€0.0K") -> BANDBREEDTE: -€433K TOT -€983K
B45: i | C45: Bruto verschil min-scenario: kosten referent minimaal, alternatief maximaal | J45: =SUM(J25*$L$16-J26*$K$17,J28*$L$16-J29*$K$17,J32*$L$16-J33*$K$17,J35*$L$16-J36*$K$17) -> -1350 | K45: =SUM(K25*$L$16-K26*$K$17,K28*$L$16-K29*$K$17,K32*$L$16-K33*$K$17,K35*$L$16-K36*$K$17) -> -90 | L45: =SUM(L25*$L$16-L26*$K$17,L28*$L$16-L29*$K$17,L32*$L$16-L33*$K$17,L35*$L$16-L36*$K$17) -> -270 | M45: =SUM(M25*$L$16-M26*$K$17,M28*$L$16-M29*$K$17,M32*$L$16-M33*$K$17,M35*$L$16-M36*$K$17) -> 0 | N45: =SUM(N25*$L$16-N26*$K$17,N28*$L$16-N29*$K$17,N32*$L$16-N33*$K$17,N35*$L$16-N36*$K$17) -> 0
B46: i | C46: Bruto verschil max-scenario: kosten referent maximaal, alternatief minimaal | J46: =SUM(J25*$K$16-J26*$L$17,J28*$K$16-J29*$L$17,J32*$K$16-J33*$L$17,J35*$K$16-J36*$L$17) -> -1950 | K46: =SUM(K25*$K$16-K26*$L$17,K28*$K$16-K29*$L$17,K32*$K$16-K33*$L$17,K35*$K$16-K36*$L$17) -> -130 | L46: =SUM(L25*$K$16-L26*$L$17,L28*$K$16-L29*$L$17,L32*$K$16-L33*$L$17,L35*$K$16-L36*$L$17) -> -390 | M46: =SUM(M25*$K$16-M26*$L$17,M28*$K$16-M29*$L$17,M32*$K$16-M33*$L$17,M35*$K$16-M36*$L$17) -> 0 | N46: =SUM(N25*$K$16-N26*$L$17,N28*$K$16-N29*$L$17,N32*$K$16-N33*$L$17,N35*$K$16-N36*$L$17) -> 0
C47: Sensitiviteitsanalyse min-scenario kosten, populatie min (x€1000) | I47: =SUM(J47:N47) -> -432.9864 | J47: =SUM(J42*J45)/1000 -> -68.04 | K47: =SUM(J42*K45,K42*J45)/1000 -> -79.38 | L47: =SUM(J42*L45,K42*K45,L42*J45)/1000 -> -94.1976 | M47: =SUM(J42*M45,K42*L45,L42*K45,M42*J45)/1000 -> -95.6088 | N47: =SUM(J42*N45,K42*M45,L42*L45,M42*K45,N42*J45)/1000 -> -95.76
C48: Sensitiviteitsanalyse min-scenario kosten, populatie max (x€1000) | I48: =SUM(J48:N48) -> -680.4072 | J48: =SUM(J43*J45)/1000 -> -106.92 | K48: =SUM(J43*K45,K43*J45)/1000 -> -124.74 | L48: =SUM(J43*L45,K43*K45,L43*J45)/1000 -> -148.0248 | M48: =SUM(J43*M45,K43*L45,L43*K45,M43*J45)/1000 -> -150.2424 | N48: =SUM(J43*N45,K43*M45,L43*L45,M43*K45,N43*J45)/1000 -> -150.48
C49: Sensitiviteitsanalyse max-scenario kosten, populatie min (x€1000) | I49: =SUM(J49:N49) -> -625.4248 | J49: =SUM(J42*J46)/1000 -> -98.28 | K49: =SUM(J42*K46,K42*J46)/1000 -> -114.66 | L49: =SUM(J42*L46,K42*K46,L42*J46)/1000 -> -136.0632 | M49: =SUM(J42*M46,K42*L46,L42*K46,M42*J46)/1000 -> -138.1016 | N49: =SUM(J42*N46,K42*M46,L42*L46,M42*K46,N42*J46)/1000 -> -138.32
C50: Sensitiviteitsanalyse max-scenario kosten, populatie max (x€1000) | I50: =SUM(J50:N50) -> -982.8104 | J50: =SUM(J43*J46)/1000 -> -154.44 | K50: =SUM(J43*K46,K43*J46)/1000 -> -180.18 | L50: =SUM(J43*L46,K43*K46,L43*J46)/1000 -> -213.8136 | M50: =SUM(J43*M46,K43*L46,L43*K46,M43*J46)/1000 -> -217.0168 | N50: =SUM(J43*N46,K43*M46,L43*L46,M43*K46,N43*J46)/1000 -> -217.36
B52: SPECIFICATIE BRUTO UITGAVEN PER PATIENT PER FOLLOW-UP JAAR | J52: 5 | K52: 6 | L52: 7 | M52: 8 | N52: 9
C53: Wet | E53: Sector | H53: Component (eerste 2 regels..) | I53: Typering | J53: Jaar 1 | K53: Jaar 2 | L53: Jaar 3 | M53: Jaar 4 | N53: Jaar 5
A54: Alternatieve zorg | B54: 1 | C54: =IFERROR(INDEX(Sectoroverzicht!$B$3:$B$31,MATCH(E54,Sectoroverzicht!$C$3:$C$31,0),1),"") -> Niet van toepassing | E54: =IF(OFFSET(Interventies_alt3!$A23,0,2)="","",OFFSET(Interventies_alt3!$A23,0,2)) -> Non-healthcare | H54: =IF(OFFSET(Interventies_alt3!$A23,0,3)="","",OFFSET(Interventies_alt3!$A23,0,3)) -> Testcomponent | I54: =IF(OFFSET(Interventies_alt3!$A23,0,4)="","",OFFSET(Interventies_alt3!$A23,0,4)) -> Structureel | J54: =IF($C54="","",OFFSET(Interventies_alt3!$A23,0,J$52)) -> 1500 | K54: =IF($C54="","",OFFSET(Interventies_alt3!$A23,0,K$52)) -> 100 | L54: =IF($C54="","",OFFSET(Interventies_alt3!$A23,0,L$52)) -> 300 | M54: =IF($C54="","",OFFSET(Interventies_alt3!$A23,0,M$52)) -> 0 | N54: =IF($C54="","",OFFSET(Interventies_alt3!$A23,0,N$52)) -> 0
B55: 2 | C55: =IFERROR(INDEX(Sectoroverzicht!$B$3:$B$31,MATCH(E55,Sectoroverzicht!$C$3:$C$31,0),1),"") -> Zorgverzekeringswet | E55: =IF(OFFSET(Interventies_alt3!$A24,0,2)="","",OFFSET(Interventies_alt3!$A24,0,2)) -> Huisartsenzorg | H55: =IF(OFFSET(Interventies_alt3!$A24,0,3)="","",OFFSET(Interventies_alt3!$A24,0,3)) -> Testcomponent | I55: =IF(OFFSET(Interventies_alt3!$A24,0,4)="","",OFFSET(Interventies_alt3!$A24,0,4)) -> Incidenteel | J55: =IF($C55="","",OFFSET(Interventies_alt3!$A24,0,J$52)) -> 0 | K55: =IF($C55="","",OFFSET(Interventies_alt3!$A24,0,K$52)) -> 0 | L55: =IF($C55="","",OFFSET(Interventies_alt3!$A24,0,L$52)) -> 0 | M55: =IF($C55="","",OFFSET(Interventies_alt3!$A24,0,M$52)) -> 0 | N55: =IF($C55="","",OFFSET(Interventies_alt3!$A24,0,N$52)) -> 0
B56: 3 | C56: =IFERROR(INDEX(Sectoroverzicht!$B$3:$B$31,MATCH(E56,Sectoroverzicht!$C$3:$C$31,0),1),"") ->  | E56: =IF(OFFSET(Interventies_alt3!$A25,0,2)="","",OFFSET(Interventies_alt3!$A25,0,2)) ->  | H56: =IF(OFFSET(Interventies_alt3!$A25,0,3)="","",OFFSET(Interventies_alt3!$A25,0,3)) ->  | I56: =IF(OFFSET(Interventies_alt3!$A25,0,4)="","",OFFSET(Interventies_alt3!$A25,0,4)) ->  | J56: =IF($C56="","",OFFSET(Interventies_alt3!$A25,0,J$52)) ->  | K56: =IF($C56="","",OFFSET(Interventies_alt3!$A25,0,K$52)) ->  | L56: =IF($C56="","",OFFSET(Interventies_alt3!$A25,0,L$52)) ->  | M56: =IF($C56="","",OFFSET(Interventies_alt3!$A25,0,M$52)) ->  | N56: =IF($C56="","",OFFSET(Interventies_alt3!$A25,0,N$52)) -> 
B57: 4 | C57: =IFERROR(INDEX(Sectoroverzicht!$B$3:$B$31,MATCH(E57,Sectoroverzicht!$C$3:$C$31,0),1),"") ->  | E57: =IF(OFFSET(Interventies_alt3!$A26,0,2)="","",OFFSET(Interventies_alt3!$A26,0,2)) ->  | H57: =IF(OFFSET(Interventies_alt3!$A26,0,3)="","",OFFSET(Interventies_alt3!$A26,0,3)) ->  | I57: =IF(OFFSET(Interventies_alt3!$A26,0,4)="","",OFFSET(Interventies_alt3!$A26,0,4)) ->  | J57: =IF($C57="","",OFFSET(Interventies_alt3!$A26,0,J$52)) ->  | K57: =IF($C57="","",OFFSET(Interventies_alt3!$A26,0,K$52)) ->  | L57: =IF($C57="","",OFFSET(Interventies_alt3!$A26,0,L$52)) ->  | M57: =IF($C57="","",OFFSET(Interventies_alt3!$A26,0,M$52)) ->  | N57: =IF($C57="","",OFFSET(Interventies_alt3!$A26,0,N$52)) -> 
B58: 5 | C58: =IFERROR(INDEX(Sectoroverzicht!$B$3:$B$31,MATCH(E58,Sectoroverzicht!$C$3:$C$31,0),1),"") ->  | E58: =IF(OFFSET(Interventies_alt3!$A27,0,2)="","",OFFSET(Interventies_alt3!$A27,0,2)) ->  | H58: =IF(OFFSET(Interventies_alt3!$A27,0,3)="","",OFFSET(Interventies_alt3!$A27,0,3)) ->  | I58: =IF(OFFSET(Interventies_alt3!$A27,0,4)="","",OFFSET(Interventies_alt3!$A27,0,4)) ->  | J58: =IF($C58="","",OFFSET(Interventies_alt3!$A27,0,J$52)) ->  | K58: =IF($C58="","",OFFSET(Interventies_alt3!$A27,0,K$52)) ->  | L58: =IF($C58="","",OFFSET(Interventies_alt3!$A27,0,L$52)) ->  | M58: =IF($C58="","",OFFSET(Interventies_alt3!$A27,0,M$52)) ->  | N58: =IF($C58="","",OFFSET(Interventies_alt3!$A27,0,N$52)) -> 
B59: 6 | C59: =IFERROR(INDEX(Sectoroverzicht!$B$3:$B$31,MATCH(E59,Sectoroverzicht!$C$3:$C$31,0),1),"") ->  | E59: =IF(OFFSET(Interventies_alt3!$A28,0,2)="","",OFFSET(Interventies_alt3!$A28,0,2)) ->  | H59: =IF(OFFSET(Interventies_alt3!$A28,0,3)="","",OFFSET(Interventies_alt3!$A28,0,3)) ->  | I59: =IF(OFFSET(Interventies_alt3!$A28,0,4)="","",OFFSET(Interventies_alt3!$A28,0,4)) ->  | J59: =IF($C59="","",OFFSET(Interventies_alt3!$A28,0,J$52)) ->  | K59: =IF($C59="","",OFFSET(Interventies_alt3!$A28,0,K$52)) ->  | L59: =IF($C59="","",OFFSET(Interventies_alt3!$A28,0,L$52)) ->  | M59: =IF($C59="","",OFFSET(Interventies_alt3!$A28,0,M$52)) ->  | N59: =IF($C59="","",OFFSET(Interventies_alt3!$A28,0,N$52)) -> 
B60: 7 | C60: =IFERROR(INDEX(Sectoroverzicht!$B$3:$B$31,MATCH(E60,Sectoroverzicht!$C$3:$C$31,0),1),"") ->  | E60: =IF(OFFSET(Interventies_alt3!$A29,0,2)="","",OFFSET(Interventies_alt3!$A29,0,2)) ->  | H60: =IF(OFFSET(Interventies_alt3!$A29,0,3)="","",OFFSET(Interventies_alt3!$A29,0,3)) ->  | I60: =IF(OFFSET(Interventies_alt3!$A29,0,4)="","",OFFSET(Interventies_alt3!$A29,0,4)) ->  | J60: =IF($C60="","",OFFSET(Interventies_alt3!$A29,0,J$52)) ->  | K60: =IF($C60="","",OFFSET(Interventies_alt3!$A29,0,K$52)) ->  | L60: =IF($C60="","",OFFSET(Interventies_alt3!$A29,0,L$52)) ->  | M60: =IF($C60="","",OFFSET(Interventies_alt3!$A29,0,M$52)) ->  | N60: =IF($C60="","",OFFSET(Interventies_alt3!$A29,0,N$52)) -> 
B61: 8 | C61: =IFERROR(INDEX(Sectoroverzicht!$B$3:$B$31,MATCH(E61,Sectoroverzicht!$C$3:$C$31,0),1),"") ->  | E61: =IF(OFFSET(Interventies_alt3!$A30,0,2)="","",OFFSET(Interventies_alt3!$A30,0,2)) ->  | H61: =IF(OFFSET(Interventies_alt3!$A30,0,3)="","",OFFSET(Interventies_alt3!$A30,0,3)) ->  | I61: =IF(OFFSET(Interventies_alt3!$A30,0,4)="","",OFFSET(Interventies_alt3!$A30,0,4)) ->  | J61: =IF($C61="","",OFFSET(Interventies_alt3!$A30,0,J$52)) ->  | K61: =IF($C61="","",OFFSET(Interventies_alt3!$A30,0,K$52)) ->  | L61: =IF($C61="","",OFFSET(Interventies_alt3!$A30,0,L$52)) ->  | M61: =IF($C61="","",OFFSET(Interventies_alt3!$A30,0,M$52)) ->  | N61: =IF($C61="","",OFFSET(Interventies_alt3!$A30,0,N$52)) -> 
B62: 9 | C62: =IFERROR(INDEX(Sectoroverzicht!$B$3:$B$31,MATCH(E62,Sectoroverzicht!$C$3:$C$31,0),1),"") ->  | E62: =IF(OFFSET(Interventies_alt3!$A31,0,2)="","",OFFSET(Interventies_alt3!$A31,0,2)) ->  | H62: =IF(OFFSET(Interventies_alt3!$A31,0,3)="","",OFFSET(Interventies_alt3!$A31,0,3)) ->  | I62: =IF(OFFSET(Interventies_alt3!$A31,0,4)="","",OFFSET(Interventies_alt3!$A31,0,4)) ->  | J62: =IF($C62="","",OFFSET(Interventies_alt3!$A31,0,J$52)) ->  | K62: =IF($C62="","",OFFSET(Interventies_alt3!$A31,0,K$52)) ->  | L62: =IF($C62="","",OFFSET(Interventies_alt3!$A31,0,L$52)) ->  | M62: =IF($C62="","",OFFSET(Interventies_alt3!$A31,0,M$52)) ->  | N62: =IF($C62="","",OFFSET(Interventies_alt3!$A31,0,N$52)) -> 
B63: 10 | C63: =IFERROR(INDEX(Sectoroverzicht!$B$3:$B$31,MATCH(E63,Sectoroverzicht!$C$3:$C$31,0),1),"") ->  | E63: =IF(OFFSET(Interventies_alt3!$A32,0,2)="","",OFFSET(Interventies_alt3!$A32,0,2)) ->  | H63: =IF(OFFSET(Interventies_alt3!$A32,0,3)="","",OFFSET(Interventies_alt3!$A32,0,3)) ->  | I63: =IF(OFFSET(Interventies_alt3!$A32,0,4)="","",OFFSET(Interventies_alt3!$A32,0,4)) ->  | J63: =IF($C63="","",OFFSET(Interventies_alt3!$A32,0,J$52)) ->  | K63: =IF($C63="","",OFFSET(Interventies_alt3!$A32,0,K$52)) ->  | L63: =IF($C63="","",OFFSET(Interventies_alt3!$A32,0,L$52)) ->  | M63: =IF($C63="","",OFFSET(Interventies_alt3!$A32,0,M$52)) ->  | N63: =IF($C63="","",OFFSET(Interventies_alt3!$A32,0,N$52)) -> 
B64: 11 | C64: =IFERROR(INDEX(Sectoroverzicht!$B$3:$B$31,MATCH(E64,Sectoroverzicht!$C$3:$C$31,0),1),"") ->  | E64: =IF(OFFSET(Interventies_alt3!$A33,0,2)="","",OFFSET(Interventies_alt3!$A33,0,2)) ->  | H64: =IF(OFFSET(Interventies_alt3!$A33,0,3)="","",OFFSET(Interventies_alt3!$A33,0,3)) ->  | I64: =IF(OFFSET(Interventies_alt3!$A33,0,4)="","",OFFSET(Interventies_alt3!$A33,0,4)) ->  | J64: =IF($C64="","",OFFSET(Interventies_alt3!$A33,0,J$52)) ->  | K64: =IF($C64="","",OFFSET(Interventies_alt3!$A33,0,K$52)) ->  | L64: =IF($C64="","",OFFSET(Interventies_alt3!$A33,0,L$52)) ->  | M64: =IF($C64="","",OFFSET(Interventies_alt3!$A33,0,M$52)) ->  | N64: =IF($C64="","",OFFSET(Interventies_alt3!$A33,0,N$52)) -> 
B65: 12 | C65: =IFERROR(INDEX(Sectoroverzicht!$B$3:$B$31,MATCH(E65,Sectoroverzicht!$C$3:$C$31,0),1),"") ->  | E65: =IF(OFFSET(Interventies_alt3!$A34,0,2)="","",OFFSET(Interventies_alt3!$A34,0,2)) ->  | H65: =IF(OFFSET(Interventies_alt3!$A34,0,3)="","",OFFSET(Interventies_alt3!$A34,0,3)) ->  | I65: =IF(OFFSET(Interventies_alt3!$A34,0,4)="","",OFFSET(Interventies_alt3!$A34,0,4)) ->  | J65: =IF($C65="","",OFFSET(Interventies_alt3!$A34,0,J$52)) ->  | K65: =IF($C65="","",OFFSET(Interventies_alt3!$A34,0,K$52)) ->  | L65: =IF($C65="","",OFFSET(Interventies_alt3!$A34,0,L$52)) ->  | M65: =IF($C65="","",OFFSET(Interventies_alt3!$A34,0,M$52)) ->  | N65: =IF($C65="","",OFFSET(Interventies_alt3!$A34,0,N$52)) -> 
B66: 13 | C66: =IFERROR(INDEX(Sectoroverzicht!$B$3:$B$31,MATCH(E66,Sectoroverzicht!$C$3:$C$31,0),1),"") ->  | E66: =IF(OFFSET(Interventies_alt3!$A35,0,2)="","",OFFSET(Interventies_alt3!$A35,0,2)) ->  | H66: =IF(OFFSET(Interventies_alt3!$A35,0,3)="","",OFFSET(Interventies_alt3!$A35,0,3)) ->  | I66: =IF(OFFSET(Interventies_alt3!$A35,0,4)="","",OFFSET(Interventies_alt3!$A35,0,4)) ->  | J66: =IF($C66="","",OFFSET(Interventies_alt3!$A35,0,J$52)) ->  | K66: =IF($C66="","",OFFSET(Interventies_alt3!$A35,0,K$52)) ->  | L66: =IF($C66="","",OFFSET(Interventies_alt3!$A35,0,L$52)) ->  | M66: =IF($C66="","",OFFSET(Interventies_alt3!$A35,0,M$52)) ->  | N66: =IF($C66="","",OFFSET(Interventies_alt3!$A35,0,N$52)) -> 
B67: 14 | C67: =IFERROR(INDEX(Sectoroverzicht!$B$3:$B$31,MATCH(E67,Sectoroverzicht!$C$3:$C$31,0),1),"") ->  | E67: =IF(OFFSET(Interventies_alt3!$A36,0,2)="","",OFFSET(Interventies_alt3!$A36,0,2)) ->  | H67: =IF(OFFSET(Interventies_alt3!$A36,0,3)="","",OFFSET(Interventies_alt3!$A36,0,3)) ->  | I67: =IF(OFFSET(Interventies_alt3!$A36,0,4)="","",OFFSET(Interventies_alt3!$A36,0,4)) ->  | J67: =IF($C67="","",OFFSET(Interventies_alt3!$A36,0,J$52)) ->  | K67: =IF($C67="","",OFFSET(Interventies_alt3!$A36,0,K$52)) ->  | L67: =IF($C67="","",OFFSET(Interventies_alt3!$A36,0,L$52)) ->  | M67: =IF($C67="","",OFFSET(Interventies_alt3!$A36,0,M$52)) ->  | N67: =IF($C67="","",OFFSET(Interventies_alt3!$A36,0,N$52)) -> 
B68: 15 | C68: =IFERROR(INDEX(Sectoroverzicht!$B$3:$B$31,MATCH(E68,Sectoroverzicht!$C$3:$C$31,0),1),"") ->  | E68: =IF(OFFSET(Interventies_alt3!$A37,0,2)="","",OFFSET(Interventies_alt3!$A37,0,2)) ->  | H68: =IF(OFFSET(Interventies_alt3!$A37,0,3)="","",OFFSET(Interventies_alt3!$A37,0,3)) ->  | I68: =IF(OFFSET(Interventies_alt3!$A37,0,4)="","",OFFSET(Interventies_alt3!$A37,0,4)) ->  | J68: =IF($C68="","",OFFSET(Interventies_alt3!$A37,0,J$52)) ->  | K68: =IF($C68="","",OFFSET(Interventies_alt3!$A37,0,K$52)) ->  | L68: =IF($C68="","",OFFSET(Interventies_alt3!$A37,0,L$52)) ->  | M68: =IF($C68="","",OFFSET(Interventies_alt3!$A37,0,M$52)) ->  | N68: =IF($C68="","",OFFSET(Interventies_alt3!$A37,0,N$52)) -> 
A69: Referentie zorg | B69: 1 | C69: =IFERROR(INDEX(Sectoroverzicht!$B$3:$B$31,MATCH(E69,Sectoroverzicht!$C$3:$C$31,0),1),"") -> Wet langdurige zorg | E69: =IF(OFFSET(Interventies_ref3!$A23,0,2)="","",OFFSET(Interventies_ref3!$A23,0,2)) -> Gehandicaptenzorg | H69: =IF(OFFSET(Interventies_ref3!$A23,0,3)="","",OFFSET(Interventies_ref3!$A23,0,3)) -> Iets | I69: =IF(OFFSET(Interventies_ref3!$A23,0,4)="","",OFFSET(Interventies_ref3!$A23,0,4)) -> Structureel | J69: =IF($C69="","",OFFSET(Interventies_ref3!$A23,0,J$52)) -> 1500 | K69: =IF($C69="","",OFFSET(Interventies_ref3!$A23,0,K$52)) -> 100 | L69: =IF($C69="","",OFFSET(Interventies_ref3!$A23,0,L$52)) -> 300 | M69: =IF($C69="","",OFFSET(Interventies_ref3!$A23,0,M$52)) -> 0 | N69: =IF($C69="","",OFFSET(Interventies_ref3!$A23,0,N$52)) -> 0
B70: 2 | C70: =IFERROR(INDEX(Sectoroverzicht!$B$3:$B$31,MATCH(E70,Sectoroverzicht!$C$3:$C$31,0),1),"") -> Zorgverzekeringswet | E70: =IF(OFFSET(Interventies_ref3!$A24,0,2)="","",OFFSET(Interventies_ref3!$A24,0,2)) -> Huisartsenzorg | H70: =IF(OFFSET(Interventies_ref3!$A24,0,3)="","",OFFSET(Interventies_ref3!$A24,0,3)) -> Iets | I70: =IF(OFFSET(Interventies_ref3!$A24,0,4)="","",OFFSET(Interventies_ref3!$A24,0,4)) -> Incidenteel | J70: =IF($C70="","",OFFSET(Interventies_ref3!$A24,0,J$52)) -> 0 | K70: =IF($C70="","",OFFSET(Interventies_ref3!$A24,0,K$52)) -> 0 | L70: =IF($C70="","",OFFSET(Interventies_ref3!$A24,0,L$52)) -> 0 | M70: =IF($C70="","",OFFSET(Interventies_ref3!$A24,0,M$52)) -> 0 | N70: =IF($C70="","",OFFSET(Interventies_ref3!$A24,0,N$52)) -> 0
B71: 3 | C71: =IFERROR(INDEX(Sectoroverzicht!$B$3:$B$31,MATCH(E71,Sectoroverzicht!$C$3:$C$31,0),1),"") ->  | E71: =IF(OFFSET(Interventies_ref3!$A25,0,2)="","",OFFSET(Interventies_ref3!$A25,0,2)) ->  | H71: =IF(OFFSET(Interventies_ref3!$A25,0,3)="","",OFFSET(Interventies_ref3!$A25,0,3)) ->  | I71: =IF(OFFSET(Interventies_ref3!$A25,0,4)="","",OFFSET(Interventies_ref3!$A25,0,4)) ->  | J71: =IF($C71="","",OFFSET(Interventies_ref3!$A25,0,J$52)) ->  | K71: =IF($C71="","",OFFSET(Interventies_ref3!$A25,0,K$52)) ->  | L71: =IF($C71="","",OFFSET(Interventies_ref3!$A25,0,L$52)) ->  | M71: =IF($C71="","",OFFSET(Interventies_ref3!$A25,0,M$52)) ->  | N71: =IF($C71="","",OFFSET(Interventies_ref3!$A25,0,N$52)) -> 
B72: 4 | C72: =IFERROR(INDEX(Sectoroverzicht!$B$3:$B$31,MATCH(E72,Sectoroverzicht!$C$3:$C$31,0),1),"") ->  | E72: =IF(OFFSET(Interventies_ref3!$A26,0,2)="","",OFFSET(Interventies_ref3!$A26,0,2)) ->  | H72: =IF(OFFSET(Interventies_ref3!$A26,0,3)="","",OFFSET(Interventies_ref3!$A26,0,3)) ->  | I72: =IF(OFFSET(Interventies_ref3!$A26,0,4)="","",OFFSET(Interventies_ref3!$A26,0,4)) ->  | J72: =IF($C72="","",OFFSET(Interventies_ref3!$A26,0,J$52)) ->  | K72: =IF($C72="","",OFFSET(Interventies_ref3!$A26,0,K$52)) ->  | L72: =IF($C72="","",OFFSET(Interventies_ref3!$A26,0,L$52)) ->  | M72: =IF($C72="","",OFFSET(Interventies_ref3!$A26,0,M$52)) ->  | N72: =IF($C72="","",OFFSET(Interventies_ref3!$A26,0,N$52)) -> 
B73: 5 | C73: =IFERROR(INDEX(Sectoroverzicht!$B$3:$B$31,MATCH(E73,Sectoroverzicht!$C$3:$C$31,0),1),"") ->  | E73: =IF(OFFSET(Interventies_ref3!$A27,0,2)="","",OFFSET(Interventies_ref3!$A27,0,2)) ->  | H73: =IF(OFFSET(Interventies_ref3!$A27,0,3)="","",OFFSET(Interventies_ref3!$A27,0,3)) ->  | I73: =IF(OFFSET(Interventies_ref3!$A27,0,4)="","",OFFSET(Interventies_ref3!$A27,0,4)) ->  | J73: =IF($C73="","",OFFSET(Interventies_ref3!$A27,0,J$52)) ->  | K73: =IF($C73="","",OFFSET(Interventies_ref3!$A27,0,K$52)) ->  | L73: =IF($C73="","",OFFSET(Interventies_ref3!$A27,0,L$52)) ->  | M73: =IF($C73="","",OFFSET(Interventies_ref3!$A27,0,M$52)) ->  | N73: =IF($C73="","",OFFSET(Interventies_ref3!$A27,0,N$52)) -> 
B74: 6 | C74: =IFERROR(INDEX(Sectoroverzicht!$B$3:$B$31,MATCH(E74,Sectoroverzicht!$C$3:$C$31,0),1),"") ->  | E74: =IF(OFFSET(Interventies_ref3!$A28,0,2)="","",OFFSET(Interventies_ref3!$A28,0,2)) ->  | H74: =IF(OFFSET(Interventies_ref3!$A28,0,3)="","",OFFSET(Interventies_ref3!$A28,0,3)) ->  | I74: =IF(OFFSET(Interventies_ref3!$A28,0,4)="","",OFFSET(Interventies_ref3!$A28,0,4)) ->  | J74: =IF($C74="","",OFFSET(Interventies_ref3!$A28,0,J$52)) ->  | K74: =IF($C74="","",OFFSET(Interventies_ref3!$A28,0,K$52)) ->  | L74: =IF($C74="","",OFFSET(Interventies_ref3!$A28,0,L$52)) ->  | M74: =IF($C74="","",OFFSET(Interventies_ref3!$A28,0,M$52)) ->  | N74: =IF($C74="","",OFFSET(Interventies_ref3!$A28,0,N$52)) -> 
